Workbook

Sheet NSSCalc (hidden)
B1: Actual (Prior Year) | H1: Actual School Committee | Z1: Actual City/Town | AR1: Actual Total | BH1: Budgeted (Current Year) | BI1: Budgeted School Committee | CB1: Budgeted City/Town | CT1: Budgeted Total
C2: From EOYLog | E2: 2023 actual | F2: 2024 budget | G2: 2023 budget | H2: (DayPct x SCAdmin) + 1435 | I2: Total instructional services for reg, sped, voc and undistributed | J2: 3100 and 3200 totals | K2: 3400 total less supplies and materials | L2: 3510 + 3520 + 3600 | M2: (4000 series) x daypct | N2: (5100 + 5150) x daypct | O2: (5200 + 5260) x daypct | P2: 5250 x daypct for districts that can count this | Q2: (5300 + 5350) x daypct | R2: 5400 x daypct | S2: 9100 through 9400 All payments to other districts, reg, sped and voc LESS charter facilities aid for regional districts. | T2: SUM of 1 - 12 | V2: Allowable carryforward + SC budgeted revenues from PY Sch 19 (tuition, earnings on investments, rental of school facs and other gf rev) | W2: Only on municipal side | X2: 14a+14b | Y2: 13-14c | Z2: PY Sch 19*daypctbudget | AA2: PY Sch 19, "Educational Media" | AB2: PY Sch 19 | AC2: Only on school committee side | AD2: 3510 + 3520 + 3600 x daypct | AE2: PY Sch 19*daypct, maintenance + extraordinary maintenance | AF2: (5100 + 5150) x daypct | AG2: (5200 + 5260) x daypct | AH2: 5251 x daypct for districts that can count this | AI2: PY Sch 19*daypct | AJ2: 5400 x daypct | AK2: 9100 through 9400 formunicipal districts less their fac aid. | AL2: SUM of 1 - 12 | AN2: I don't think anything goes in here… | AO2: Only for municipal districts | AP2: 14a+14b | AQ2: 13 - 14c | AR2: 15. Sch Comm + 15. Muni | AS2: From that year's C70 (ESE fills in) | AT2: From ESE calculation of PY NSS compliance | AU2: 16 + 17 less waiver | AV2: 18 - 15 | AW2: 19 / 16 | AX2: 19 or 5% of 16 or 0 if 17 > 0 | AY2: 19 - 21 | BA2: Rev code 60 (PY Unexpended Encumbrances) | BB2: Prepop from NSS2223 | BC2: Prepop from NSS2223 | BD2: Actual 15 - Reqd 15 | BE2: Amt over/under less Carryforward | BF2: If "New Amt Over/Under" is <0, this is the smaller of that abs(number) or "Carryforward" | BG2: From PY Sch 19 x daypctbudget20 (col. G) | BI2: 1000 x daypctbudget | BJ2: 2000 not including other programs | BK2: 3100 and 3200 | BL2: 3400 | BM2: 3500 and 3600 | BN2: Maint and Extra Maint x daypctbudget | BO2: 5100 and 5150 x daypctbudget | BP2: 5200 and 5260 x daypctbudget | BQ2: 5250 for eligible districts x daypct budget | BR2: 5300 x daypctbudget | BS2: 5400 x daypctbudget | BT2: 9000s less other programs (For Regionals - less projected charter facilities aid, using most current charter and choice tuition) | BU2: 23 through 34 | BW2: Rev code 03, 04, 05, 08, 09, 10 x daypct | BX2: No data in here, only on muni side | CB2: 1000 x daypctbudget | CC2: 2000 not including other programs | CD2: 3100 and 3200 | CE2: Nothing reported here | CF2: 3500 and 3600 | CG2: Maint and Extra Maint x daypctbudget | CH2: 5100 and 5150 x daypctbudget | CI2: 5200 and 5260 x daypctbudget | CJ2: 5250 for eligible districts x daypct budget | CK2: 5300 x daypctbudget | CL2: 5400 x daypctbudget | CM2: 9000s less other programs (For Municipal - less projected charter facilities aid, using most current charter and choice tuition) | CN2: 23 through 34 | CP2: Nothing reported here for municipal | CQ2: if LEA <400, include proj charter reimbursement | CT2: 37. Sch Comm + 37. Muni | CW2: 38 + 39 less waiver | CZ2: Estimate | DA2: Estimate
A3: org4code | B3: OPStatus | C3: EOYIn | D3: Date Rcvd | E3: daypctactual23 | F3: daypctbudget24 | G3: daypctbudget23 | H3: 1. Administration (1000) | I3: 2. Instruction (2000) | J3: 3. Attendance-Health (3100, 3200) | K3: 4. Food Services (3400) | L3: 5. Athletics/Student Activities/ Security (3500,3600) | M3: 6. Maintenance (4000) | N3: 7. Employee Benefits (5100) | O3: 8. Insurance (5200) | P3: 9. Retired Employee Insurance (5250) | Q3: 10. Rentals (5300) | R3: 11. Short Term Interest RAN's (5400) | S3: 12. Tuition (9000) | T3: 13. Total School Spending (1 through 12) | U3: 14. School Revenues | V3: 14a) FY23 School Revenues | W3: 14b) FY23 Charter Reimbursement | X3: 14c) Subtotal, School Revenues (14a+14b) | Y3: 15. Net School Spending (13 - 14c) | Z3: 1. Administration (1000) | AA3: 2. Instruction (2000) | AB3: 3. Attendance-Health (3100, 3200) | AC3: 4. Food Services (3400) | AD3: 5. Athletics/Student Activities/ Security (3500,3600) | AE3: 6. Maintenance (4000) | AF3: 7. Employee Benefits (5100) | AG3: 8. Insurance (5200) | AH3: 9. Retired Employee Insurance (5250) | AI3: 10. Rentals (5300) | AJ3: 11. Short Term Interest RAN's (5400) | AK3: 12. Tuition (9000) | AL3: 13. Total School Spending (1 through 12) | AM3: 14. School Revenues | AN3: 14a) FY23 School Revenues | AO3: 14b) FY23 Charter Reimbursement | AP3: 14c) Subtotal, School Revenues (14a+14b) | AQ3: 15. Net School Spending (13 - 14c) | AR3: 15. Net School Spending (13 - 14c) | AS3: 16. FY23 Required Net School Spending | AT3: 17. FY23 Carry-Over Into FY23 | AU3: 18. Total FY23 Requirement (16 + 17) | AV3: 19. Unexpended Net School Spending (18 - 15) | AW3: 20. Percent Unexpended (19 / 16) | AX3: 21. FY23 Carry-Over (19 or 5% of 16 or 0 if 17 > 0) | AY3: 22. Penalty (19 - 21) | BA3: Carryforward | BB3: Total Required NSS FY22 | BC3: Actual NSS FY22 | BD3: Amt Over/Under | BE3: New Amount Over/Under | BF3: Allowable Carryforward | BG3: SC Revenues Budgeted for FY23 | BI3: 23. Administration (1000) | BJ3: 24. Instruction (2000) | BK3: 25. Attendance-Health (3100, 3200) | BL3: 26. Food Services (3400) | BM3: 27. Athletics/Student Activities/ Security (3500,3600) | BN3: 28. Maintenance (4000) | BO3: 29. Employee Benefits (5100) | BP3: 30. Insurance (5200) | BQ3: 31. Retired Employee Insurance (5250) | BR3: 32. Rentals (5300) | BS3: 33. Short Term Interest RAN's (5400) | BT3: 34. Tuition (9000) | BU3: 35. Total School Spending (23 through 34) | BV3: 36. Revenues | BW3: 36a) FY24 Budgeted School Revenues | BX3: 36b) Projected FY24 Charter Reimbursement (Local Districts) | BY3: 36c) Subtotal, Net School Spending Revenues (36a+36b) | BZ3: 37. Net School Spending (35 - 36) | CB3: 23. Administration (1000) | CC3: 24. Instruction (2000) | CD3: 25. Attendance-Health (3100, 3200) | CE3: 26. Food Services (3400) | CF3: 27. Athletics/Student Activities/ Security (3500,3600) | CG3: 28. Maintenance (4000) | CH3: 29. Employee Benefits (5100) | CI3: 30. Insurance (5200) | CJ3: 31. Retired Employee Insurance (5250) | CK3: 32. Rentals (5300) | CL3: 33. Short Term Interest RAN's (5400) | CM3: 34. Tuition (9000) | CN3: 35. Total School Spending (23 through 34) | CO3: 36. Revenues | CP3: 36a) FY24 Budgeted School Revenues | CQ3: 36b) Projected FY24 Charter Reimbursement (Local Districts) | CR3: 36c) Subtotal, Net School Spending Revenues (36a+36b) | CS3: 37. Net School Spending (35 - 36) | CT3: 37. Net School Spending (35 - 36) | CU3: 38. FY24 Required Net School Spending | CV3: 39. Carry-Over from FY23 (21) | CW3: 40. Total FY24 Requirement (38 + 39) | CX3: 41. Deficiency (40 - 37) | CY3: Percent Unexpended | CZ3: Carryover | DA3: Penalty
A4: 0001 | B4: 1 | C4: 1 | D4: 2023-12-11 | E4: 1 | F4: 1 | G4: 1 | H4: 791190.52 | I4: 20005494.9 | J4: 309091.11 | K4: 0 | L4: 563193.35 | M4: 2375902.64 | N4: 102423.55 | O4: 0 | P4: 0 | Q4: 0 | R4: 0 | S4: 1662377.93 | T4: 25809674 | V4: 0 | X4: 0 | Y4: 25809674 | Z4: 109468 | AA4: 56710 | AB4: 0 | AD4: 0 | AE4: 60615 | AF4: 1099666 | AG4: 4362955 | AH4: 901244 | AI4: 0 | AJ4: 0 | AK4: 1048363.304 | AL4: 7639021.304 | AO4: 285875.92 | AP4: 285875.92 | AQ4: 7353145.384 | AR4: 33162819.38 | AS4: 29563171 | AT4: 0 | AU4: 29563171 | AV4: 0 | AW4: 0 | AX4: 0 | AY4: 0 | BA4: 0 | BB4: 26629510 | BC4: 31762847.32 | BD4: 5133337.32 | BE4: 5133337.32 | BF4: 0 | BG4: 0 | BI4: 1114757 | BJ4: 19453998 | BK4: 400287 | BL4: 0 | BM4: 255613 | BN4: 2212849 | BO4: 45000 | BP4: 0 | BQ4: 0 | BR4: 0 | BS4: 0 | BT4: 4187227 | BU4: 27669731 | BW4: 0 | BY4: 0 | BZ4: 27669731 | CB4: 116078 | CC4: 58409 | CD4: 0 | CF4: 0 | CG4: 62431 | CH4: 1204138 | CI4: 4617982 | CJ4: 946163 | CK4: 0 | CL4: 0 | CM4: 1098098 | CN4: 8103299 | CQ4: 260654.6 | CR4: 260654.6 | CS4: 7842644.4 | CT4: 35512375.4 | CU4: 31287579 | CV4: 0 | CW4: 31287579 | CX4: 0 | CY4: 0 | CZ4: 0 | DA4: 0
A5: 0002 | B5: 0 | C5: 1 | D5: 2023-10-03 | H5: 0 | I5: 0 | J5: 0 | K5: 0 | L5: 0 | M5: 0 | N5: 0 | O5: 0 | P5: 0 | Q5: 0 | R5: 0 | S5: 0 | T5: 0 | V5: 0 | X5: 0 | Y5: 0 | Z5: 0 | AA5: 0 | AB5: 0 | AD5: 0 | AE5: 0 | AF5: 0 | AG5: 0 | AH5: 0 | AI5: 0 | AJ5: 0 | AK5: 0 | AL5: 0 | AO5: 0 | AP5: 0 | AQ5: 0 | AR5: 0 | AS5: 0 | AT5: 0 | AU5: 0 | AV5: 0 | AW5: 0 | AX5: 0 | AY5: 0 | BA5: 0 | BB5: 0 | BC5: 0 | BD5: 0 | BE5: 0 | BF5: 0 | BG5: 0 | BI5: 0 | BJ5: 0 | BK5: 0 | BL5: 0 | BM5: 0 | BN5: 0 | BO5: 0 | BP5: 0 | BQ5: 0 | BR5: 0 | BS5: 0 | BT5: 0 | BU5: 0 | BW5: 0 | BY5: 0 | BZ5: 0 | CB5: 0 | CC5: 0 | CD5: 0 | CF5: 0 | CG5: 0 | CH5: 0 | CI5: 0 | CJ5: 0 | CK5: 0 | CL5: 0 | CM5: 0 | CN5: 0 | CQ5: 0 | CR5: 0 | CS5: 0 | CT5: 0 | CU5: 0 | CV5: 0 | CW5: 0 | CX5: 0 | CY5: 0 | CZ5: 0 | DA5: 0
A6: 0003 | B6: 1 | C6: 1 | D6: 2023-12-21 | E6: 1 | F6: 1 | G6: 1 | H6: 507480 | I6: 8927681 | J6: 214651 | K6: 1615 | L6: 49063 | M6: 1086265 | N6: 0 | O6: 0 | P6: 0 | Q6: 0 | R6: 0 | S6: 3267585 | T6: 14054340 | V6: 0 | X6: 0 | Y6: 14054340 | Z6: 89116 | AA6: 0 | AB6: 0 | AD6: 0 | AE6: 0 | AF6: 401107 | AG6: 1008690 | AH6: 227001 | AI6: 0 | AJ6: 0 | AK6: 223818.8004 | AL6: 1949732.8 | AO6: 21.84085759 | AP6: 21.84085759 | AQ6: 1949710.96 | AR6: 16004050.96 | AS6: 14824675 | AT6: 0 | AU6: 14824675 | AV6: 0 | AW6: 0 | AX6: 0 | AY6: 0 | BA6: 0 | BB6: 14279819 | BC6: 16001958.2 | BD6: 1722139.205 | BE6: 1722139.205 | BF6: 0 | BG6: 0 | BI6: 683281 | BJ6: 9185900 | BK6: 233205 | BL6: 0 | BM6: 123717 | BN6: 1268088 | BO6: 0 | BP6: 0 | BQ6: 0 | BR6: 0 | BS6: 0 | BT6: 3282286 | BU6: 14776477 | BW6: 0 | BY6: 0 | BZ6: 14776477 | CB6: 98746 | CC6: 0 | CD6: 0 | CF6: 0 | CG6: 0 | CH6: 426684 | CI6: 1050255 | CJ6: 297938 | CK6: 0 | CL6: 0 | CM6: 282434 | CN6: 2156057 | CQ6: 15536 | CR6: 15536 | CS6: 2140521 | CT6: 16916998 | CU6: 15911255 | CV6: 0 | CW6: 15911255 | CX6: 0 | CY6: 0 | CZ6: 0 | DA6: 0
A7: 0004 | B7: 0 | C7: 0 | H7: 0 | I7: 0 | J7: 0 | K7: 0 | L7: 0 | M7: 0 | N7: 0 | O7: 0 | P7: 0 | Q7: 0 | R7: 0 | S7: 0 | T7: 0 | V7: 0 | X7: 0 | Y7: 0 | Z7: 0 | AA7: 0 | AB7: 0 | AD7: 0 | AE7: 0 | AF7: 0 | AG7: 0 | AH7: 0 | AI7: 0 | AJ7: 0 | AK7: 0 | AL7: 0 | AO7: 0 | AP7: 0 | AQ7: 0 | AR7: 0 | AS7: 0 | AT7: 0 | AU7: 0 | AV7: 0 | AW7: 0 | AX7: 0 | AY7: 0 | BA7: 0 | BB7: 0 | BC7: 0 | BD7: 0 | BE7: 0 | BF7: 0 | BG7: 0 | BI7: 0 | BJ7: 0 | BK7: 0 | BL7: 0 | BM7: 0 | BN7: 0 | BO7: 0 | BP7: 0 | BQ7: 0 | BR7: 0 | BS7: 0 | BT7: 0 | BU7: 0 | BW7: 0 | BY7: 0 | BZ7: 0 | CB7: 0 | CC7: 0 | CD7: 0 | CF7: 0 | CG7: 0 | CH7: 0 | CI7: 0 | CJ7: 0 | CK7: 0 | CL7: 0 | CM7: 0 | CN7: 0 | CQ7: 0 | CR7: 0 | CS7: 0 | CT7: 0 | CU7: 0 | CV7: 0 | CW7: 0 | CX7: 0 | CY7: 0 | CZ7: 0 | DA7: 0
A8: 0005 | B8: 1 | C8: 1 | D8: 2023-09-29 | E8: 1 | F8: 1 | G8: 1 | H8: 990820 | I8: 38523727 | J8: 81699 | K8: 0 | L8: 822173 | M8: 819863 | N8: 123355 | O8: 0 | P8: 0 | Q8: 17849 | R8: 0 | S8: 4036691 | T8: 45416177 | V8: 49046 | X8: 49046 | Y8: 45367131 | Z8: 537911 | AA8: 0 | AB8: 935568 | AD8: 0 | AE8: 4802165 | AF8: 4363381 | AG8: 7048139 | AH8: 1529458 | AI8: 0 | AJ8: 0 | AK8: 1801282.581 | AL8: 21017904.58 | AO8: 277711.5436 | AP8: 277711.5436 | AQ8: 20740193.04 | AR8: 66107324.04 | AS8: 46476255 | AT8: 0 | AU8: 46476255 | AV8: 0 | AW8: 0 | AX8: 0 | AY8: 0 | BA8: 3309 | BB8: 43370784 | BC8: 66813738.51 | BD8: 23442954.51 | BE8: 23439645.51 | BF8: 0 | BG8: 49046 | BI8: 1028552 | BJ8: 42449098 | BK8: 0 | BL8: 0 | BM8: 0 | BN8: 0 | BO8: 0 | BP8: 0 | BQ8: 0 | BR8: 0 | BS8: 0 | BT8: 4026578 | BU8: 47504228 | BW8: 49050 | BY8: 49050 | BZ8: 47455178 | CB8: 562522 | CC8: 0 | CD8: 943150 | CF8: 0 | CG8: 4945814 | CH8: 4656245 | CI8: 7452535 | CJ8: 1598865 | CK8: 0 | CL8: 0 | CM8: 1780236 | CN8: 21939367 | CQ8: 180904 | CR8: 180904 | CS8: 21758463 | CT8: 69213641 | CU8: 50397491 | CV8: 0 | CW8: 50397491 | CX8: 0 | CY8: 0 | CZ8: 0 | DA8: 0
A9: 0006 | B9: 0 | C9: 1 | D9: 2023-09-22 | H9: 0 | I9: 0 | J9: 0 | K9: 0 | L9: 0 | M9: 0 | N9: 0 | O9: 0 | P9: 0 | Q9: 0 | R9: 0 | S9: 0 | T9: 0 | V9: 0 | X9: 0 | Y9: 0 | Z9: 0 | AA9: 0 | AB9: 0 | AD9: 0 | AE9: 0 | AF9: 0 | AG9: 0 | AH9: 0 | AI9: 0 | AJ9: 0 | AK9: 0 | AL9: 0 | AO9: 0 | AP9: 0 | AQ9: 0 | AR9: 0 | AS9: 0 | AT9: 0 | AU9: 0 | AV9: 0 | AW9: 0 | AX9: 0 | AY9: 0 | BA9: 0 | BB9: 0 | BC9: 0 | BD9: 0 | BE9: 0 | BF9: 0 | BG9: 0 | BI9: 0 | BJ9: 0 | BK9: 0 | BL9: 0 | BM9: 0 | BN9: 0 | BO9: 0 | BP9: 0 | BQ9: 0 | BR9: 0 | BS9: 0 | BT9: 0 | BU9: 0 | BW9: 0 | BY9: 0 | BZ9: 0 | CB9: 0 | CC9: 0 | CD9: 0 | CF9: 0 | CG9: 0 | CH9: 0 | CI9: 0 | CJ9: 0 | CK9: 0 | CL9: 0 | CM9: 0 | CN9: 0 | CQ9: 0 | CR9: 0 | CS9: 0 | CT9: 0 | CU9: 0 | CV9: 0 | CW9: 0 | CX9: 0 | CY9: 0 | CZ9: 0 | DA9: 0
A10: 0007 | B10: 1 | C10: 1 | D10: 2023-09-29 | E10: 1 | F10: 1 | G10: 1 | H10: 784863.88 | I10: 21034148.5 | J10: 388161.65 | K10: 23709.14 | L10: 416701.02 | M10: 2886346.85 | N10: 1319482 | O10: 4986463.16 | P10: 374951.87 | Q10: 102000 | R10: 0 | S10: 1713689.87 | T10: 34030517.94 | V10: 0 | X10: 0 | Y10: 34030517.94 | Z10: 251902.24 | AA10: 0 | AB10: 0 | AD10: 0 | AE10: 37500 | AF10: 0 | AG10: 0 | AH10: 1478714 | AI10: 0 | AJ10: 0 | AK10: 1847814.527 | AL10: 3615930.767 | AO10: 489519.4186 | AP10: 489519.4186 | AQ10: 3126411.349 | AR10: 37156929.29 | AS10: 26799945 | AT10: 0 | AU10: 26799945 | AV10: 0 | AW10: 0 | AX10: 0 | AY10: 0 | BA10: 0 | BB10: 25761653 | BC10: 35498673.62 | BD10: 9737020.615 | BE10: 9737020.615 | BF10: 0 | BG10: 0 | BI10: 1623210 | BJ10: 20386439 | BK10: 396458 | BL10: 22475 | BM10: 521011 | BN10: 3164139 | BO10: 1503966 | BP10: 4923282 | BQ10: 400345 | BR10: 105060 | BS10: 0 | BT10: 2262871 | BU10: 35309256 | BW10: 0 | BY10: 0 | BZ10: 35309256 | CB10: 264607.63 | CC10: 0 | CD10: 0 | CF10: 0 | CG10: 37500 | CH10: 0 | CI10: 0 | CJ10: 1640673 | CK10: 0 | CL10: 0 | CM10: 2198426 | CN10: 4141206.63 | CQ10: 531687.6 | CR10: 531687.6 | CS10: 3609519.03 | CT10: 38918775.03 | CU10: 27706889 | CV10: 0 | CW10: 27706889 | CX10: 0 | CY10: 0 | CZ10: 0 | DA10: 0
A11: 0008 | B11: 1 | C11: 1 | D11: 2023-11-03 | E11: 1 | F11: 1 | G11: 1 | H11: 854767 | I11: 15985914 | J11: 395417 | K11: 0 | L11: 113090 | M11: 2061428 | N11: 52534 | O11: 3223605 | P11: 1559526 | Q11: 0 | R11: 0 | S11: 119710 | T11: 24365991 | V11: 0 | X11: 0 | Y11: 24365991 | Z11: 148344 | AA11: 0 | AB11: 0 | AD11: 0 | AE11: 0 | AF11: 1483899 | AG11: 0 | AH11: 0 | AI11: 0 | AJ11: 0 | AK11: 1959974.517 | AL11: 3592217.517 | AO11: 46678.2 | AP11: 46678.2 | AQ11: 3545539.317 | AR11: 27911530.32 | AS11: 16679304 | AT11: 0 | AU11: 16679304 | AV11: 0 | AW11: 0 | AX11: 0 | AY11: 0 | BA11: 0 | BB11: 16043246 | BC11: 27263835.5 | BD11: 11220589.5 | BE11: 11220589.5 | BF11: 0 | BG11: 0 | BI11: 1004098 | BJ11: 16292074 | BK11: 534684 | BL11: 0 | BM11: 0 | BN11: 1811183 | BO11: 25000 | BP11: 3766316 | BQ11: 1550590 | BR11: 0 | BS11: 0 | BT11: 16661 | BU11: 25000606 | BW11: 0 | BY11: 0 | BZ11: 25000606 | CB11: 146927 | CC11: 0 | CD11: 0 | CF11: 0 | CG11: 0 | CH11: 1573597 | CI11: 0 | CJ11: 0 | CK11: 0 | CL11: 0 | CM11: 2025356 | CN11: 3745880 | CQ11: 67224.8 | CR11: 67224.8 | CS11: 3678655.2 | CT11: 28679261.2 | CU11: 17448921 | CV11: 0 | CW11: 17448921 | CX11: 0 | CY11: 0 | CZ11: 0 | DA11: 0
A12: 0009 | B12: 1 | C12: 1 | D12: 2023-11-16 | E12: 1 | F12: 1 | G12: 1 | H12: 3630776 | I12: 73094122.42 | J12: 1333399 | K12: 10331 | L12: 992988 | M12: 3908983 | N12: 90432 | O12: 1103159 | P12: 0 | Q12: 0 | R12: 0 | S12: 3034955 | T12: 87199145.42 | V12: 0 | X12: 0 | Y12: 87199145.42 | Z12: 226274 | AA12: 0 | AB12: 0 | AD12: 4000 | AE12: 8941705 | AF12: 1789697 | AG12: 10812083 | AH12: 1674518.4 | AI12: 0 | AJ12: 0 | AK12: 429919.4756 | AL12: 23878196.88 | AO12: 63319.51108 | AP12: 63319.51108 | AQ12: 23814877.36 | AR12: 111014022.8 | AS12: 67737065 | AT12: 0 | AU12: 67737065 | AV12: 0 | AW12: 0 | AX12: 0 | AY12: 0 | BA12: 0 | BB12: 65247254 | BC12: 109284940.6 | BD12: 44037686.64 | BE12: 44037686.64 | BF12: 0 | BG12: 0 | BI12: 3902513 | BJ12: 76728767 | BK12: 1386362 | BL12: 0 | BM12: 1316806 | BN12: 4199311 | BO12: 151000 | BP12: 1175698 | BQ12: 0 | BR12: 0 | BS12: 0 | BT12: 3732095 | BU12: 92592552 | BW12: 0 | BY12: 0 | BZ12: 92592552 | CB12: 233058 | CC12: 0 | CD12: 0 | CF12: 4000 | CG12: 8978244 | CH12: 2012739 | CI12: 14755456 | CJ12: 2031749.3 | CK12: 0 | CL12: 0 | CM12: 324784 | CN12: 28340030.3 | CQ12: 29279.2 | CR12: 29279.2 | CS12: 28310751.1 | CT12: 120903303.1 | CU12: 72244408 | CV12: 0 | CW12: 72244408 | CX12: 0 | CY12: 0 | CZ12: 0 | DA12: 0
A13: 0010 | B13: 1 | C13: 1 | D13: 2023-12-14 | E13: 1 | F13: 1 | G13: 1 | H13: 3062339.9 | I13: 65003800.82 | J13: 1925461.72 | K13: 85304.56 | L13: 1383599.18 | M13: 8077659.29 | N13: 13229 | O13: 0 | P13: 0 | Q13: 0 | R13: 0 | S13: 2588707.48 | T13: 82140101.95 | V13: 0 | X13: 0 | Y13: 82140101.95 | Z13: 613312.93 | AA13: 178108.22 | AB13: 0 | AD13: 93669.226 | AE13: 582060 | AF13: 5210070.16 | AG13: 10610978.03 | AH13: 2952259 | AI13: 0 | AJ13: 0 | AK13: 529897.5375 | AL13: 20770355.1 | AO13: 149762.5549 | AP13: 149762.5549 | AQ13: 20620592.55 | AR13: 102760694.5 | AS13: 69496900 | AT13: 0 | AU13: 69496900 | AV13: 0 | AW13: 0 | AX13: 0 | AY13: 0 | BA13: 230242.06 | BB13: 65961393 | BC13: 96979638.4 | BD13: 31018245.4 | BE13: 30788003.34 | BF13: 0 | BG13: 0 | BI13: 3186024 | BJ13: 72693285 | BK13: 105635 | BL13: 0 | BM13: 722864 | BN13: 7340823 | BO13: 0 | BP13: 0 | BQ13: 0 | BR13: 0 | BS13: 0 | BT13: 3646232 | BU13: 87694863 | BW13: 0 | BY13: 0 | BZ13: 87694863 | CB13: 633957.7476 | CC13: 198352.26 | CD13: 0 | CF13: 95542.61052 | CG13: 615150 | CH13: 5120155.774 | CI13: 10633678.03 | CJ13: 2952259 | CK13: 0 | CL13: 0 | CM13: 533196 | CN13: 20782291.42 | CQ13: 85677.2 | CR13: 85677.2 | CS13: 20696614.22 | CT13: 108391477.2 | CU13: 74896749 | CV13: 0 | CW13: 74896749 | CX13: 0 | CY13: 0 | CZ13: 0 | DA13: 0
A14: 0011 | B14: 0 | C14: 1 | D14: 2023-11-01 | H14: 0 | I14: 0 | J14: 0 | K14: 0 | L14: 0 | M14: 0 | N14: 0 | O14: 0 | P14: 0 | Q14: 0 | R14: 0 | S14: 0 | T14: 0 | V14: 0 | X14: 0 | Y14: 0 | Z14: 0 | AA14: 0 | AB14: 0 | AD14: 0 | AE14: 0 | AF14: 0 | AG14: 0 | AH14: 0 | AI14: 0 | AJ14: 0 | AK14: 0 | AL14: 0 | AO14: 0 | AP14: 0 | AQ14: 0 | AR14: 0 | AS14: 0 | AT14: 0 | AU14: 0 | AV14: 0 | AW14: 0 | AX14: 0 | AY14: 0 | BA14: 0 | BB14: 0 | BC14: 0 | BD14: 0 | BE14: 0 | BF14: 0 | BG14: 0 | BI14: 0 | BJ14: 0 | BK14: 0 | BL14: 0 | BM14: 0 | BN14: 0 | BO14: 0 | BP14: 0 | BQ14: 0 | BR14: 0 | BS14: 0 | BT14: 0 | BU14: 0 | BW14: 0 | BY14: 0 | BZ14: 0 | CB14: 0 | CC14: 0 | CD14: 0 | CF14: 0 | CG14: 0 | CH14: 0 | CI14: 0 | CJ14: 0 | CK14: 0 | CL14: 0 | CM14: 0 | CN14: 0 | CQ14: 0 | CR14: 0 | CS14: 0 | CT14: 0 | CU14: 0 | CV14: 0 | CW14: 0 | CX14: 0 | CY14: 0 | CZ14: 0 | DA14: 0
A15: 0012 | B15: 0 | C15: 1 | D15: 2023-09-26 | H15: 0 | I15: 0 | J15: 0 | K15: 0 | L15: 0 | M15: 0 | N15: 0 | O15: 0 | P15: 0 | Q15: 0 | R15: 0 | S15: 0 | T15: 0 | V15: 0 | X15: 0 | Y15: 0 | Z15: 0 | AA15: 0 | AB15: 0 | AD15: 0 | AE15: 0 | AF15: 0 | AG15: 0 | AH15: 0 | AI15: 0 | AJ15: 0 | AK15: 0 | AL15: 0 | AO15: 0 | AP15: 0 | AQ15: 0 | AR15: 0 | AS15: 0 | AT15: 0 | AU15: 0 | AV15: 0 | AW15: 0 | AX15: 0 | AY15: 0 | BA15: 0 | BB15: 0 | BC15: 0 | BD15: 0 | BE15: 0 | BF15: 0 | BG15: 0 | BI15: 0 | BJ15: 0 | BK15: 0 | BL15: 0 | BM15: 0 | BN15: 0 | BO15: 0 | BP15: 0 | BQ15: 0 | BR15: 0 | BS15: 0 | BT15: 0 | BU15: 0 | BW15: 0 | BY15: 0 | BZ15: 0 | CB15: 0 | CC15: 0 | CD15: 0 | CF15: 0 | CG15: 0 | CH15: 0 | CI15: 0 | CJ15: 0 | CK15: 0 | CL15: 0 | CM15: 0 | CN15: 0 | CQ15: 0 | CR15: 0 | CS15: 0 | CT15: 0 | CU15: 0 | CV15: 0 | CW15: 0 | CX15: 0 | CY15: 0 | CZ15: 0 | DA15: 0
A16: 0013 | B16: 0 | C16: 0 | H16: 0 | I16: 0 | J16: 0 | K16: 0 | L16: 0 | M16: 0 | N16: 0 | O16: 0 | P16: 0 | Q16: 0 | R16: 0 | S16: 0 | T16: 0 | V16: 0 | X16: 0 | Y16: 0 | Z16: 0 | AA16: 0 | AB16: 0 | AD16: 0 | AE16: 0 | AF16: 0 | AG16: 0 | AH16: 0 | AI16: 0 | AJ16: 0 | AK16: 0 | AL16: 0 | AO16: 0 | AP16: 0 | AQ16: 0 | AR16: 0 | AS16: 204468 | AT16: 10235.35 | AU16: 214703.35 | AV16: -214703.35 | AW16: -1.050058444 | AX16: 10223.4 | AY16: 0 | BA16: 0 | BB16: 214214.7 | BC16: 171824.45 | BD16: -42390.25 | BE16: -42390.25 | BF16: 0 | BG16: 0 | BI16: 0 | BJ16: 0 | BK16: 0 | BL16: 0 | BM16: 0 | BN16: 0 | BO16: 0 | BP16: 0 | BQ16: 0 | BR16: 0 | BS16: 0 | BT16: 0 | BU16: 0 | BW16: 0 | BY16: 0 | BZ16: 0 | CB16: 0 | CC16: 0 | CD16: 0 | CF16: 0 | CG16: 0 | CH16: 0 | CI16: 0 | CJ16: 0 | CK16: 0 | CL16: 0 | CM16: 0 | CN16: 0 | CQ16: 0 | CR16: 0 | CS16: 0 | CT16: 0 | CU16: 272698 | CV16: 10223.4 | CW16: 282921.4 | CX16: -282921.4 | CY16: -1.037489824 | CZ16: 13634.9 | DA16: 0
A17: 0014 | B17: 1 | C17: 1 | D17: 2023-09-29 | E17: 1 | F17: 1 | G17: 1 | H17: 1927458.37 | I17: 26894809.55 | J17: 736848 | K17: 1118 | L17: 789349.32 | M17: 2644670.96 | N17: 66986.78 | O17: 417.33 | P17: 0 | Q17: 0 | R17: 0 | S17: 2069249.66 | T17: 35130907.97 | V17: 0 | X17: 0 | Y17: 35130907.97 | Z17: 0 | AA17: 0 | AB17: 0 | AD17: 0 | AE17: 85856 | AF17: 1915103 | AG17: 4048185 | AH17: 842278 | AI17: 0 | AJ17: 550315.32 | AK17: 153158.4178 | AL17: 7594895.738 | AO17: 0 | AP17: 0 | AQ17: 7594895.738 | AR17: 42725803.71 | AS17: 33942251 | AT17: 0 | AU17: 33942251 | AV17: 0 | AW17: 0 | AX17: 0 | AY17: 0 | BA17: 2309.25 | BB17: 30857120 | BC17: 39872568.53 | BD17: 9015448.53 | BE17: 9013139.28 | BF17: 0 | BG17: 0 | BI17: 1866977 | BJ17: 28771506.82 | BK17: 731397 | BL17: 7000 | BM17: 571244 | BN17: 2815478 | BO17: 40000 | BP17: 300 | BQ17: 0 | BR17: 0 | BS17: 0 | BT17: 2966475 | BU17: 37770377.82 | BW17: 0 | BY17: 0 | BZ17: 37770377.82 | CB17: 0 | CC17: 0 | CD17: 0 | CF17: 0 | CG17: 75473 | CH17: 2030970 | CI17: 4409193 | CJ17: 926506 | CK17: 0 | CL17: 0 | CM17: 174328 | CN17: 7616470 | CQ17: 0 | CR17: 0 | CS17: 7616470 | CT17: 45386847.82 | CU17: 36758231 | CV17: 0 | CW17: 36758231 | CX17: 0 | CY17: 0 | CZ17: 0 | DA17: 0
A18: 0015 | B18: 0 | C18: 1 | D18: 2023-09-22 | H18: 0 | I18: 0 | J18: 0 | K18: 0 | L18: 0 | M18: 0 | N18: 0 | O18: 0 | P18: 0 | Q18: 0 | R18: 0 | S18: 0 | T18: 0 | V18: 0 | X18: 0 | Y18: 0 | Z18: 0 | AA18: 0 | AB18: 0 | AD18: 0 | AE18: 0 | AF18: 0 | AG18: 0 | AH18: 0 | AI18: 0 | AJ18: 0 | AK18: 0 | AL18: 0 | AO18: 0 | AP18: 0 | AQ18: 0 | AR18: 0 | AS18: 0 | AT18: 796.808 | AU18: 796.808 | AV18: -796.808 | AW18: 0 | AX18: 796.808 | AY18: 0 | BA18: 0 | BB18: 796.808 | BC18: 0 | BD18: -796.808 | BE18: -796.808 | BF18: 0 | BG18: 0 | BI18: 0 | BJ18: 0 | BK18: 0 | BL18: 0 | BM18: 0 | BN18: 0 | BO18: 0 | BP18: 0 | BQ18: 0 | BR18: 0 | BS18: 0 | BT18: 0 | BU18: 0 | BW18: 0 | BY18: 0 | BZ18: 0 | CB18: 0 | CC18: 0 | CD18: 0 | CF18: 0 | CG18: 0 | CH18: 0 | CI18: 0 | CJ18: 0 | CK18: 0 | CL18: 0 | CM18: 0 | CN18: 0 | CQ18: 0 | CR18: 0 | CS18: 0 | CT18: 0 | CU18: 0 | CV18: 796.808 | CW18: 796.808 | CX18: -796.808 | DA18: 0
A19: 0016 | B19: 1 | C19: 1 | D19: 2023-11-13 | E19: 1 | F19: 1 | G19: 1 | H19: 2516935 | I19: 52811778 | J19: 1188818 | K19: 0 | L19: 861166 | M19: 9502438 | N19: 1978109 | O19: 12917627 | P19: 0 | Q19: 0 | R19: 0 | S19: 3923425 | T19: 85700296 | V19: 50000 | X19: 50000 | Y19: 85650296 | Z19: 881163.36 | AA19: 0 | AB19: 1000 | AD19: 62478.26 | AE19: 0 | AF19: 0 | AG19: 0 | AH19: 0 | AI19: 0 | AJ19: 0 | AK19: 4082533.904 | AL19: 5027175.524 | AO19: 118434.432 | AP19: 118434.432 | AQ19: 4908741.092 | AR19: 90559037.09 | AS19: 89310930 | AT19: 0 | AU19: 89310930 | AV19: 0 | AW19: 0 | AX19: 0 | AY19: 0 | BA19: 115052.76 | BB19: 80741146 | BC19: 83777458.42 | BD19: 3036312.42 | BE19: 2921259.66 | BF19: 0 | BG19: 50000 | BI19: 3320524 | BJ19: 58722209 | BK19: 1376456 | BL19: 0 | BM19: 933530 | BN19: 9468446 | BO19: 2102392 | BP19: 13643709 | BQ19: 0 | BR19: 0 | BS19: 0 | BT19: 3313840 | BU19: 92881106 | BW19: 65000 | BY19: 65000 | BZ19: 92816106 | CB19: 872883.34 | CC19: 0 | CD19: 1000 | CF19: 120000 | CG19: 0 | CH19: 0 | CI19: 0 | CJ19: 698948.55 | CK19: 0 | CL19: 0 | CM19: 3708768 | CN19: 5401599.89 | CQ19: 0 | CR19: 0 | CS19: 5401599.89 | CT19: 98217705.89 | CU19: 97105121 | CV19: 0 | CW19: 97105121 | CX19: 0 | CY19: 0 | CZ19: 0 | DA19: 0
A20: 0017 | B20: 1 | C20: 1 | D20: 2023-10-06 | E20: 1 | F20: 1 | G20: 1 | H20: 737317.28 | I20: 22599110.48 | J20: 675036.28 | K20: 0 | L20: 616193.59 | M20: 2818235 | N20: 26062.44 | O20: 0 | P20: 0 | Q20: 0 | R20: 0 | S20: 541923.43 | T20: 28013878.5 | V20: 0 | X20: 0 | Y20: 28013878.5 | Z20: 210575.12 | AA20: 0 | AB20: 0 | AD20: 0 | AE20: 281179.3 | AF20: 1757234.81 | AG20: 4347177.6 | AH20: 2387207.98 | AI20: 0 | AJ20: 0 | AK20: 239443.5267 | AL20: 9222818.337 | AO20: 0 | AP20: 0 | AQ20: 9222818.337 | AR20: 37236696.84 | AS20: 30252650 | AT20: 0 | AU20: 30252650 | AV20: 0 | AW20: 0 | AX20: 0 | AY20: 0 | BA20: 0 | BB20: 27852870 | BC20: 35770785.97 | BD20: 7917915.97 | BE20: 7917915.97 | BF20: 0 | BG20: 0 | BI20: 1041908.71 | BJ20: 23795003.45 | BK20: 751964.25 | BL20: 0 | BM20: 562544.5 | BN20: 2212908.87 | BO20: 65000 | BP20: 0 | BQ20: 0 | BR20: 0 | BS20: 0 | BT20: 487371.18 | BU20: 28916700.96 | BW20: 20902 | BY20: 20902 | BZ20: 28895798.96 | CB20: 377290.32 | CC20: 0 | CD20: 0 | CF20: 0 | CG20: 228241.92 | CH20: 1972589.2 | CI20: 4416795.52 | CJ20: 2451293.95 | CK20: 0 | CL20: 0 | CM20: 258058 | CN20: 9704268.91 | CQ20: 37938 | CR20: 37938 | CS20: 9666330.91 | CT20: 38562129.87 | CU20: 32176028 | CV20: 0 | CW20: 32176028 | CX20: 0 | CY20: 0 | CZ20: 0 | DA20: 0
A21: 0018 | B21: 1 | C21: 1 | D21: 2023-09-29 | E21: 1 | F21: 1 | G21: 1 | H21: 495830 | I21: 7162165 | J21: 159976 | K21: 0 | L21: 158345 | M21: 1082476 | N21: 0 | O21: 0 | P21: 0 | Q21: 0 | R21: 0 | S21: 396295 | T21: 9455087 | V21: 0 | X21: 0 | Y21: 9455087 | Z21: 121032 | AA21: 0 | AB21: 0 | AD21: 0 | AE21: 183305 | AF21: 614182 | AG21: 1342847 | AH21: 447616 | AI21: 0 | AJ21: 0 | AK21: 574465.5906 | AL21: 3283447.591 | AO21: 156370.0582 | AP21: 156370.0582 | AQ21: 3127077.532 | AR21: 12582164.53 | AS21: 8289242 | AT21: 0 | AU21: 8289242 | AV21: 0 | AW21: 0 | AX21: 0 | AY21: 0 | BA21: 169696 | BB21: 7155527 | BC21: 11831479.38 | BD21: 4675952.381 | BE21: 4506256.381 | BF21: 0 | BG21: 0 | BI21: 548398 | BJ21: 7701237 | BK21: 168425 | BL21: 60000 | BM21: 161695 | BN21: 1044859 | BO21: 0 | BP21: 0 | BQ21: 0 | BR21: 0 | BS21: 0 | BT21: 222543 | BU21: 9907157 | BW21: 0 | BY21: 0 | BZ21: 9907157 | CB21: 122214 | CC21: 0 | CD21: 0 | CF21: 0 | CG21: 183305 | CH21: 526473 | CI21: 1374053 | CJ21: 458018 | CK21: 0 | CL21: 0 | CM21: 377811 | CN21: 3041874 | CQ21: 81096.6 | CR21: 81096.6 | CS21: 2960777.4 | CT21: 12867934.4 | CU21: 9536789 | CV21: 0 | CW21: 9536789 | CX21: 0 | CY21: 0 | CZ21: 0 | DA21: 0
A22: 0019 | B22: 0 | C22: 1 | D22: 2023-09-28 | H22: 0 | I22: 0 | J22: 0 | K22: 0 | L22: 0 | M22: 0 | N22: 0 | O22: 0 | P22: 0 | Q22: 0 | R22: 0 | S22: 0 | T22: 0 | V22: 0 | X22: 0 | Y22: 0 | Z22: 0 | AA22: 0 | AB22: 0 | AD22: 0 | AE22: 0 | AF22: 0 | AG22: 0 | AH22: 0 | AI22: 0 | AJ22: 0 | AK22: 0 | AL22: 0 | AO22: 0 | AP22: 0 | AQ22: 0 | AR22: 0 | AS22: 0 | AT22: 0 | AU22: 0 | AV22: 0 | AW22: 0 | AX22: 0 | AY22: 0 | BA22: 0 | BB22: 0 | BC22: 0 | BD22: 0 | BE22: 0 | BF22: 0 | BG22: 0 | BI22: 0 | BJ22: 0 | BK22: 0 | BL22: 0 | BM22: 0 | BN22: 0 | BO22: 0 | BP22: 0 | BQ22: 0 | BR22: 0 | BS22: 0 | BT22: 0 | BU22: 0 | BW22: 0 | BY22: 0 | BZ22: 0 | CB22: 0 | CC22: 0 | CD22: 0 | CF22: 0 | CG22: 0 | CH22: 0 | CI22: 0 | CJ22: 0 | CK22: 0 | CL22: 0 | CM22: 0 | CN22: 0 | CQ22: 0 | CR22: 0 | CS22: 0 | CT22: 0 | CU22: 0 | CV22: 0 | CW22: 0 | CX22: 0 | CY22: 0 | CZ22: 0 | DA22: 0
A23: 0020 | B23: 1 | C23: 1 | D23: 2023-11-13 | E23: 1 | F23: 1 | G23: 1 | H23: 1667979.73 | I23: 58219434.52 | J23: 1400168.78 | K23: 2686.85 | L23: 1074961.77 | M23: 7388637.94 | N23: 46387.43 | O23: 10000 | P23: 0 | Q23: 0 | R23: 0 | S23: 2331345.36 | T23: 72141602.38 | V23: 0 | X23: 0 | Y23: 72141602.38 | Z23: 1737043.15 | AA23: 0 | AB23: 0 | AD23: 0 | AE23: 0 | AF23: 2636793.638 | AG23: 7601683.12 | AH23: 2117678.364 | AI23: 0 | AJ23: 0 | AK23: 6596059.919 | AL23: 20689258.19 | AO23: 955150.2748 | AP23: 955150.2748 | AQ23: 19734107.92 | AR23: 91875710.3 | AS23: 75594780 | AT23: 0 | AU23: 75594780 | AV23: 0 | AW23: 0 | AX23: 0 | AY23: 0 | BA23: 439608.37 | BB23: 66987030 | BC23: 87126784.8 | BD23: 20139754.8 | BE23: 19700146.43 | BF23: 0 | BG23: 0 | BI23: 1894993.15 | BJ23: 63984760.25 | BK23: 1758587.44 | BL23: 3000 | BM23: 995315.61 | BN23: 7143077.54 | BO23: 65000 | BP23: 0 | BQ23: 0 | BR23: 0 | BS23: 0 | BT23: 1771365 | BU23: 77616098.99 | BW23: 0 | BY23: 0 | BZ23: 77616098.99 | CB23: 1835808.2 | CC23: 0 | CD23: 0 | CF23: 0 | CG23: 0 | CH23: 2903860.81 | CI23: 7689486.26 | CJ23: 2813983.858 | CK23: 0 | CL23: 0 | CM23: 7614476 | CN23: 22857615.13 | CQ23: 1442113.8 | CR23: 1442113.8 | CS23: 21415501.33 | CT23: 99031600.32 | CU23: 84542110 | CV23: 0 | CW23: 84542110 | CX23: 0 | CY23: 0 | CZ23: 0 | DA23: 0
A24: 0021 | B24: 0 | C24: 1 | D24: 2023-12-19 | H24: 0 | I24: 0 | J24: 0 | K24: 0 | L24: 0 | M24: 0 | N24: 0 | O24: 0 | P24: 0 | Q24: 0 | R24: 0 | S24: 0 | T24: 0 | V24: 0 | X24: 0 | Y24: 0 | Z24: 0 | AA24: 0 | AB24: 0 | AD24: 0 | AE24: 0 | AF24: 0 | AG24: 0 | AH24: 0 | AI24: 0 | AJ24: 0 | AK24: 0 | AL24: 0 | AO24: 0 | AP24: 0 | AQ24: 0 | AR24: 0 | AS24: 0 | AT24: 0 | AU24: 0 | AV24: 0 | AW24: 0 | AX24: 0 | AY24: 0 | BA24: 0 | BB24: 0 | BC24: 0 | BD24: 0 | BE24: 0 | BF24: 0 | BG24: 0 | BI24: 0 | BJ24: 0 | BK24: 0 | BL24: 0 | BM24: 0 | BN24: 0 | BO24: 0 | BP24: 0 | BQ24: 0 | BR24: 0 | BS24: 0 | BT24: 0 | BU24: 0 | BW24: 0 | BY24: 0 | BZ24: 0 | CB24: 0 | CC24: 0 | CD24: 0 | CF24: 0 | CG24: 0 | CH24: 0 | CI24: 0 | CJ24: 0 | CK24: 0 | CL24: 0 | CM24: 0 | CN24: 0 | CQ24: 0 | CR24: 0 | CS24: 0 | CT24: 0 | CU24: 0 | CV24: 0 | CW24: 0 | CX24: 0 | CY24: 0 | CZ24: 0 | DA24: 0
A25: 0022 | B25: 0 | C25: 0 | H25: 0 | I25: 0 | J25: 0 | K25: 0 | L25: 0 | M25: 0 | N25: 0 | O25: 0 | P25: 0 | Q25: 0 | R25: 0 | S25: 0 | T25: 0 | V25: 0 | X25: 0 | Y25: 0 | Z25: 0 | AA25: 0 | AB25: 0 | AD25: 0 | AE25: 0 | AF25: 0 | AG25: 0 | AH25: 0 | AI25: 0 | AJ25: 0 | AK25: 0 | AL25: 0 | AO25: 0 | AP25: 0 | AQ25: 0 | AR25: 0 | AS25: 230778 | AT25: 12039.05 | AU25: 242817.05 | AV25: -242817.05 | AW25: -1.052167234 | AX25: 11538.9 | AY25: 0 | BA25: 0 | BB25: 252403.1 | BC25: 205469 | BD25: -46934.1 | BE25: -46934.1 | BF25: 0 | BG25: 0 | BI25: 0 | BJ25: 0 | BK25: 0 | BL25: 0 | BM25: 0 | BN25: 0 | BO25: 0 | BP25: 0 | BQ25: 0 | BR25: 0 | BS25: 0 | BT25: 0 | BU25: 0 | BW25: 0 | BY25: 0 | BZ25: 0 | CB25: 0 | CC25: 0 | CD25: 0 | CF25: 0 | CG25: 0 | CH25: 0 | CI25: 0 | CJ25: 0 | CK25: 0 | CL25: 0 | CM25: 0 | CN25: 0 | CQ25: 0 | CR25: 0 | CS25: 0 | CT25: 0 | CU25: 266284 | CV25: 11538.9 | CW25: 277822.9 | CX25: -277822.9 | CY25: -1.043333058 | CZ25: 13314.2 | DA25: 0
A26: 0023 | B26: 1 | C26: 0 | G26: 1 | H26: 0 | I26: 0 | J26: 0 | K26: 0 | L26: 0 | M26: 0 | N26: 0 | O26: 0 | P26: 0 | Q26: 0 | R26: 0 | S26: 0 | T26: 0 | V26: 0 | X26: 0 | Y26: 0 | Z26: 671866 | AA26: 0 | AB26: 0 | AD26: 0 | AE26: 0 | AF26: 0 | AG26: 0 | AH26: 0 | AI26: 0 | AJ26: 0 | AK26: 0 | AL26: 671866 | AO26: 0 | AP26: 0 | AQ26: 671866 | AR26: 671866 | AS26: 32246556 | AT26: 0 | AU26: 32246556 | AV26: -31574690 | AW26: -0.9791647207 | AX26: 1612327.8 | AY26: -29962362.2 | BA26: 0 | BB26: 31026443 | BC26: 51230140.96 | BD26: 20203697.96 | BE26: 20203697.96 | BF26: 0 | BG26: 0 | BI26: 0 | BJ26: 0 | BK26: 0 | BL26: 0 | BM26: 0 | BN26: 0 | BO26: 0 | BP26: 0 | BQ26: 0 | BR26: 0 | BS26: 0 | BT26: 0 | BU26: 0 | BW26: 0 | BY26: 0 | BZ26: 0 | CB26: 0 | CC26: 0 | CD26: 0 | CF26: 0 | CG26: 0 | CH26: 0 | CI26: 0 | CJ26: 0 | CK26: 0 | CL26: 0 | CM26: 21672 | CN26: 21672 | CQ26: 2488 | CR26: 2488 | CS26: 19184 | CT26: 19184 | CU26: 33464417 | CV26: 1612327.8 | CW26: 35076744.8 | CX26: -35057560.8 | CY26: -1.047607099 | CZ26: 1673220.85 | DA26: -33384339.95
A27: 0024 | B27: 1 | C27: 1 | D27: 2023-12-01 | E27: 1 | F27: 1 | G27: 1 | H27: 975497.67 | I27: 20039415.51 | J27: 632940 | K27: 0 | L27: 245423.82 | M27: 2660039.4 | N27: 0 | O27: 4061842 | P27: 258031.8 | Q27: 10708 | R27: 0 | S27: 361264.71 | T27: 29245162.91 | V27: 0 | X27: 0 | Y27: 29245162.91 | Z27: 183538 | AA27: 4314 | AB27: 0 | AD27: 0 | AE27: 19522 | AF27: 1320355 | AG27: 210981 | AH27: 0 | AI27: 0 | AJ27: 0 | AK27: 1393541.506 | AL27: 3132251.506 | AO27: 10011.56322 | AP27: 10011.56322 | AQ27: 3122239.943 | AR27: 32367402.85 | AS27: 27179888 | AT27: 0 | AU27: 27179888 | AV27: 0 | AW27: 0 | AX27: 0 | AY27: 0 | BA27: 0 | BB27: 26807294 | BC27: 31246329.67 | BD27: 4439035.675 | BE27: 4439035.675 | BF27: 0 | BG27: 0 | BI27: 1173978 | BJ27: 20173914 | BK27: 644803 | BL27: 0 | BM27: 209322 | BN27: 2633624 | BO27: 0 | BP27: 4399512 | BQ27: 0 | BR27: 0 | BS27: 0 | BT27: 375160 | BU27: 29610313 | BW27: 0 | BY27: 0 | BZ27: 29610313 | CB27: 427314 | CC27: 4314 | CD27: 0 | CF27: 0 | CG27: 1880 | CH27: 1361339 | CI27: 270489 | CJ27: 0 | CK27: 0 | CL27: 0 | CM27: 1449909 | CN27: 3515245 | CQ27: 6573.2 | CR27: 6573.2 | CS27: 3508671.8 | CT27: 33118984.8 | CU27: 27973238 | CV27: 0 | CW27: 27973238 | CX27: 0 | CY27: 0 | CZ27: 0 | DA27: 0
A28: 0025 | B28: 1 | C28: 1 | D28: 2023-12-07 | E28: 1 | F28: 1 | G28: 1 | H28: 876489 | I28: 21719558 | J28: 423117 | K28: 6087 | L28: 557311 | M28: 3499726 | N28: 27059 | O28: 0 | P28: 0 | Q28: 0 | R28: 0 | S28: 1777304 | T28: 28886651 | V28: 0 | X28: 0 | Y28: 28886651 | Z28: 491194 | AA28: 0 | AB28: 0 | AD28: 0 | AE28: 0 | AF28: 1069637 | AG28: 6301378 | AH28: 534989.4 | AI28: 0 | AJ28: 0 | AK28: 3678180.003 | AL28: 12075378.4 | AO28: 825136.9426 | AP28: 825136.9426 | AQ28: 11250241.46 | AR28: 40136892.46 | AS28: 27269890 | AT28: 0 | AU28: 27269890 | AV28: 0 | AW28: 0 | AX28: 0 | AY28: 0 | BA28: 125568 | BB28: 26105176 | BC28: 38007489.21 | BD28: 11902313.21 | BE28: 11776745.21 | BF28: 0 | BG28: 0 | BI28: 1091644 | BJ28: 22459975 | BK28: 382025 | BL28: 5000 | BM28: 691355 | BN28: 3189997 | BO28: 65200 | BP28: 0 | BQ28: 0 | BR28: 0 | BS28: 0 | BT28: 2283036 | BU28: 30168232 | BW28: 0 | BY28: 0 | BZ28: 30168232 | CB28: 400972 | CC28: 0 | CD28: 0 | CF28: 0 | CG28: 0 | CH28: 1259563 | CI28: 6379562 | CJ28: 418425.7 | CK28: 0 | CL28: 0 | CM28: 3887091 | CN28: 12345613.7 | CQ28: 649728 | CR28: 649728 | CS28: 11695885.7 | CT28: 41864117.7 | CU28: 29660512 | CV28: 0 | CW28: 29660512 | CX28: 0 | CY28: 0 | CZ28: 0 | DA28: 0
A29: 0026 | B29: 1 | C29: 1 | D29: 2023-10-13 | E29: 1 | F29: 1 | G29: 1 | H29: 2263460 | I29: 43970035 | J29: 886244 | K29: 0 | L29: 619982 | M29: 2247623 | N29: 761997 | O29: 6791195 | P29: 1036203 | Q29: 0 | R29: 0 | S29: 5761833 | T29: 64338572 | V29: 0 | X29: 0 | Y29: 64338572 | Z29: 488232 | AA29: 0 | AB29: 2000 | AD29: 266536 | AE29: 5115235 | AF29: 2792869 | AG29: 176882 | AH29: 5550 | AI29: 0 | AJ29: 0 | AK29: 944979.86 | AL29: 9792283.86 | AO29: 59235.9877 | AP29: 59235.9877 | AQ29: 9733047.872 | AR29: 74071619.87 | AS29: 53845537 | AT29: 0 | AU29: 53845537 | AV29: 0 | AW29: 0 | AX29: 0 | AY29: 0 | BA29: 478559.74 | BB29: 50716777 | BC29: 71815400.36 | BD29: 21098623.36 | BE29: 20620063.62 | BF29: 0 | BG29: 0 | BI29: 2049432 | BJ29: 46736750 | BK29: 985078 | BL29: 0 | BM29: 627702 | BN29: 1389176 | BO29: 0 | BP29: 0 | BQ29: 0 | BR29: 0 | BS29: 0 | BT29: 9277343 | BU29: 61065481 | BW29: 0 | BY29: 0 | BZ29: 61065481 | CB29: 566948 | CC29: 0 | CD29: 2000 | CF29: 178342 | CG29: 5285421 | CH29: 2785993 | CI29: 7656908 | CJ29: 131208 | CK29: 0 | CL29: 0 | CM29: 778940 | CN29: 17385760 | CQ29: 48659.8 | CR29: 48659.8 | CS29: 17337100.2 | CT29: 78402581.2 | CU29: 57423976 | CV29: 0 | CW29: 57423976 | CX29: 0 | CY29: 0 | CZ29: 0 | DA29: 0
A30: 0027 | B30: 1 | C30: 1 | D30: 2023-09-21 | E30: 1 | F30: 1 | G30: 1 | H30: 453234 | I30: 6761623 | J30: 174281 | K30: 0 | L30: 5495 | M30: 864034 | N30: 2952 | O30: 0 | P30: 0 | Q30: 0 | R30: 0 | S30: 152000 | T30: 8413619 | V30: 0 | X30: 0 | Y30: 8413619 | Z30: 74973 | AA30: 0 | AB30: 0 | AD30: 0 | AE30: 5000 | AF30: 384819 | AG30: 932748 | AH30: 176995 | AI30: 0 | AJ30: 0 | AK30: 58290.445 | AL30: 1632825.445 | AO30: 9377.664 | AP30: 9377.664 | AQ30: 1623447.781 | AR30: 10037066.78 | AS30: 8640735 | AT30: 0 | AU30: 8640735 | AV30: 0 | AW30: 0 | AX30: 0 | AY30: 0 | BA30: 0 | BB30: 8274710 | BC30: 9744962.4 | BD30: 1470252.4 | BE30: 1470252.4 | BF30: 0 | BG30: 0 | BI30: 399274 | BJ30: 6985154 | BK30: 185396 | BL30: 0 | BM30: 21500 | BN30: 863782 | BO30: 5000 | BP30: 0 | BQ30: 0 | BR30: 0 | BS30: 0 | BT30: 181300 | BU30: 8641406 | BW30: 90000 | BY30: 90000 | BZ30: 8551406 | CB30: 79358 | CC30: 0 | CD30: 0 | CF30: 0 | CG30: 5000 | CH30: 384819 | CI30: 936367 | CJ30: 176995 | CK30: 0 | CL30: 0 | CM30: 78017 | CN30: 1660556 | CQ30: 0 | CR30: 0 | CS30: 1660556 | CT30: 10211962 | CU30: 8929788 | CV30: 0 | CW30: 8929788 | CX30: 0 | CY30: 0 | CZ30: 0 | DA30: 0
A31: 0028 | B31: 0 | C31: 1 | D31: 2023-10-06 | H31: 0 | I31: 0 | J31: 0 | K31: 0 | L31: 0 | M31: 0 | N31: 0 | O31: 0 | P31: 0 | Q31: 0 | R31: 0 | S31: 0 | T31: 0 | V31: 0 | X31: 0 | Y31: 0 | Z31: 0 | AA31: 0 | AB31: 0 | AD31: 0 | AE31: 0 | AF31: 0 | AG31: 0 | AH31: 0 | AI31: 0 | AJ31: 0 | AK31: 0 | AL31: 0 | AO31: 0 | AP31: 0 | AQ31: 0 | AR31: 0 | AS31: 0 | AT31: 0 | AU31: 0 | AV31: 0 | AW31: 0 | AX31: 0 | AY31: 0 | BA31: 0 | BB31: 0 | BC31: 0 | BD31: 0 | BE31: 0 | BF31: 0 | BG31: 0 | BI31: 0 | BJ31: 0 | BK31: 0 | BL31: 0 | BM31: 0 | BN31: 0 | BO31: 0 | BP31: 0 | BQ31: 0 | BR31: 0 | BS31: 0 | BT31: 0 | BU31: 0 | BW31: 0 | BY31: 0 | BZ31: 0 | CB31: 0 | CC31: 0 | CD31: 0 | CF31: 0 | CG31: 0 | CH31: 0 | CI31: 0 | CJ31: 0 | CK31: 0 | CL31: 0 | CM31: 0 | CN31: 0 | CQ31: 0 | CR31: 0 | CS31: 0 | CT31: 0 | CU31: 0 | CV31: 0 | CW31: 0 | CX31: 0 | CY31: 0 | CZ31: 0 | DA31: 0
A32: 0029 | B32: 0 | C32: 1 | D32: 2023-09-22 | H32: 0 | I32: 0 | J32: 0 | K32: 0 | L32: 0 | M32: 0 | N32: 0 | O32: 0 | P32: 0 | Q32: 0 | R32: 0 | S32: 0 | T32: 0 | V32: 0 | X32: 0 | Y32: 0 | Z32: 0 | AA32: 0 | AB32: 0 | AD32: 0 | AE32: 0 | AF32: 0 | AG32: 0 | AH32: 0 | AI32: 0 | AJ32: 0 | AK32: 0 | AL32: 0 | AO32: 0 | AP32: 0 | AQ32: 0 | AR32: 0 | AS32: 0 | AT32: 0 | AU32: 0 | AV32: 0 | AW32: 0 | AX32: 0 | AY32: 0 | BA32: 0 | BB32: 0 | BC32: 434266 | BD32: 434266 | BE32: 434266 | BF32: 0 | BG32: 0 | BI32: 0 | BJ32: 0 | BK32: 0 | BL32: 0 | BM32: 0 | BN32: 0 | BO32: 0 | BP32: 0 | BQ32: 0 | BR32: 0 | BS32: 0 | BT32: 0 | BU32: 0 | BW32: 0 | BY32: 0 | BZ32: 0 | CB32: 0 | CC32: 0 | CD32: 0 | CF32: 0 | CG32: 0 | CH32: 0 | CI32: 0 | CJ32: 0 | CK32: 0 | CL32: 0 | CM32: 0 | CN32: 0 | CQ32: 0 | CR32: 0 | CS32: 0 | CT32: 0 | CU32: 0 | CV32: 0 | CW32: 0 | CX32: 0 | CY32: 0 | CZ32: 0 | DA32: 0
A33: 0030 | B33: 1 | C33: 1 | D33: 2023-10-06 | E33: 1 | F33: 1 | G33: 1 | H33: 2183538.93 | I33: 43057408.09 | J33: 968286.92 | K33: 0 | L33: 923611.25 | M33: 4586890.45 | N33: 791540.16 | O33: 8894864.13 | P33: 0 | Q33: 160370.44 | R33: 0 | S33: 4118168.18 | T33: 65684678.55 | V33: 0 | X33: 0 | Y33: 65684678.55 | Z33: 713337 | AA33: 0 | AB33: 0 | AD33: 0 | AE33: 147999 | AF33: 2509487 | AG33: 465246 | AH33: 2731684 | AI33: 0 | AJ33: 0 | AK33: 859621.4032 | AL33: 7427374.403 | AO33: 155703.4 | AP33: 155703.4 | AQ33: 7271671.003 | AR33: 72956349.55 | AS33: 58610573 | AT33: 0 | AU33: 58610573 | AV33: 0 | AW33: 0 | AX33: 0 | AY33: 0 | BA33: 0 | BB33: 53925726 | BC33: 68964401.68 | BD33: 15038675.68 | BE33: 15038675.68 | BF33: 0 | BG33: 0 | BI33: 2175795 | BJ33: 44848279 | BK33: 0 | BL33: 0 | BM33: 721593 | BN33: 4426987 | BO33: 833730 | BP33: 10219718 | BQ33: 0 | BR33: 186127 | BS33: 0 | BT33: 3848656 | BU33: 67260885 | BW33: 0 | BY33: 0 | BZ33: 67260885 | CB33: 758631 | CC33: 0 | CD33: 0 | CF33: 0 | CG33: 148248 | CH33: 2625964 | CI33: 405778 | CJ33: 2387742 | CK33: 0 | CL33: 0 | CM33: 932300 | CN33: 7258663 | CQ33: 95318.2 | CR33: 95318.2 | CS33: 7163344.8 | CT33: 74424229.8 | CU33: 61798815 | CV33: 0 | CW33: 61798815 | CX33: 0 | CY33: 0 | CZ33: 0 | DA33: 0
A34: 0031 | B34: 1 | C34: 0 | G34: 1 | H34: 0 | I34: 0 | J34: 0 | K34: 0 | L34: 0 | M34: 0 | N34: 0 | O34: 0 | P34: 0 | Q34: 0 | R34: 0 | S34: 0 | T34: 0 | V34: 0 | X34: 0 | Y34: 0 | Z34: 0 | AA34: 0 | AB34: 0 | AD34: 0 | AE34: 0 | AF34: 0 | AG34: 0 | AH34: 0 | AI34: 0 | AJ34: 0 | AK34: 0 | AL34: 0 | AO34: 0 | AP34: 0 | AQ34: 0 | AR34: 0 | AS34: 65975163 | AT34: 0 | AU34: 65975163 | AV34: -65975163 | AW34: -1 | AX34: 3298758.15 | AY34: -62676404.85 | BA34: 0 | BB34: 62592586 | BC34: 83513914 | BD34: 20921328 | BE34: 20921328 | BF34: 0 | BG34: 0 | BI34: 0 | BJ34: 0 | BK34: 0 | BL34: 0 | BM34: 0 | BN34: 0 | BO34: 0 | BP34: 0 | BQ34: 0 | BR34: 0 | BS34: 0 | BT34: 0 | BU34: 0 | BW34: 0 | BY34: 0 | BZ34: 0 | CB34: 0 | CC34: 0 | CD34: 0 | CF34: 0 | CG34: 0 | CH34: 0 | CI34: 0 | CJ34: 0 | CK34: 0 | CL34: 0 | CM34: 1963549 | CN34: 1963549 | CQ34: 139756.2 | CR34: 139756.2 | CS34: 1823792.8 | CT34: 1823792.8 | CU34: 69705258 | CV34: 3298758.15 | CW34: 73004016.15 | CX34: -71180223.35 | CY34: -1.02116003 | CZ34: 3485262.9 | DA34: -67694960.45
A35: 0032 | B35: 0 | C35: 1 | D35: 2023-12-21 | H35: 0 | I35: 0 | J35: 0 | K35: 0 | L35: 0 | M35: 0 | N35: 0 | O35: 0 | P35: 0 | Q35: 0 | R35: 0 | S35: 0 | T35: 0 | V35: 0 | X35: 0 | Y35: 0 | Z35: 0 | AA35: 0 | AB35: 0 | AD35: 0 | AE35: 0 | AF35: 0 | AG35: 0 | AH35: 0 | AI35: 0 | AJ35: 0 | AK35: 523129 | AL35: 523129 | AO35: 0 | AP35: 0 | AQ35: 523129 | AR35: 523129 | AS35: 448021 | AT35: 0 | AU35: 448021 | AV35: 0 | AW35: 0 | AX35: 0 | AY35: 0 | BA35: 0 | BB35: 452778 | BC35: 581458.15 | BD35: 128680.15 | BE35: 128680.15 | BF35: 0 | BG35: 0 | BI35: 0 | BJ35: 0 | BK35: 0 | BL35: 0 | BM35: 0 | BN35: 0 | BO35: 0 | BP35: 0 | BQ35: 0 | BR35: 0 | BS35: 0 | BT35: 0 | BU35: 0 | BW35: 0 | BY35: 0 | BZ35: 0 | CB35: 0 | CC35: 0 | CD35: 0 | CF35: 0 | CG35: 0 | CH35: 0 | CI35: 0 | CJ35: 0 | CK35: 0 | CL35: 0 | CM35: 0 | CN35: 0 | CQ35: 0 | CR35: 0 | CS35: 0 | CT35: 0 | CU35: 432068 | CV35: 0 | CW35: 432068 | CX35: -432068 | CY35: -1 | CZ35: 21603.4 | DA35: 0
A36: 0033 | B36: 0 | C36: 1 | D36: 2023-12-14 | H36: 0 | I36: 0 | J36: 0 | K36: 0 | L36: 0 | M36: 0 | N36: 0 | O36: 0 | P36: 0 | Q36: 0 | R36: 0 | S36: 0 | T36: 0 | V36: 0 | X36: 0 | Y36: 0 | Z36: 0 | AA36: 0 | AB36: 0 | AD36: 0 | AE36: 0 | AF36: 0 | AG36: 0 | AH36: 0 | AI36: 0 | AJ36: 0 | AK36: 223336.82 | AL36: 223336.82 | AO36: 0 | AP36: 0 | AQ36: 223336.82 | AR36: 223336.82 | AS36: 173461 | AT36: 0 | AU36: 173461 | AV36: 0 | AW36: 0 | AX36: 0 | AY36: 0 | BA36: 0 | BB36: 167315 | BC36: 177664.65 | BD36: 10349.65 | BE36: 10349.65 | BF36: 0 | BG36: 0 | BI36: 0 | BJ36: 0 | BK36: 0 | BL36: 0 | BM36: 0 | BN36: 0 | BO36: 0 | BP36: 0 | BQ36: 0 | BR36: 0 | BS36: 0 | BT36: 0 | BU36: 0 | BW36: 0 | BY36: 0 | BZ36: 0 | CB36: 0 | CC36: 0 | CD36: 0 | CF36: 0 | CG36: 0 | CH36: 0 | CI36: 0 | CJ36: 0 | CK36: 0 | CL36: 0 | CM36: 280000 | CN36: 280000 | CQ36: 0 | CR36: 0 | CS36: 280000 | CT36: 280000 | CU36: 245151 | CV36: 0 | CW36: 245151 | CX36: 0 | CY36: 0 | CZ36: 0 | DA36: 0
A37: 0034 | B37: 0 | C37: 1 | D37: 2023-09-28 | H37: 0 | I37: 0 | J37: 0 | K37: 0 | L37: 0 | M37: 0 | N37: 0 | O37: 0 | P37: 0 | Q37: 0 | R37: 0 | S37: 0 | T37: 0 | V37: 0 | X37: 0 | Y37: 0 | Z37: 0 | AA37: 0 | AB37: 0 | AD37: 0 | AE37: 0 | AF37: 0 | AG37: 0 | AH37: 0 | AI37: 0 | AJ37: 0 | AK37: 0 | AL37: 0 | AO37: 0 | AP37: 0 | AQ37: 0 | AR37: 0 | AS37: 0 | AT37: 848.4 | AU37: 848.4 | AV37: -848.4 | AW37: 0 | AX37: 848.4 | AY37: 0 | BA37: 0 | BB37: 17821.65 | BC37: 0 | BD37: -17821.65 | BE37: -17821.65 | BF37: 0 | BG37: 0 | BI37: 0 | BJ37: 0 | BK37: 0 | BL37: 0 | BM37: 0 | BN37: 0 | BO37: 0 | BP37: 0 | BQ37: 0 | BR37: 0 | BS37: 0 | BT37: 0 | BU37: 0 | BW37: 0 | BY37: 0 | BZ37: 0 | CB37: 0 | CC37: 0 | CD37: 0 | CF37: 0 | CG37: 0 | CH37: 0 | CI37: 0 | CJ37: 0 | CK37: 0 | CL37: 0 | CM37: 0 | CN37: 0 | CQ37: 0 | CR37: 0 | CS37: 0 | CT37: 0 | CU37: 0 | CV37: 848.4 | CW37: 848.4 | CX37: -848.4 | DA37: 0
A38: 0035 | B38: 1 | C38: 1 | D38: 2023-12-14 | E38: 0.987717176 | F38: 0.9962674544 | G38: 0.9993662668 | H38: 45569382.38 | I38: 807098851 | J38: 23731807.01 | K38: 5770185.53 | L38: 9862156.75 | M38: 94226654.1 | N38: 11329927.53 | O38: 147864043.3 | P38: 0 | Q38: 1763706.024 | R38: 0 | S38: 43814759.41 | T38: 1191031473 | V38: 1906168.762 | X38: 1906168.762 | Y38: 1189125304 | Z38: 7037780.097 | AA38: 770521 | AB38: 1874785 | AD38: 0 | AE38: 0 | AF38: 0 | AG38: 0 | AH38: 24067820.73 | AI38: 0 | AJ38: 0 | AK38: 242329046.5 | AL38: 276079953.3 | AO38: 33106777.85 | AP38: 33106777.85 | AQ38: 242973175.5 | AR38: 1432098480 | AS38: 1054449081 | AT38: 0 | AU38: 1054449081 | AV38: 0 | AW38: 0 | AX38: 0 | AY38: 0 | BA38: 0 | BB38: 1012233521 | BC38: 1375755502 | BD38: 363521981 | BE38: 363521981 | BF38: 0 | BG38: 1906168.762 | BI38: 44231005.98 | BJ38: 811072195.7 | BK38: 55816908 | BL38: 4727190 | BM38: 10403252 | BN38: 113361961 | BO38: 12743136.46 | BP38: 152694374 | BQ38: 0 | BR38: 5429317.899 | BS38: 0 | BT38: 53619115 | BU38: 1264098456 | BW38: 0 | BY38: 0 | BZ38: 1264098456 | CB38: 6973034.32 | CC38: 770521 | CD38: 1874785 | CF38: 0 | CG38: 0 | CH38: 0 | CI38: 0 | CJ38: 26438705.57 | CK38: 0 | CL38: 0 | CM38: 266381639 | CN38: 302438684.9 | CQ38: 39926460 | CR38: 39926460 | CS38: 262512224.9 | CT38: 1526610681 | CU38: 1111185851 | CV38: 0 | CW38: 1111185851 | CX38: 0 | CY38: 0 | CZ38: 0 | DA38: 0
A39: 0036 | B39: 1 | C39: 1 | D39: 2023-09-28 | E39: 1 | F39: 1 | G39: 1 | H39: 789249.62 | I39: 18741521.71 | J39: 372723.2 | K39: 0 | L39: 498746.78 | M39: 1826320.29 | N39: 55598 | O39: 0 | P39: 0 | Q39: 0 | R39: 0 | S39: 304181.07 | T39: 22588340.67 | V39: 60000 | X39: 60000 | Y39: 22528340.67 | Z39: 0 | AA39: 0 | AB39: 0 | AD39: 0 | AE39: 46332.6 | AF39: 839016 | AG39: 5450863.21 | AH39: 685578 | AI39: 0 | AJ39: 0 | AK39: 2908726.605 | AL39: 9930516.415 | AO39: 83480.832 | AP39: 83480.832 | AQ39: 9847035.583 | AR39: 32375376.25 | AS39: 23199623 | AT39: 0 | AU39: 23199623 | AV39: 0 | AW39: 0 | AX39: 0 | AY39: 0 | BA39: 0 | BB39: 22554090 | BC39: 31796880.4 | BD39: 9242790.405 | BE39: 9242790.405 | BF39: 0 | BG39: 60000 | BI39: 770482 | BJ39: 19901789 | BK39: 407532 | BL39: 0 | BM39: 526581 | BN39: 1587599 | BO39: 30000 | BP39: 0 | BQ39: 0 | BR39: 0 | BS39: 0 | BT39: 462479 | BU39: 23686462 | BW39: 60000 | BY39: 60000 | BZ39: 23626462 | CB39: 0 | CC39: 0 | CD39: 0 | CF39: 0 | CG39: 50339.4 | CH39: 867422 | CI39: 5632752.79 | CJ39: 991445.7 | CK39: 0 | CL39: 0 | CM39: 3180277 | CN39: 10722236.89 | CQ39: 153486 | CR39: 153486 | CS39: 10568750.89 | CT39: 34195212.89 | CU39: 23881940 | CV39: 0 | CW39: 23881940 | CX39: 0 | CY39: 0 | CZ39: 0 | DA39: 0
A40: 0037 | B40: 0 | C40: 1 | D40: 2023-11-04 | H40: 0 | I40: 0 | J40: 0 | K40: 0 | L40: 0 | M40: 0 | N40: 0 | O40: 0 | P40: 0 | Q40: 0 | R40: 0 | S40: 0 | T40: 0 | V40: 0 | X40: 0 | Y40: 0 | Z40: 0 | AA40: 0 | AB40: 0 | AD40: 0 | AE40: 0 | AF40: 0 | AG40: 0 | AH40: 0 | AI40: 0 | AJ40: 0 | AK40: 135672 | AL40: 135672 | AO40: 0 | AP40: 0 | AQ40: 135672 | AR40: 135672 | AS40: 171345 | AT40: 0 | AU40: 171345 | AV40: -35673 | AW40: -0.2081939946 | AX40: 8567.25 | AY40: 0 | BA40: 0 | BB40: 152677.65 | BC40: 187251 | BD40: 34573.35 | BE40: 34573.35 | BF40: 0 | BG40: 0 | BI40: 0 | BJ40: 0 | BK40: 0 | BL40: 0 | BM40: 0 | BN40: 0 | BO40: 0 | BP40: 0 | BQ40: 0 | BR40: 0 | BS40: 0 | BT40: 0 | BU40: 0 | BW40: 0 | BY40: 0 | BZ40: 0 | CB40: 0 | CC40: 0 | CD40: 0 | CF40: 0 | CG40: 0 | CH40: 0 | CI40: 0 | CJ40: 0 | CK40: 0 | CL40: 0 | CM40: 192851 | CN40: 192851 | CQ40: 0 | CR40: 0 | CS40: 192851 | CT40: 192851 | CU40: 115016 | CV40: 8567.25 | CW40: 123583.25 | CX40: 0 | CY40: 0 | CZ40: 0 | DA40: 0
A41: 0038 | B41: 1 | C41: 1 | D41: 2023-09-22 | E41: 1 | F41: 1 | G41: 1 | H41: 627484 | I41: 8518722 | J41: 170971 | K41: 54537 | L41: 0 | M41: 1078724 | N41: 31042 | O41: 1287877 | P41: 387351 | Q41: 0 | R41: 0 | S41: 720752 | T41: 12877460 | V41: 0 | X41: 0 | Y41: 12877460 | Z41: 104406 | AA41: 0 | AB41: 5000 | AD41: 139793 | AE41: 141615 | AF41: 520900 | AG41: 55723 | AH41: 128340 | AI41: 0 | AJ41: 0 | AK41: 30174 | AL41: 1125951 | AO41: 1032.576 | AP41: 1032.576 | AQ41: 1124918.424 | AR41: 14002378.42 | AS41: 8111895 | AT41: 0 | AU41: 8111895 | AV41: 0 | AW41: 0 | AX41: 0 | AY41: 0 | BA41: 5686 | BB41: 7607183 | BC41: 14082778.6 | BD41: 6475595.6 | BE41: 6469909.6 | BF41: 0 | BG41: 0 | BI41: 580474 | BJ41: 9666801 | BK41: 187109 | BL41: 49655 | BM41: 4000 | BN41: 930879 | BO41: 35000 | BP41: 1403353 | BQ41: 416740 | BR41: 49682 | BS41: 0 | BT41: 180044 | BU41: 13503737 | BW41: 0 | BY41: 0 | BZ41: 13503737 | CB41: 102988 | CC41: 0 | CD41: 5000 | CF41: 154809 | CG41: 157156 | CH41: 580792 | CI41: 65015 | CJ41: 133474 | CK41: 0 | CL41: 0 | CM41: 22981 | CN41: 1222215 | CQ41: 912 | CR41: 912 | CS41: 1221303 | CT41: 14725040 | CU41: 8573561 | CV41: 0 | CW41: 8573561 | CX41: 0 | CY41: 0 | CZ41: 0 | DA41: 0
A42: 0039 | B42: 0 | C42: 1 | D42: 2023-10-06 | H42: 0 | I42: 0 | J42: 0 | K42: 0 | L42: 0 | M42: 0 | N42: 0 | O42: 0 | P42: 0 | Q42: 0 | R42: 0 | S42: 0 | T42: 0 | V42: 0 | X42: 0 | Y42: 0 | Z42: 0 | AA42: 0 | AB42: 0 | AD42: 0 | AE42: 0 | AF42: 0 | AG42: 0 | AH42: 0 | AI42: 0 | AJ42: 0 | AK42: 0 | AL42: 0 | AO42: 0 | AP42: 0 | AQ42: 0 | AR42: 0 | AS42: 526261 | AT42: 28982.25 | AU42: 555243.25 | AV42: -555243.25 | AW42: -1.055072008 | AX42: 26313.05 | AY42: 0 | BA42: 0 | BB42: 601551.3 | BC42: 0 | BD42: -601551.3 | BE42: -601551.3 | BF42: 0 | BG42: 0 | BI42: 0 | BJ42: 0 | BK42: 0 | BL42: 0 | BM42: 0 | BN42: 0 | BO42: 0 | BP42: 0 | BQ42: 0 | BR42: 0 | BS42: 0 | BT42: 0 | BU42: 0 | BW42: 0 | BY42: 0 | BZ42: 0 | CB42: 0 | CC42: 0 | CD42: 0 | CF42: 0 | CG42: 0 | CH42: 0 | CI42: 0 | CJ42: 0 | CK42: 0 | CL42: 0 | CM42: 0 | CN42: 0 | CQ42: 0 | CR42: 0 | CS42: 0 | CT42: 0 | CU42: 424561 | CV42: 26313.05 | CW42: 450874.05 | CX42: -450874.05 | CY42: -1.061977077 | CZ42: 21228.05 | DA42: 0
A43: 0040 | B43: 1 | C43: 1 | D43: 2023-11-05 | E43: 1 | F43: 1 | G43: 1 | H43: 1497179.2 | I43: 57148374.63 | J43: 1130194.18 | K43: 0 | L43: 1108975.5 | M43: 1075278.71 | N43: 48718.5 | O43: 42810 | P43: 0 | Q43: 0 | R43: 0 | S43: 2250440.54 | T43: 64301971.26 | V43: 132000 | X43: 132000 | Y43: 64169971.26 | Z43: 720167.63 | AA43: 0 | AB43: 0 | AD43: 0 | AE43: 1436312.29 | AF43: 4112061.01 | AG43: 6952492.71 | AH43: 1792994.058 | AI43: 56640 | AJ43: 0 | AK43: 600751.4629 | AL43: 15671419.16 | AO43: 147556.8445 | AP43: 147556.8445 | AQ43: 15523862.32 | AR43: 79693833.58 | AS43: 68308994 | AT43: 0 | AU43: 68308994 | AV43: 0 | AW43: 0 | AX43: 0 | AY43: 0 | BA43: 312864.22 | BB43: 65492242 | BC43: 79520857.51 | BD43: 14028615.51 | BE43: 13715751.29 | BF43: 0 | BG43: 132000 | BI43: 1362604 | BJ43: 62498841 | BK43: 1292446 | BL43: 0 | BM43: 959718 | BN43: 212 | BO43: 6000 | BP43: 50000 | BQ43: 0 | BR43: 0 | BS43: 0 | BT43: 5002663 | BU43: 71172484 | BW43: 225053 | BY43: 225053 | BZ43: 70947431 | CB43: 766723.34 | CC43: 0 | CD43: 0 | CF43: 0 | CG43: 7073145.31 | CH43: 4578898.3 | CI43: 6757781 | CJ43: 2184798.301 | CK43: 56640 | CL43: 0 | CM43: 768020 | CN43: 22186006.25 | CQ43: 227697.4 | CR43: 227697.4 | CS43: 21958308.85 | CT43: 92905739.85 | CU43: 72501249 | CV43: 0 | CW43: 72501249 | CX43: 0 | CY43: 0 | CZ43: 0 | DA43: 0
A44: 0041 | B44: 1 | C44: 1 | D44: 2023-11-06 | E44: 1 | F44: 1 | G44: 1 | H44: 236408.27 | I44: 6723154 | J44: 177475.14 | K44: 1500.02 | L44: 576.87 | M44: 619136.4 | N44: 17614.61 | O44: 0 | P44: 0 | Q44: 0 | R44: 0 | S44: 40258.35 | T44: 7816123.66 | V44: 0 | X44: 0 | Y44: 7816123.66 | Z44: 109774 | AA44: 0 | AB44: 0 | AD44: 0 | AE44: 15044 | AF44: 420759 | AG44: 1352998 | AH44: 190640.856 | AI44: 0 | AJ44: 0 | AK44: 91038.34559 | AL44: 2180254.202 | AO44: 0 | AP44: 0 | AQ44: 2180254.202 | AR44: 9996377.862 | AS44: 5580575 | AT44: 0 | AU44: 5580575 | AV44: 0 | AW44: 0 | AX44: 0 | AY44: 0 | BA44: 6375.32 | BB44: 5063460 | BC44: 9518534 | BD44: 4455074 | BE44: 4448698.68 | BF44: 0 | BG44: 0 | BI44: 389520 | BJ44: 6812450 | BK44: 186317 | BL44: 0 | BM44: 0 | BN44: 662447 | BO44: 0 | BP44: 0 | BQ44: 0 | BR44: 0 | BS44: 0 | BT44: 293524 | BU44: 8344258 | BW44: 4000 | BY44: 4000 | BZ44: 8340258 | CB44: 114294.65 | CC44: 0 | CD44: 0 | CF44: 0 | CG44: 15288.65 | CH44: 409171 | CI44: 1450465 | CJ44: 229560.814 | CK44: 0 | CL44: 0 | CM44: 80000 | CN44: 2298780.114 | CQ44: 0 | CR44: 0 | CS44: 2298780.114 | CT44: 10639038.11 | CU44: 5772216 | CV44: 0 | CW44: 5772216 | CX44: 0 | CY44: 0 | CZ44: 0 | DA44: 0
A45: 0042 | B45: 0 | C45: 1 | D45: 2023-10-16 | H45: 0 | I45: 0 | J45: 0 | K45: 0 | L45: 0 | M45: 0 | N45: 0 | O45: 0 | P45: 0 | Q45: 0 | R45: 0 | S45: 0 | T45: 0 | V45: 0 | X45: 0 | Y45: 0 | Z45: 0 | AA45: 0 | AB45: 0 | AD45: 0 | AE45: 0 | AF45: 0 | AG45: 0 | AH45: 0 | AI45: 0 | AJ45: 0 | AK45: 2063442.07 | AL45: 2063442.07 | AO45: 0 | AP45: 0 | AQ45: 2063442.07 | AR45: 2063442.07 | AS45: 169628 | AT45: 0 | AU45: 169628 | AV45: 0 | AW45: 0 | AX45: 0 | AY45: 0 | BA45: 0 | BB45: 141393 | BC45: 1948241 | BD45: 1806848 | BE45: 1806848 | BF45: 0 | BG45: 0 | BI45: 0 | BJ45: 0 | BK45: 0 | BL45: 0 | BM45: 0 | BN45: 0 | BO45: 0 | BP45: 0 | BQ45: 0 | BR45: 0 | BS45: 0 | BT45: 0 | BU45: 0 | BW45: 0 | BY45: 0 | BZ45: 0 | CB45: 0 | CC45: 0 | CD45: 0 | CF45: 0 | CG45: 0 | CH45: 0 | CI45: 0 | CJ45: 0 | CK45: 0 | CL45: 0 | CM45: 2557800 | CN45: 2557800 | CQ45: 0 | CR45: 0 | CS45: 2557800 | CT45: 2557800 | CU45: 228660 | CV45: 0 | CW45: 228660 | CX45: 0 | CY45: 0 | CZ45: 0 | DA45: 0
A46: 0043 | B46: 1 | C46: 1 | D46: 2023-09-29 | E46: 1 | F46: 1 | G46: 1 | H46: 106338 | I46: 2885612 | J46: 93181 | K46: 0 | L46: 1596 | M46: 341275 | N46: 0 | O46: 0 | P46: 0 | Q46: 0 | R46: 0 | S46: 303651 | T46: 3731653 | V46: 0 | X46: 0 | Y46: 3731653 | Z46: 99894 | AA46: 0 | AB46: 0 | AD46: 0 | AE46: 0 | AF46: 196169 | AG46: 256514 | AH46: 24031.2 | AI46: 0 | AJ46: 0 | AK46: 121164 | AL46: 697772.2 | AO46: 36166.17076 | AP46: 36166.17076 | AQ46: 661606.0292 | AR46: 4393259.029 | AS46: 3156449 | AT46: 0 | AU46: 3156449 | AV46: 0 | AW46: 0 | AX46: 0 | AY46: 0 | BA46: 0 | BB46: 3128843 | BC46: 4276453.929 | BD46: 1147610.929 | BE46: 1147610.929 | BF46: 0 | BG46: 0 | BI46: 139286 | BJ46: 2981568 | BK46: 91871 | BL46: 1500 | BM46: 10000 | BN46: 410228 | BO46: 0 | BP46: 0 | BQ46: 0 | BR46: 0 | BS46: 0 | BT46: 291395 | BU46: 3925848 | BW46: 0 | BY46: 0 | BZ46: 3925848 | CB46: 104020 | CC46: 0 | CD46: 0 | CF46: 0 | CG46: 0 | CH46: 205977 | CI46: 277918 | CJ46: 29438.5 | CK46: 0 | CL46: 0 | CM46: 84921 | CN46: 702274.5 | CQ46: 21720.6 | CR46: 21720.6 | CS46: 680553.9 | CT46: 4606401.9 | CU46: 3511282 | CV46: 0 | CW46: 3511282 | CX46: 0 | CY46: 0 | CZ46: 0 | DA46: 0
A47: 0044 | B47: 1 | C47: 0 | G47: 0.9926747176 | H47: 0 | I47: 0 | J47: 0 | K47: 0 | L47: 0 | M47: 0 | N47: 0 | O47: 0 | P47: 0 | Q47: 0 | R47: 0 | S47: 0 | T47: 0 | V47: 0 | X47: 0 | Y47: 0 | Z47: 5955807.086 | AA47: 0 | AB47: 8850 | AD47: 0 | AE47: 340045.6879 | AF47: 0 | AG47: 0 | AH47: 0 | AI47: 0 | AJ47: 0 | AK47: 0 | AL47: 6304702.774 | AO47: 0 | AP47: 0 | AQ47: 6304702.774 | AR47: 6304702.774 | AS47: 276250953 | AT47: 0 | AU47: 276250953 | AV47: -269946250.2 | AW47: -0.9771776253 | AX47: 13812547.65 | AY47: -256133702.6 | BA47: 0 | BB47: 261944927 | BC47: 265007695.1 | BD47: 3062768.071 | BE47: 3062768.071 | BF47: 0 | BG47: 0 | BI47: 0 | BJ47: 0 | BK47: 0 | BL47: 0 | BM47: 0 | BN47: 0 | BO47: 0 | BP47: 0 | BQ47: 0 | BR47: 0 | BS47: 0 | BT47: 0 | BU47: 0 | BW47: 0 | BY47: 0 | BZ47: 0 | CB47: 0 | CC47: 0 | CD47: 0 | CF47: 0 | CG47: 0 | CH47: 0 | CI47: 0 | CJ47: 0 | CK47: 0 | CL47: 0 | CM47: 30309847 | CN47: 30309847 | CQ47: 7528811.2 | CR47: 7528811.2 | CS47: 22781035.8 | CT47: 22781035.8 | CU47: 295646848 | CV47: 13812547.65 | CW47: 309459395.6 | CX47: -286678359.8 | CY47: -0.9696648613 | CZ47: 14782342.4 | DA47: -271896017.4
A48: 0045 | B48: 1 | C48: 1 | D48: 2023-09-29 | E48: 1 | F48: 1 | G48: 1 | H48: 119199.21 | I48: 2151404.38 | J48: 77739.16 | K48: 0 | L48: 0 | M48: 320337.74 | N48: 0 | O48: 0 | P48: 0 | Q48: 0 | R48: 0 | S48: 284026.35 | T48: 2952706.84 | V48: 0 | X48: 0 | Y48: 2952706.84 | Z48: 59987 | AA48: 0 | AB48: 0 | AD48: 0 | AE48: 0 | AF48: 120365 | AG48: 378893 | AH48: 47439.156 | AI48: 0 | AJ48: 0 | AK48: 215258.9468 | AL48: 821943.1028 | AO48: 47398.59364 | AP48: 47398.59364 | AQ48: 774544.5092 | AR48: 3727251.349 | AS48: 2961396 | AT48: 0 | AU48: 2961396 | AV48: 0 | AW48: 0 | AX48: 0 | AY48: 0 | BA48: 0 | BB48: 2862210 | BC48: 3545680.404 | BD48: 683470.4041 | BE48: 683470.4041 | BF48: 0 | BG48: 0 | BI48: 144404.08 | BJ48: 2466422 | BK48: 77131 | BL48: 0 | BM48: 10000 | BN48: 307865 | BO48: 0 | BP48: 0 | BQ48: 0 | BR48: 0 | BS48: 0 | BT48: 274065 | BU48: 3279887.08 | BW48: 0 | BY48: 0 | BZ48: 3279887.08 | CB48: 61073.68 | CC48: 0 | CD48: 0 | CF48: 0 | CG48: 0 | CH48: 206483 | CI48: 382115.24 | CJ48: 29939.826 | CK48: 0 | CL48: 0 | CM48: 139537 | CN48: 819148.746 | CQ48: 25732 | CR48: 25732 | CS48: 793416.746 | CT48: 4073303.826 | CU48: 3240939 | CV48: 0 | CW48: 3240939 | CX48: 0 | CY48: 0 | CZ48: 0 | DA48: 0
A49: 0046 | B49: 1 | C49: 1 | D49: 2023-11-08 | E49: 0.9999940316 | F49: 1 | G49: 1 | H49: 5894039.608 | I49: 102682114.6 | J49: 2198790.98 | K49: 0 | L49: 1324373.09 | M49: 4184290.286 | N49: 82576.93714 | O49: 37284.22747 | P49: 0 | Q49: 212344.9926 | R49: 0 | S49: 3934980.62 | T49: 120550795.4 | V49: 0 | X49: 0 | Y49: 120550795.4 | Z49: 1647335 | AA49: 0 | AB49: 104911 | AD49: 610605.7607 | AE49: 12648221 | AF49: 7945012.82 | AG49: 2739695.123 | AH49: 1537001.317 | AI49: 0 | AJ49: 0 | AK49: 185367.5916 | AL49: 27418149.61 | AO49: 51696.136 | AP49: 51696.136 | AQ49: 27366453.48 | AR49: 147917248.9 | AS49: 83480952 | AT49: 0 | AU49: 83480952 | AV49: 0 | AW49: 0 | AX49: 0 | AY49: 0 | BA49: 235072.61 | BB49: 79086353 | BC49: 162525681 | BD49: 83439328.01 | BE49: 83204255.4 | BF49: 0 | BG49: 0 | BI49: 4849038 | BJ49: 108231101 | BK49: 2183276 | BL49: 0 | BM49: 1641732 | BN49: 5664773 | BO49: 64093 | BP49: 40000 | BQ49: 0 | BR49: 0 | BS49: 0 | BT49: 4229998 | BU49: 126904011 | BW49: 0 | BY49: 0 | BZ49: 126904011 | CB49: 2888613.918 | CC49: 0 | CD49: 94233.67 | CF49: 645306.7679 | CG49: 9143260.99 | CH49: 8479420.04 | CI49: 24151420.25 | CJ49: 1891706.997 | CK49: 0 | CL49: 0 | CM49: 153008 | CN49: 47446970.63 | CQ49: 23638.2 | CR49: 23638.2 | CS49: 47423332.43 | CT49: 174327343.4 | CU49: 89785825 | CV49: 0 | CW49: 89785825 | CX49: 0 | CY49: 0 | CZ49: 0 | DA49: 0
A50: 0047 | B50: 0 | C50: 1 | D50: 2023-11-21 | H50: 0 | I50: 0 | J50: 0 | K50: 0 | L50: 0 | M50: 0 | N50: 0 | O50: 0 | P50: 0 | Q50: 0 | R50: 0 | S50: 0 | T50: 0 | V50: 0 | X50: 0 | Y50: 0 | Z50: 0 | AA50: 0 | AB50: 0 | AD50: 0 | AE50: 0 | AF50: 0 | AG50: 0 | AH50: 0 | AI50: 0 | AJ50: 0 | AK50: 19622 | AL50: 19622 | AO50: 0 | AP50: 0 | AQ50: 19622 | AR50: 19622 | AS50: 21251 | AT50: 1577.95 | AU50: 22828.95 | AV50: -3206.95 | AW50: -0.1509081926 | AX50: 1062.55 | AY50: 0 | BA50: 0 | BB50: 31559 | BC50: 18679 | BD50: -12880 | BE50: -12880 | BF50: 0 | BG50: 0 | BI50: 0 | BJ50: 0 | BK50: 0 | BL50: 0 | BM50: 0 | BN50: 0 | BO50: 0 | BP50: 0 | BQ50: 0 | BR50: 0 | BS50: 0 | BT50: 0 | BU50: 0 | BW50: 0 | BY50: 0 | BZ50: 0 | CB50: 0 | CC50: 0 | CD50: 0 | CF50: 0 | CG50: 0 | CH50: 0 | CI50: 0 | CJ50: 0 | CK50: 0 | CL50: 0 | CM50: 40000 | CN50: 40000 | CQ50: 0 | CR50: 0 | CS50: 40000 | CT50: 40000 | CU50: 21644 | CV50: 1062.55 | CW50: 22706.55 | CX50: 0 | CY50: 0 | CZ50: 0 | DA50: 0
A51: 0048 | B51: 1 | C51: 1 | D51: 2023-10-30 | E51: 1 | F51: 1 | G51: 1 | H51: 2344707 | I51: 50063515 | J51: 1277720 | K51: 14200 | L51: 1326933 | M51: 5805400 | N51: 538187 | O51: 265523 | P51: 0 | Q51: 0 | R51: 0 | S51: 5270741 | T51: 66906926 | V51: 0 | X51: 0 | Y51: 66906926 | Z51: 684550 | AA51: 0 | AB51: 0 | AD51: 0 | AE51: 0 | AF51: 3739019 | AG51: 7303958 | AH51: 2564765 | AI51: 0 | AJ51: 0 | AK51: 289805.8417 | AL51: 14582097.84 | AO51: 4843.753086 | AP51: 4843.753086 | AQ51: 14577254.09 | AR51: 81484180.09 | AS51: 44168133 | AT51: 0 | AU51: 44168133 | AV51: 0 | AW51: 0 | AX51: 0 | AY51: 0 | BA51: 0 | BB51: 40182108 | BC51: 79159210.24 | BD51: 38977102.24 | BE51: 38977102.24 | BF51: 0 | BG51: 0 | BI51: 2143085 | BJ51: 54630897 | BK51: 1432098 | BL51: 0 | BM51: 1538223 | BN51: 5470678 | BO51: 0 | BP51: 486146 | BQ51: 0 | BR51: 0 | BS51: 0 | BT51: 6289337 | BU51: 71990464 | BW51: 0 | BY51: 0 | BZ51: 71990464 | CB51: 704029 | CC51: 0 | CD51: 0 | CF51: 0 | CG51: 0 | CH51: 3995386 | CI51: 8270826 | CJ51: 2968676 | CK51: 0 | CL51: 0 | CM51: 286240 | CN51: 16225157 | CQ51: 0 | CR51: 0 | CS51: 16225157 | CT51: 88215621 | CU51: 46173964 | CV51: 0 | CW51: 46173964 | CX51: 0 | CY51: 0 | CZ51: 0 | DA51: 0
A52: 0049 | B52: 1 | C52: 1 | D52: 2023-09-29 | E52: 0.9962270813 | F52: 0.9936505724 | G52: 0.9955678626 | H52: 8348584.578 | I52: 139686298.6 | J52: 2605139.23 | K52: 1324899.66 | L52: 3092647.56 | M52: 15301344.91 | N52: 7613765.201 | O52: 32016281.62 | P52: 0 | Q52: 289424.6488 | R52: 0 | S52: 5829981.4 | T52: 216108367.4 | V52: 0 | X52: 0 | Y52: 216108367.4 | Z52: 1414671.847 | AA52: 0 | AB52: 2746900.5 | AD52: 1243173.106 | AE52: 2491906.669 | AF52: 0 | AG52: 0 | AH52: 5734569.655 | AI52: 0 | AJ52: 0 | AK52: 18421637.89 | AL52: 32052859.67 | AO52: 2162107.273 | AP52: 2162107.273 | AQ52: 29890752.4 | AR52: 245999119.8 | AS52: 105936292 | AT52: 0 | AU52: 105936292 | AV52: 0 | AW52: 0 | AX52: 0 | AY52: 0 | BA52: 2367226 | BB52: 100848387 | BC52: 235833391.2 | BD52: 134985004.2 | BE52: 132617778.2 | BF52: 0 | BG52: 0 | BI52: 9296737.295 | BJ52: 149155648 | BK52: 3042312.91 | BL52: 1418437.95 | BM52: 3141579.42 | BN52: 15099127.48 | BO52: 8399384.023 | BP52: 34307626.25 | BQ52: 0 | BR52: 323405.4391 | BS52: 0 | BT52: 6822737 | BU52: 231006995.8 | BW52: 0 | BY52: 0 | BZ52: 231006995.8 | CB52: 1530319.985 | CC52: 0 | CD52: 3052782.07 | CF52: 1247881.26 | CG52: 2187868.47 | CH52: 0 | CI52: 0 | CJ52: 5719738.528 | CK52: 0 | CL52: 0 | CM52: 19543979 | CN52: 33282569.31 | CQ52: 2296729.6 | CR52: 2296729.6 | CS52: 30985839.71 | CT52: 261992835.5 | CU52: 112732474 | CV52: 0 | CW52: 112732474 | CX52: 0 | CY52: 0 | CZ52: 0 | DA52: 0
A53: 0050 | B53: 1 | C53: 1 | D53: 2023-11-03 | E53: 1 | F53: 1 | G53: 1 | H53: 2048138.1 | I53: 37393712.98 | J53: 1005360 | K53: 0 | L53: 1124990.36 | M53: 3215922.36 | N53: 0 | O53: 0 | P53: 0 | Q53: 0 | R53: 0 | S53: 3129847.54 | T53: 47917971.34 | V53: 0 | X53: 0 | Y53: 47917971.34 | Z53: 306509 | AA53: 0 | AB53: 0 | AD53: 0 | AE53: 212465 | AF53: 33330 | AG53: 7368376 | AH53: 2025479 | AI53: 0 | AJ53: 0 | AK53: 503314.7254 | AL53: 10449473.73 | AO53: 111009.576 | AP53: 111009.576 | AQ53: 10338464.15 | AR53: 58256435.49 | AS53: 40961226 | AT53: 0 | AU53: 40961226 | AV53: 0 | AW53: 0 | AX53: 0 | AY53: 0 | BA53: 0 | BB53: 37479187 | BC53: 57047112.98 | BD53: 19567925.98 | BE53: 19567925.98 | BF53: 0 | BG53: 0 | BI53: 2011933 | BJ53: 39548519 | BK53: 1133176 | BL53: 50000 | BM53: 1000475 | BN53: 3695434 | BO53: 0 | BP53: 0 | BQ53: 0 | BR53: 0 | BS53: 0 | BT53: 3393203 | BU53: 50832740 | BW53: 100000 | BY53: 100000 | BZ53: 50732740 | CB53: 313523 | CC53: 0 | CD53: 0 | CF53: 0 | CG53: 810894 | CH53: 2130242 | CI53: 6869940 | CJ53: 2025797 | CK53: 0 | CL53: 0 | CM53: 491606 | CN53: 12642002 | CQ53: 28121.2 | CR53: 28121.2 | CS53: 12613880.8 | CT53: 63346620.8 | CU53: 43350135 | CV53: 0 | CW53: 43350135 | CX53: 0 | CY53: 0 | CZ53: 0 | DA53: 0
A54: 0051 | B54: 1 | C54: 1 | D54: 2023-11-07 | E54: 1 | F54: 1 | G54: 1 | H54: 435176 | I54: 9568519 | J54: 170129 | K54: 0 | L54: 101580 | M54: 1224221 | N54: 0 | O54: 0 | P54: 0 | Q54: 0 | R54: 0 | S54: 380610 | T54: 11880235 | V54: 0 | X54: 0 | Y54: 11880235 | Z54: 86887 | AA54: 0 | AB54: 0 | AD54: 0 | AE54: 0 | AF54: 0 | AG54: 948004 | AH54: 332658 | AI54: 0 | AJ54: 0 | AK54: 0 | AL54: 1367549 | AO54: 0 | AP54: 0 | AQ54: 1367549 | AR54: 13247784 | AS54: 6420143 | AT54: 0 | AU54: 6420143 | AV54: 0 | AW54: 0 | AX54: 0 | AY54: 0 | BA54: 0 | BB54: 5795093 | BC54: 12710891 | BD54: 6915798 | BE54: 6915798 | BF54: 0 | BG54: 0 | BI54: 328432 | BJ54: 10313237 | BK54: 165945 | BL54: 0 | BM54: 4100 | BN54: 1132699 | BO54: 0 | BP54: 0 | BQ54: 0 | BR54: 0 | BS54: 0 | BT54: 207480 | BU54: 12151893 | BW54: 0 | BY54: 0 | BZ54: 12151893 | CB54: 84098 | CC54: 0 | CD54: 0 | CF54: 0 | CG54: 0 | CH54: 0 | CI54: 1032987 | CJ54: 373379 | CK54: 0 | CL54: 0 | CM54: 0 | CN54: 1490464 | CQ54: 0 | CR54: 0 | CS54: 1490464 | CT54: 13642357 | CU54: 6865945 | CV54: 0 | CW54: 6865945 | CX54: 0 | CY54: 0 | CZ54: 0 | DA54: 0
A55: 0052 | B55: 1 | C55: 1 | D55: 2023-09-29 | E55: 1 | F55: 1 | G55: 1 | H55: 692474 | I55: 14794053 | J55: 263402 | K55: 125150 | L55: 684578 | M55: 1786236 | N55: 349077 | O55: 265742 | P55: 41527 | Q55: 0 | R55: 0 | S55: 1266715 | T55: 20268954 | V55: 0 | X55: 0 | Y55: 20268954 | Z55: 0 | AA55: 0 | AB55: 0 | AD55: 0 | AE55: 176843 | AF55: 1207254 | AG55: 2882870 | AH55: 945434 | AI55: 0 | AJ55: 0 | AK55: 1164850 | AL55: 6377251 | AO55: 174703.1251 | AP55: 174703.1251 | AQ55: 6202547.875 | AR55: 26471501.87 | AS55: 20396537 | AT55: 0 | AU55: 20396537 | AV55: 0 | AW55: 0 | AX55: 0 | AY55: 0 | BA55: 0 | BB55: 19649054 | BC55: 24372657.8 | BD55: 4723603.799 | BE55: 4723603.799 | BF55: 0 | BG55: 0 | BI55: 717298 | BJ55: 17130395 | BK55: 284780 | BL55: 141229 | BM55: 639601 | BN55: 1829287 | BO55: 241500 | BP55: 280750 | BQ55: 47000 | BR55: 0 | BS55: 0 | BT55: 1887802 | BU55: 23199642 | BW55: 0 | BY55: 0 | BZ55: 23199642 | CB55: 0 | CC55: 0 | CD55: 0 | CF55: 0 | CG55: 198305.52 | CH55: 1341203 | CI55: 2983770 | CJ55: 978524 | CK55: 0 | CL55: 0 | CM55: 1362600 | CN55: 6864402.52 | CQ55: 240390.8 | CR55: 240390.8 | CS55: 6624011.72 | CT55: 29823653.72 | CU55: 21283331 | CV55: 0 | CW55: 21283331 | CX55: 0 | CY55: 0 | CZ55: 0 | DA55: 0
A56: 0053 | B56: 0 | C56: 1 | D56: 2023-12-19 | H56: 0 | I56: 0 | J56: 0 | K56: 0 | L56: 0 | M56: 0 | N56: 0 | O56: 0 | P56: 0 | Q56: 0 | R56: 0 | S56: 0 | T56: 0 | V56: 0 | X56: 0 | Y56: 0 | Z56: 0 | AA56: 0 | AB56: 0 | AD56: 0 | AE56: 0 | AF56: 0 | AG56: 0 | AH56: 0 | AI56: 0 | AJ56: 0 | AK56: 154616 | AL56: 154616 | AO56: 0 | AP56: 0 | AQ56: 154616 | AR56: 154616 | AS56: 155632 | AT56: 7874.7 | AU56: 163506.7 | AV56: -8890.7 | AW56: -0.05712642644 | AX56: 7781.6 | AY56: 0 | BA56: 0 | BB56: 165265.08 | BC56: 132858 | BD56: -32407.08 | BE56: -32407.08 | BF56: 0 | BG56: 0 | BI56: 0 | BJ56: 0 | BK56: 0 | BL56: 0 | BM56: 0 | BN56: 0 | BO56: 0 | BP56: 0 | BQ56: 0 | BR56: 0 | BS56: 0 | BT56: 0 | BU56: 0 | BW56: 0 | BY56: 0 | BZ56: 0 | CB56: 0 | CC56: 0 | CD56: 0 | CF56: 0 | CG56: 0 | CH56: 0 | CI56: 0 | CJ56: 0 | CK56: 0 | CL56: 0 | CM56: 210000 | CN56: 210000 | CQ56: 0 | CR56: 0 | CS56: 210000 | CT56: 210000 | CU56: 169826 | CV56: 7781.6 | CW56: 177607.6 | CX56: 0 | CY56: 0 | CZ56: 0 | DA56: 0
A57: 0054 | B57: 0 | C57: 1 | D57: 2023-09-20 | H57: 0 | I57: 0 | J57: 0 | K57: 0 | L57: 0 | M57: 0 | N57: 0 | O57: 0 | P57: 0 | Q57: 0 | R57: 0 | S57: 0 | T57: 0 | V57: 0 | X57: 0 | Y57: 0 | Z57: 0 | AA57: 0 | AB57: 0 | AD57: 0 | AE57: 0 | AF57: 0 | AG57: 0 | AH57: 0 | AI57: 0 | AJ57: 0 | AK57: 0 | AL57: 0 | AO57: 0 | AP57: 0 | AQ57: 0 | AR57: 0 | AS57: 15698 | AT57: 0 | AU57: 15698 | AV57: -15698 | AW57: -1 | AX57: 784.9 | AY57: 0 | BA57: 0 | BB57: 15185 | BC57: 24100 | BD57: 8915 | BE57: 8915 | BF57: 0 | BG57: 0 | BI57: 0 | BJ57: 0 | BK57: 0 | BL57: 0 | BM57: 0 | BN57: 0 | BO57: 0 | BP57: 0 | BQ57: 0 | BR57: 0 | BS57: 0 | BT57: 0 | BU57: 0 | BW57: 0 | BY57: 0 | BZ57: 0 | CB57: 0 | CC57: 0 | CD57: 0 | CF57: 0 | CG57: 0 | CH57: 0 | CI57: 0 | CJ57: 0 | CK57: 0 | CL57: 0 | CM57: 0 | CN57: 0 | CQ57: 0 | CR57: 0 | CS57: 0 | CT57: 0 | CU57: 0 | CV57: 784.9 | CW57: 784.9 | CX57: -784.9 | DA57: 0
A58: 0055 | B58: 0 | C58: 1 | D58: 2024-01-22 | H58: 0 | I58: 0 | J58: 0 | K58: 0 | L58: 0 | M58: 0 | N58: 0 | O58: 0 | P58: 0 | Q58: 0 | R58: 0 | S58: 0 | T58: 0 | V58: 0 | X58: 0 | Y58: 0 | Z58: 0 | AA58: 0 | AB58: 0 | AD58: 0 | AE58: 0 | AF58: 0 | AG58: 0 | AH58: 0 | AI58: 0 | AJ58: 0 | AK58: 0 | AL58: 0 | AO58: 0 | AP58: 0 | AQ58: 0 | AR58: 0 | AS58: 0 | AT58: 0 | AU58: 0 | AV58: 0 | AW58: 0 | AX58: 0 | AY58: 0 | BA58: 0 | BB58: 0 | BC58: 0 | BD58: 0 | BE58: 0 | BF58: 0 | BG58: 0 | BI58: 0 | BJ58: 0 | BK58: 0 | BL58: 0 | BM58: 0 | BN58: 0 | BO58: 0 | BP58: 0 | BQ58: 0 | BR58: 0 | BS58: 0 | BT58: 0 | BU58: 0 | BW58: 0 | BY58: 0 | BZ58: 0 | CB58: 0 | CC58: 0 | CD58: 0 | CF58: 0 | CG58: 0 | CH58: 0 | CI58: 0 | CJ58: 0 | CK58: 0 | CL58: 0 | CM58: 0 | CN58: 0 | CQ58: 0 | CR58: 0 | CS58: 0 | CT58: 0 | CU58: 0 | CV58: 0 | CW58: 0 | CX58: 0 | CY58: 0 | CZ58: 0 | DA58: 0
A59: 0056 | B59: 1 | C59: 1 | D59: 2023-11-07 | E59: 1 | F59: 1 | G59: 1 | H59: 1988938 | I59: 49764484 | J59: 848712 | K59: 123372 | L59: 1576995 | M59: 4837703 | N59: 80584 | O59: 0 | P59: 0 | Q59: 0 | R59: 0 | S59: 3006095 | T59: 62226883 | V59: 0 | X59: 0 | Y59: 62226883 | Z59: 221855 | AA59: 0 | AB59: 0 | AD59: 0 | AE59: 1496974 | AF59: 3266821 | AG59: 8222402 | AH59: 2136206 | AI59: 0 | AJ59: 0 | AK59: 1857001.133 | AL59: 17201259.13 | AO59: 180470.76 | AP59: 180470.76 | AQ59: 17020788.37 | AR59: 79247671.37 | AS59: 59337599 | AT59: 0 | AU59: 59337599 | AV59: 0 | AW59: 0 | AX59: 0 | AY59: 0 | BA59: 28792 | BB59: 56199122 | BC59: 74757505 | BD59: 18558383 | BE59: 18529591 | BF59: 0 | BG59: 0 | BI59: 3757741 | BJ59: 52353400 | BK59: 995976 | BL59: 125628 | BM59: 1361044 | BN59: 3288150 | BO59: 168909 | BP59: 0 | BQ59: 0 | BR59: 0 | BS59: 0 | BT59: 4179586 | BU59: 66230434 | BW59: 0 | BY59: 0 | BZ59: 66230434 | CB59: 230809 | CC59: 0 | CD59: 0 | CF59: 0 | CG59: 1589953 | CH59: 3513401 | CI59: 8582566 | CJ59: 2299990 | CK59: 0 | CL59: 0 | CM59: 1864450 | CN59: 18081169 | CQ59: 149641.8 | CR59: 149641.8 | CS59: 17931527.2 | CT59: 84161961.2 | CU59: 63812308 | CV59: 0 | CW59: 63812308 | CX59: 0 | CY59: 0 | CZ59: 0 | DA59: 0
A60: 0057 | B60: 1 | C60: 1 | D60: 2024-01-06 | E60: 1 | F60: 1 | G60: 1 | H60: 4103617.45 | I60: 61511723.68 | J60: 2639325.36 | K60: 0 | L60: 2436151.002 | M60: 11520311.55 | N60: 4388380.736 | O60: 11054093.88 | P60: 1722093.38 | Q60: 255994.5 | R60: 0 | S60: 10722065.73 | T60: 110353757.3 | V60: 30500 | X60: 30500 | Y60: 110323257.3 | Z60: 1092309 | AA60: 19441 | AB60: 0 | AD60: 0 | AE60: 219695 | AF60: 0 | AG60: 0 | AH60: 11902.68 | AI60: 0 | AJ60: 0 | AK60: 15660875.4 | AL60: 17004223.08 | AO60: 1379377.408 | AP60: 1379377.408 | AQ60: 15624845.67 | AR60: 125948102.9 | AS60: 125093688 | AT60: 0 | AU60: 125093688 | AV60: 0 | AW60: 0 | AX60: 0 | AY60: 0 | BA60: 465934.76 | BB60: 114110343 | BC60: 117038446.2 | BD60: 2928103.218 | BE60: 2462168.458 | BF60: 0 | BG60: 30500 | BI60: 4998836 | BJ60: 70699788 | BK60: 3224159 | BL60: 0 | BM60: 2416413 | BN60: 10451400 | BO60: 5358960 | BP60: 14236512 | BQ60: 2028527 | BR60: 251000 | BS60: 0 | BT60: 12088159 | BU60: 125753754 | BW60: 528000 | BY60: 528000 | BZ60: 125225754 | CB60: 1174280 | CC60: 20291 | CD60: 0 | CF60: 0 | CG60: 221753 | CH60: 0 | CI60: 0 | CJ60: 12260 | CK60: 0 | CL60: 0 | CM60: 17341813 | CN60: 18770397 | CQ60: 2420100.8 | CR60: 2420100.8 | CS60: 16350296.2 | CT60: 141576050.2 | CU60: 138863180 | CV60: 0 | CW60: 138863180 | CX60: 0 | CY60: 0 | CZ60: 0 | DA60: 0
A61: 0058 | B61: 0 | C61: 1 | D61: 2023-12-19 | H61: 0 | I61: 0 | J61: 0 | K61: 0 | L61: 0 | M61: 0 | N61: 0 | O61: 0 | P61: 0 | Q61: 0 | R61: 0 | S61: 0 | T61: 0 | V61: 0 | X61: 0 | Y61: 0 | Z61: 0 | AA61: 0 | AB61: 0 | AD61: 0 | AE61: 0 | AF61: 0 | AG61: 0 | AH61: 0 | AI61: 0 | AJ61: 0 | AK61: 458196 | AL61: 458196 | AO61: 0 | AP61: 0 | AQ61: 458196 | AR61: 458196 | AS61: 31395 | AT61: 0 | AU61: 31395 | AV61: 0 | AW61: 0 | AX61: 0 | AY61: 0 | BA61: 0 | BB61: 15215 | BC61: 18679 | BD61: 3464 | BE61: 3464 | BF61: 0 | BG61: 0 | BI61: 0 | BJ61: 0 | BK61: 0 | BL61: 0 | BM61: 0 | BN61: 0 | BO61: 0 | BP61: 0 | BQ61: 0 | BR61: 0 | BS61: 0 | BT61: 0 | BU61: 0 | BW61: 0 | BY61: 0 | BZ61: 0 | CB61: 0 | CC61: 0 | CD61: 0 | CF61: 0 | CG61: 0 | CH61: 0 | CI61: 0 | CJ61: 0 | CK61: 0 | CL61: 0 | CM61: 564446 | CN61: 564446 | CQ61: 0 | CR61: 0 | CS61: 564446 | CT61: 564446 | CU61: 32982 | CV61: 0 | CW61: 32982 | CX61: 0 | CY61: 0 | CZ61: 0 | DA61: 0
A62: 0059 | B62: 0 | C62: 1 | D62: 2023-12-14 | H62: 0 | I62: 0 | J62: 0 | K62: 0 | L62: 0 | M62: 0 | N62: 0 | O62: 0 | P62: 0 | Q62: 0 | R62: 0 | S62: 0 | T62: 0 | V62: 0 | X62: 0 | Y62: 0 | Z62: 0 | AA62: 0 | AB62: 0 | AD62: 0 | AE62: 0 | AF62: 0 | AG62: 0 | AH62: 0 | AI62: 0 | AJ62: 0 | AK62: 134503 | AL62: 134503 | AO62: 0 | AP62: 0 | AQ62: 134503 | AR62: 134503 | AS62: 129086 | AT62: 0 | AU62: 129086 | AV62: 0 | AW62: 0 | AX62: 0 | AY62: 0 | BA62: 0 | BB62: 136414 | BC62: 138464 | BD62: 2050 | BE62: 2050 | BF62: 0 | BG62: 0 | BI62: 0 | BJ62: 0 | BK62: 0 | BL62: 0 | BM62: 0 | BN62: 0 | BO62: 0 | BP62: 0 | BQ62: 0 | BR62: 0 | BS62: 0 | BT62: 0 | BU62: 0 | BW62: 0 | BY62: 0 | BZ62: 0 | CB62: 0 | CC62: 0 | CD62: 0 | CF62: 0 | CG62: 0 | CH62: 0 | CI62: 0 | CJ62: 0 | CK62: 0 | CL62: 0 | CM62: 168000 | CN62: 168000 | CQ62: 0 | CR62: 0 | CS62: 168000 | CT62: 168000 | CU62: 120019 | CV62: 0 | CW62: 120019 | CX62: 0 | CY62: 0 | CZ62: 0 | DA62: 0
A63: 0060 | B63: 0 | C63: 1 | D63: 2023-12-14 | H63: 0 | I63: 0 | J63: 0 | K63: 0 | L63: 0 | M63: 0 | N63: 0 | O63: 0 | P63: 0 | Q63: 0 | R63: 0 | S63: 0 | T63: 0 | V63: 0 | X63: 0 | Y63: 0 | Z63: 0 | AA63: 0 | AB63: 0 | AD63: 0 | AE63: 0 | AF63: 0 | AG63: 0 | AH63: 0 | AI63: 0 | AJ63: 0 | AK63: 343129.59 | AL63: 343129.59 | AO63: 0 | AP63: 0 | AQ63: 343129.59 | AR63: 343129.59 | AS63: 347248 | AT63: 0 | AU63: 347248 | AV63: -4118.41 | AW63: -0.0118601403 | AX63: 4118.41 | AY63: 0 | BA63: 0 | BB63: 356137.1 | BC63: 375569.19 | BD63: 19432.09 | BE63: 19432.09 | BF63: 0 | BG63: 0 | BI63: 0 | BJ63: 0 | BK63: 0 | BL63: 0 | BM63: 0 | BN63: 0 | BO63: 0 | BP63: 0 | BQ63: 0 | BR63: 0 | BS63: 0 | BT63: 0 | BU63: 0 | BW63: 0 | BY63: 0 | BZ63: 0 | CB63: 0 | CC63: 0 | CD63: 0 | CF63: 0 | CG63: 0 | CH63: 0 | CI63: 0 | CJ63: 0 | CK63: 0 | CL63: 0 | CM63: 400000 | CN63: 400000 | CQ63: 0 | CR63: 0 | CS63: 400000 | CT63: 400000 | CU63: 350338 | CV63: 4118.41 | CW63: 354456.41 | CX63: 0 | CY63: 0 | CZ63: 0 | DA63: 0
A64: 0061 | B64: 1 | C64: 1 | D64: 2023-11-02 | E64: 1 | F64: 1 | G64: 1 | H64: 4701894.73 | I64: 76438298.37 | J64: 196003.66 | K64: 0 | L64: 1580718.97 | M64: 12016187.95 | N64: 171025 | O64: 16119.2 | P64: 0 | Q64: 0 | R64: 0 | S64: 2004992.16 | T64: 97125240.04 | V64: 0 | X64: 0 | Y64: 97125240.04 | Z64: 960139 | AA64: 0 | AB64: 0 | AD64: 165084 | AE64: 145799 | AF64: 5875694 | AG64: 9710496 | AH64: 2585847 | AI64: 0 | AJ64: 0 | AK64: 7702619.026 | AL64: 27145678.03 | AO64: 1262503.459 | AP64: 1262503.459 | AQ64: 25883174.57 | AR64: 123008414.6 | AS64: 112893440 | AT64: 0 | AU64: 112893440 | AV64: 0 | AW64: 0 | AX64: 0 | AY64: 0 | BA64: 699087.2 | BB64: 103803922 | BC64: 105474862.1 | BD64: 1670940.099 | BE64: 971852.8987 | BF64: 0 | BG64: 0 | BI64: 5124261 | BJ64: 78674099 | BK64: 196175 | BL64: 0 | BM64: 1405879 | BN64: 12112031 | BO64: 354500 | BP64: 32000 | BQ64: 0 | BR64: 0 | BS64: 0 | BT64: 3000000 | BU64: 100898945 | BW64: 0 | BY64: 0 | BZ64: 100898945 | CB64: 938930 | CC64: 0 | CD64: 176707 | CF64: 0 | CG64: 156568 | CH64: 6164387 | CI64: 8577314 | CJ64: 2770743 | CK64: 0 | CL64: 0 | CM64: 7668395 | CN64: 26453044 | CQ64: 974693 | CR64: 974693 | CS64: 25478351 | CT64: 126377296 | CU64: 122693363 | CV64: 0 | CW64: 122693363 | CX64: 0 | CY64: 0 | CZ64: 0 | DA64: 0
A65: 0062 | B65: 0 | C65: 0 | H65: 0 | I65: 0 | J65: 0 | K65: 0 | L65: 0 | M65: 0 | N65: 0 | O65: 0 | P65: 0 | Q65: 0 | R65: 0 | S65: 0 | T65: 0 | V65: 0 | X65: 0 | Y65: 0 | Z65: 0 | AA65: 0 | AB65: 0 | AD65: 0 | AE65: 0 | AF65: 0 | AG65: 0 | AH65: 0 | AI65: 0 | AJ65: 0 | AK65: 0 | AL65: 0 | AO65: 0 | AP65: 0 | AQ65: 0 | AR65: 0 | AS65: 0 | AT65: 0 | AU65: 0 | AV65: 0 | AW65: 0 | AX65: 0 | AY65: 0 | BA65: 0 | BB65: 0 | BC65: 0 | BD65: 0 | BE65: 0 | BF65: 0 | BG65: 0 | BI65: 0 | BJ65: 0 | BK65: 0 | BL65: 0 | BM65: 0 | BN65: 0 | BO65: 0 | BP65: 0 | BQ65: 0 | BR65: 0 | BS65: 0 | BT65: 0 | BU65: 0 | BW65: 0 | BY65: 0 | BZ65: 0 | CB65: 0 | CC65: 0 | CD65: 0 | CF65: 0 | CG65: 0 | CH65: 0 | CI65: 0 | CJ65: 0 | CK65: 0 | CL65: 0 | CM65: 0 | CN65: 0 | CQ65: 0 | CR65: 0 | CS65: 0 | CT65: 0 | CU65: 0 | CV65: 0 | CW65: 0 | CX65: 0 | CY65: 0 | CZ65: 0 | DA65: 0
A66: 0063 | B66: 1 | C66: 1 | D66: 2023-11-30 | E66: 1 | F66: 1 | G66: 1 | H66: 156702.97 | I66: 1307353 | J66: 22638 | K66: 88 | L66: 0 | M66: 175613.65 | N66: 35235 | O66: 387197 | P66: 65115.6 | Q66: 25663 | R66: 0 | S66: 392221.44 | T66: 2567827.66 | V66: 4788 | X66: 4788 | Y66: 2563039.66 | Z66: 24445 | AA66: 0 | AB66: 0 | AD66: 0 | AE66: 0 | AF66: 122977 | AG66: 0 | AH66: 0 | AI66: 0 | AJ66: 0 | AK66: 465237.7659 | AL66: 612659.7659 | AO66: 29274.984 | AP66: 29274.984 | AQ66: 583384.7819 | AR66: 3146424.442 | AS66: 2578300 | AT66: 0 | AU66: 2578300 | AV66: 0 | AW66: 0 | AX66: 0 | AY66: 0 | BA66: 0 | BB66: 2541177 | BC66: 3121739.85 | BD66: 580562.85 | BE66: 580562.85 | BF66: 0 | BG66: 4788 | BI66: 160485.98 | BJ66: 1217648 | BK66: 7925.18 | BL66: 0 | BM66: 0 | BN66: 152555.08 | BO66: 30131 | BP66: 392683 | BQ66: 75968.2 | BR66: 24134 | BS66: 0 | BT66: 573390 | BU66: 2634920.44 | BW66: 0 | BY66: 0 | BZ66: 2634920.44 | CB66: 26739 | CC66: 0 | CD66: 0 | CF66: 0 | CG66: 0 | CH66: 143064 | CI66: 32756 | CJ66: 0 | CK66: 0 | CL66: 0 | CM66: 527430 | CN66: 729989 | CQ66: 21415.4 | CR66: 21415.4 | CS66: 708573.6 | CT66: 3343494.04 | CU66: 2564219 | CV66: 0 | CW66: 2564219 | CX66: 0 | CY66: 0 | CZ66: 0 | DA66: 0
A67: 0064 | B67: 1 | C67: 1 | D67: 2023-10-19 | E67: 1 | F67: 1 | G67: 1 | H67: 724892 | I67: 18765819 | J67: 440958 | K67: 0 | L67: 548042 | M67: 1300389 | N67: 102511 | O67: 0 | P67: 0 | Q67: 0 | R67: 0 | S67: 3119479 | T67: 25002090 | V67: 27800 | X67: 27800 | Y67: 24974290 | Z67: 141845 | AA67: 0 | AB67: 0 | AD67: 0 | AE67: 1551414 | AF67: 916276 | AG67: 3290680 | AH67: 816489 | AI67: 0 | AJ67: 0 | AK67: 1563270.267 | AL67: 8279974.267 | AO67: 122410.1282 | AP67: 122410.1282 | AQ67: 8157564.139 | AR67: 33131854.14 | AS67: 29918746 | AT67: 0 | AU67: 29918746 | AV67: 0 | AW67: 0 | AX67: 0 | AY67: 0 | BA67: 0 | BB67: 26864609 | BC67: 30928012.07 | BD67: 4063403.074 | BE67: 4063403.074 | BF67: 0 | BG67: 27800 | BI67: 744506 | BJ67: 20286019 | BK67: 550660 | BL67: 0 | BM67: 690378 | BN67: 1376612 | BO67: 85000 | BP67: 0 | BQ67: 0 | BR67: 0 | BS67: 0 | BT67: 3604234 | BU67: 27337409 | BW67: 18500 | BY67: 18500 | BZ67: 27318909 | CB67: 173340 | CC67: 0 | CD67: 0 | CF67: 0 | CG67: 1596641 | CH67: 1021107 | CI67: 3597479 | CJ67: 832818 | CK67: 0 | CL67: 0 | CM67: 1677683 | CN67: 8899068 | CQ67: 82499.6 | CR67: 82499.6 | CS67: 8816568.4 | CT67: 36135477.4 | CU67: 32534279 | CV67: 0 | CW67: 32534279 | CX67: 0 | CY67: 0 | CZ67: 0 | DA67: 0
A68: 0065 | B68: 1 | C68: 1 | D68: 2023-09-29 | E68: 1 | F68: 1 | G68: 1 | H68: 845551.42 | I68: 16884339.97 | J68: 333399.34 | K68: 0 | L68: 628615.59 | M68: 1832673.17 | N68: 0 | O68: 58654.15 | P68: 0 | Q68: 49002.24 | R68: 0 | S68: 1379204.54 | T68: 22011440.42 | V68: 0 | X68: 0 | Y68: 22011440.42 | Z68: 200052 | AA68: 0 | AB68: 0 | AD68: 0 | AE68: 657171.75 | AF68: 1490014.773 | AG68: 3456415.834 | AH68: 386497.392 | AI68: 0 | AJ68: 0 | AK68: 246040.2304 | AL68: 6436191.98 | AO68: 62631.07505 | AP68: 62631.07505 | AQ68: 6373560.905 | AR68: 28385001.33 | AS68: 16000701 | AT68: 0 | AU68: 16000701 | AV68: 0 | AW68: 0 | AX68: 0 | AY68: 0 | BA68: 6923.78 | BB68: 15483664 | BC68: 26863759.66 | BD68: 11380095.66 | BE68: 11373171.88 | BF68: 0 | BG68: 0 | BI68: 1184452 | BJ68: 17825915.58 | BK68: 351665 | BL68: 0 | BM68: 525007 | BN68: 1459878 | BO68: 0 | BP68: 40000 | BQ68: 0 | BR68: 0 | BS68: 0 | BT68: 940275 | BU68: 22327192.58 | BW68: 0 | BY68: 0 | BZ68: 22327192.58 | CB68: 197721 | CC68: 0 | CD68: 0 | CF68: 0 | CG68: 683356.5 | CH68: 1510751.286 | CI68: 3848326.592 | CJ68: 507902.5 | CK68: 0 | CL68: 0 | CM68: 213179 | CN68: 6961236.878 | CQ68: 27588.4 | CR68: 27588.4 | CS68: 6933648.478 | CT68: 29260841.06 | CU68: 16722880 | CV68: 0 | CW68: 16722880 | CX68: 0 | CY68: 0 | CZ68: 0 | DA68: 0
A69: 0066 | B69: 0 | C69: 1 | D69: 2023-12-19 | H69: 0 | I69: 0 | J69: 0 | K69: 0 | L69: 0 | M69: 0 | N69: 0 | O69: 0 | P69: 0 | Q69: 0 | R69: 0 | S69: 0 | T69: 0 | V69: 0 | X69: 0 | Y69: 0 | Z69: 0 | AA69: 0 | AB69: 0 | AD69: 0 | AE69: 0 | AF69: 0 | AG69: 0 | AH69: 0 | AI69: 0 | AJ69: 0 | AK69: 366105 | AL69: 366105 | AO69: 0 | AP69: 0 | AQ69: 366105 | AR69: 366105 | AS69: 0 | AT69: 0 | AU69: 0 | AV69: 0 | AW69: 0 | AX69: 0 | AY69: 0 | BA69: 0 | BB69: 0 | BC69: 339072.28 | BD69: 339072.28 | BE69: 339072.28 | BF69: 0 | BG69: 0 | BI69: 0 | BJ69: 0 | BK69: 0 | BL69: 0 | BM69: 0 | BN69: 0 | BO69: 0 | BP69: 0 | BQ69: 0 | BR69: 0 | BS69: 0 | BT69: 0 | BU69: 0 | BW69: 0 | BY69: 0 | BZ69: 0 | CB69: 0 | CC69: 0 | CD69: 0 | CF69: 0 | CG69: 0 | CH69: 0 | CI69: 0 | CJ69: 0 | CK69: 0 | CL69: 0 | CM69: 210000 | CN69: 210000 | CQ69: 0 | CR69: 0 | CS69: 210000 | CT69: 210000 | CU69: 0 | CV69: 0 | CW69: 0 | CX69: 0 | CY69: 0 | CZ69: 0 | DA69: 0
A70: 0067 | B70: 1 | C70: 1 | D70: 2023-09-30 | E70: 1 | F70: 1 | G70: 1 | H70: 1090464.01 | I70: 33575783.03 | J70: 666558.28 | K70: 0 | L70: 209122.11 | M70: 3920196.52 | N70: 233483.97 | O70: 124012 | P70: 0 | Q70: 0 | R70: 0 | S70: 715730.17 | T70: 40535350.09 | V70: 0 | X70: 0 | Y70: 40535350.09 | Z70: 0 | AA70: 0 | AB70: 0 | AD70: 0 | AE70: 0 | AF70: 2071744 | AG70: 2570460 | AH70: 295201.2 | AI70: 0 | AJ70: 0 | AK70: 71057 | AL70: 5008462.2 | AO70: 12823.944 | AP70: 12823.944 | AQ70: 4995638.256 | AR70: 45530988.35 | AS70: 22343913 | AT70: 0 | AU70: 22343913 | AV70: 0 | AW70: 0 | AX70: 0 | AY70: 0 | BA70: 0 | BB70: 21318091 | BC70: 44273389.75 | BD70: 22955298.75 | BE70: 22955298.75 | BF70: 0 | BG70: 0 | BI70: 1656120 | BJ70: 35554080 | BK70: 705869 | BL70: 0 | BM70: 239509 | BN70: 3567505 | BO70: 109442 | BP70: 135500 | BQ70: 0 | BR70: 0 | BS70: 0 | BT70: 411302 | BU70: 42379327 | BW70: 0 | BY70: 0 | BZ70: 42379327 | CB70: 0 | CC70: 0 | CD70: 0 | CF70: 0 | CG70: 0 | CH70: 2216265 | CI70: 2801801 | CJ70: 372640.1 | CK70: 0 | CL70: 0 | CM70: 104380 | CN70: 5495086.1 | CQ70: 41328.8 | CR70: 41328.8 | CS70: 5453757.3 | CT70: 47833084.3 | CU70: 23075622 | CV70: 0 | CW70: 23075622 | CX70: 0 | CY70: 0 | CZ70: 0 | DA70: 0
A71: 0068 | B71: 1 | C71: 1 | D71: 2023-10-16 | E71: 1 | F71: 1 | G71: 1 | H71: 95569.13 | I71: 1533283.34 | J71: 64296.26 | K71: 6741.29 | L71: 0 | M71: 283319.73 | N71: 0 | O71: 30066.18 | P71: 0 | Q71: 0 | R71: 0 | S71: 0 | T71: 2013275.93 | V71: 330000 | X71: 330000 | Y71: 1683275.93 | Z71: 19129 | AA71: 0 | AB71: 0 | AD71: 0 | AE71: 141444 | AF71: 243697.81 | AG71: 291364 | AH71: 30481.2 | AI71: 0 | AJ71: 0 | AK71: 89288.5144 | AL71: 815404.5244 | AO71: 0 | AP71: 0 | AQ71: 815404.5244 | AR71: 2498680.454 | AS71: 1443910 | AT71: 0 | AU71: 1443910 | AV71: 0 | AW71: 0 | AX71: 0 | AY71: 0 | BA71: 0 | BB71: 1392772 | BC71: 2336119.08 | BD71: 943347.08 | BE71: 943347.08 | BF71: 0 | BG71: 330000 | BI71: 94234.88 | BJ71: 1572315.8 | BK71: 69991.71 | BL71: 6193.72 | BM71: 750 | BN71: 256298.5 | BO71: 21000 | BP71: 39800 | BQ71: 0 | BR71: 0 | BS71: 0 | BT71: 0 | BU71: 2060584.61 | BW71: 275000 | BY71: 275000 | BZ71: 1785584.61 | CB71: 19030.48 | CC71: 0 | CD71: 0 | CF71: 0 | CG71: 35968 | CH71: 133031 | CI71: 325069 | CJ71: 39650.1 | CK71: 0 | CL71: 0 | CM71: 45702 | CN71: 598450.58 | CQ71: 0 | CR71: 0 | CS71: 598450.58 | CT71: 2384035.19 | CU71: 1414438 | CV71: 0 | CW71: 1414438 | CX71: 0 | CY71: 0 | CZ71: 0 | DA71: 0
A72: 0069 | B72: 0 | C72: 0 | H72: 0 | I72: 0 | J72: 0 | K72: 0 | L72: 0 | M72: 0 | N72: 0 | O72: 0 | P72: 0 | Q72: 0 | R72: 0 | S72: 0 | T72: 0 | V72: 0 | X72: 0 | Y72: 0 | Z72: 0 | AA72: 0 | AB72: 0 | AD72: 0 | AE72: 0 | AF72: 0 | AG72: 0 | AH72: 0 | AI72: 0 | AJ72: 0 | AK72: 0 | AL72: 0 | AO72: 0 | AP72: 0 | AQ72: 0 | AR72: 0 | AS72: 116944.12 | AT72: 5457.756 | AU72: 122401.876 | AV72: -122401.876 | AW72: -1.046669777 | AX72: 5847.206 | AY72: 0 | BA72: 0 | BB72: 116467.12 | BC72: 93395 | BD72: -23072.12 | BE72: -23072.12 | BF72: 0 | BG72: 0 | BI72: 0 | BJ72: 0 | BK72: 0 | BL72: 0 | BM72: 0 | BN72: 0 | BO72: 0 | BP72: 0 | BQ72: 0 | BR72: 0 | BS72: 0 | BT72: 0 | BU72: 0 | BW72: 0 | BY72: 0 | BZ72: 0 | CB72: 0 | CC72: 0 | CD72: 0 | CF72: 0 | CG72: 0 | CH72: 0 | CI72: 0 | CJ72: 0 | CK72: 0 | CL72: 0 | CM72: 0 | CN72: 0 | CQ72: 0 | CR72: 0 | CS72: 0 | CT72: 0 | CU72: 141440.12 | CV72: 5847.206 | CW72: 147287.326 | CX72: -147287.326 | CY72: -1.041340505 | CZ72: 7072.006 | DA72: 0
A73: 0070 | B73: 0 | C73: 1 | D73: 2023-12-02 | H73: 0 | I73: 0 | J73: 0 | K73: 0 | L73: 0 | M73: 0 | N73: 0 | O73: 0 | P73: 0 | Q73: 0 | R73: 0 | S73: 0 | T73: 0 | V73: 0 | X73: 0 | Y73: 0 | Z73: 0 | AA73: 0 | AB73: 0 | AD73: 0 | AE73: 0 | AF73: 0 | AG73: 0 | AH73: 0 | AI73: 0 | AJ73: 0 | AK73: 202212 | AL73: 202212 | AO73: 0 | AP73: 0 | AQ73: 202212 | AR73: 202212 | AS73: 362160 | AT73: 19603.5 | AU73: 381763.5 | AV73: -179551.5 | AW73: -0.4957794897 | AX73: 18108 | AY73: 0 | BA73: 0 | BB73: 413231.3 | BC73: 277104 | BD73: -136127.3 | BE73: -136127.3 | BF73: 0 | BG73: 0 | BI73: 0 | BJ73: 0 | BK73: 0 | BL73: 0 | BM73: 0 | BN73: 0 | BO73: 0 | BP73: 0 | BQ73: 0 | BR73: 0 | BS73: 0 | BT73: 0 | BU73: 0 | BW73: 0 | BY73: 0 | BZ73: 0 | CB73: 0 | CC73: 0 | CD73: 0 | CF73: 0 | CG73: 0 | CH73: 0 | CI73: 0 | CJ73: 0 | CK73: 0 | CL73: 0 | CM73: 409960 | CN73: 409960 | CQ73: 0 | CR73: 0 | CS73: 409960 | CT73: 409960 | CU73: 309959.48 | CV73: 18108 | CW73: 328067.48 | CX73: 0 | CY73: 0 | CZ73: 0 | DA73: 0
A74: 0071 | B74: 1 | C74: 1 | D74: 2023-10-17 | E74: 1 | F74: 1 | G74: 1 | H74: 1354818.65 | I74: 36905409.82 | J74: 905606.14 | K74: 0 | L74: 619026.7 | M74: 335774.42 | N74: 276551.49 | O74: 0 | P74: 0 | Q74: 131590.94 | R74: 0 | S74: 4467193.88 | T74: 44995972.04 | V74: 200000 | X74: 200000 | Y74: 44795972.04 | Z74: 467496 | AA74: 0 | AB74: 0 | AD74: 0 | AE74: 5345615 | AF74: 1120963 | AG74: 5225761 | AH74: 1905682 | AI74: 0 | AJ74: 0 | AK74: 749602.0508 | AL74: 14815119.05 | AO74: 217103.4676 | AP74: 217103.4676 | AQ74: 14598015.58 | AR74: 59393987.62 | AS74: 39586571 | AT74: 0 | AU74: 39586571 | AV74: 0 | AW74: 0 | AX74: 0 | AY74: 0 | BA74: 104963.03 | BB74: 38127292 | BC74: 56254881.34 | BD74: 18127589.34 | BE74: 18022626.31 | BF74: 0 | BG74: 200000 | BI74: 1865546 | BJ74: 38927054 | BK74: 908911 | BL74: 0 | BM74: 526116 | BN74: 383826 | BO74: 0 | BP74: 0 | BQ74: 0 | BR74: 0 | BS74: 0 | BT74: 3613259 | BU74: 46224712 | BW74: 200000 | BY74: 200000 | BZ74: 46024712 | CB74: 452674 | CC74: 0 | CD74: 0 | CF74: 26400 | CG74: 6146993 | CH74: 1291034 | CI74: 5127512 | CJ74: 1905682 | CK74: 0 | CL74: 0 | CM74: 811269 | CN74: 15761564 | CQ74: 133279.4 | CR74: 133279.4 | CS74: 15628284.6 | CT74: 61652996.6 | CU74: 42331707 | CV74: 0 | CW74: 42331707 | CX74: 0 | CY74: 0 | CZ74: 0 | DA74: 0
A75: 0072 | B75: 1 | C75: 1 | D75: 2023-10-04 | E75: 1 | F75: 1 | G75: 1 | H75: 1076455.19 | I75: 35865365.78 | J75: 761123.74 | K75: 0 | L75: 1221150.8 | M75: 3500762.78 | N75: 240114.15 | O75: 569 | P75: 0 | Q75: 102242.43 | R75: 0 | S75: 2158671.79 | T75: 44926455.66 | V75: 0 | X75: 0 | Y75: 44926455.66 | Z75: 559261.36 | AA75: 0 | AB75: 0 | AD75: 0 | AE75: 0 | AF75: 1651794.94 | AG75: 3978062.42 | AH75: 1060534.93 | AI75: 0 | AJ75: 0 | AK75: 583864.8571 | AL75: 7833518.507 | AO75: 18548.21227 | AP75: 18548.21227 | AQ75: 7814970.295 | AR75: 52741425.95 | AS75: 43287689 | AT75: 0 | AU75: 43287689 | AV75: 0 | AW75: 0 | AX75: 0 | AY75: 0 | BA75: 9012.01 | BB75: 41739938 | BC75: 50222422.26 | BD75: 8482484.255 | BE75: 8473472.245 | BF75: 0 | BG75: 0 | BI75: 1241825.05 | BJ75: 37970343 | BK75: 808647 | BL75: 0 | BM75: 1080080.54 | BN75: 3969160.81 | BO75: 60000 | BP75: 1000 | BQ75: 0 | BR75: 120000 | BS75: 0 | BT75: 2203433 | BU75: 47454489.4 | BW75: 0 | BY75: 0 | BZ75: 47454489.4 | CB75: 574160.14 | CC75: 0 | CD75: 0 | CF75: 0 | CG75: 0 | CH75: 1734719.4 | CI75: 4356443.85 | CJ75: 1090919.11 | CK75: 0 | CL75: 0 | CM75: 528507 | CN75: 8284749.5 | CQ75: 8282.4 | CR75: 8282.4 | CS75: 8276467.1 | CT75: 55730956.5 | CU75: 45280694 | CV75: 0 | CW75: 45280694 | CX75: 0 | CY75: 0 | CZ75: 0 | DA75: 0
A76: 0073 | B76: 1 | C76: 1 | D76: 2023-09-14 | E76: 1 | F76: 1 | G76: 1 | H76: 1865031.29 | I76: 37408350.24 | J76: 945193.31 | K76: 0 | L76: 872988.36 | M76: 5012426.14 | N76: 54957.07 | O76: 57624.26 | P76: 0 | Q76: 0 | R76: 0 | S76: 2322696.13 | T76: 48539266.8 | V76: 0 | X76: 0 | Y76: 48539266.8 | Z76: 721193.85 | AA76: 0 | AB76: 0 | AD76: 0 | AE76: 0 | AF76: 673261.03 | AG76: 6219350.18 | AH76: 1044774 | AI76: 0 | AJ76: 0 | AK76: 889429.2427 | AL76: 9548008.303 | AO76: 208883.8768 | AP76: 208883.8768 | AQ76: 9339124.426 | AR76: 57878391.23 | AS76: 33049835 | AT76: 0 | AU76: 33049835 | AV76: 0 | AW76: 0 | AX76: 0 | AY76: 0 | BA76: 18096.29 | BB76: 31443810 | BC76: 54895725.74 | BD76: 23451915.74 | BE76: 23433819.45 | BF76: 0 | BG76: 0 | BI76: 1987415.9 | BJ76: 39431623.6 | BK76: 966859.3 | BL76: 0 | BM76: 994204.3 | BN76: 5371715.8 | BO76: 11426 | BP76: 48850 | BQ76: 0 | BR76: 0 | BS76: 0 | BT76: 3031694 | BU76: 51843788.9 | BW76: 0 | BY76: 0 | BZ76: 51843788.9 | CB76: 690571.63 | CC76: 0 | CD76: 0 | CF76: 0 | CG76: 0 | CH76: 706924.08 | CI76: 7453363.2 | CJ76: 1133895.7 | CK76: 0 | CL76: 0 | CM76: 918898 | CN76: 10903652.61 | CQ76: 118530.4 | CR76: 118530.4 | CS76: 10785122.21 | CT76: 62628911.11 | CU76: 34648058 | CV76: 0 | CW76: 34648058 | CX76: 0 | CY76: 0 | CZ76: 0 | DA76: 0
A77: 0074 | B77: 1 | C77: 1 | D77: 2023-10-16 | E77: 1 | F77: 1 | G77: 1 | H77: 218079.69 | I77: 3975480.99 | J77: 101972.75 | K77: 15210.1 | L77: 4108.44 | M77: 491827.6 | N77: 30427.42 | O77: 78623.5 | P77: 0 | Q77: 0 | R77: 0 | S77: 12049.41 | T77: 4927779.9 | V77: 0 | X77: 0 | Y77: 4927779.9 | Z77: 24661 | AA77: 0 | AB77: 0 | AD77: 54341 | AE77: 83700 | AF77: 268322 | AG77: 595727 | AH77: 55841.4 | AI77: 0 | AJ77: 0 | AK77: 348804.4952 | AL77: 1431396.895 | AO77: 46607.584 | AP77: 46607.584 | AQ77: 1384789.311 | AR77: 6312569.211 | AS77: 3871482 | AT77: 0 | AU77: 3871482 | AV77: 0 | AW77: 0 | AX77: 0 | AY77: 0 | BA77: 0 | BB77: 3759310 | BC77: 6010116.84 | BD77: 2250806.84 | BE77: 2250806.84 | BF77: 0 | BG77: 0 | BI77: 232156.63 | BJ77: 4097242.4 | BK77: 106701.78 | BL77: 0 | BM77: 1000 | BN77: 488078.19 | BO77: 30500 | BP77: 84568 | BQ77: 0 | BR77: 0 | BS77: 0 | BT77: 0 | BU77: 5040247 | BW77: 0 | BY77: 0 | BZ77: 5040247 | CB77: 21844 | CC77: 0 | CD77: 0 | CF77: 60000 | CG77: 125000 | CH77: 295000 | CI77: 654635 | CJ77: 65800 | CK77: 0 | CL77: 0 | CM77: 287376 | CN77: 1509655 | CQ77: 22492.4 | CR77: 22492.4 | CS77: 1487162.6 | CT77: 6527409.6 | CU77: 4020735 | CV77: 0 | CW77: 4020735 | CX77: 0 | CY77: 0 | CZ77: 0 | DA77: 0
A78: 0075 | B78: 0 | C78: 1 | D78: 2024-01-22 | H78: 0 | I78: 0 | J78: 0 | K78: 0 | L78: 0 | M78: 0 | N78: 0 | O78: 0 | P78: 0 | Q78: 0 | R78: 0 | S78: 0 | T78: 0 | V78: 0 | X78: 0 | Y78: 0 | Z78: 0 | AA78: 0 | AB78: 0 | AD78: 0 | AE78: 0 | AF78: 0 | AG78: 0 | AH78: 0 | AI78: 0 | AJ78: 0 | AK78: 0 | AL78: 0 | AO78: 0 | AP78: 0 | AQ78: 0 | AR78: 0 | AS78: 0 | AT78: 0 | AU78: 0 | AV78: 0 | AW78: 0 | AX78: 0 | AY78: 0 | BA78: 0 | BB78: 0 | BC78: 0 | BD78: 0 | BE78: 0 | BF78: 0 | BG78: 0 | BI78: 0 | BJ78: 0 | BK78: 0 | BL78: 0 | BM78: 0 | BN78: 0 | BO78: 0 | BP78: 0 | BQ78: 0 | BR78: 0 | BS78: 0 | BT78: 0 | BU78: 0 | BW78: 0 | BY78: 0 | BZ78: 0 | CB78: 0 | CC78: 0 | CD78: 0 | CF78: 0 | CG78: 0 | CH78: 0 | CI78: 0 | CJ78: 0 | CK78: 0 | CL78: 0 | CM78: 0 | CN78: 0 | CQ78: 0 | CR78: 0 | CS78: 0 | CT78: 0 | CU78: 0 | CV78: 0 | CW78: 0 | CX78: 0 | CY78: 0 | CZ78: 0 | DA78: 0
A79: 0076 | B79: 0 | C79: 1 | D79: 2023-11-13 | H79: 0 | I79: 0 | J79: 0 | K79: 0 | L79: 0 | M79: 0 | N79: 0 | O79: 0 | P79: 0 | Q79: 0 | R79: 0 | S79: 0 | T79: 0 | V79: 0 | X79: 0 | Y79: 0 | Z79: 0 | AA79: 0 | AB79: 0 | AD79: 0 | AE79: 0 | AF79: 0 | AG79: 0 | AH79: 0 | AI79: 0 | AJ79: 0 | AK79: 0 | AL79: 0 | AO79: 0 | AP79: 0 | AQ79: 0 | AR79: 0 | AS79: 0 | AT79: 0 | AU79: 0 | AV79: 0 | AW79: 0 | AX79: 0 | AY79: 0 | BA79: 0 | BB79: 0 | BC79: 0 | BD79: 0 | BE79: 0 | BF79: 0 | BG79: 0 | BI79: 0 | BJ79: 0 | BK79: 0 | BL79: 0 | BM79: 0 | BN79: 0 | BO79: 0 | BP79: 0 | BQ79: 0 | BR79: 0 | BS79: 0 | BT79: 0 | BU79: 0 | BW79: 0 | BY79: 0 | BZ79: 0 | CB79: 0 | CC79: 0 | CD79: 0 | CF79: 0 | CG79: 0 | CH79: 0 | CI79: 0 | CJ79: 0 | CK79: 0 | CL79: 0 | CM79: 25000 | CN79: 25000 | CQ79: 0 | CR79: 0 | CS79: 25000 | CT79: 25000 | CU79: 0 | CV79: 0 | CW79: 0 | CX79: 0 | CY79: 0 | CZ79: 0 | DA79: 0
A80: 0077 | B80: 1 | C80: 1 | D80: 2023-10-18 | E80: 1 | F80: 1 | G80: 1 | H80: 618179.28 | I80: 11288277.89 | J80: 322212.91 | K80: 0 | L80: 246186.96 | M80: 1714667.7 | N80: 9145.44 | O80: 0 | P80: 0 | Q80: 0 | R80: 0 | S80: 404722.44 | T80: 14603392.62 | V80: 0 | X80: 0 | Y80: 14603392.62 | Z80: 166569.12 | AA80: 0 | AB80: 0 | AD80: 54933.94 | AE80: 55000 | AF80: 416614 | AG80: 2408828.34 | AH80: 164442.05 | AI80: 0 | AJ80: 0 | AK80: 329786.5533 | AL80: 3596174.003 | AO80: 16406.784 | AP80: 16406.784 | AQ80: 3579767.219 | AR80: 18183159.84 | AS80: 16804982 | AT80: 0 | AU80: 16804982 | AV80: 0 | AW80: 0 | AX80: 0 | AY80: 0 | BA80: 5751.97 | BB80: 16284767 | BC80: 17509730.68 | BD80: 1224963.68 | BE80: 1219211.71 | BF80: 0 | BG80: 0 | BI80: 631833 | BJ80: 11979936 | BK80: 319947 | BL80: 4075 | BM80: 309509 | BN80: 775035 | BO80: 0 | BP80: 0 | BQ80: 0 | BR80: 0 | BS80: 0 | BT80: 710789 | BU80: 14731124 | BW80: 0 | BY80: 0 | BZ80: 14731124 | CB80: 166236.84 | CC80: 0 | CD80: 0 | CF80: 57153.05 | CG80: 55000 | CH80: 434586 | CI80: 2500743.06 | CJ80: 135706 | CK80: 0 | CL80: 0 | CM80: 285821 | CN80: 3635245.95 | CQ80: 0 | CR80: 0 | CS80: 3635245.95 | CT80: 18366369.95 | CU80: 17382311 | CV80: 0 | CW80: 17382311 | CX80: 0 | CY80: 0 | CZ80: 0 | DA80: 0
A81: 0078 | B81: 1 | C81: 1 | D81: 2023-12-08 | E81: 1 | F81: 1 | G81: 1 | H81: 304886 | I81: 6545458 | J81: 104239 | K81: 0 | L81: 0 | M81: 671842 | N81: 10000 | O81: 0 | P81: 0 | Q81: 0 | R81: 0 | S81: 1351247 | T81: 8987672 | V81: 0 | X81: 0 | Y81: 8987672 | Z81: 486050 | AA81: 0 | AB81: 0 | AD81: 0 | AE81: 128052 | AF81: 760837 | AG81: 1038151 | AH81: 171117.6 | AI81: 0 | AJ81: 0 | AK81: 0 | AL81: 2584207.6 | AO81: 0 | AP81: 0 | AQ81: 2584207.6 | AR81: 11571879.6 | AS81: 5377259 | AT81: 0 | AU81: 5377259 | AV81: 0 | AW81: 0 | AX81: 0 | AY81: 0 | BA81: 0 | BB81: 4997331 | BC81: 11052126.37 | BD81: 6054795.37 | BE81: 6054795.37 | BF81: 0 | BG81: 0 | BI81: 376761 | BJ81: 6754123 | BK81: 98886 | BL81: 0 | BM81: 0 | BN81: 723066 | BO81: 0 | BP81: 0 | BQ81: 0 | BR81: 0 | BS81: 0 | BT81: 2185000 | BU81: 10137836 | BW81: 0 | BY81: 0 | BZ81: 10137836 | CB81: 511536 | CC81: 0 | CD81: 0 | CF81: 0 | CG81: 138360 | CH81: 830417 | CI81: 1132154 | CJ81: 199637.2 | CK81: 0 | CL81: 0 | CM81: 0 | CN81: 2812104.2 | CQ81: 0 | CR81: 0 | CS81: 2812104.2 | CT81: 12949940.2 | CU81: 5901408 | CV81: 0 | CW81: 5901408 | CX81: 0 | CY81: 0 | CZ81: 0 | DA81: 0
A82: 0079 | B82: 1 | C82: 1 | D82: 2023-10-16 | E82: 1 | F82: 1 | G82: 1 | H82: 1764782.7 | I82: 27134767 | J82: 569098 | K82: 0 | L82: 1087261 | M82: 3749183 | N82: 168347 | O82: 177000 | P82: 0 | Q82: 0 | R82: 0 | S82: 1529561 | T82: 36179999.7 | V82: 0 | X82: 0 | Y82: 36179999.7 | Z82: 339678 | AA82: 0 | AB82: 0 | AD82: 0 | AE82: 1316040 | AF82: 2472421 | AG82: 5450993 | AH82: 2167953 | AI82: 0 | AJ82: 0 | AK82: 3818776.401 | AL82: 15565861.4 | AO82: 504784.704 | AP82: 504784.704 | AQ82: 15061076.7 | AR82: 51241076.4 | AS82: 50418701 | AT82: 0 | AU82: 50418701 | AV82: 0 | AW82: 0 | AX82: 0 | AY82: 0 | BA82: 15942 | BB82: 46058563 | BC82: 46662523.4 | BD82: 603960.4 | BE82: 588018.4 | BF82: 0 | BG82: 0 | BI82: 1673712 | BJ82: 30082375 | BK82: 937532 | BL82: 0 | BM82: 1117450 | BN82: 4594118 | BO82: 174015 | BP82: 0 | BQ82: 0 | BR82: 0 | BS82: 0 | BT82: 1128318 | BU82: 39707520 | BW82: 0 | BY82: 0 | BZ82: 39707520 | CB82: 95020 | CC82: 0 | CD82: 0 | CF82: 0 | CG82: 529127 | CH82: 2761653 | CI82: 6133955 | CJ82: 2329186 | CK82: 0 | CL82: 0 | CM82: 4003423 | CN82: 15852364 | CQ82: 419557.4 | CR82: 419557.4 | CS82: 15432806.6 | CT82: 55140326.6 | CU82: 54539267 | CV82: 0 | CW82: 54539267 | CX82: 0 | CY82: 0 | CZ82: 0 | DA82: 0
A83: 0080 | B83: 0 | C83: 1 | D83: 2023-09-27 | H83: 0 | I83: 0 | J83: 0 | K83: 0 | L83: 0 | M83: 0 | N83: 0 | O83: 0 | P83: 0 | Q83: 0 | R83: 0 | S83: 0 | T83: 0 | V83: 0 | X83: 0 | Y83: 0 | Z83: 0 | AA83: 0 | AB83: 0 | AD83: 0 | AE83: 0 | AF83: 0 | AG83: 0 | AH83: 0 | AI83: 0 | AJ83: 0 | AK83: 20819 | AL83: 20819 | AO83: 0 | AP83: 0 | AQ83: 20819 | AR83: 20819 | AS83: 0 | AT83: 962.65 | AU83: 962.65 | AV83: 0 | AW83: 0 | AX83: 0 | AY83: 0 | BA83: 0 | BB83: 962.65 | BC83: 0 | BD83: -962.65 | BE83: -962.65 | BF83: 0 | BG83: 0 | BI83: 0 | BJ83: 0 | BK83: 0 | BL83: 0 | BM83: 0 | BN83: 0 | BO83: 0 | BP83: 0 | BQ83: 0 | BR83: 0 | BS83: 0 | BT83: 0 | BU83: 0 | BW83: 0 | BY83: 0 | BZ83: 0 | CB83: 0 | CC83: 0 | CD83: 0 | CF83: 0 | CG83: 0 | CH83: 0 | CI83: 0 | CJ83: 0 | CK83: 0 | CL83: 0 | CM83: 0 | CN83: 0 | CQ83: 0 | CR83: 0 | CS83: 0 | CT83: 0 | CU83: 16491 | CV83: 0 | CW83: 16491 | CX83: -16491 | CY83: -1 | CZ83: 824.55 | DA83: 0
A84: 0081 | B84: 0 | C84: 1 | D84: 2024-01-25 | H84: 0 | I84: 0 | J84: 0 | K84: 0 | L84: 0 | M84: 0 | N84: 0 | O84: 0 | P84: 0 | Q84: 0 | R84: 0 | S84: 0 | T84: 0 | V84: 0 | X84: 0 | Y84: 0 | Z84: 0 | AA84: 0 | AB84: 0 | AD84: 0 | AE84: 0 | AF84: 0 | AG84: 0 | AH84: 0 | AI84: 0 | AJ84: 0 | AK84: 0 | AL84: 0 | AO84: 0 | AP84: 0 | AQ84: 0 | AR84: 0 | AS84: 0 | AT84: 694.4 | AU84: 694.4 | AV84: -694.4 | AW84: 0 | AX84: 694.4 | AY84: 0 | BA84: 0 | BB84: 694.4 | BC84: 0 | BD84: -694.4 | BE84: -694.4 | BF84: 0 | BG84: 0 | BI84: 0 | BJ84: 0 | BK84: 0 | BL84: 0 | BM84: 0 | BN84: 0 | BO84: 0 | BP84: 0 | BQ84: 0 | BR84: 0 | BS84: 0 | BT84: 0 | BU84: 0 | BW84: 0 | BY84: 0 | BZ84: 0 | CB84: 0 | CC84: 0 | CD84: 0 | CF84: 0 | CG84: 0 | CH84: 0 | CI84: 0 | CJ84: 0 | CK84: 0 | CL84: 0 | CM84: 0 | CN84: 0 | CQ84: 0 | CR84: 0 | CS84: 0 | CT84: 0 | CU84: 0 | CV84: 694.4 | CW84: 694.4 | CX84: -694.4 | DA84: 0
A85: 0082 | B85: 1 | C85: 1 | D85: 2023-12-08 | E85: 1 | F85: 1 | G85: 1 | H85: 1447460.27 | I85: 30108687.2 | J85: 499218.24 | K85: 0 | L85: 1321338.34 | M85: 3451181.13 | N85: 0 | O85: 0 | P85: 0 | Q85: 0 | R85: 0 | S85: 1016717.31 | T85: 37844602.49 | V85: 0 | X85: 0 | Y85: 37844602.49 | Z85: 404061 | AA85: 0 | AB85: 31188 | AD85: 0 | AE85: 438195 | AF85: 1312449 | AG85: 6353034 | AH85: 469067.4 | AI85: 0 | AJ85: 0 | AK85: 217024.7728 | AL85: 9225019.173 | AO85: 41002.4 | AP85: 41002.4 | AQ85: 9184016.773 | AR85: 47028619.26 | AS85: 31970863 | AT85: 0 | AU85: 31970863 | AV85: 0 | AW85: 0 | AX85: 0 | AY85: 0 | BA85: 0 | BB85: 30133087 | BC85: 44981460.28 | BD85: 14848373.28 | BE85: 14848373.28 | BF85: 0 | BG85: 0 | BI85: 1286611 | BJ85: 32118007 | BK85: 501655 | BL85: 3000 | BM85: 1081244 | BN85: 3387390 | BO85: 0 | BP85: 0 | BQ85: 0 | BR85: 0 | BS85: 0 | BT85: 1156224 | BU85: 39534131 | BW85: 0 | BY85: 0 | BZ85: 39534131 | CB85: 393203 | CC85: 0 | CD85: 27136 | CF85: 0 | CG85: 478677 | CH85: 1496908 | CI85: 6469910 | CJ85: 556567.2 | CK85: 0 | CL85: 0 | CM85: 194219 | CN85: 9616620.2 | CQ85: 25511.2 | CR85: 25511.2 | CS85: 9591109 | CT85: 49125240 | CU85: 33659011 | CV85: 0 | CW85: 33659011 | CX85: 0 | CY85: 0 | CZ85: 0 | DA85: 0
A86: 0083 | B86: 1 | C86: 1 | D86: 2023-10-26 | E86: 1 | F86: 0.9310645078 | G86: 1 | H86: 1006172 | I86: 18251932 | J86: 293871 | K86: 42117 | L86: 629444 | M86: 1276561 | N86: 39828 | O86: 6767 | P86: 0 | Q86: 0 | R86: 0 | S86: 1208764 | T86: 22755456 | V86: 0 | X86: 0 | Y86: 22755456 | Z86: 234740 | AA86: 0 | AB86: 0 | AD86: 75504 | AE86: 1792340 | AF86: 1176318 | AG86: 2583389 | AH86: 813347 | AI86: 0 | AJ86: 0 | AK86: 594680.7439 | AL86: 7270318.744 | AO86: 139222.8788 | AP86: 139222.8788 | AQ86: 7131095.865 | AR86: 29886551.87 | AS86: 25682683 | AT86: 0 | AU86: 25682683 | AV86: 0 | AW86: 0 | AX86: 0 | AY86: 0 | BA86: 38764 | BB86: 23955862 | BC86: 28002653.43 | BD86: 4046791.431 | BE86: 4008027.431 | BF86: 0 | BG86: 0 | BI86: 937320.3303 | BJ86: 17682941 | BK86: 319918 | BL86: 49000 | BM86: 680014 | BN86: 1256075.851 | BO86: 24207.6772 | BP86: 6837.737745 | BQ86: 0 | BR86: 0 | BS86: 0 | BT86: 1555431 | BU86: 22511745.6 | BW86: 0 | BY86: 0 | BZ86: 22511745.6 | CB86: 220053.3722 | CC86: 0 | CD86: 0 | CF86: 79230 | CG86: 1728119.97 | CH86: 1249623.574 | CI86: 2523429.686 | CJ86: 817484.8796 | CK86: 0 | CL86: 0 | CM86: 593096 | CN86: 7211037.482 | CQ86: 75735.2 | CR86: 75735.2 | CS86: 7135302.282 | CT86: 29647047.88 | CU86: 26867274 | CV86: 0 | CW86: 26867274 | CX86: 0 | CY86: 0 | CZ86: 0 | DA86: 0
A87: 0084 | B87: 0 | C87: 1 | D87: 2023-12-19 | H87: 0 | I87: 0 | J87: 0 | K87: 0 | L87: 0 | M87: 0 | N87: 0 | O87: 0 | P87: 0 | Q87: 0 | R87: 0 | S87: 0 | T87: 0 | V87: 0 | X87: 0 | Y87: 0 | Z87: 0 | AA87: 0 | AB87: 0 | AD87: 0 | AE87: 0 | AF87: 0 | AG87: 0 | AH87: 0 | AI87: 0 | AJ87: 0 | AK87: 159492 | AL87: 159492 | AO87: 0 | AP87: 0 | AQ87: 159492 | AR87: 159492 | AS87: 325902 | AT87: 18103.65 | AU87: 344005.65 | AV87: -184513.65 | AW87: -0.5661629876 | AX87: 16295.1 | AY87: 0 | BA87: 0 | BB87: 379475.15 | BC87: 137474 | BD87: -242001.15 | BE87: -242001.15 | BF87: 0 | BG87: 0 | BI87: 0 | BJ87: 0 | BK87: 0 | BL87: 0 | BM87: 0 | BN87: 0 | BO87: 0 | BP87: 0 | BQ87: 0 | BR87: 0 | BS87: 0 | BT87: 0 | BU87: 0 | BW87: 0 | BY87: 0 | BZ87: 0 | CB87: 0 | CC87: 0 | CD87: 0 | CF87: 0 | CG87: 0 | CH87: 0 | CI87: 0 | CJ87: 0 | CK87: 0 | CL87: 0 | CM87: 155000 | CN87: 155000 | CQ87: 0 | CR87: 0 | CS87: 155000 | CT87: 155000 | CU87: 331156 | CV87: 16295.1 | CW87: 347451.1 | CX87: -192451.1 | CY87: -0.5811493677 | CZ87: 16557.8 | DA87: 0
A88: 0085 | B88: 1 | C88: 1 | D88: 2023-11-06 | E88: 1 | F88: 1 | G88: 1 | H88: 102838.67 | I88: 3061190.2 | J88: 88919.91 | K88: 789.9 | L88: 567.93 | M88: 309043.05 | N88: 17972.57 | O88: 0 | P88: 0 | Q88: 0 | R88: 0 | S88: 28895.49 | T88: 3610217.72 | V88: 0 | X88: 0 | Y88: 3610217.72 | Z88: 148453 | AA88: 0 | AB88: 0 | AD88: 0 | AE88: 25933 | AF88: 119755.1971 | AG88: 664591.07 | AH88: 17115.294 | AI88: 0 | AJ88: 0 | AK88: 162284.9537 | AL88: 1138132.515 | AO88: 0 | AP88: 0 | AQ88: 1138132.515 | AR88: 4748350.235 | AS88: 2709776 | AT88: 0 | AU88: 2709776 | AV88: 0 | AW88: 0 | AX88: 0 | AY88: 0 | BA88: 434.22 | BB88: 2320434 | BC88: 4658399 | BD88: 2337965 | BE88: 2337530.78 | BF88: 0 | BG88: 0 | BI88: 172203 | BJ88: 2931679 | BK88: 97527 | BL88: 500 | BM88: 400 | BN88: 362085 | BO88: 0 | BP88: 0 | BQ88: 0 | BR88: 0 | BS88: 0 | BT88: 203801 | BU88: 3768195 | BW88: 0 | BY88: 0 | BZ88: 3768195 | CB88: 158091.5585 | CC88: 0 | CD88: 0 | CF88: 0 | CG88: 20103.1692 | CH88: 152479.782 | CI88: 731818.6269 | CJ88: 23854.61802 | CK88: 0 | CL88: 0 | CM88: 212686 | CN88: 1299033.755 | CQ88: 0 | CR88: 0 | CS88: 1299033.755 | CT88: 5067228.755 | CU88: 2896212 | CV88: 0 | CW88: 2896212 | CX88: 0 | CY88: 0 | CZ88: 0 | DA88: 0
A89: 0086 | B89: 1 | C89: 1 | D89: 2023-09-29 | E89: 1 | F89: 1 | G89: 1 | H89: 561939.31 | I89: 11905046.8 | J89: 170260.23 | K89: 0 | L89: 195704.21 | M89: 1506606.65 | N89: 29300.91 | O89: 2159.25 | P89: 0 | Q89: 0 | R89: 0 | S89: 2468178.76 | T89: 16839196.12 | V89: 0 | X89: 0 | Y89: 16839196.12 | Z89: 197814.54 | AA89: 0 | AB89: 0 | AD89: 0 | AE89: 125764.52 | AF89: 882152 | AG89: 2777063.81 | AH89: 409333.674 | AI89: 0 | AJ89: 0 | AK89: 2555259.053 | AL89: 6947387.597 | AO89: 127292.4314 | AP89: 127292.4314 | AQ89: 6820095.166 | AR89: 23659291.29 | AS89: 21391869 | AT89: 0 | AU89: 21391869 | AV89: 0 | AW89: 0 | AX89: 0 | AY89: 0 | BA89: 2223.2 | BB89: 21054596 | BC89: 22685383.52 | BD89: 1630787.525 | BE89: 1628564.325 | BF89: 0 | BG89: 0 | BI89: 1016568.51 | BJ89: 12614138.91 | BK89: 198154 | BL89: 0 | BM89: 195051.86 | BN89: 1378140.62 | BO89: 44000 | BP89: 3000 | BQ89: 0 | BR89: 3000 | BS89: 0 | BT89: 2205718 | BU89: 17657771.9 | BW89: 0 | BY89: 0 | BZ89: 17657771.9 | CB89: 220237.47 | CC89: 0 | CD89: 0 | CF89: 0 | CG89: 144905.23 | CH89: 853719 | CI89: 3190000 | CJ89: 534100 | CK89: 0 | CL89: 0 | CM89: 2542352 | CN89: 7485313.7 | CQ89: 145400 | CR89: 145400 | CS89: 7339913.7 | CT89: 24997685.6 | CU89: 22559015 | CV89: 0 | CW89: 22559015 | CX89: 0 | CY89: 0 | CZ89: 0 | DA89: 0
A90: 0087 | B90: 1 | C90: 1 | D90: 2023-10-27 | E90: 1 | F90: 1 | G90: 1 | H90: 851477 | I90: 25603228 | J90: 902939 | K90: 0 | L90: 641964 | M90: 1304982 | N90: 174654 | O90: 0 | P90: 0 | Q90: 0 | R90: 0 | S90: 1883157 | T90: 31362401 | V90: 0 | X90: 0 | Y90: 31362401 | Z90: 620223 | AA90: 0 | AB90: 0 | AD90: 88546 | AE90: 1618418 | AF90: 2182550 | AG90: 4529784 | AH90: 917548 | AI90: 0 | AJ90: 0 | AK90: 503215.4685 | AL90: 10460284.47 | AO90: 85717.69159 | AP90: 85717.69159 | AQ90: 10374566.78 | AR90: 41736967.78 | AS90: 31009727 | AT90: 0 | AU90: 31009727 | AV90: 0 | AW90: 0 | AX90: 0 | AY90: 0 | BA90: 25375 | BB90: 29366036 | BC90: 39778212.94 | BD90: 10412176.94 | BE90: 10386801.94 | BF90: 0 | BG90: 0 | BI90: 940285 | BJ90: 27265950 | BK90: 936086 | BL90: 0 | BM90: 646011 | BN90: 1218636 | BO90: 138931 | BP90: 0 | BQ90: 0 | BR90: 0 | BS90: 0 | BT90: 1753759 | BU90: 32899658 | BW90: 0 | BY90: 0 | BZ90: 32899658 | CB90: 615555 | CC90: 0 | CD90: 0 | CF90: 88921 | CG90: 2872505 | CH90: 2462406 | CI90: 5382584 | CJ90: 901552 | CK90: 0 | CL90: 0 | CM90: 602569 | CN90: 12926092 | CQ90: 80752.8 | CR90: 80752.8 | CS90: 12845339.2 | CT90: 45744997.2 | CU90: 33881346 | CV90: 0 | CW90: 33881346 | CX90: 0 | CY90: 0 | CZ90: 0 | DA90: 0
A91: 0088 | B91: 1 | C91: 0 | G91: 1 | H91: 0 | I91: 0 | J91: 0 | K91: 0 | L91: 0 | M91: 0 | N91: 0 | O91: 0 | P91: 0 | Q91: 0 | R91: 0 | S91: 0 | T91: 0 | V91: 165000 | X91: 165000 | Y91: -165000 | Z91: 505395 | AA91: 0 | AB91: 0 | AD91: 0 | AE91: 469788 | AF91: 0 | AG91: 0 | AH91: 0 | AI91: 0 | AJ91: 0 | AK91: 0 | AL91: 975183 | AO91: 0 | AP91: 0 | AQ91: 975183 | AR91: 810183 | AS91: 42014540 | AT91: 0 | AU91: 42014540 | AV91: -41204357 | AW91: -0.9807166043 | AX91: 2100727 | AY91: -39103630 | BA91: 0 | BB91: 40413003 | BC91: 50465760.83 | BD91: 10052757.83 | BE91: 10052757.83 | BF91: 0 | BG91: 165000 | BI91: 0 | BJ91: 0 | BK91: 0 | BL91: 0 | BM91: 0 | BN91: 0 | BO91: 0 | BP91: 0 | BQ91: 0 | BR91: 0 | BS91: 0 | BT91: 0 | BU91: 0 | BW91: 0 | BY91: 0 | BZ91: 0 | CB91: 0 | CC91: 0 | CD91: 0 | CF91: 0 | CG91: 0 | CH91: 0 | CI91: 0 | CJ91: 0 | CK91: 0 | CL91: 0 | CM91: 680871 | CN91: 680871 | CQ91: 164745 | CR91: 164745 | CS91: 516126 | CT91: 516126 | CU91: 44031696 | CV91: 2100727 | CW91: 46132423 | CX91: -45616297 | CY91: -1.035987735 | CZ91: 2201584.8 | DA91: -43414712.2
A92: 0089 | B92: 1 | C92: 1 | D92: 2023-09-21 | E92: 1 | F92: 1 | G92: 1 | H92: 254958.32 | I92: 7190158.96 | J92: 211110 | K92: 194651 | L92: 9815 | M92: 932669.92 | N92: 115601 | O92: 303373 | P92: 9849 | Q92: 0 | R92: 0 | S92: 0 | T92: 9222186.2 | V92: 0 | X92: 0 | Y92: 9222186.2 | Z92: 55664 | AA92: 0 | AB92: 0 | AD92: 0 | AE92: 0 | AF92: 310123 | AG92: 1531635 | AH92: 200491.2 | AI92: 0 | AJ92: 0 | AK92: 879079.8019 | AL92: 2976993.002 | AO92: 105092.8 | AP92: 105092.8 | AQ92: 2871900.202 | AR92: 12094086.4 | AS92: 5932989 | AT92: 0 | AU92: 5932989 | AV92: 0 | AW92: 0 | AX92: 0 | AY92: 0 | BA92: 0 | BB92: 5243885 | BC92: 11460645.59 | BD92: 6216760.59 | BE92: 6216760.59 | BF92: 0 | BG92: 0 | BI92: 250082 | BJ92: 8136054 | BK92: 219388 | BL92: 190460 | BM92: 7734 | BN92: 979297.68 | BO92: 115632 | BP92: 344496 | BQ92: 14672 | BR92: 0 | BS92: 0 | BT92: 0 | BU92: 10257815.68 | BW92: 0 | BY92: 0 | BZ92: 10257815.68 | CB92: 55832 | CC92: 0 | CD92: 0 | CF92: 0 | CG92: 0 | CH92: 313083 | CI92: 1604015 | CJ92: 240923.9 | CK92: 0 | CL92: 0 | CM92: 1074180 | CN92: 3288033.9 | CQ92: 226455 | CR92: 226455 | CS92: 3061578.9 | CT92: 13319394.58 | CU92: 6660865 | CV92: 0 | CW92: 6660865 | CX92: 0 | CY92: 0 | CZ92: 0 | DA92: 0
A93: 0090 | B93: 0 | C93: 1 | D93: 2023-11-26 | H93: 0 | I93: 0 | J93: 0 | K93: 0 | L93: 0 | M93: 0 | N93: 0 | O93: 0 | P93: 0 | Q93: 0 | R93: 0 | S93: 0 | T93: 0 | V93: 0 | X93: 0 | Y93: 0 | Z93: 0 | AA93: 0 | AB93: 0 | AD93: 0 | AE93: 0 | AF93: 0 | AG93: 0 | AH93: 0 | AI93: 0 | AJ93: 0 | AK93: 0 | AL93: 0 | AO93: 0 | AP93: 0 | AQ93: 0 | AR93: 0 | AS93: 0 | AT93: 0 | AU93: 0 | AV93: 0 | AW93: 0 | AX93: 0 | AY93: 0 | BA93: 0 | BB93: 0 | BC93: 6800 | BD93: 6800 | BE93: 6800 | BF93: 0 | BG93: 0 | BI93: 0 | BJ93: 0 | BK93: 0 | BL93: 0 | BM93: 0 | BN93: 0 | BO93: 0 | BP93: 0 | BQ93: 0 | BR93: 0 | BS93: 0 | BT93: 0 | BU93: 0 | BW93: 0 | BY93: 0 | BZ93: 0 | CB93: 0 | CC93: 0 | CD93: 0 | CF93: 0 | CG93: 0 | CH93: 0 | CI93: 0 | CJ93: 0 | CK93: 0 | CL93: 0 | CM93: 0 | CN93: 0 | CQ93: 0 | CR93: 0 | CS93: 0 | CT93: 0 | CU93: 0 | CV93: 0 | CW93: 0 | CX93: 0 | CY93: 0 | CZ93: 0 | DA93: 0
A94: 0091 | B94: 1 | C94: 1 | D94: 2023-09-29 | E94: 1 | F94: 1 | G94: 1 | H94: 141814 | I94: 2225876 | J94: 63082 | K94: 67515 | L94: 0 | M94: 329242 | N94: 50268 | O94: 3947 | P94: 0 | Q94: 0 | R94: 0 | S94: 1335986 | T94: 4217730 | V94: 11393 | X94: 11393 | Y94: 4206337 | Z94: 0 | AA94: 0 | AB94: 0 | AD94: 0 | AE94: 0 | AF94: 160063 | AG94: 754054 | AH94: 72050.4 | AI94: 0 | AJ94: 0 | AK94: 205293.8238 | AL94: 1191461.224 | AO94: 4753.152 | AP94: 4753.152 | AQ94: 1186708.072 | AR94: 5393045.072 | AS94: 2504088 | AT94: 0 | AU94: 2504088 | AV94: 0 | AW94: 0 | AX94: 0 | AY94: 0 | BA94: 0 | BB94: 2421205 | BC94: 5325938.7 | BD94: 2904733.7 | BE94: 2904733.7 | BF94: 0 | BG94: 11393 | BI94: 136407 | BJ94: 2895118 | BK94: 0 | BL94: 26000 | BM94: 0 | BN94: 349609 | BO94: 0 | BP94: 6050 | BQ94: 0 | BR94: 0 | BS94: 0 | BT94: 1308015 | BU94: 4721199 | BW94: 0 | BY94: 0 | BZ94: 4721199 | CB94: 1403 | CC94: 0 | CD94: 0 | CF94: 0 | CG94: 0 | CH94: 261370 | CI94: 692448 | CJ94: 79030 | CK94: 0 | CL94: 0 | CM94: 196011 | CN94: 1230262 | CQ94: 0 | CR94: 0 | CS94: 1230262 | CT94: 5951461 | CU94: 2671389 | CV94: 0 | CW94: 2671389 | CX94: 0 | CY94: 0 | CZ94: 0 | DA94: 0
A95: 0092 | B95: 0 | C95: 1 | D95: 2024-01-21 | H95: 0 | I95: 0 | J95: 0 | K95: 0 | L95: 0 | M95: 0 | N95: 0 | O95: 0 | P95: 0 | Q95: 0 | R95: 0 | S95: 0 | T95: 0 | V95: 0 | X95: 0 | Y95: 0 | Z95: 0 | AA95: 0 | AB95: 0 | AD95: 0 | AE95: 0 | AF95: 0 | AG95: 0 | AH95: 0 | AI95: 0 | AJ95: 0 | AK95: 0 | AL95: 0 | AO95: 0 | AP95: 0 | AQ95: 0 | AR95: 0 | AS95: 0 | AT95: 0 | AU95: 0 | AV95: 0 | AW95: 0 | AX95: 0 | AY95: 0 | BA95: 0 | BB95: 0 | BC95: 0 | BD95: 0 | BE95: 0 | BF95: 0 | BG95: 0 | BI95: 0 | BJ95: 0 | BK95: 0 | BL95: 0 | BM95: 0 | BN95: 0 | BO95: 0 | BP95: 0 | BQ95: 0 | BR95: 0 | BS95: 0 | BT95: 0 | BU95: 0 | BW95: 0 | BY95: 0 | BZ95: 0 | CB95: 0 | CC95: 0 | CD95: 0 | CF95: 0 | CG95: 0 | CH95: 0 | CI95: 0 | CJ95: 0 | CK95: 0 | CL95: 0 | CM95: 0 | CN95: 0 | CQ95: 0 | CR95: 0 | CS95: 0 | CT95: 0 | CU95: 0 | CV95: 0 | CW95: 0 | CX95: 0 | CY95: 0 | CZ95: 0 | DA95: 0
A96: 0093 | B96: 1 | C96: 1 | D96: 2023-10-27 | E96: 1 | F96: 1 | G96: 1 | H96: 2661137 | I96: 84805797 | J96: 173754 | K96: 0 | L96: 2876880 | M96: 8027753 | N96: 95902 | O96: 0 | P96: 0 | Q96: 0 | R96: 0 | S96: 5165637 | T96: 103806860 | V96: 0 | X96: 0 | Y96: 103806860 | Z96: 588701 | AA96: 0 | AB96: 900749 | AD96: 145139 | AE96: 29147 | AF96: 2332493 | AG96: 11119010 | AH96: 2254284 | AI96: 0 | AJ96: 0 | AK96: 11245091.72 | AL96: 28614614.72 | AO96: 2342655.6 | AP96: 2342655.6 | AQ96: 26271959.12 | AR96: 130078819.1 | AS96: 131079662 | AT96: 0 | AU96: 131079662 | AV96: -1000842.876 | AW96: -0.007635378827 | AX96: 1000842.876 | AY96: 0 | BA96: 0 | BB96: 120819748 | BC96: 126013134.2 | BD96: 5193386.247 | BE96: 5193386.247 | BF96: 0 | BG96: 0 | BI96: 2985673 | BJ96: 97255566 | BK96: 2454890 | BL96: 0 | BM96: 3297615 | BN96: 8958129 | BO96: 100000 | BP96: 0 | BQ96: 0 | BR96: 3000000 | BS96: 0 | BT96: 5956029 | BU96: 124007902 | BW96: 0 | BY96: 0 | BZ96: 124007902 | CB96: 546725 | CC96: 0 | CD96: 1148435 | CF96: 150031 | CG96: 6160 | CH96: 1635503 | CI96: 13395601 | CJ96: 2019554 | CK96: 0 | CL96: 0 | CM96: 13186201 | CN96: 32088210 | CQ96: 3478948.8 | CR96: 3478948.8 | CS96: 28609261.2 | CT96: 152617163.2 | CU96: 152643280 | CV96: 1000842.876 | CW96: 153644122.9 | CX96: -1026959.676 | CY96: -0.006727840727 | CZ96: 1026959.676 | DA96: 0
A97: 0094 | B97: 1 | C97: 1 | D97: 2023-09-29 | E97: 1 | F97: 1 | G97: 1 | H97: 916232.18 | I97: 15618752 | J97: 281986.37 | K97: 20613.7 | L97: 495478.67 | M97: 2400850.45 | N97: 43293.26 | O97: 3390 | P97: 0 | Q97: 46352.71 | R97: 0 | S97: 1051277 | T97: 20878226.34 | V97: 2820491 | X97: 2820491 | Y97: 18057735.34 | Z97: 452224.95 | AA97: 0 | AB97: 0 | AD97: 112988.64 | AE97: 236848.48 | AF97: 1256373.47 | AG97: 2280855.7 | AH97: 719143 | AI97: 0 | AJ97: 0 | AK97: 308344.692 | AL97: 5366778.932 | AO97: 14600.39517 | AP97: 14600.39517 | AQ97: 5352178.537 | AR97: 23409913.88 | AS97: 22300571 | AT97: 0 | AU97: 22300571 | AV97: 0 | AW97: 0 | AX97: 0 | AY97: 0 | BA97: 64785.59 | BB97: 20975457 | BC97: 23535014.3 | BD97: 2559557.302 | BE97: 2494771.712 | BF97: 0 | BG97: 2820491 | BI97: 921018 | BJ97: 16720596 | BK97: 365331 | BL97: 39351 | BM97: 616314 | BN97: 1873031 | BO97: 0 | BP97: 3390 | BQ97: 0 | BR97: 49900 | BS97: 0 | BT97: 1057447 | BU97: 21646378 | BW97: 2790000 | BY97: 2790000 | BZ97: 18856378 | CB97: 460684.69 | CC97: 0 | CD97: 0 | CF97: 131040.48 | CG97: 151737.6 | CH97: 1310712.6 | CI97: 2335023.93 | CJ97: 767239.17 | CK97: 0 | CL97: 0 | CM97: 339340 | CN97: 5495778.47 | CQ97: 45497.4 | CR97: 45497.4 | CS97: 5450281.07 | CT97: 24306659.07 | CU97: 23768493 | CV97: 0 | CW97: 23768493 | CX97: 0 | CY97: 0 | CZ97: 0 | DA97: 0
A98: 0095 | B98: 1 | C98: 1 | D98: 2023-11-06 | E98: 1 | F98: 1 | G98: 1 | H98: 4393661 | I98: 98761612 | J98: 3124802 | K98: 0 | L98: 3599534 | M98: 20809387 | N98: 204021 | O98: 2216248 | P98: 0 | Q98: 3210838 | R98: 0 | S98: 6209326 | T98: 142529429 | V98: 20542 | X98: 20542 | Y98: 142508887 | Z98: 1593229 | AA98: 0 | AB98: 0 | AD98: 0 | AE98: 100000 | AF98: 7752210 | AG98: 18257911 | AH98: 6234890 | AI98: 0 | AJ98: 0 | AK98: 28489666.78 | AL98: 62427906.78 | AO98: 4424147.346 | AP98: 4424147.346 | AQ98: 58003759.44 | AR98: 200512646.4 | AS98: 204753290 | AT98: 1676427.584 | AU98: 206429717.6 | AV98: -5917071.147 | AW98: -0.02889854003 | AX98: 5917071.147 | AY98: 0 | BA98: 20542 | BB98: 182699136.8 | BC98: 181022709.2 | BD98: -1676427.584 | BE98: -1696969.584 | BF98: 20542 | BG98: 0 | BI98: 7158935 | BJ98: 117676010 | BK98: 3228188 | BL98: 0 | BM98: 4214240 | BN98: 18080431 | BO98: 220000 | BP98: 2295000 | BQ98: 0 | BR98: 4200000 | BS98: 0 | BT98: 8891455 | BU98: 165964259 | BW98: 0 | BY98: 0 | BZ98: 165964259 | CB98: 1641132 | CC98: 0 | CD98: 0 | CF98: 0 | CG98: 100000 | CH98: 8298150 | CI98: 19441393 | CJ98: 7372607 | CK98: 0 | CL98: 0 | CM98: 32105528 | CN98: 68958810 | CQ98: 6023778.4 | CR98: 6023778.4 | CS98: 62935031.6 | CT98: 228899290.6 | CU98: 226544926 | CV98: 5917071.147 | CW98: 232461997.1 | CX98: -3562706.547 | CY98: -0.01572626944 | CZ98: 3562706.547 | DA98: 0
A99: 0096 | B99: 1 | C99: 1 | D99: 2024-01-11 | E99: 1 | F99: 1 | G99: 1 | H99: 1694686 | I99: 39145853.97 | J99: 934197.89 | K99: 0 | L99: 1280944 | M99: 5645757 | N99: 215663 | O99: 0 | P99: 0 | Q99: 0 | R99: 0 | S99: 1669902 | T99: 50587003.86 | V99: 0 | X99: 0 | Y99: 50587003.86 | Z99: 193802 | AA99: 0 | AB99: 0 | AD99: 0 | AE99: 580026 | AF99: 3151645 | AG99: 6955712 | AH99: 1203354.6 | AI99: 0 | AJ99: 0 | AK99: 3191544.595 | AL99: 15276084.2 | AO99: 445448.7692 | AP99: 445448.7692 | AQ99: 14830635.43 | AR99: 65417639.29 | AS99: 41087216 | AT99: 0 | AU99: 41087216 | AV99: 0 | AW99: 0 | AX99: 0 | AY99: 0 | BA99: 0 | BB99: 37392327 | BC99: 62674734.79 | BD99: 25282407.79 | BE99: 25282407.79 | BF99: 0 | BG99: 0 | BI99: 2258030 | BJ99: 40539312 | BK99: 1030517 | BL99: 0 | BM99: 1064629 | BN99: 5240100 | BO99: 0 | BP99: 0 | BQ99: 0 | BR99: 0 | BS99: 0 | BT99: 2125000 | BU99: 52257588 | BW99: 125000 | BY99: 125000 | BZ99: 52132588 | CB99: 214661 | CC99: 0 | CD99: 0 | CF99: 0 | CG99: 665780 | CH99: 3151645 | CI99: 8802810 | CJ99: 0 | CK99: 0 | CL99: 0 | CM99: 3158946 | CN99: 15993842 | CQ99: 269922.4 | CR99: 269922.4 | CS99: 15723919.6 | CT99: 67856507.6 | CU99: 42847019 | CV99: 0 | CW99: 42847019 | CX99: 0 | CY99: 0 | CZ99: 0 | DA99: 0
A100: 0097 | B100: 1 | C100: 1 | D100: 2023-10-16 | E100: 1 | F100: 1 | G100: 1 | H100: 2104298.5 | I100: 48739399.3 | J100: 1335433 | K100: 0 | L100: 1208618 | M100: 6960751 | N100: 76764 | O100: 135105 | P100: 0 | Q100: 78397 | R100: 0 | S100: 6628905 | T100: 67267670.8 | V100: 0 | X100: 0 | Y100: 67267670.8 | Z100: 799362 | AA100: 0 | AB100: 72000 | AD100: 235000 | AE100: 5000 | AF100: 5315586 | AG100: 7260613 | AH100: 2659420 | AI100: 0 | AJ100: 0 | AK100: 5981026.51 | AL100: 22328007.51 | AO100: 694755.1265 | AP100: 694755.1265 | AQ100: 21633252.38 | AR100: 88900923.18 | AS100: 88839003 | AT100: 0 | AU100: 88839003 | AV100: 0 | AW100: 0 | AX100: 0 | AY100: 0 | BA100: 0 | BB100: 80950249 | BC100: 81150775.53 | BD100: 200526.5274 | BE100: 200526.5274 | BF100: 0 | BG100: 0 | BI100: 2071449 | BJ100: 55684129 | BK100: 1217740 | BL100: 0 | BM100: 811476 | BN100: 6732865 | BO100: 25000 | BP100: 60000 | BQ100: 0 | BR100: 0 | BS100: 0 | BT100: 6275985 | BU100: 72878644 | BW100: 0 | BY100: 0 | BZ100: 72878644 | CB100: 791724 | CC100: 0 | CD100: 72000 | CF100: 235000 | CG100: 5000 | CH100: 5567884 | CI100: 7959277 | CJ100: 2923402 | CK100: 0 | CL100: 0 | CM100: 5919456 | CN100: 23473743 | CQ100: 380328 | CR100: 380328 | CS100: 23093415 | CT100: 95972059 | CU100: 96678430 | CV100: 0 | CW100: 96678430 | CX100: -706371 | CY100: -0.007306397094 | CZ100: 706371 | DA100: 0
A101: 0098 | B101: 1 | C101: 1 | D101: 2023-12-01 | E101: 1 | F101: 1 | G101: 1 | H101: 64646.36 | I101: 950300.42 | J101: 31956 | K101: 607 | L101: 0 | M101: 153967.17 | N101: 0 | O101: 877 | P101: 0 | Q101: 7568 | R101: 0 | S101: 40329 | T101: 1250250.95 | V101: 136073 | X101: 136073 | Y101: 1114177.95 | Z101: 12225 | AA101: 0 | AB101: 0 | AD101: 0 | AE101: 0 | AF101: 61590 | AG101: 208594 | AH101: 25554.6 | AI101: 0 | AJ101: 0 | AK101: 50279 | AL101: 358242.6 | AO101: -49.31260686 | AP101: -49.31260686 | AQ101: 358291.9126 | AR101: 1472469.863 | AS101: 1014928 | AT101: 0 | AU101: 1014928 | AV101: 0 | AW101: 0 | AX101: 0 | AY101: 0 | BA101: 0 | BB101: 985195 | BC101: 1602443.32 | BD101: 617248.3201 | BE101: 617248.3201 | BF101: 0 | BG101: 136073 | BI101: 66625 | BJ101: 936430 | BK101: 23833 | BL101: 9000 | BM101: 1200 | BN101: 155644 | BO101: 0 | BP101: 934 | BQ101: 0 | BR101: 7200 | BS101: 0 | BT101: 108082 | BU101: 1308948 | BW101: 140000 | BY101: 140000 | BZ101: 1168948 | CB101: 13506 | CC101: 0 | CD101: 0 | CF101: 0 | CG101: 0 | CH101: 86460 | CI101: 241093 | CJ101: 37450 | CK101: 0 | CL101: 0 | CM101: 53237 | CN101: 431746 | CQ101: 9758 | CR101: 9758 | CS101: 421988 | CT101: 1590936 | CU101: 985108 | CV101: 0 | CW101: 985108 | CX101: 0 | CY101: 0 | CZ101: 0 | DA101: 0
A102: 0099 | B102: 1 | C102: 1 | D102: 2023-10-31 | E102: 1 | F102: 1 | G102: 1 | H102: 1234106.75 | I102: 28257139.46 | J102: 495242.58 | K102: 36373.64 | L102: 846141.11 | M102: 4291657.37 | N102: 79703.63 | O102: 12457 | P102: 0 | Q102: 0 | R102: 0 | S102: 1712524.5 | T102: 36965346.04 | V102: 35000 | X102: 35000 | Y102: 36930346.04 | Z102: 348114 | AA102: 0 | AB102: 0 | AD102: 0 | AE102: 609259 | AF102: 2523000 | AG102: 5214567 | AH102: 763676 | AI102: 0 | AJ102: 0 | AK102: 2078086.903 | AL102: 11536702.9 | AO102: 30645.81189 | AP102: 30645.81189 | AQ102: 11506057.09 | AR102: 48436403.13 | AS102: 35055644 | AT102: 0 | AU102: 35055644 | AV102: 0 | AW102: 0 | AX102: 0 | AY102: 0 | BA102: 119182.19 | BB102: 33613372 | BC102: 47544038.71 | BD102: 13930666.71 | BE102: 13811484.52 | BF102: 0 | BG102: 35000 | BI102: 2576986 | BJ102: 29739659 | BK102: 520878 | BL102: 38556 | BM102: 922309 | BN102: 3003897 | BO102: 0 | BP102: 13500 | BQ102: 0 | BR102: 0 | BS102: 0 | BT102: 1901660 | BU102: 38717445 | BW102: 0 | BY102: 0 | BZ102: 38717445 | CB102: 347166 | CC102: 0 | CD102: 0 | CF102: 0 | CG102: 498847 | CH102: 2528664 | CI102: 5445357 | CJ102: 776144 | CK102: 0 | CL102: 0 | CM102: 2021376 | CN102: 11617554 | CQ102: 0 | CR102: 0 | CS102: 11617554 | CT102: 50334999 | CU102: 36724570 | CV102: 0 | CW102: 36724570 | CX102: 0 | CY102: 0 | CZ102: 0 | DA102: 0
A103: 0100 | B103: 1 | C103: 1 | D103: 2023-12-12 | E103: 1 | F103: 1 | G103: 0.994046605 | H103: 6371581 | I103: 110302772 | J103: 3955284 | K103: 0 | L103: 2963022 | M103: 11942172 | N103: 268754 | O103: 4411 | P103: 0 | Q103: 0 | R103: 0 | S103: 10555790 | T103: 146363786 | V103: 682263.8873 | X103: 682263.8873 | Y103: 145681522.1 | Z103: 2658576.651 | AA103: 0 | AB103: 0 | AD103: 0 | AE103: 720272.2533 | AF103: 9079916 | AG103: 22301940 | AH103: 4363809 | AI103: 0 | AJ103: 0 | AK103: 6257073.343 | AL103: 45381587.25 | AO103: 167674.903 | AP103: 167674.903 | AQ103: 45213912.34 | AR103: 190895434.5 | AS103: 139318257 | AT103: 0 | AU103: 139318257 | AV103: 0 | AW103: 0 | AX103: 0 | AY103: 0 | BA103: 760 | BB103: 124235874 | BC103: 181461730.7 | BD103: 57225856.7 | BE103: 57225096.7 | BF103: 0 | BG103: 682263.8873 | BI103: 8430736 | BJ103: 118090914 | BK103: 4502504 | BL103: 0 | BM103: 3024287 | BN103: 10150836 | BO103: 147467 | BP103: 4411 | BQ103: 0 | BR103: 0 | BS103: 0 | BT103: 12287070 | BU103: 156638225 | BW103: 200000 | BY103: 200000 | BZ103: 156438225 | CB103: 2727761 | CC103: 0 | CD103: 0 | CF103: 0 | CG103: 623639 | CH103: 9728415 | CI103: 23574879 | CJ103: 4583576 | CK103: 0 | CL103: 0 | CM103: 5818256 | CN103: 47056526 | CQ103: 38338.8 | CR103: 38338.8 | CS103: 47018187.2 | CT103: 203456412.2 | CU103: 159351947 | CV103: 0 | CW103: 159351947 | CX103: 0 | CY103: 0 | CZ103: 0 | DA103: 0
A104: 0101 | B104: 1 | C104: 1 | D104: 2023-09-29 | E104: 1 | F104: 1 | G104: 1 | H104: 1663421.1 | I104: 53414537.99 | J104: 945741.18 | K104: 0 | L104: 616278.05 | M104: 806337.07 | N104: 846284 | O104: 5941668 | P104: 0 | Q104: 0 | R104: 0 | S104: 6251635 | T104: 70485902.39 | V104: 0 | X104: 0 | Y104: 70485902.39 | Z104: 433428 | AA104: 0 | AB104: 0 | AD104: 190545 | AE104: 6364486 | AF104: 2485997.87 | AG104: 930819 | AH104: 1006241.4 | AI104: 0 | AJ104: 0 | AK104: 5608984.804 | AL104: 17020502.07 | AO104: 565161.0985 | AP104: 565161.0985 | AQ104: 16455340.98 | AR104: 86941243.37 | AS104: 73686081 | AT104: 0 | AU104: 73686081 | AV104: 0 | AW104: 0 | AX104: 0 | AY104: 0 | BA104: 121873 | BB104: 71018218 | BC104: 80449980.4 | BD104: 9431762.397 | BE104: 9309889.397 | BF104: 0 | BG104: 0 | BI104: 1643444 | BJ104: 55930123 | BK104: 988389 | BL104: 0 | BM104: 905326 | BN104: 881527 | BO104: 770000 | BP104: 7168185 | BQ104: 0 | BR104: 0 | BS104: 0 | BT104: 7799180 | BU104: 76086174 | BW104: 0 | BY104: 0 | BZ104: 76086174 | CB104: 542714 | CC104: 0 | CD104: 0 | CF104: 202843 | CG104: 7082998 | CH104: 2027742 | CI104: 763693 | CJ104: 1200500 | CK104: 0 | CL104: 0 | CM104: 6057176 | CN104: 17877666 | CQ104: 665996.4 | CR104: 665996.4 | CS104: 17211669.6 | CT104: 93297843.6 | CU104: 76427456 | CV104: 0 | CW104: 76427456 | CX104: 0 | CY104: 0 | CZ104: 0 | DA104: 0
A105: 0102 | B105: 0 | C105: 0 | H105: 0 | I105: 0 | J105: 0 | K105: 0 | L105: 0 | M105: 0 | N105: 0 | O105: 0 | P105: 0 | Q105: 0 | R105: 0 | S105: 0 | T105: 0 | V105: 0 | X105: 0 | Y105: 0 | Z105: 0 | AA105: 0 | AB105: 0 | AD105: 0 | AE105: 0 | AF105: 0 | AG105: 0 | AH105: 0 | AI105: 0 | AJ105: 0 | AK105: 0 | AL105: 0 | AO105: 0 | AP105: 0 | AQ105: 0 | AR105: 0 | AS105: 1177723 | AT105: 63024.1 | AU105: 1240747.1 | AV105: -1240747.1 | AW105: -1.053513517 | AX105: 58886.15 | AY105: 0 | BA105: 0 | BB105: 1333385.05 | BC105: 1236883.92 | BD105: -96501.13 | BE105: -96501.13 | BF105: 0 | BG105: 0 | BI105: 0 | BJ105: 0 | BK105: 0 | BL105: 0 | BM105: 0 | BN105: 0 | BO105: 0 | BP105: 0 | BQ105: 0 | BR105: 0 | BS105: 0 | BT105: 0 | BU105: 0 | BW105: 0 | BY105: 0 | BZ105: 0 | CB105: 0 | CC105: 0 | CD105: 0 | CF105: 0 | CG105: 0 | CH105: 0 | CI105: 0 | CJ105: 0 | CK105: 0 | CL105: 0 | CM105: 10000 | CN105: 10000 | CQ105: 0 | CR105: 0 | CS105: 10000 | CT105: 10000 | CU105: 1135700 | CV105: 58886.15 | CW105: 1194586.15 | CX105: -1184586.15 | CY105: -1.04304495 | CZ105: 56785 | DA105: 0
A106: 0103 | B106: 1 | C106: 1 | D106: 2023-09-25 | E106: 1 | F106: 1 | G106: 1 | H106: 913252.91 | I106: 19253527.78 | J106: 501810.88 | K106: 0 | L106: 559806.27 | M106: 2787991.2 | N106: 39292.9 | O106: 22554 | P106: 0 | Q106: 82141.67 | R106: 0 | S106: 1453957.36 | T106: 25614334.97 | V106: 0 | X106: 0 | Y106: 25614334.97 | Z106: 215021 | AA106: 0 | AB106: 71041 | AD106: 0 | AE106: 0 | AF106: 1686831 | AG106: 4358869 | AH106: 667621.8 | AI106: 0 | AJ106: 0 | AK106: 1566127.232 | AL106: 8565511.032 | AO106: 25294.87597 | AP106: 25294.87597 | AQ106: 8540216.156 | AR106: 34154551.13 | AS106: 34029130 | AT106: 0 | AU106: 34029130 | AV106: 0 | AW106: 0 | AX106: 0 | AY106: 0 | BA106: 707580.05 | BB106: 31404375 | BC106: 32239337.37 | BD106: 834962.3678 | BE106: 127382.3178 | BF106: 0 | BG106: 0 | BI106: 876813 | BJ106: 22404946 | BK106: 611749 | BL106: 0 | BM106: 566763 | BN106: 2760830 | BO106: 30497 | BP106: 28574 | BQ106: 0 | BR106: 79327 | BS106: 0 | BT106: 1795878 | BU106: 29155377 | BW106: 0 | BY106: 0 | BZ106: 29155377 | CB106: 269663 | CC106: 0 | CD106: 64917 | CF106: 0 | CG106: 0 | CH106: 1890724 | CI106: 5265043.16 | CJ106: 288712.088 | CK106: 0 | CL106: 0 | CM106: 1484154 | CN106: 9263213.248 | CQ106: 31642 | CR106: 31642 | CS106: 9231571.248 | CT106: 38386948.25 | CU106: 38690364 | CV106: 0 | CW106: 38690364 | CX106: -303415.752 | CY106: -0.007842152945 | CZ106: 303415.752 | DA106: 0
A107: 0104 | B107: 0 | C107: 1 | D107: 2023-09-21 | H107: 0 | I107: 0 | J107: 0 | K107: 0 | L107: 0 | M107: 0 | N107: 0 | O107: 0 | P107: 0 | Q107: 0 | R107: 0 | S107: 0 | T107: 0 | V107: 0 | X107: 0 | Y107: 0 | Z107: 0 | AA107: 0 | AB107: 0 | AD107: 0 | AE107: 0 | AF107: 0 | AG107: 0 | AH107: 0 | AI107: 0 | AJ107: 0 | AK107: 0 | AL107: 0 | AO107: 0 | AP107: 0 | AQ107: 0 | AR107: 0 | AS107: 0 | AT107: 0 | AU107: 0 | AV107: 0 | AW107: 0 | AX107: 0 | AY107: 0 | BA107: 0 | BB107: 0 | BC107: 0 | BD107: 0 | BE107: 0 | BF107: 0 | BG107: 0 | BI107: 0 | BJ107: 0 | BK107: 0 | BL107: 0 | BM107: 0 | BN107: 0 | BO107: 0 | BP107: 0 | BQ107: 0 | BR107: 0 | BS107: 0 | BT107: 0 | BU107: 0 | BW107: 0 | BY107: 0 | BZ107: 0 | CB107: 0 | CC107: 0 | CD107: 0 | CF107: 0 | CG107: 0 | CH107: 0 | CI107: 0 | CJ107: 0 | CK107: 0 | CL107: 0 | CM107: 0 | CN107: 0 | CQ107: 0 | CR107: 0 | CS107: 0 | CT107: 0 | CU107: 0 | CV107: 0 | CW107: 0 | CX107: 0 | CY107: 0 | CZ107: 0 | DA107: 0
A108: 0105 | B108: 1 | C108: 1 | D108: 2023-09-26 | E108: 1 | F108: 1 | G108: 1 | H108: 786123.27 | I108: 12495805.14 | J108: 193184.08 | K108: 0 | L108: 310471.94 | M108: 1375418.23 | N108: 89762.78 | O108: 0 | P108: 0 | Q108: 0 | R108: 0 | S108: 992826.17 | T108: 16243591.61 | V108: 0 | X108: 0 | Y108: 16243591.61 | Z108: 46726 | AA108: 0 | AB108: 0 | AD108: 0 | AE108: 471446 | AF108: 872334 | AG108: 2167068 | AH108: 586694 | AI108: 0 | AJ108: 0 | AK108: 1198233.713 | AL108: 5342501.713 | AO108: 36601 | AP108: 36601 | AQ108: 5305900.713 | AR108: 21549492.32 | AS108: 16647575 | AT108: 0 | AU108: 16647575 | AV108: 0 | AW108: 0 | AX108: 0 | AY108: 0 | BA108: 0 | BB108: 16245424 | BC108: 20224749.74 | BD108: 3979325.74 | BE108: 3979325.74 | BF108: 0 | BG108: 0 | BI108: 871358 | BJ108: 13446532 | BK108: 202094 | BL108: 0 | BM108: 276019 | BN108: 1192781 | BO108: 0 | BP108: 0 | BQ108: 0 | BR108: 0 | BS108: 0 | BT108: 1108553 | BU108: 17097337 | BW108: 0 | BY108: 0 | BZ108: 17097337 | CB108: 47667 | CC108: 0 | CD108: 0 | CF108: 0 | CG108: 467173 | CH108: 929101 | CI108: 2239682 | CJ108: 610361 | CK108: 0 | CL108: 0 | CM108: 1493715 | CN108: 5787699 | CQ108: 22250.8 | CR108: 22250.8 | CS108: 5765448.2 | CT108: 22862785.2 | CU108: 17091135 | CV108: 0 | CW108: 17091135 | CX108: 0 | CY108: 0 | CZ108: 0 | DA108: 0
A109: 0106 | B109: 0 | C109: 0 | H109: 0 | I109: 0 | J109: 0 | K109: 0 | L109: 0 | M109: 0 | N109: 0 | O109: 0 | P109: 0 | Q109: 0 | R109: 0 | S109: 0 | T109: 0 | V109: 0 | X109: 0 | Y109: 0 | Z109: 0 | AA109: 0 | AB109: 0 | AD109: 0 | AE109: 0 | AF109: 0 | AG109: 0 | AH109: 0 | AI109: 0 | AJ109: 0 | AK109: 0 | AL109: 0 | AO109: 0 | AP109: 0 | AQ109: 0 | AR109: 0 | AS109: 0 | AT109: 0 | AU109: 0 | AV109: 0 | AW109: 0 | AX109: 0 | AY109: 0 | BA109: 0 | BB109: 0 | BC109: 229192.72 | BD109: 229192.72 | BE109: 229192.72 | BF109: 0 | BG109: 0 | BI109: 0 | BJ109: 0 | BK109: 0 | BL109: 0 | BM109: 0 | BN109: 0 | BO109: 0 | BP109: 0 | BQ109: 0 | BR109: 0 | BS109: 0 | BT109: 0 | BU109: 0 | BW109: 0 | BY109: 0 | BZ109: 0 | CB109: 0 | CC109: 0 | CD109: 0 | CF109: 0 | CG109: 0 | CH109: 0 | CI109: 0 | CJ109: 0 | CK109: 0 | CL109: 0 | CM109: 0 | CN109: 0 | CQ109: 0 | CR109: 0 | CS109: 0 | CT109: 0 | CU109: 0 | CV109: 0 | CW109: 0 | CX109: 0 | CY109: 0 | CZ109: 0 | DA109: 0
A110: 0107 | B110: 1 | C110: 1 | D110: 2023-11-17 | E110: 1 | F110: 1 | G110: 1 | H110: 1517390.77 | I110: 31710510.51 | J110: 871705 | K110: 3724 | L110: 413480 | M110: 449842 | N110: 138315 | O110: 6214045 | P110: 755610 | Q110: 1600 | R110: 0 | S110: 1882241 | T110: 43958463.28 | V110: 0 | X110: 0 | Y110: 43958463.28 | Z110: 589749.76 | AA110: 0 | AB110: 0 | AD110: 170230 | AE110: 6055639 | AF110: 1991926.68 | AG110: 430418 | AH110: 2281685.61 | AI110: 0 | AJ110: 0 | AK110: 2087333.647 | AL110: 13606982.7 | AO110: 9903.491784 | AP110: 9903.491784 | AQ110: 13597079.21 | AR110: 57555542.49 | AS110: 43648880 | AT110: 0 | AU110: 43648880 | AV110: 0 | AW110: 0 | AX110: 0 | AY110: 0 | BA110: 30219 | BB110: 39342679 | BC110: 55250621.68 | BD110: 15907942.68 | BE110: 15877723.68 | BF110: 0 | BG110: 0 | BI110: 1429515 | BJ110: 34262811 | BK110: 902544 | BL110: 0 | BM110: 353187 | BN110: 493764 | BO110: 158000 | BP110: 6412320 | BQ110: 780000 | BR110: 1619 | BS110: 0 | BT110: 2975620 | BU110: 47769380 | BW110: 0 | BY110: 0 | BZ110: 47769380 | CB110: 633639 | CC110: 0 | CD110: 0 | CF110: 170230 | CG110: 7540274 | CH110: 2202507.76 | CI110: 465249 | CJ110: 2382555 | CK110: 0 | CL110: 0 | CM110: 1854457 | CN110: 15248911.76 | CQ110: 0 | CR110: 0 | CS110: 15248911.76 | CT110: 63018291.76 | CU110: 47045110 | CV110: 0 | CW110: 47045110 | CX110: 0 | CY110: 0 | CZ110: 0 | DA110: 0
A111: 0108 | B111: 0 | C111: 1 | D111: 2023-12-14 | H111: 0 | I111: 0 | J111: 0 | K111: 0 | L111: 0 | M111: 0 | N111: 0 | O111: 0 | P111: 0 | Q111: 0 | R111: 0 | S111: 0 | T111: 0 | V111: 0 | X111: 0 | Y111: 0 | Z111: 0 | AA111: 0 | AB111: 0 | AD111: 0 | AE111: 0 | AF111: 0 | AG111: 0 | AH111: 0 | AI111: 0 | AJ111: 0 | AK111: 169218.87 | AL111: 169218.87 | AO111: 0 | AP111: 0 | AQ111: 169218.87 | AR111: 169218.87 | AS111: 168167 | AT111: 9203.15 | AU111: 177370.15 | AV111: -8151.28 | AW111: -0.04847134099 | AX111: 8151.28 | AY111: 0 | BA111: 0 | BB111: 192286 | BC111: 152226.66 | BD111: -40059.34 | BE111: -40059.34 | BF111: 0 | BG111: 0 | BI111: 0 | BJ111: 0 | BK111: 0 | BL111: 0 | BM111: 0 | BN111: 0 | BO111: 0 | BP111: 0 | BQ111: 0 | BR111: 0 | BS111: 0 | BT111: 0 | BU111: 0 | BW111: 0 | BY111: 0 | BZ111: 0 | CB111: 0 | CC111: 0 | CD111: 0 | CF111: 0 | CG111: 0 | CH111: 0 | CI111: 0 | CJ111: 0 | CK111: 0 | CL111: 0 | CM111: 235255 | CN111: 235255 | CQ111: 0 | CR111: 0 | CS111: 235255 | CT111: 235255 | CU111: 185381 | CV111: 8151.28 | CW111: 193532.28 | CX111: 0 | CY111: 0 | CZ111: 0 | DA111: 0
A112: 0109 | B112: 0 | C112: 1 | D112: 2023-09-28 | G112: 1 | H112: 0 | I112: 0 | J112: 0 | K112: 0 | L112: 0 | M112: 0 | N112: 0 | O112: 0 | P112: 0 | Q112: 0 | R112: 0 | S112: 0 | T112: 0 | V112: 1100 | X112: 1100 | Y112: -1100 | Z112: 0 | AA112: 300 | AB112: 0 | AD112: 0 | AE112: 500 | AF112: 0 | AG112: 0 | AH112: 0 | AI112: 0 | AJ112: 0 | AK112: 0 | AL112: 800 | AO112: 0 | AP112: 0 | AQ112: 800 | AR112: -300 | AS112: 15515.48 | AT112: 2142.424 | AU112: 17657.904 | AV112: -17957.904 | AW112: -1.157418527 | AX112: 775.774 | AY112: 0 | BA112: 0 | BB112: 42848.48 | BC112: 14894 | BD112: -27954.48 | BE112: -27954.48 | BF112: 0 | BG112: 1100 | BI112: 0 | BJ112: 0 | BK112: 0 | BL112: 0 | BM112: 0 | BN112: 0 | BO112: 0 | BP112: 0 | BQ112: 0 | BR112: 0 | BS112: 0 | BT112: 0 | BU112: 0 | BW112: 0 | BY112: 0 | BZ112: 0 | CB112: 0 | CC112: 0 | CD112: 0 | CF112: 0 | CG112: 0 | CH112: 0 | CI112: 0 | CJ112: 0 | CK112: 0 | CL112: 0 | CM112: 0 | CN112: 0 | CQ112: 0 | CR112: 0 | CS112: 0 | CT112: 0 | CU112: 0 | CV112: 775.774 | CW112: 775.774 | CX112: -775.774 | DA112: 0
A113: 0110 | B113: 1 | C113: 1 | D113: 2024-01-11 | E113: 1 | F113: 1 | G113: 1 | H113: 1077241.43 | I113: 29686317.1 | J113: 731329.65 | K113: 0 | L113: 715584.86 | M113: 3334881.19 | N113: 60601 | O113: 4600 | P113: 0 | Q113: 0 | R113: 0 | S113: 1478700.47 | T113: 37089255.7 | V113: 0 | X113: 0 | Y113: 37089255.7 | Z113: 201149.9 | AA113: 0 | AB113: 0 | AD113: 0 | AE113: 59000 | AF113: 1392198.51 | AG113: 3964961.24 | AH113: 374575.068 | AI113: 0 | AJ113: 0 | AK113: 390636.0042 | AL113: 6382520.722 | AO113: 0 | AP113: 0 | AQ113: 6382520.722 | AR113: 43471776.42 | AS113: 36001738 | AT113: 0 | AU113: 36001738 | AV113: 0 | AW113: 0 | AX113: 0 | AY113: 0 | BA113: 0 | BB113: 33731215 | BC113: 45733196.72 | BD113: 12001981.72 | BE113: 12001981.72 | BF113: 0 | BG113: 0 | BI113: 1063573.68 | BJ113: 33056534.2 | BK113: 953978.51 | BL113: 0 | BM113: 692329.68 | BN113: 3344331.97 | BO113: 96000 | BP113: 4600 | BQ113: 0 | BR113: 0 | BS113: 0 | BT113: 1656266.81 | BU113: 40867614.85 | BW113: 0 | BY113: 0 | BZ113: 40867614.85 | CB113: 307466 | CC113: 0 | CD113: 0 | CF113: 0 | CG113: 48500 | CH113: 0 | CI113: 5603313 | CJ113: 456669.5 | CK113: 0 | CL113: 0 | CM113: 504656 | CN113: 6920604.5 | CQ113: 33344 | CR113: 33344 | CS113: 6887260.5 | CT113: 47754875.35 | CU113: 37231176 | CV113: 0 | CW113: 37231176 | CX113: 0 | CY113: 0 | CZ113: 0 | DA113: 0
A114: 0111 | B114: 1 | C114: 1 | D114: 2023-12-11 | E114: 1 | F114: 1 | G114: 1 | H114: 661219.84 | I114: 6270130 | J114: 205102.26 | K114: 0 | L114: 185562.74 | M114: 670160.25 | N114: 33097.82 | O114: 0 | P114: 0 | Q114: 0 | R114: 0 | S114: 201907 | T114: 8227179.91 | V114: 0 | X114: 0 | Y114: 8227179.91 | Z114: 105278 | AA114: 0 | AB114: 0 | AD114: 41079.17 | AE114: 18150 | AF114: 497315.54 | AG114: 1077926.76 | AH114: 325070.4 | AI114: 0 | AJ114: 0 | AK114: 642109.8898 | AL114: 2706929.76 | AO114: 92336.94605 | AP114: 92336.94605 | AQ114: 2614592.814 | AR114: 10841772.72 | AS114: 10156688 | AT114: 0 | AU114: 10156688 | AV114: 0 | AW114: 0 | AX114: 0 | AY114: 0 | BA114: 0 | BB114: 9833607 | BC114: 10480358.94 | BD114: 646751.936 | BE114: 646751.936 | BF114: 0 | BG114: 0 | BI114: 654799 | BJ114: 6401079 | BK114: 193453 | BL114: 0 | BM114: 157134 | BN114: 646745 | BO114: 11188 | BP114: 0 | BQ114: 0 | BR114: 0 | BS114: 0 | BT114: 838121 | BU114: 8902519 | BW114: 65930 | BY114: 65930 | BZ114: 8836589 | CB114: 70468 | CC114: 0 | CD114: 0 | CF114: 41079 | CG114: 0 | CH114: 535599 | CI114: 1234021 | CJ114: 0 | CK114: 0 | CL114: 0 | CM114: 705164 | CN114: 2586331 | CQ114: 97128.2 | CR114: 97128.2 | CS114: 2489202.8 | CT114: 11325791.8 | CU114: 10432749 | CV114: 0 | CW114: 10432749 | CX114: 0 | CY114: 0 | CZ114: 0 | DA114: 0
A115: 0112 | B115: 0 | C115: 1 | D115: 2024-01-22 | H115: 0 | I115: 0 | J115: 0 | K115: 0 | L115: 0 | M115: 0 | N115: 0 | O115: 0 | P115: 0 | Q115: 0 | R115: 0 | S115: 0 | T115: 0 | V115: 0 | X115: 0 | Y115: 0 | Z115: 0 | AA115: 0 | AB115: 0 | AD115: 0 | AE115: 0 | AF115: 0 | AG115: 0 | AH115: 0 | AI115: 0 | AJ115: 0 | AK115: 0 | AL115: 0 | AO115: 0 | AP115: 0 | AQ115: 0 | AR115: 0 | AS115: 0 | AT115: 0 | AU115: 0 | AV115: 0 | AW115: 0 | AX115: 0 | AY115: 0 | BA115: 0 | BB115: 0 | BC115: 0 | BD115: 0 | BE115: 0 | BF115: 0 | BG115: 0 | BI115: 0 | BJ115: 0 | BK115: 0 | BL115: 0 | BM115: 0 | BN115: 0 | BO115: 0 | BP115: 0 | BQ115: 0 | BR115: 0 | BS115: 0 | BT115: 0 | BU115: 0 | BW115: 0 | BY115: 0 | BZ115: 0 | CB115: 0 | CC115: 0 | CD115: 0 | CF115: 0 | CG115: 0 | CH115: 0 | CI115: 0 | CJ115: 0 | CK115: 0 | CL115: 0 | CM115: 0 | CN115: 0 | CQ115: 0 | CR115: 0 | CS115: 0 | CT115: 0 | CU115: 0 | CV115: 0 | CW115: 0 | CX115: 0 | CY115: 0 | CZ115: 0 | DA115: 0
A116: 0113 | B116: 0 | C116: 0 | H116: 0 | I116: 0 | J116: 0 | K116: 0 | L116: 0 | M116: 0 | N116: 0 | O116: 0 | P116: 0 | Q116: 0 | R116: 0 | S116: 0 | T116: 0 | V116: 0 | X116: 0 | Y116: 0 | Z116: 0 | AA116: 0 | AB116: 0 | AD116: 0 | AE116: 0 | AF116: 0 | AG116: 0 | AH116: 0 | AI116: 0 | AJ116: 0 | AK116: 0 | AL116: 0 | AO116: 0 | AP116: 0 | AQ116: 0 | AR116: 0 | AS116: 0 | AT116: 0 | AU116: 0 | AV116: 0 | AW116: 0 | AX116: 0 | AY116: 0 | BA116: 0 | BB116: 0 | BC116: 18679 | BD116: 18679 | BE116: 18679 | BF116: 0 | BG116: 0 | BI116: 0 | BJ116: 0 | BK116: 0 | BL116: 0 | BM116: 0 | BN116: 0 | BO116: 0 | BP116: 0 | BQ116: 0 | BR116: 0 | BS116: 0 | BT116: 0 | BU116: 0 | BW116: 0 | BY116: 0 | BZ116: 0 | CB116: 0 | CC116: 0 | CD116: 0 | CF116: 0 | CG116: 0 | CH116: 0 | CI116: 0 | CJ116: 0 | CK116: 0 | CL116: 0 | CM116: 0 | CN116: 0 | CQ116: 0 | CR116: 0 | CS116: 0 | CT116: 0 | CU116: 0 | CV116: 0 | CW116: 0 | CX116: 0 | CY116: 0 | CZ116: 0 | DA116: 0
A117: 0114 | B117: 1 | C117: 1 | D117: 2023-11-03 | E117: 1 | F117: 1 | G117: 1 | H117: 999490 | I117: 14523730.57 | J117: 423233 | K117: 0 | L117: 327623 | M117: 1574543 | N117: 0 | O117: 0 | P117: 0 | Q117: 53700 | R117: 0 | S117: 1904810 | T117: 19807129.57 | V117: 4831 | X117: 4831 | Y117: 19802298.57 | Z117: 226613 | AA117: 0 | AB117: 0 | AD117: 0 | AE117: 880613 | AF117: 1711781 | AG117: 3770326 | AH117: 1268022 | AI117: 0 | AJ117: 0 | AK117: 4393719.673 | AL117: 12251074.67 | AO117: 412095.044 | AP117: 412095.044 | AQ117: 11838979.63 | AR117: 31641278.2 | AS117: 26326536 | AT117: 0 | AU117: 26326536 | AV117: 0 | AW117: 0 | AX117: 0 | AY117: 0 | BA117: 0 | BB117: 24139103 | BC117: 28936710.36 | BD117: 4797607.361 | BE117: 4797607.361 | BF117: 0 | BG117: 4831 | BI117: 2126123 | BJ117: 16052910 | BK117: 538662 | BL117: 0 | BM117: 280929 | BN117: 1333669 | BO117: 0 | BP117: 0 | BQ117: 0 | BR117: 0 | BS117: 0 | BT117: 1062733 | BU117: 21395026 | BW117: 107205 | BY117: 107205 | BZ117: 21287821 | CB117: 202339 | CC117: 0 | CD117: 0 | CF117: 0 | CG117: 851263 | CH117: 1734239 | CI117: 3988232 | CJ117: 1339633 | CK117: 0 | CL117: 0 | CM117: 4480596 | CN117: 12596302 | CQ117: 420091 | CR117: 420091 | CS117: 12176211 | CT117: 33464032 | CU117: 27294291 | CV117: 0 | CW117: 27294291 | CX117: 0 | CY117: 0 | CZ117: 0 | DA117: 0
A118: 0115 | B118: 0 | C118: 1 | D118: 2023-11-19 | H118: 0 | I118: 0 | J118: 0 | K118: 0 | L118: 0 | M118: 0 | N118: 0 | O118: 0 | P118: 0 | Q118: 0 | R118: 0 | S118: 0 | T118: 0 | V118: 0 | X118: 0 | Y118: 0 | Z118: 0 | AA118: 0 | AB118: 0 | AD118: 0 | AE118: 0 | AF118: 0 | AG118: 0 | AH118: 0 | AI118: 0 | AJ118: 0 | AK118: 0 | AL118: 0 | AO118: 0 | AP118: 0 | AQ118: 0 | AR118: 0 | AS118: 0 | AT118: 0 | AU118: 0 | AV118: 0 | AW118: 0 | AX118: 0 | AY118: 0 | BA118: 0 | BB118: 0 | BC118: 0 | BD118: 0 | BE118: 0 | BF118: 0 | BG118: 0 | BI118: 0 | BJ118: 0 | BK118: 0 | BL118: 0 | BM118: 0 | BN118: 0 | BO118: 0 | BP118: 0 | BQ118: 0 | BR118: 0 | BS118: 0 | BT118: 0 | BU118: 0 | BW118: 0 | BY118: 0 | BZ118: 0 | CB118: 0 | CC118: 0 | CD118: 0 | CF118: 0 | CG118: 0 | CH118: 0 | CI118: 0 | CJ118: 0 | CK118: 0 | CL118: 0 | CM118: 0 | CN118: 0 | CQ118: 0 | CR118: 0 | CS118: 0 | CT118: 0 | CU118: 0 | CV118: 0 | CW118: 0 | CX118: 0 | CY118: 0 | CZ118: 0 | DA118: 0
A119: 0116 | B119: 0 | C119: 1 | D119: 2023-10-23 | H119: 0 | I119: 0 | J119: 0 | K119: 0 | L119: 0 | M119: 0 | N119: 0 | O119: 0 | P119: 0 | Q119: 0 | R119: 0 | S119: 0 | T119: 0 | V119: 0 | X119: 0 | Y119: 0 | Z119: 0 | AA119: 0 | AB119: 0 | AD119: 0 | AE119: 0 | AF119: 0 | AG119: 0 | AH119: 0 | AI119: 0 | AJ119: 0 | AK119: 0 | AL119: 0 | AO119: 0 | AP119: 0 | AQ119: 0 | AR119: 0 | AS119: 158034 | AT119: 8302.6 | AU119: 166336.6 | AV119: -166336.6 | AW119: -1.052536796 | AX119: 7901.7 | AY119: 0 | BA119: 0 | BB119: 173552.15 | BC119: 0 | BD119: -173552.15 | BE119: -173552.15 | BF119: 0 | BG119: 0 | BI119: 0 | BJ119: 0 | BK119: 0 | BL119: 0 | BM119: 0 | BN119: 0 | BO119: 0 | BP119: 0 | BQ119: 0 | BR119: 0 | BS119: 0 | BT119: 0 | BU119: 0 | BW119: 0 | BY119: 0 | BZ119: 0 | CB119: 0 | CC119: 0 | CD119: 0 | CF119: 0 | CG119: 0 | CH119: 0 | CI119: 0 | CJ119: 0 | CK119: 0 | CL119: 0 | CM119: 0 | CN119: 0 | CQ119: 0 | CR119: 0 | CS119: 0 | CT119: 0 | CU119: 171932 | CV119: 7901.7 | CW119: 179833.7 | CX119: -179833.7 | CY119: -1.045958286 | CZ119: 8596.6 | DA119: 0
A120: 0117 | B120: 1 | C120: 1 | D120: 2023-10-02 | E120: 1 | F120: 1 | G120: 1 | H120: 405170.32 | I120: 5254894.2 | J120: 128450.08 | K120: 0 | L120: 292917.35 | M120: 711736.68 | N120: 0 | O120: 0 | P120: 0 | Q120: 0 | R120: 0 | S120: 400262.49 | T120: 7193431.12 | V120: 0 | X120: 0 | Y120: 7193431.12 | Z120: 90903.2 | AA120: 0 | AB120: 0 | AD120: 0 | AE120: 0 | AF120: 535648.58 | AG120: 625663 | AH120: 99331.2 | AI120: 0 | AJ120: 0 | AK120: 1087548.262 | AL120: 2439094.242 | AO120: 90022.192 | AP120: 90022.192 | AQ120: 2349072.05 | AR120: 9542503.17 | AS120: 6293720 | AT120: 0 | AU120: 6293720 | AV120: 0 | AW120: 0 | AX120: 0 | AY120: 0 | BA120: 0 | BB120: 6126694 | BC120: 9004914.216 | BD120: 2878220.216 | BE120: 2878220.216 | BF120: 0 | BG120: 0 | BI120: 449863.3931 | BJ120: 5094274.135 | BK120: 162962.4012 | BL120: 0 | BM120: 302157.0834 | BN120: 771702.3319 | BO120: 0 | BP120: 0 | BQ120: 0 | BR120: 0 | BS120: 0 | BT120: 439449.7297 | BU120: 7220409.074 | BW120: 0 | BY120: 0 | BZ120: 7220409.074 | CB120: 95540.5 | CC120: 0 | CD120: 0 | CF120: 0 | CG120: 0 | CH120: 467990 | CI120: 620700 | CJ120: 121540.3 | CK120: 0 | CL120: 0 | CM120: 1141581 | CN120: 2447351.8 | CQ120: 74811.8 | CR120: 74811.8 | CS120: 2372540 | CT120: 9592949.074 | CU120: 6528713 | CV120: 0 | CW120: 6528713 | CX120: 0 | CY120: 0 | CZ120: 0 | DA120: 0
A121: 0118 | B121: 1 | C121: 1 | D121: 2024-12-26 | E121: 1 | F121: 1 | G121: 1 | H121: 209160 | I121: 4901414.4 | J121: 98085 | K121: 0 | L121: 0 | M121: 552158.17 | N121: 0 | O121: 0 | P121: 0 | Q121: 0 | R121: 0 | S121: 2115598.42 | T121: 7876415.99 | V121: 0 | X121: 0 | Y121: 7876415.99 | Z121: 135466.8 | AA121: 72943.66 | AB121: 1110.81 | AD121: 34363.93 | AE121: 38914.03 | AF121: 86303.23 | AG121: 586706.92 | AH121: 144620.48 | AI121: 0 | AJ121: 0 | AK121: 57305 | AL121: 1157734.86 | AO121: 19951.944 | AP121: 19951.944 | AQ121: 1137782.916 | AR121: 9014198.906 | AS121: 7179616 | AT121: 0 | AU121: 7179616 | AV121: 0 | AW121: 0 | AX121: 0 | AY121: 0 | BA121: 4794.68 | BB121: 6915659 | BC121: 8954093.61 | BD121: 2038434.61 | BE121: 2033639.93 | BF121: 0 | BG121: 0 | BI121: 205203 | BJ121: 5104364 | BK121: 100985 | BL121: 0 | BM121: 0 | BN121: 582245 | BO121: 0 | BP121: 0 | BQ121: 0 | BR121: 0 | BS121: 0 | BT121: 1962047 | BU121: 7954844 | BW121: 0 | BY121: 0 | BZ121: 7954844 | CB121: 143465.93 | CC121: 77250.89 | CD121: 11127.39 | CF121: 0 | CG121: 56885.94 | CH121: 88892.33 | CI121: 604308.12 | CJ121: 148959.09 | CK121: 0 | CL121: 0 | CM121: 82231 | CN121: 1213120.69 | CQ121: 40717.4 | CR121: 40717.4 | CS121: 1172403.29 | CT121: 9127247.29 | CU121: 7849455 | CV121: 0 | CW121: 7849455 | CX121: 0 | CY121: 0 | CZ121: 0 | DA121: 0
A122: 0119 | B122: 0 | C122: 1 | D122: 2023-12-11 | H122: 0 | I122: 0 | J122: 0 | K122: 0 | L122: 0 | M122: 0 | N122: 0 | O122: 0 | P122: 0 | Q122: 0 | R122: 0 | S122: 0 | T122: 0 | V122: 0 | X122: 0 | Y122: 0 | Z122: 0 | AA122: 0 | AB122: 0 | AD122: 0 | AE122: 0 | AF122: 0 | AG122: 0 | AH122: 0 | AI122: 0 | AJ122: 0 | AK122: 0 | AL122: 0 | AO122: 0 | AP122: 0 | AQ122: 0 | AR122: 0 | AS122: 0 | AT122: 0 | AU122: 0 | AV122: 0 | AW122: 0 | AX122: 0 | AY122: 0 | BA122: 0 | BB122: 0 | BC122: 0 | BD122: 0 | BE122: 0 | BF122: 0 | BG122: 0 | BI122: 0 | BJ122: 0 | BK122: 0 | BL122: 0 | BM122: 0 | BN122: 0 | BO122: 0 | BP122: 0 | BQ122: 0 | BR122: 0 | BS122: 0 | BT122: 0 | BU122: 0 | BW122: 0 | BY122: 0 | BZ122: 0 | CB122: 0 | CC122: 0 | CD122: 0 | CF122: 0 | CG122: 0 | CH122: 0 | CI122: 0 | CJ122: 0 | CK122: 0 | CL122: 0 | CM122: 0 | CN122: 0 | CQ122: 0 | CR122: 0 | CS122: 0 | CT122: 0 | CU122: 0 | CV122: 0 | CW122: 0 | CX122: 0 | CY122: 0 | CZ122: 0 | DA122: 0
A123: 0120 | B123: 0 | C123: 0 | H123: 0 | I123: 0 | J123: 0 | K123: 0 | L123: 0 | M123: 0 | N123: 0 | O123: 0 | P123: 0 | Q123: 0 | R123: 0 | S123: 0 | T123: 0 | V123: 0 | X123: 0 | Y123: 0 | Z123: 0 | AA123: 0 | AB123: 0 | AD123: 0 | AE123: 0 | AF123: 0 | AG123: 0 | AH123: 0 | AI123: 0 | AJ123: 0 | AK123: 0 | AL123: 0 | AO123: 0 | AP123: 0 | AQ123: 0 | AR123: 0 | AS123: 0 | AT123: 0 | AU123: 0 | AV123: 0 | AW123: 0 | AX123: 0 | AY123: 0 | BA123: 0 | BB123: 0 | BC123: 0 | BD123: 0 | BE123: 0 | BF123: 0 | BG123: 0 | BI123: 0 | BJ123: 0 | BK123: 0 | BL123: 0 | BM123: 0 | BN123: 0 | BO123: 0 | BP123: 0 | BQ123: 0 | BR123: 0 | BS123: 0 | BT123: 0 | BU123: 0 | BW123: 0 | BY123: 0 | BZ123: 0 | CB123: 0 | CC123: 0 | CD123: 0 | CF123: 0 | CG123: 0 | CH123: 0 | CI123: 0 | CJ123: 0 | CK123: 0 | CL123: 0 | CM123: 0 | CN123: 0 | CQ123: 0 | CR123: 0 | CS123: 0 | CT123: 0 | CU123: 0 | CV123: 0 | CW123: 0 | CX123: 0 | CY123: 0 | CZ123: 0 | DA123: 0
A124: 0121 | B124: 1 | C124: 1 | D124: 2023-11-02 | E124: 1 | F124: 1 | G124: 1 | H124: 43926 | I124: 624453.28 | J124: 28278 | K124: 0 | L124: 0 | M124: 62616 | N124: 0 | O124: 0 | P124: 0 | Q124: 0 | R124: 0 | S124: 693130 | T124: 1452403.28 | V124: 31280 | X124: 31280 | Y124: 1421123.28 | Z124: 0 | AA124: 0 | AB124: 0 | AD124: 0 | AE124: 0 | AF124: 0 | AG124: 14904 | AH124: 0 | AI124: 0 | AJ124: 0 | AK124: 10000 | AL124: 24904 | AO124: 0 | AP124: 0 | AQ124: 24904 | AR124: 1446027.28 | AS124: 1024022 | AT124: 0 | AU124: 1024022 | AV124: 0 | AW124: 0 | AX124: 0 | AY124: 0 | BA124: 0 | BB124: 936904 | BC124: 1506504 | BD124: 569600 | BE124: 569600 | BF124: 0 | BG124: 31280 | BI124: 149311 | BJ124: 765981 | BK124: 0 | BL124: 13000 | BM124: 0 | BN124: 44246 | BO124: 0 | BP124: 0 | BQ124: 0 | BR124: 0 | BS124: 0 | BT124: 1325830 | BU124: 2298368 | BW124: 28000 | BY124: 28000 | BZ124: 2270368 | CB124: 0 | CC124: 0 | CD124: 0 | CF124: 0 | CG124: 0 | CH124: 0 | CI124: 14000 | CJ124: 0 | CK124: 0 | CL124: 0 | CM124: 29141 | CN124: 43141 | CQ124: 24141 | CR124: 24141 | CS124: 19000 | CT124: 2289368 | CU124: 1216495 | CV124: 0 | CW124: 1216495 | CX124: 0 | CY124: 0 | CZ124: 0 | DA124: 0
A125: 0122 | B125: 1 | C125: 1 | D125: 2023-11-30 | E125: 1 | F125: 1 | G125: 1 | H125: 1050336.88 | I125: 29404294.54 | J125: 370788.53 | K125: 0 | L125: 601557.86 | M125: 0 | N125: 0 | O125: 17038 | P125: 0 | Q125: 0 | R125: 0 | S125: 1518039.47 | T125: 32962055.28 | V125: 0 | X125: 0 | Y125: 32962055.28 | Z125: 249105.63 | AA125: 0 | AB125: 0 | AD125: 0 | AE125: 2494003 | AF125: 10000 | AG125: 1885635.56 | AH125: 1300139.118 | AI125: 0 | AJ125: 0 | AK125: 488991 | AL125: 6427874.308 | AO125: 24875.80728 | AP125: 24875.80728 | AQ125: 6402998.501 | AR125: 39365053.78 | AS125: 29748743 | AT125: 0 | AU125: 29748743 | AV125: 0 | AW125: 0 | AX125: 0 | AY125: 0 | BA125: 0 | BB125: 28693777 | BC125: 36749661.87 | BD125: 8055884.866 | BE125: 8055884.866 | BF125: 0 | BG125: 0 | BI125: 2100944 | BJ125: 28566650 | BK125: 470466 | BL125: 0 | BM125: 576853 | BN125: 87764 | BO125: 0 | BP125: 17038 | BQ125: 0 | BR125: 0 | BS125: 0 | BT125: 1524419 | BU125: 33344134 | BW125: 0 | BY125: 0 | BZ125: 33344134 | CB125: 384688.22 | CC125: 0 | CD125: 0 | CF125: 0 | CG125: 2891759.15 | CH125: 2393206.38 | CI125: 1904255.7 | CJ125: 403741.8 | CK125: 0 | CL125: 0 | CM125: 526840 | CN125: 8504491.25 | CQ125: 26367 | CR125: 26367 | CS125: 8478124.25 | CT125: 41822258.25 | CU125: 30830615 | CV125: 0 | CW125: 30830615 | CX125: 0 | CY125: 0 | CZ125: 0 | DA125: 0
A126: 0123 | B126: 0 | C126: 0 | H126: 0 | I126: 0 | J126: 0 | K126: 0 | L126: 0 | M126: 0 | N126: 0 | O126: 0 | P126: 0 | Q126: 0 | R126: 0 | S126: 0 | T126: 0 | V126: 0 | X126: 0 | Y126: 0 | Z126: 0 | AA126: 0 | AB126: 0 | AD126: 0 | AE126: 0 | AF126: 0 | AG126: 0 | AH126: 0 | AI126: 0 | AJ126: 0 | AK126: 0 | AL126: 0 | AO126: 0 | AP126: 0 | AQ126: 0 | AR126: 0 | AS126: 47093 | AT126: 0 | AU126: 47093 | AV126: -47093 | AW126: -1 | AX126: 2354.65 | AY126: 0 | BA126: 0 | BB126: 23850 | BC126: 1281578 | BD126: 1257728 | BE126: 1257728 | BF126: 0 | BG126: 0 | BI126: 0 | BJ126: 0 | BK126: 0 | BL126: 0 | BM126: 0 | BN126: 0 | BO126: 0 | BP126: 0 | BQ126: 0 | BR126: 0 | BS126: 0 | BT126: 0 | BU126: 0 | BW126: 0 | BY126: 0 | BZ126: 0 | CB126: 0 | CC126: 0 | CD126: 0 | CF126: 0 | CG126: 0 | CH126: 0 | CI126: 0 | CJ126: 0 | CK126: 0 | CL126: 0 | CM126: 0 | CN126: 0 | CQ126: 0 | CR126: 0 | CS126: 0 | CT126: 0 | CU126: 82454 | CV126: 2354.65 | CW126: 84808.65 | CX126: -84808.65 | CY126: -1.028557135 | CZ126: 4122.7 | DA126: 0
A127: 0124 | B127: 0 | C127: 0 | H127: 0 | I127: 0 | J127: 0 | K127: 0 | L127: 0 | M127: 0 | N127: 0 | O127: 0 | P127: 0 | Q127: 0 | R127: 0 | S127: 0 | T127: 0 | V127: 0 | X127: 0 | Y127: 0 | Z127: 0 | AA127: 0 | AB127: 0 | AD127: 0 | AE127: 0 | AF127: 0 | AG127: 0 | AH127: 0 | AI127: 0 | AJ127: 0 | AK127: 0 | AL127: 0 | AO127: 0 | AP127: 0 | AQ127: 0 | AR127: 0 | AS127: 40081 | AT127: 2243.35 | AU127: 42324.35 | AV127: -42324.35 | AW127: -1.05597041 | AX127: 2004.05 | AY127: 0 | BA127: 0 | BB127: 46332.8 | BC127: 37933.39 | BD127: -8399.41 | BE127: -8399.41 | BF127: 0 | BG127: 0 | BI127: 0 | BJ127: 0 | BK127: 0 | BL127: 0 | BM127: 0 | BN127: 0 | BO127: 0 | BP127: 0 | BQ127: 0 | BR127: 0 | BS127: 0 | BT127: 0 | BU127: 0 | BW127: 0 | BY127: 0 | BZ127: 0 | CB127: 0 | CC127: 0 | CD127: 0 | CF127: 0 | CG127: 0 | CH127: 0 | CI127: 0 | CJ127: 0 | CK127: 0 | CL127: 0 | CM127: 0 | CN127: 0 | CQ127: 0 | CR127: 0 | CS127: 0 | CT127: 0 | CU127: 0 | CV127: 2004.05 | CW127: 2004.05 | CX127: -2004.05 | DA127: 0
A128: 0125 | B128: 1 | C128: 1 | D128: 2023-10-16 | E128: 1 | F128: 1 | G128: 1 | H128: 494559 | I128: 10495944.69 | J128: 220435 | K128: 0 | L128: 140329 | M128: 1548418 | N128: 107442 | O128: 0 | P128: 0 | Q128: 0 | R128: 0 | S128: 853759 | T128: 13860886.69 | V128: 2070572 | X128: 2070572 | Y128: 11790314.69 | Z128: 177670 | AA128: 0 | AB128: 0 | AD128: 0 | AE128: 101280 | AF128: 709349 | AG128: 2301033 | AH128: 623508 | AI128: 0 | AJ128: 0 | AK128: 387820 | AL128: 4300660 | AO128: 54886.42931 | AP128: 54886.42931 | AQ128: 4245773.571 | AR128: 16036088.26 | AS128: 10079963 | AT128: 0 | AU128: 10079963 | AV128: 0 | AW128: 0 | AX128: 0 | AY128: 0 | BA128: 0 | BB128: 9760072 | BC128: 15248914.14 | BD128: 5488842.144 | BE128: 5488842.144 | BF128: 0 | BG128: 2070572 | BI128: 643007 | BJ128: 10486385 | BK128: 221795 | BL128: 0 | BM128: 146839 | BN128: 1650732 | BO128: 85500 | BP128: 0 | BQ128: 0 | BR128: 0 | BS128: 0 | BT128: 1189685 | BU128: 14423943 | BW128: 2717825 | BY128: 2717825 | BZ128: 11706118 | CB128: 184820 | CC128: 0 | CD128: 0 | CF128: 0 | CG128: 112469 | CH128: 780284 | CI128: 2410683 | CJ128: 654359 | CK128: 0 | CL128: 0 | CM128: 433827 | CN128: 4576442 | CQ128: 59765 | CR128: 59765 | CS128: 4516677 | CT128: 16222795 | CU128: 10576375 | CV128: 0 | CW128: 10576375 | CX128: 0 | CY128: 0 | CZ128: 0 | DA128: 0
A129: 0126 | B129: 0 | C129: 0 | H129: 0 | I129: 0 | J129: 0 | K129: 0 | L129: 0 | M129: 0 | N129: 0 | O129: 0 | P129: 0 | Q129: 0 | R129: 0 | S129: 0 | T129: 0 | V129: 0 | X129: 0 | Y129: 0 | Z129: 0 | AA129: 0 | AB129: 0 | AD129: 0 | AE129: 0 | AF129: 0 | AG129: 0 | AH129: 0 | AI129: 0 | AJ129: 0 | AK129: 0 | AL129: 0 | AO129: 0 | AP129: 0 | AQ129: 0 | AR129: 0 | AS129: 0 | AT129: 0 | AU129: 0 | AV129: 0 | AW129: 0 | AX129: 0 | AY129: 0 | BA129: 0 | BB129: 0 | BC129: 0 | BD129: 0 | BE129: 0 | BF129: 0 | BG129: 0 | BI129: 0 | BJ129: 0 | BK129: 0 | BL129: 0 | BM129: 0 | BN129: 0 | BO129: 0 | BP129: 0 | BQ129: 0 | BR129: 0 | BS129: 0 | BT129: 0 | BU129: 0 | BW129: 0 | BY129: 0 | BZ129: 0 | CB129: 0 | CC129: 0 | CD129: 0 | CF129: 0 | CG129: 0 | CH129: 0 | CI129: 0 | CJ129: 0 | CK129: 0 | CL129: 0 | CM129: 0 | CN129: 0 | CQ129: 0 | CR129: 0 | CS129: 0 | CT129: 0 | CU129: 0 | CV129: 0 | CW129: 0 | CX129: 0 | CY129: 0 | CZ129: 0 | DA129: 0
A130: 0127 | B130: 1 | C130: 1 | D130: 2023-12-12 | E130: 1 | F130: 1 | G130: 1 | H130: 227133 | I130: 4279240 | J130: 64915.22 | K130: 0 | L130: 47321 | M130: 484001 | N130: 0 | O130: 0 | P130: 0 | Q130: 0 | R130: 0 | S130: 108826 | T130: 5211436.22 | V130: 0 | X130: 0 | Y130: 5211436.22 | Z130: 144308 | AA130: 0 | AB130: 0 | AD130: 0 | AE130: 8499 | AF130: 237093 | AG130: 460034 | AH130: 95286.6 | AI130: 0 | AJ130: 0 | AK130: 1074531.622 | AL130: 2019752.222 | AO130: 74700.47495 | AP130: 74700.47495 | AQ130: 1945051.747 | AR130: 7156487.967 | AS130: 4163732 | AT130: 0 | AU130: 4163732 | AV130: 0 | AW130: 0 | AX130: 0 | AY130: 0 | BA130: 0 | BB130: 4054949 | BC130: 6374380.879 | BD130: 2319431.879 | BE130: 2319431.879 | BF130: 0 | BG130: 0 | BI130: 404046 | BJ130: 5384000 | BK130: 116938 | BL130: 0 | BM130: 188061 | BN130: 556462 | BO130: 0 | BP130: 0 | BQ130: 0 | BR130: 0 | BS130: 0 | BT130: 317000 | BU130: 6966507 | BW130: 0 | BY130: 0 | BZ130: 6966507 | CB130: 150301 | CC130: 0 | CD130: 0 | CF130: 0 | CG130: 9846 | CH130: 255869 | CI130: 522632 | CJ130: 131947.2 | CK130: 0 | CL130: 0 | CM130: 625490 | CN130: 1696085.2 | CQ130: 84038.6 | CR130: 84038.6 | CS130: 1612046.6 | CT130: 8578553.6 | CU130: 4367186 | CV130: 0 | CW130: 4367186 | CX130: 0 | CY130: 0 | CZ130: 0 | DA130: 0
A131: 0128 | B131: 1 | C131: 1 | D131: 2023-09-29 | E131: 1 | F131: 0.9553388195 | G131: 1 | H131: 2485663.93 | I131: 83267688.59 | J131: 2874585.9 | K131: 0 | L131: 1624196.7 | M131: 9472842.79 | N131: 72215.64 | O131: 0 | P131: 0 | Q131: 0 | R131: 0 | S131: 6004902.44 | T131: 105802096 | V131: 704000 | X131: 704000 | Y131: 105098096 | Z131: 559526 | AA131: 0 | AB131: 0 | AD131: 0 | AE131: 1413635 | AF131: 4741830 | AG131: 14084444 | AH131: 4902325 | AI131: 0 | AJ131: 0 | AK131: 6823864.218 | AL131: 32525624.22 | AO131: 1322835.328 | AP131: 1322835.328 | AQ131: 31202788.89 | AR131: 136300884.9 | AS131: 121331843 | AT131: 0 | AU131: 121331843 | AV131: 0 | AW131: 0 | AX131: 0 | AY131: 0 | BA131: 0 | BB131: 109839438 | BC131: 125203117.8 | BD131: 15363679.84 | BE131: 15363679.84 | BF131: 0 | BG131: 704000 | BI131: 2801443.637 | BJ131: 85593461.56 | BK131: 3514129.36 | BL131: 0 | BM131: 1919784.97 | BN131: 7054496.532 | BO131: 23883.47049 | BP131: 0 | BQ131: 0 | BR131: 0 | BS131: 0 | BT131: 7776909 | BU131: 108684108.5 | BW131: 477669.4098 | BY131: 477669.4098 | BZ131: 108206439.1 | CB131: 266956.0584 | CC131: 0 | CD131: 0 | CF131: 0 | CG131: 124634.4577 | CH131: 5301166.511 | CI131: 13660943.88 | CJ131: 4153472.131 | CK131: 0 | CL131: 0 | CM131: 7097755 | CN131: 30604928.04 | CQ131: 995601.2 | CR131: 995601.2 | CS131: 29609326.84 | CT131: 137815766 | CU131: 132551888 | CV131: 0 | CW131: 132551888 | CX131: 0 | CY131: 0 | CZ131: 0 | DA131: 0
A132: 0129 | B132: 0 | C132: 1 | D132: 2023-10-03 | H132: 0 | I132: 0 | J132: 0 | K132: 0 | L132: 0 | M132: 0 | N132: 0 | O132: 0 | P132: 0 | Q132: 0 | R132: 0 | S132: 0 | T132: 0 | V132: 0 | X132: 0 | Y132: 0 | Z132: 0 | AA132: 0 | AB132: 0 | AD132: 0 | AE132: 0 | AF132: 0 | AG132: 0 | AH132: 0 | AI132: 0 | AJ132: 0 | AK132: 79053 | AL132: 79053 | AO132: 0 | AP132: 0 | AQ132: 79053 | AR132: 79053 | AS132: 64675 | AT132: 0 | AU132: 64675 | AV132: 0 | AW132: 0 | AX132: 0 | AY132: 0 | BA132: 0 | BB132: 59842 | BC132: 68448 | BD132: 8606 | BE132: 8606 | BF132: 0 | BG132: 0 | BI132: 0 | BJ132: 0 | BK132: 0 | BL132: 0 | BM132: 0 | BN132: 0 | BO132: 0 | BP132: 0 | BQ132: 0 | BR132: 0 | BS132: 0 | BT132: 0 | BU132: 0 | BW132: 0 | BY132: 0 | BZ132: 0 | CB132: 0 | CC132: 0 | CD132: 0 | CF132: 0 | CG132: 0 | CH132: 0 | CI132: 0 | CJ132: 0 | CK132: 0 | CL132: 0 | CM132: 103118 | CN132: 103118 | CQ132: 0 | CR132: 0 | CS132: 103118 | CT132: 103118 | CU132: 67719 | CV132: 0 | CW132: 67719 | CX132: 0 | CY132: 0 | CZ132: 0 | DA132: 0
A133: 0130 | B133: 0 | C133: 1 | D133: 2023-12-19 | H133: 0 | I133: 0 | J133: 0 | K133: 0 | L133: 0 | M133: 0 | N133: 0 | O133: 0 | P133: 0 | Q133: 0 | R133: 0 | S133: 0 | T133: 0 | V133: 0 | X133: 0 | Y133: 0 | Z133: 0 | AA133: 0 | AB133: 0 | AD133: 0 | AE133: 0 | AF133: 0 | AG133: 0 | AH133: 0 | AI133: 0 | AJ133: 0 | AK133: 91065 | AL133: 91065 | AO133: 0 | AP133: 0 | AQ133: 91065 | AR133: 91065 | AS133: 0 | AT133: 0 | AU133: 0 | AV133: 0 | AW133: 0 | AX133: 0 | AY133: 0 | BA133: 0 | BB133: 0 | BC133: 66235.52 | BD133: 66235.52 | BE133: 66235.52 | BF133: 0 | BG133: 0 | BI133: 0 | BJ133: 0 | BK133: 0 | BL133: 0 | BM133: 0 | BN133: 0 | BO133: 0 | BP133: 0 | BQ133: 0 | BR133: 0 | BS133: 0 | BT133: 0 | BU133: 0 | BW133: 0 | BY133: 0 | BZ133: 0 | CB133: 0 | CC133: 0 | CD133: 0 | CF133: 0 | CG133: 0 | CH133: 0 | CI133: 0 | CJ133: 0 | CK133: 0 | CL133: 0 | CM133: 77525.36 | CN133: 77525.36 | CQ133: 0 | CR133: 0 | CS133: 77525.36 | CT133: 77525.36 | CU133: 0 | CV133: 0 | CW133: 0 | CX133: 0 | CY133: 0 | CZ133: 0 | DA133: 0
A134: 0131 | B134: 1 | C134: 1 | D134: 2023-12-14 | E134: 1 | F134: 1 | G134: 1 | H134: 1798889.88 | I134: 48130744.56 | J134: 1036585 | K134: 0 | L134: 893041.77 | M134: 5118649.71 | N134: 31039.92 | O134: 0 | P134: 0 | Q134: 61200 | R134: 0 | S134: 2057348.12 | T134: 59127498.96 | V134: 35000 | X134: 35000 | Y134: 59092498.96 | Z134: 704113 | AA134: 0 | AB134: 0 | AD134: 0 | AE134: 0 | AF134: 2777488.685 | AG134: 4646346.268 | AH134: 1315612.2 | AI134: 0 | AJ134: 0 | AK134: 250282.4336 | AL134: 9693842.587 | AO134: 29868.00579 | AP134: 29868.00579 | AQ134: 9663974.581 | AR134: 68756473.54 | AS134: 45566365 | AT134: 0 | AU134: 45566365 | AV134: 0 | AW134: 0 | AX134: 0 | AY134: 0 | BA134: 0 | BB134: 43741996 | BC134: 65578170.69 | BD134: 21836174.69 | BE134: 21836174.69 | BF134: 0 | BG134: 35000 | BI134: 2823968 | BJ134: 50394200 | BK134: 934556 | BL134: 0 | BM134: 1228873 | BN134: 5375248 | BO134: 150000 | BP134: 0 | BQ134: 0 | BR134: 166709 | BS134: 0 | BT134: 1863220 | BU134: 62936774 | BW134: 125000 | BY134: 125000 | BZ134: 62811774 | CB134: 701591.2539 | CC134: 0 | CD134: 0 | CF134: 0 | CG134: 0 | CH134: 2999053.044 | CI134: 4835206.052 | CJ134: 1686206.83 | CK134: 0 | CL134: 0 | CM134: 184325 | CN134: 10406382.18 | CQ134: 17931.6 | CR134: 17931.6 | CS134: 10388450.58 | CT134: 73200224.58 | CU134: 47357771 | CV134: 0 | CW134: 47357771 | CX134: 0 | CY134: 0 | CZ134: 0 | DA134: 0
A135: 0132 | B135: 0 | C135: 0 | H135: 0 | I135: 0 | J135: 0 | K135: 0 | L135: 0 | M135: 0 | N135: 0 | O135: 0 | P135: 0 | Q135: 0 | R135: 0 | S135: 0 | T135: 0 | V135: 0 | X135: 0 | Y135: 0 | Z135: 0 | AA135: 0 | AB135: 0 | AD135: 0 | AE135: 0 | AF135: 0 | AG135: 0 | AH135: 0 | AI135: 0 | AJ135: 0 | AK135: 0 | AL135: 0 | AO135: 0 | AP135: 0 | AQ135: 0 | AR135: 0 | AS135: 190250 | AT135: 10083.15 | AU135: 200333.15 | AV135: -200333.15 | AW135: -1.052999474 | AX135: 9512.5 | AY135: 0 | BA135: 0 | BB135: 211734.2 | BC135: 115274 | BD135: -96460.2 | BE135: -96460.2 | BF135: 0 | BG135: 0 | BI135: 0 | BJ135: 0 | BK135: 0 | BL135: 0 | BM135: 0 | BN135: 0 | BO135: 0 | BP135: 0 | BQ135: 0 | BR135: 0 | BS135: 0 | BT135: 0 | BU135: 0 | BW135: 0 | BY135: 0 | BZ135: 0 | CB135: 0 | CC135: 0 | CD135: 0 | CF135: 0 | CG135: 0 | CH135: 0 | CI135: 0 | CJ135: 0 | CK135: 0 | CL135: 0 | CM135: 0 | CN135: 0 | CQ135: 0 | CR135: 0 | CS135: 0 | CT135: 0 | CU135: 204035 | CV135: 9512.5 | CW135: 213547.5 | CX135: -213547.5 | CY135: -1.046621903 | CZ135: 10201.75 | DA135: 0
A136: 0133 | B136: 1 | C136: 1 | D136: 2023-09-27 | E136: 1 | F136: 1 | G136: 1 | H136: 712281.3 | I136: 10806815.34 | J136: 252581.94 | K136: 786.99 | L136: 337565.82 | M136: 1559810.54 | N136: 0 | O136: 0 | P136: 0 | Q136: 0 | R136: 0 | S136: 1212834.11 | T136: 14882676.04 | V136: 0 | X136: 0 | Y136: 14882676.04 | Z136: 188530.52 | AA136: 0 | AB136: 0 | AD136: 55937.66 | AE136: 0 | AF136: 482452.99 | AG136: 3079179.71 | AH136: 888102.74 | AI136: 0 | AJ136: 0 | AK136: 878569.5436 | AL136: 5572773.164 | AO136: 78091.08 | AP136: 78091.08 | AQ136: 5494682.084 | AR136: 20377358.12 | AS136: 18684758 | AT136: 0 | AU136: 18684758 | AV136: 0 | AW136: 0 | AX136: 0 | AY136: 0 | BA136: 25629 | BB136: 17262299 | BC136: 19873942.8 | BD136: 2611643.8 | BE136: 2586014.8 | BF136: 0 | BG136: 0 | BI136: 592656 | BJ136: 11153997 | BK136: 285987 | BL136: 0 | BM136: 293771 | BN136: 1460591 | BO136: 0 | BP136: 0 | BQ136: 0 | BR136: 0 | BS136: 0 | BT136: 1713015 | BU136: 15500017 | BW136: 0 | BY136: 0 | BZ136: 15500017 | CB136: 190910.2 | CC136: 0 | CD136: 0 | CF136: 57615.79 | CG136: 975 | CH136: 609449.8 | CI136: 3327342.36 | CJ136: 968031.99 | CK136: 0 | CL136: 0 | CM136: 937504 | CN136: 6091829.14 | CQ136: 84566.4 | CR136: 84566.4 | CS136: 6007262.74 | CT136: 21507279.74 | CU136: 20493829 | CV136: 0 | CW136: 20493829 | CX136: 0 | CY136: 0 | CZ136: 0 | DA136: 0
A137: 0134 | B137: 0 | C137: 1 | D137: 2023-09-25 | H137: 0 | I137: 0 | J137: 0 | K137: 0 | L137: 0 | M137: 0 | N137: 0 | O137: 0 | P137: 0 | Q137: 0 | R137: 0 | S137: 0 | T137: 0 | V137: 0 | X137: 0 | Y137: 0 | Z137: 0 | AA137: 0 | AB137: 0 | AD137: 0 | AE137: 0 | AF137: 0 | AG137: 0 | AH137: 0 | AI137: 0 | AJ137: 0 | AK137: 24572 | AL137: 24572 | AO137: 0 | AP137: 0 | AQ137: 24572 | AR137: 24572 | AS137: 15698 | AT137: 0 | AU137: 15698 | AV137: 0 | AW137: 0 | AX137: 0 | AY137: 0 | BA137: 0 | BB137: 15220 | BC137: 24100 | BD137: 8880 | BE137: 8880 | BF137: 0 | BG137: 0 | BI137: 0 | BJ137: 0 | BK137: 0 | BL137: 0 | BM137: 0 | BN137: 0 | BO137: 0 | BP137: 0 | BQ137: 0 | BR137: 0 | BS137: 0 | BT137: 0 | BU137: 0 | BW137: 0 | BY137: 0 | BZ137: 0 | CB137: 0 | CC137: 0 | CD137: 0 | CF137: 0 | CG137: 0 | CH137: 0 | CI137: 0 | CJ137: 0 | CK137: 0 | CL137: 0 | CM137: 63510 | CN137: 63510 | CQ137: 0 | CR137: 0 | CS137: 63510 | CT137: 63510 | CU137: 16491 | CV137: 0 | CW137: 16491 | CX137: 0 | CY137: 0 | CZ137: 0 | DA137: 0
A138: 0135 | B138: 1 | C138: 1 | D138: 2023-09-29 | E138: 1 | F138: 1 | G138: 1 | H138: 89732 | I138: 1918887 | J138: 71815 | K138: 0 | L138: 0 | M138: 258161 | N138: 0 | O138: 0 | P138: 0 | Q138: 0 | R138: 0 | S138: 416690 | T138: 2755285 | V138: 0 | X138: 0 | Y138: 2755285 | Z138: 43314 | AA138: 0 | AB138: 0 | AD138: 0 | AE138: 0 | AF138: 161753 | AG138: 155249 | AH138: 38587.2 | AI138: 0 | AJ138: 0 | AK138: 176164.5583 | AL138: 575067.7583 | AO138: 39483.272 | AP138: 39483.272 | AQ138: 535584.4863 | AR138: 3290869.486 | AS138: 2386919 | AT138: 0 | AU138: 2386919 | AV138: 0 | AW138: 0 | AX138: 0 | AY138: 0 | BA138: 0 | BB138: 2101881 | BC138: 3029131.2 | BD138: 927250.2 | BE138: 927250.2 | BF138: 0 | BG138: 0 | BI138: 113080 | BJ138: 2029253 | BK138: 63746 | BL138: 0 | BM138: 10000 | BN138: 226707 | BO138: 0 | BP138: 0 | BQ138: 0 | BR138: 0 | BS138: 0 | BT138: 395250 | BU138: 2838036 | BW138: 0 | BY138: 0 | BZ138: 2838036 | CB138: 39170 | CC138: 0 | CD138: 0 | CF138: 0 | CG138: 0 | CH138: 205039 | CI138: 155920 | CJ138: 47412.4 | CK138: 0 | CL138: 0 | CM138: 75465 | CN138: 523006.4 | CQ138: 22020.4 | CR138: 22020.4 | CS138: 500986 | CT138: 3339022 | CU138: 2529521 | CV138: 0 | CW138: 2529521 | CX138: 0 | CY138: 0 | CZ138: 0 | DA138: 0
A139: 0136 | B139: 1 | C139: 1 | D139: 2023-11-30 | E139: 1 | F139: 1 | G139: 1 | H139: 1277506.84 | I139: 28832550.68 | J139: 476794.64 | K139: 0 | L139: 1094171.33 | M139: 2814874.31 | N139: 11450.19 | O139: 133996.87 | P139: 0 | Q139: 0 | R139: 0 | S139: 2127436.34 | T139: 36768781.2 | V139: 68697 | X139: 68697 | Y139: 36700084.2 | Z139: 384847 | AA139: 0 | AB139: 0 | AD139: 0 | AE139: 163998.21 | AF139: 1067077.84 | AG139: 2279603.12 | AH139: 420988.314 | AI139: 0 | AJ139: 0 | AK139: 395425.6256 | AL139: 4711940.11 | AO139: -96.69781067 | AP139: -96.69781067 | AQ139: 4712036.807 | AR139: 41412121.01 | AS139: 31404798 | AT139: 0 | AU139: 31404798 | AV139: 0 | AW139: 0 | AX139: 0 | AY139: 0 | BA139: 0 | BB139: 29457390 | BC139: 39994511.11 | BD139: 10537121.11 | BE139: 10537121.11 | BF139: 0 | BG139: 68697 | BI139: 1446417 | BJ139: 30876833 | BK139: 562582 | BL139: 0 | BM139: 751066 | BN139: 2535288 | BO139: 0 | BP139: 134000 | BQ139: 0 | BR139: 0 | BS139: 0 | BT139: 2404286 | BU139: 38710472 | BW139: 68697 | BY139: 68697 | BZ139: 38641775 | CB139: 375852 | CC139: 0 | CD139: 0 | CF139: 0 | CG139: 158723.3 | CH139: 1070434.26 | CI139: 2722351.32 | CJ139: 593360.691 | CK139: 0 | CL139: 0 | CM139: 414398 | CN139: 5335119.571 | CQ139: 0 | CR139: 0 | CS139: 5335119.571 | CT139: 43976894.57 | CU139: 32849810 | CV139: 0 | CW139: 32849810 | CX139: 0 | CY139: 0 | CZ139: 0 | DA139: 0
A140: 0137 | B140: 1 | C140: 1 | D140: 2023-11-08 | E140: 1 | F140: 1 | G140: 1 | H140: 2904920 | I140: 53179301.1 | J140: 1723350 | K140: 81704 | L140: 573147 | M140: 9979551 | N140: 55565 | O140: 631285 | P140: 3806731 | Q140: 177050 | R140: 0 | S140: 4795491 | T140: 77908095.1 | V140: 17976 | X140: 17976 | Y140: 77890119.1 | Z140: 73400 | AA140: 0 | AB140: 0 | AD140: 0 | AE140: 75000 | AF140: 2132779 | AG140: 7084797 | AH140: 516317 | AI140: 0 | AJ140: 0 | AK140: 14309796.44 | AL140: 24192089.44 | AO140: 1551595.271 | AP140: 1551595.271 | AQ140: 22640494.17 | AR140: 100530613.3 | AS140: 101613349 | AT140: 999.57541 | AU140: 101614348.6 | AV140: -1083735.308 | AW140: -0.01066528482 | AX140: 1083735.308 | AY140: 0 | BA140: 17976 | BB140: 94945261.54 | BC140: 94944261.97 | BD140: -999.57541 | BE140: -18975.57541 | BF140: 17976 | BG140: 0 | BI140: 5414296 | BJ140: 59172803 | BK140: 2368922 | BL140: 0 | BM140: 857550 | BN140: 6982417 | BO140: 0 | BP140: 721000 | BQ140: 3968571 | BR140: 0 | BS140: 0 | BT140: 6124556 | BU140: 85610115 | BW140: 0 | BY140: 0 | BZ140: 85610115 | CB140: 73400 | CC140: 0 | CD140: 0 | CF140: 0 | CG140: 75000 | CH140: 2401482 | CI140: 7687801 | CJ140: 516317 | CK140: 0 | CL140: 0 | CM140: 14687563 | CN140: 25441563 | CQ140: 1366086 | CR140: 1366086 | CS140: 24075477 | CT140: 109685592 | CU140: 109412142 | CV140: 1083735.308 | CW140: 110495877.3 | CX140: -810285.3084 | CY140: -0.007405807926 | CZ140: 810285.3084 | DA140: 0
A141: 0138 | B141: 1 | C141: 1 | D141: 2023-09-29 | E141: 1 | F141: 1 | G141: 1 | H141: 471318 | I141: 10379698 | J141: 146568 | K141: 0 | L141: 34688 | M141: 1133194 | N141: 28762 | O141: 3205 | P141: 0 | Q141: 0 | R141: 0 | S141: 557370 | T141: 12754803 | V141: 0 | X141: 0 | Y141: 12754803 | Z141: 58525 | AA141: 0 | AB141: 2125 | AD141: 20058 | AE141: 30000 | AF141: 548610 | AG141: 2872492 | AH141: 31649.4 | AI141: 0 | AJ141: 0 | AK141: 294525.5824 | AL141: 3857984.982 | AO141: 7804.477862 | AP141: 7804.477862 | AQ141: 3850180.505 | AR141: 16604983.5 | AS141: 12546415 | AT141: 0 | AU141: 12546415 | AV141: 0 | AW141: 0 | AX141: 0 | AY141: 0 | BA141: 0 | BB141: 12214154 | BC141: 15465380.8 | BD141: 3251226.799 | BE141: 3251226.799 | BF141: 0 | BG141: 0 | BI141: 478776 | BJ141: 10892306 | BK141: 161031 | BL141: 0 | BM141: 28000 | BN141: 1079047 | BO141: 10000 | BP141: 10592 | BQ141: 0 | BR141: 0 | BS141: 0 | BT141: 468568 | BU141: 13128320 | BW141: 0 | BY141: 0 | BZ141: 13128320 | CB141: 59619 | CC141: 0 | CD141: 2125 | CF141: 0 | CG141: 30000 | CH141: 575635 | CI141: 3179067 | CJ141: 39089.4 | CK141: 0 | CL141: 0 | CM141: 352490 | CN141: 4238025.4 | CQ141: 114371 | CR141: 114371 | CS141: 4123654.4 | CT141: 17251974.4 | CU141: 12710811 | CV141: 0 | CW141: 12710811 | CX141: 0 | CY141: 0 | CZ141: 0 | DA141: 0
A142: 0139 | B142: 1 | C142: 1 | D142: 2023-11-06 | E142: 1 | F142: 1 | G142: 1 | H142: 2118710.09 | I142: 41628706.73 | J142: 689982.28 | K142: 0 | L142: 1322284.12 | M142: 4716297.24 | N142: 0 | O142: 750 | P142: 0 | Q142: 125534.6 | R142: 0 | S142: 2803871.24 | T142: 53406136.3 | V142: 0 | X142: 0 | Y142: 53406136.3 | Z142: 582947 | AA142: 0 | AB142: 0 | AD142: 0 | AE142: 293159 | AF142: 1144527.88 | AG142: 7992222.19 | AH142: 466919 | AI142: 0 | AJ142: 0 | AK142: 145910.1802 | AL142: 10625685.25 | AO142: -20.55254112 | AP142: -20.55254112 | AQ142: 10625705.8 | AR142: 64031842.1 | AS142: 46722628 | AT142: 0 | AU142: 46722628 | AV142: 0 | AW142: 0 | AX142: 0 | AY142: 0 | BA142: 0 | BB142: 44006243 | BC142: 60636409.69 | BD142: 16630166.69 | BE142: 16630166.69 | BF142: 0 | BG142: 0 | BI142: 3243632.24 | BJ142: 44361660.74 | BK142: 766516.74 | BL142: 5400 | BM142: 1444037.35 | BN142: 4105336.15 | BO142: 0 | BP142: 500 | BQ142: 0 | BR142: 127000 | BS142: 0 | BT142: 1858383.38 | BU142: 55912466.6 | BW142: 0 | BY142: 0 | BZ142: 55912466.6 | CB142: 582946.71 | CC142: 0 | CD142: 0 | CF142: 0 | CG142: 314533.11 | CH142: 1216131.72 | CI142: 8620860.61 | CJ142: 504272.52 | CK142: 0 | CL142: 0 | CM142: 134203 | CN142: 11372947.67 | CQ142: 4443 | CR142: 4443 | CS142: 11368504.67 | CT142: 67280971.27 | CU142: 50873295 | CV142: 0 | CW142: 50873295 | CX142: 0 | CY142: 0 | CZ142: 0 | DA142: 0
A143: 0140 | B143: 0 | C143: 1 | D143: 2023-11-05 | H143: 0 | I143: 0 | J143: 0 | K143: 0 | L143: 0 | M143: 0 | N143: 0 | O143: 0 | P143: 0 | Q143: 0 | R143: 0 | S143: 0 | T143: 0 | V143: 0 | X143: 0 | Y143: 0 | Z143: 0 | AA143: 0 | AB143: 0 | AD143: 0 | AE143: 0 | AF143: 0 | AG143: 0 | AH143: 0 | AI143: 0 | AJ143: 0 | AK143: 0 | AL143: 0 | AO143: 0 | AP143: 0 | AQ143: 0 | AR143: 0 | AS143: 0 | AT143: 0 | AU143: 0 | AV143: 0 | AW143: 0 | AX143: 0 | AY143: 0 | BA143: 0 | BB143: 0 | BC143: 0 | BD143: 0 | BE143: 0 | BF143: 0 | BG143: 0 | BI143: 0 | BJ143: 0 | BK143: 0 | BL143: 0 | BM143: 0 | BN143: 0 | BO143: 0 | BP143: 0 | BQ143: 0 | BR143: 0 | BS143: 0 | BT143: 0 | BU143: 0 | BW143: 0 | BY143: 0 | BZ143: 0 | CB143: 0 | CC143: 0 | CD143: 0 | CF143: 0 | CG143: 0 | CH143: 0 | CI143: 0 | CJ143: 0 | CK143: 0 | CL143: 0 | CM143: 0 | CN143: 0 | CQ143: 0 | CR143: 0 | CS143: 0 | CT143: 0 | CU143: 0 | CV143: 0 | CW143: 0 | CX143: 0 | CY143: 0 | CZ143: 0 | DA143: 0
A144: 0141 | B144: 1 | C144: 0 | G144: 1 | H144: 0 | I144: 0 | J144: 0 | K144: 0 | L144: 0 | M144: 0 | N144: 0 | O144: 0 | P144: 0 | Q144: 0 | R144: 0 | S144: 0 | T144: 0 | V144: 0 | X144: 0 | Y144: 0 | Z144: 409721 | AA144: 0 | AB144: 0 | AD144: 0 | AE144: 144603 | AF144: 0 | AG144: 0 | AH144: 0 | AI144: 0 | AJ144: 0 | AK144: 0 | AL144: 554324 | AO144: 0 | AP144: 0 | AQ144: 554324 | AR144: 554324 | AS144: 32381884 | AT144: 0 | AU144: 32381884 | AV144: -31827560 | AW144: -0.9828816631 | AX144: 1619094.2 | AY144: -30208465.8 | BA144: 0 | BB144: 31027255 | BC144: 47582288.3 | BD144: 16555033.3 | BE144: 16555033.3 | BF144: 0 | BG144: 0 | BI144: 0 | BJ144: 0 | BK144: 0 | BL144: 0 | BM144: 0 | BN144: 0 | BO144: 0 | BP144: 0 | BQ144: 0 | BR144: 0 | BS144: 0 | BT144: 0 | BU144: 0 | BW144: 0 | BY144: 0 | BZ144: 0 | CB144: 0 | CC144: 0 | CD144: 0 | CF144: 0 | CG144: 0 | CH144: 0 | CI144: 0 | CJ144: 0 | CK144: 0 | CL144: 0 | CM144: 3980688 | CN144: 3980688 | CQ144: 754143.6 | CR144: 754143.6 | CS144: 3226544.4 | CT144: 3226544.4 | CU144: 34207458 | CV144: 1619094.2 | CW144: 35826552.2 | CX144: -32600007.8 | CY144: -0.9530087795 | CZ144: 1710372.9 | DA144: -30889634.9
A145: 0142 | B145: 1 | C145: 1 | D145: 2023-09-27 | E145: 1 | F145: 1 | G145: 1 | H145: 783929.25 | I145: 11089375.67 | J145: 291826.04 | K145: 0 | L145: 410179.56 | M145: 2509327.86 | N145: 19925 | O145: 5185 | P145: 0 | Q145: 0 | R145: 0 | S145: 594101 | T145: 15703849.38 | V145: 0 | X145: 0 | Y145: 15703849.38 | Z145: 111470 | AA145: 0 | AB145: 0 | AD145: 0 | AE145: 0 | AF145: 841591 | AG145: 3035537 | AH145: 349659 | AI145: 0 | AJ145: 0 | AK145: 375669 | AL145: 4713926 | AO145: 0 | AP145: 0 | AQ145: 4713926 | AR145: 20417775.38 | AS145: 12728927 | AT145: 0 | AU145: 12728927 | AV145: 0 | AW145: 0 | AX145: 0 | AY145: 0 | BA145: 0 | BB145: 12407416 | BC145: 19782817.63 | BD145: 7375401.63 | BE145: 7375401.63 | BF145: 0 | BG145: 0 | BI145: 1015403 | BJ145: 11659918 | BK145: 199398 | BL145: 10000 | BM145: 382326 | BN145: 2081118 | BO145: 145604 | BP145: 5185 | BQ145: 0 | BR145: 0 | BS145: 0 | BT145: 766526 | BU145: 16265478 | BW145: 0 | BY145: 0 | BZ145: 16265478 | CB145: 107046 | CC145: 0 | CD145: 0 | CF145: 0 | CG145: 0 | CH145: 875519 | CI145: 3271430 | CJ145: 365316 | CK145: 0 | CL145: 0 | CM145: 457548 | CN145: 5076859 | CQ145: 70740 | CR145: 70740 | CS145: 5006119 | CT145: 21271597 | CU145: 13048570 | CV145: 0 | CW145: 13048570 | CX145: 0 | CY145: 0 | CZ145: 0 | DA145: 0
A146: 0143 | B146: 0 | C146: 0 | H146: 0 | I146: 0 | J146: 0 | K146: 0 | L146: 0 | M146: 0 | N146: 0 | O146: 0 | P146: 0 | Q146: 0 | R146: 0 | S146: 0 | T146: 0 | V146: 0 | X146: 0 | Y146: 0 | Z146: 0 | AA146: 0 | AB146: 0 | AD146: 0 | AE146: 0 | AF146: 0 | AG146: 0 | AH146: 0 | AI146: 0 | AJ146: 0 | AK146: 0 | AL146: 0 | AO146: 0 | AP146: 0 | AQ146: 0 | AR146: 0 | AS146: 444149 | AT146: 0 | AU146: 444149 | AV146: -444149 | AW146: -1 | AX146: 22207.45 | AY146: 0 | BA146: 0 | BB146: 457292 | BC146: 517138 | BD146: 59846 | BE146: 59846 | BF146: 0 | BG146: 0 | BI146: 0 | BJ146: 0 | BK146: 0 | BL146: 0 | BM146: 0 | BN146: 0 | BO146: 0 | BP146: 0 | BQ146: 0 | BR146: 0 | BS146: 0 | BT146: 0 | BU146: 0 | BW146: 0 | BY146: 0 | BZ146: 0 | CB146: 0 | CC146: 0 | CD146: 0 | CF146: 0 | CG146: 0 | CH146: 0 | CI146: 0 | CJ146: 0 | CK146: 0 | CL146: 0 | CM146: 0 | CN146: 0 | CQ146: 0 | CR146: 0 | CS146: 0 | CT146: 0 | CU146: 572756 | CV146: 22207.45 | CW146: 594963.45 | CX146: -594963.45 | CY146: -1.038772968 | CZ146: 28637.8 | DA146: 0
A147: 0144 | B147: 1 | C147: 1 | D147: 2023-10-27 | E147: 1 | F147: 1 | G147: 1 | H147: 1059181 | I147: 21939135 | J147: 302778 | K147: 29277 | L147: 576772 | M147: 2722514 | N147: 1616798 | O147: 3186288 | P147: 334629 | Q147: 45246 | R147: 0 | S147: 924465 | T147: 32737083 | V147: 0 | X147: 0 | Y147: 32737083 | Z147: 143455 | AA147: 0 | AB147: 0 | AD147: 74973 | AE147: 20000 | AF147: 0 | AG147: 0 | AH147: 0 | AI147: 0 | AJ147: 0 | AK147: 93911.47802 | AL147: 332339.478 | AO147: 0 | AP147: 0 | AQ147: 332339.478 | AR147: 33069422.48 | AS147: 19884295 | AT147: 0 | AU147: 19884295 | AV147: 0 | AW147: 0 | AX147: 0 | AY147: 0 | BA147: 11329 | BB147: 18527082 | BC147: 31070248.5 | BD147: 12543166.5 | BE147: 12531837.5 | BF147: 0 | BG147: 0 | BI147: 1057002 | BJ147: 23828676 | BK147: 352236 | BL147: 54836 | BM147: 599156 | BN147: 2761865 | BO147: 1879298 | BP147: 3532242 | BQ147: 350000 | BR147: 55100 | BS147: 0 | BT147: 1546038 | BU147: 36016449 | BW147: 0 | BY147: 0 | BZ147: 36016449 | CB147: 160734 | CC147: 0 | CD147: 0 | CF147: 75000 | CG147: 20000 | CH147: 0 | CI147: 0 | CJ147: 0 | CK147: 0 | CL147: 0 | CM147: 95862 | CN147: 351596 | CQ147: 0 | CR147: 0 | CS147: 351596 | CT147: 36368045 | CU147: 20567036 | CV147: 0 | CW147: 20567036 | CX147: 0 | CY147: 0 | CZ147: 0 | DA147: 0
A148: 0145 | B148: 1 | C148: 1 | D148: 2023-12-01 | E148: 1 | F148: 1 | G148: 1 | H148: 405450.28 | I148: 8835502.4 | J148: 168472.46 | K148: 0 | L148: 0 | M148: 1149436.02 | N148: 3311.92 | O148: 0 | P148: 0 | Q148: 0 | R148: 0 | S148: 3241304.7 | T148: 13803477.78 | V148: 0 | X148: 0 | Y148: 13803477.78 | Z148: 74504.1 | AA148: 0 | AB148: 0 | AD148: 51144.92 | AE148: 118476.11 | AF148: 626580.03 | AG148: 952409.92 | AH148: 232713 | AI148: 0 | AJ148: 0 | AK148: 212269 | AL148: 2268097.08 | AO148: 30460.00903 | AP148: 30460.00903 | AQ148: 2237637.071 | AR148: 16041114.85 | AS148: 13087069 | AT148: 0 | AU148: 13087069 | AV148: 0 | AW148: 0 | AX148: 0 | AY148: 0 | BA148: 22689.69 | BB148: 12251103 | BC148: 15115684.7 | BD148: 2864581.702 | BE148: 2841892.012 | BF148: 0 | BG148: 0 | BI148: 391422 | BJ148: 9681359 | BK148: 197462 | BL148: 1 | BM148: 0 | BN148: 1272334 | BO148: 0 | BP148: 0 | BQ148: 0 | BR148: 0 | BS148: 0 | BT148: 3091649 | BU148: 14634227 | BW148: 0 | BY148: 0 | BZ148: 14634227 | CB148: 0 | CC148: 76054.15 | CD148: 0 | CF148: 52934.99 | CG148: 71506.34 | CH148: 657909.03 | CI148: 997969.04 | CJ148: 244348 | CK148: 0 | CL148: 0 | CM148: 274938 | CN148: 2375659.55 | CQ148: 86441.2 | CR148: 86441.2 | CS148: 2289218.35 | CT148: 16923445.35 | CU148: 14371240 | CV148: 0 | CW148: 14371240 | CX148: 0 | CY148: 0 | CZ148: 0 | DA148: 0
A149: 0146 | B149: 0 | C149: 1 | D149: 2023-09-23 | H149: 0 | I149: 0 | J149: 0 | K149: 0 | L149: 0 | M149: 0 | N149: 0 | O149: 0 | P149: 0 | Q149: 0 | R149: 0 | S149: 0 | T149: 0 | V149: 0 | X149: 0 | Y149: 0 | Z149: 0 | AA149: 0 | AB149: 0 | AD149: 0 | AE149: 0 | AF149: 0 | AG149: 0 | AH149: 0 | AI149: 0 | AJ149: 0 | AK149: 2873616 | AL149: 2873616 | AO149: 0 | AP149: 0 | AQ149: 2873616 | AR149: 2873616 | AS149: 219003 | AT149: 0 | AU149: 219003 | AV149: 0 | AW149: 0 | AX149: 0 | AY149: 0 | BA149: 0 | BB149: 179686 | BC149: 2401128 | BD149: 2221442 | BE149: 2221442 | BF149: 0 | BG149: 0 | BI149: 0 | BJ149: 0 | BK149: 0 | BL149: 0 | BM149: 0 | BN149: 0 | BO149: 0 | BP149: 0 | BQ149: 0 | BR149: 0 | BS149: 0 | BT149: 0 | BU149: 0 | BW149: 0 | BY149: 0 | BZ149: 0 | CB149: 0 | CC149: 0 | CD149: 0 | CF149: 0 | CG149: 0 | CH149: 0 | CI149: 0 | CJ149: 0 | CK149: 0 | CL149: 0 | CM149: 2802825 | CN149: 2802825 | CQ149: 0 | CR149: 0 | CS149: 2802825 | CT149: 2802825 | CU149: 224667 | CV149: 0 | CW149: 224667 | CX149: 0 | CY149: 0 | CZ149: 0 | DA149: 0
A150: 0147 | B150: 0 | C150: 1 | D150: 2023-11-30 | H150: 0 | I150: 0 | J150: 0 | K150: 0 | L150: 0 | M150: 0 | N150: 0 | O150: 0 | P150: 0 | Q150: 0 | R150: 0 | S150: 0 | T150: 0 | V150: 0 | X150: 0 | Y150: 0 | Z150: 0 | AA150: 0 | AB150: 0 | AD150: 0 | AE150: 0 | AF150: 0 | AG150: 0 | AH150: 0 | AI150: 0 | AJ150: 0 | AK150: 0 | AL150: 0 | AO150: 0 | AP150: 0 | AQ150: 0 | AR150: 0 | AS150: 31395 | AT150: 748 | AU150: 32143 | AV150: -32143 | AW150: -1.02382545 | AX150: 1569.75 | AY150: 0 | BA150: 0 | BB150: 14960 | BC150: 0 | BD150: -14960 | BE150: -14960 | BF150: 0 | BG150: 0 | BI150: 0 | BJ150: 0 | BK150: 0 | BL150: 0 | BM150: 0 | BN150: 0 | BO150: 0 | BP150: 0 | BQ150: 0 | BR150: 0 | BS150: 0 | BT150: 0 | BU150: 0 | BW150: 0 | BY150: 0 | BZ150: 0 | CB150: 0 | CC150: 0 | CD150: 0 | CF150: 0 | CG150: 0 | CH150: 0 | CI150: 0 | CJ150: 0 | CK150: 0 | CL150: 0 | CM150: 55561 | CN150: 55561 | CQ150: 0 | CR150: 0 | CS150: 55561 | CT150: 55561 | CU150: 32982 | CV150: 1569.75 | CW150: 34551.75 | CX150: 0 | CY150: 0 | CZ150: 0 | DA150: 0
A151: 0148 | B151: 0 | C151: 1 | D151: 2023-09-20 | H151: 0 | I151: 0 | J151: 0 | K151: 0 | L151: 0 | M151: 0 | N151: 0 | O151: 0 | P151: 0 | Q151: 0 | R151: 0 | S151: 0 | T151: 0 | V151: 0 | X151: 0 | Y151: 0 | Z151: 0 | AA151: 0 | AB151: 0 | AD151: 0 | AE151: 0 | AF151: 0 | AG151: 0 | AH151: 0 | AI151: 0 | AJ151: 0 | AK151: 0 | AL151: 0 | AO151: 0 | AP151: 0 | AQ151: 0 | AR151: 0 | AS151: 0 | AT151: 993.1 | AU151: 993.1 | AV151: -993.1 | AW151: 0 | AX151: 993.1 | AY151: 0 | BA151: 0 | BB151: 21328.55 | BC151: 0 | BD151: -21328.55 | BE151: -21328.55 | BF151: 0 | BG151: 0 | BI151: 0 | BJ151: 0 | BK151: 0 | BL151: 0 | BM151: 0 | BN151: 0 | BO151: 0 | BP151: 0 | BQ151: 0 | BR151: 0 | BS151: 0 | BT151: 0 | BU151: 0 | BW151: 0 | BY151: 0 | BZ151: 0 | CB151: 0 | CC151: 0 | CD151: 0 | CF151: 0 | CG151: 0 | CH151: 0 | CI151: 0 | CJ151: 0 | CK151: 0 | CL151: 0 | CM151: 0 | CN151: 0 | CQ151: 0 | CR151: 0 | CS151: 0 | CT151: 0 | CU151: 0 | CV151: 993.1 | CW151: 993.1 | CX151: -993.1 | DA151: 0
A152: 0149 | B152: 1 | C152: 1 | D152: 2023-10-13 | E152: 1 | F152: 1 | G152: 1 | H152: 4695114 | I152: 148324319.6 | J152: 3916630 | K152: 952010 | L152: 4530348 | M152: 22209736.63 | N152: 12384688 | O152: 19102968 | P152: 0 | Q152: 1900879 | R152: 0 | S152: 8899045 | T152: 226915738.2 | V152: 4414906.32 | X152: 4414906.32 | Y152: 222500831.9 | Z152: 920185 | AA152: 0 | AB152: 0 | AD152: 0 | AE152: 2502335 | AF152: 25168 | AG152: 0 | AH152: 3150176.4 | AI152: 0 | AJ152: 0 | AK152: 31676902.59 | AL152: 38274766.99 | AO152: 4177907.762 | AP152: 4177907.762 | AQ152: 34096859.23 | AR152: 256597691.1 | AS152: 253714475 | AT152: 11262032.96 | AU152: 264976508 | AV152: -8378816.814 | AW152: -0.03302459118 | AX152: 8378816.814 | AY152: 0 | BA152: 4414906.32 | BB152: 245266148.2 | BC152: 234004115.2 | BD152: -11262032.96 | BE152: -15676939.28 | BF152: 4414906.32 | BG152: 0 | BI152: 7883694 | BJ152: 156369437.5 | BK152: 4185341 | BL152: 0 | BM152: 3872994 | BN152: 18908693 | BO152: 1875000 | BP152: 48006559.5 | BQ152: 0 | BR152: 892434 | BS152: 0 | BT152: 5605784 | BU152: 247599937 | BW152: 0 | BY152: 0 | BZ152: 247599937 | CB152: 983449 | CC152: 0 | CD152: 0 | CF152: 0 | CG152: 1368426 | CH152: 21754 | CI152: 0 | CJ152: 3739138.9 | CK152: 0 | CL152: 0 | CM152: 36339389 | CN152: 42452156.9 | CQ152: 6933249.4 | CR152: 6933249.4 | CS152: 35518907.5 | CT152: 283118844.5 | CU152: 279873222 | CV152: 8378816.814 | CW152: 288252038.8 | CX152: -5133194.314 | CY152: -0.01834114131 | CZ152: 5133194.314 | DA152: 0
A153: 0150 | B153: 1 | C153: 1 | D153: 2023-10-02 | E153: 1 | F153: 1 | G153: 1 | H153: 372334 | I153: 7633258 | J153: 122939 | K153: 0 | L153: 211463 | M153: 939432 | N153: 0 | O153: 25551 | P153: 0 | Q153: 3116 | R153: 0 | S153: 333081 | T153: 9641174 | V153: 0 | X153: 0 | Y153: 9641174 | Z153: 99136 | AA153: 11262.28 | AB153: 0 | AD153: 83814 | AE153: 38694 | AF153: 492044 | AG153: 2037958 | AH153: 451841 | AI153: 0 | AJ153: 0 | AK153: 647326.2685 | AL153: 3862075.549 | AO153: 0 | AP153: 0 | AQ153: 3862075.549 | AR153: 13503249.55 | AS153: 8519039 | AT153: 0 | AU153: 8519039 | AV153: 0 | AW153: 0 | AX153: 0 | AY153: 0 | BA153: 0 | BB153: 8177437 | BC153: 12439466.35 | BD153: 4262029.355 | BE153: 4262029.355 | BF153: 0 | BG153: 0 | BI153: 377279 | BJ153: 7784586 | BK153: 126859 | BL153: 0 | BM153: 285581 | BN153: 1060100 | BO153: 0 | BP153: 29500 | BQ153: 0 | BR153: 3116 | BS153: 0 | BT153: 523100 | BU153: 10190121 | BW153: 153491 | BY153: 153491 | BZ153: 10036630 | CB153: 77552 | CC153: 12938 | CD153: 0 | CF153: 83814 | CG153: 24680 | CH153: 538932 | CI153: 1966176 | CJ153: 489292 | CK153: 0 | CL153: 0 | CM153: 561883 | CN153: 3755267 | CQ153: 23536 | CR153: 23536 | CS153: 3731731 | CT153: 13768361 | CU153: 8931113 | CV153: 0 | CW153: 8931113 | CX153: 0 | CY153: 0 | CZ153: 0 | DA153: 0
A154: 0151 | B154: 1 | C154: 1 | D154: 2023-10-30 | E154: 1 | F154: 1 | G154: 1 | H154: 985096 | I154: 11632512 | J154: 275678 | K154: 0 | L154: 320346 | M154: 1274769 | N154: 115824 | O154: 0 | P154: 0 | Q154: 12158 | R154: 0 | S154: 1240435 | T154: 15856818 | V154: 0 | X154: 0 | Y154: 15856818 | Z154: 159975 | AA154: 0 | AB154: 0 | AD154: 0 | AE154: 0 | AF154: 1146774 | AG154: 1599629 | AH154: 410453 | AI154: 0 | AJ154: 0 | AK154: 1742463.658 | AL154: 5059294.658 | AO154: 57463.11493 | AP154: 57463.11493 | AQ154: 5001831.543 | AR154: 20858649.54 | AS154: 19402051 | AT154: 0 | AU154: 19402051 | AV154: 0 | AW154: 0 | AX154: 0 | AY154: 0 | BA154: 0 | BB154: 18721234 | BC154: 20958758.53 | BD154: 2237524.532 | BE154: 2237524.532 | BF154: 0 | BG154: 0 | BI154: 1145725 | BJ154: 13961841 | BK154: 380142 | BL154: 0 | BM154: 454026 | BN154: 1411573 | BO154: 92920 | BP154: 0 | BQ154: 0 | BR154: 12000 | BS154: 0 | BT154: 1406476 | BU154: 18864703 | BW154: 0 | BY154: 0 | BZ154: 18864703 | CB154: 188531 | CC154: 0 | CD154: 0 | CF154: 0 | CG154: 0 | CH154: 1278015 | CI154: 1635768 | CJ154: 410453 | CK154: 0 | CL154: 0 | CM154: 2003183 | CN154: 5515950 | CQ154: 133196 | CR154: 133196 | CS154: 5382754 | CT154: 24247457 | CU154: 20759209 | CV154: 0 | CW154: 20759209 | CX154: 0 | CY154: 0 | CZ154: 0 | DA154: 0
A155: 0152 | B155: 1 | C155: 1 | D155: 2023-10-05 | E155: 1 | F155: 1 | G155: 1 | H155: 588564 | I155: 8338399 | J155: 220156 | K155: 0 | L155: 414174 | M155: 1367031 | N155: 99045 | O155: 9355 | P155: 0 | Q155: 0 | R155: 0 | S155: 98481 | T155: 11135205 | V155: 0 | X155: 0 | Y155: 11135205 | Z155: 0 | AA155: 0 | AB155: 0 | AD155: 0 | AE155: 520200 | AF155: 536726 | AG155: 1942248 | AH155: 738459 | AI155: 0 | AJ155: 0 | AK155: 482969.581 | AL155: 4220602.581 | AO155: -28.95923072 | AP155: -28.95923072 | AQ155: 4220631.54 | AR155: 15355836.54 | AS155: 6358019 | AT155: 0 | AU155: 6358019 | AV155: 0 | AW155: 0 | AX155: 0 | AY155: 0 | BA155: 22985.79 | BB155: 6072044 | BC155: 13845166.03 | BD155: 7773122.033 | BE155: 7750136.243 | BF155: 0 | BG155: 0 | BI155: 668602 | BJ155: 10685558 | BK155: 225558 | BL155: 0 | BM155: 447294 | BN155: 1440357 | BO155: 0 | BP155: 10857 | BQ155: 0 | BR155: 0 | BS155: 0 | BT155: 182650 | BU155: 13660876 | BW155: 0 | BY155: 0 | BZ155: 13660876 | CB155: 0 | CC155: 0 | CD155: 0 | CF155: 0 | CG155: 400000 | CH155: 587075 | CI155: 2087735 | CJ155: 774644 | CK155: 0 | CL155: 0 | CM155: 437999 | CN155: 4287453 | CQ155: 0 | CR155: 0 | CS155: 4287453 | CT155: 17948329 | CU155: 6767534 | CV155: 0 | CW155: 6767534 | CX155: 0 | CY155: 0 | CZ155: 0 | DA155: 0
A156: 0153 | B156: 1 | C156: 1 | D156: 2023-09-29 | E156: 1 | F156: 1 | G156: 1 | H156: 2063383 | I156: 55814334.47 | J156: 1041159 | K156: 0 | L156: 990638 | M156: 7694525 | N156: 40190 | O156: 10798696 | P156: 3325739 | Q156: 141672 | R156: 0 | S156: 4748944 | T156: 86659280.47 | V156: 0 | X156: 0 | Y156: 86659280.47 | Z156: 524771.94 | AA156: 0 | AB156: 0 | AD156: 146102 | AE156: 84000 | AF156: 967675.5 | AG156: 477256 | AH156: 0 | AI156: 0 | AJ156: 0 | AK156: 2613349.794 | AL156: 4813155.234 | AO156: 166693.128 | AP156: 166693.128 | AQ156: 4646462.106 | AR156: 91305742.58 | AS156: 91159936 | AT156: 0 | AU156: 91159936 | AV156: 0 | AW156: 0 | AX156: 0 | AY156: 0 | BA156: 183037 | BB156: 81408337 | BC156: 81685489.23 | BD156: 277152.23 | BE156: 94115.23 | BF156: 0 | BG156: 0 | BI156: 3185608 | BJ156: 60053777 | BK156: 1327628 | BL156: 0 | BM156: 995534 | BN156: 7377829.54 | BO156: 190000 | BP156: 10805000 | BQ156: 3464000 | BR156: 690900 | BS156: 0 | BT156: 6115898 | BU156: 94206174.54 | BW156: 0 | BY156: 0 | BZ156: 94206174.54 | CB156: 567247 | CC156: 0 | CD156: 0 | CF156: 180000 | CG156: 434000 | CH156: 1474486 | CI156: 495834 | CJ156: 0 | CK156: 0 | CL156: 0 | CM156: 2597971 | CN156: 5749538 | CQ156: 213511.2 | CR156: 213511.2 | CS156: 5536026.8 | CT156: 99742201.34 | CU156: 99599001 | CV156: 0 | CW156: 99599001 | CX156: 0 | CY156: 0 | CZ156: 0 | DA156: 0
A157: 0154 | B157: 1 | C157: 1 | D157: 2023-09-29 | E157: 1 | F157: 1 | G157: 1 | H157: 148869 | I157: 1403385 | J157: 50470 | K157: 30000 | L157: 0 | M157: 317367 | N157: 0 | O157: 4073 | P157: 0 | Q157: 0 | R157: 0 | S157: 0 | T157: 1954164 | V157: 0 | X157: 0 | Y157: 1954164 | Z157: 0 | AA157: 0 | AB157: 0 | AD157: 0 | AE157: 0 | AF157: 90019 | AG157: 343358 | AH157: 35494.2 | AI157: 0 | AJ157: 0 | AK157: 52505.8112 | AL157: 521377.0112 | AO157: 1522.297275 | AP157: 1522.297275 | AQ157: 519854.7139 | AR157: 2474018.714 | AS157: 1361700 | AT157: 0 | AU157: 1361700 | AV157: 0 | AW157: 0 | AX157: 0 | AY157: 0 | BA157: 0 | BB157: 1241178 | BC157: 2609026.55 | BD157: 1367848.55 | BE157: 1367848.55 | BF157: 0 | BG157: 0 | BI157: 139836 | BJ157: 1903903 | BK157: 67965 | BL157: 30000 | BM157: 5000 | BN157: 306931 | BO157: 0 | BP157: 6408 | BQ157: 0 | BR157: 415 | BS157: 0 | BT157: 0 | BU157: 2460458 | BW157: 80000 | BY157: 80000 | BZ157: 2380458 | CB157: 250 | CC157: 0 | CD157: 0 | CF157: 0 | CG157: 0 | CH157: 114850 | CI157: 437445 | CJ157: 0 | CK157: 0 | CL157: 0 | CM157: 41000 | CN157: 593545 | CQ157: 1026.4 | CR157: 1026.4 | CS157: 592518.6 | CT157: 2972976.6 | CU157: 1351708 | CV157: 0 | CW157: 1351708 | CX157: 0 | CY157: 0 | CZ157: 0 | DA157: 0
A158: 0155 | B158: 1 | C158: 0 | G158: 1 | H158: 0 | I158: 0 | J158: 0 | K158: 0 | L158: 0 | M158: 0 | N158: 0 | O158: 0 | P158: 0 | Q158: 0 | R158: 0 | S158: 0 | T158: 0 | V158: 0 | X158: 0 | Y158: 0 | Z158: 461325 | AA158: 0 | AB158: 0 | AD158: 0 | AE158: 9220062 | AF158: 0 | AG158: 0 | AH158: 0 | AI158: 0 | AJ158: 0 | AK158: 0 | AL158: 9681387 | AO158: 0 | AP158: 0 | AQ158: 9681387 | AR158: 9681387 | AS158: 84457008 | AT158: 0 | AU158: 84457008 | AV158: -74775621 | AW158: -0.8853690507 | AX158: 4222850.4 | AY158: -70552770.6 | BA158: 0 | BB158: 81157401 | BC158: 150016426.6 | BD158: 68859025.61 | BE158: 68859025.61 | BF158: 0 | BG158: 0 | BI158: 0 | BJ158: 0 | BK158: 0 | BL158: 0 | BM158: 0 | BN158: 0 | BO158: 0 | BP158: 0 | BQ158: 0 | BR158: 0 | BS158: 0 | BT158: 0 | BU158: 0 | BW158: 0 | BY158: 0 | BZ158: 0 | CB158: 0 | CC158: 0 | CD158: 0 | CF158: 0 | CG158: 0 | CH158: 0 | CI158: 0 | CJ158: 0 | CK158: 0 | CL158: 0 | CM158: 190504 | CN158: 190504 | CQ158: 93992.2 | CR158: 93992.2 | CS158: 96511.8 | CT158: 96511.8 | CU158: 90646899 | CV158: 4222850.4 | CW158: 94869749.4 | CX158: -94773237.6 | CY158: -1.045521012 | CZ158: 4532344.95 | DA158: -90240892.65
A159: 0156 | B159: 0 | C159: 1 | D159: 2023-10-22 | H159: 0 | I159: 0 | J159: 0 | K159: 0 | L159: 0 | M159: 0 | N159: 0 | O159: 0 | P159: 0 | Q159: 0 | R159: 0 | S159: 0 | T159: 0 | V159: 0 | X159: 0 | Y159: 0 | Z159: 0 | AA159: 0 | AB159: 0 | AD159: 0 | AE159: 0 | AF159: 0 | AG159: 0 | AH159: 0 | AI159: 0 | AJ159: 0 | AK159: 0 | AL159: 0 | AO159: 0 | AP159: 0 | AQ159: 0 | AR159: 0 | AS159: 0 | AT159: 0 | AU159: 0 | AV159: 0 | AW159: 0 | AX159: 0 | AY159: 0 | BA159: 0 | BB159: 0 | BC159: 0 | BD159: 0 | BE159: 0 | BF159: 0 | BG159: 0 | BI159: 0 | BJ159: 0 | BK159: 0 | BL159: 0 | BM159: 0 | BN159: 0 | BO159: 0 | BP159: 0 | BQ159: 0 | BR159: 0 | BS159: 0 | BT159: 0 | BU159: 0 | BW159: 0 | BY159: 0 | BZ159: 0 | CB159: 0 | CC159: 0 | CD159: 0 | CF159: 0 | CG159: 0 | CH159: 0 | CI159: 0 | CJ159: 0 | CK159: 0 | CL159: 0 | CM159: 0 | CN159: 0 | CQ159: 0 | CR159: 0 | CS159: 0 | CT159: 0 | CU159: 0 | CV159: 0 | CW159: 0 | CX159: 0 | CY159: 0 | CZ159: 0 | DA159: 0
A160: 0157 | B160: 1 | C160: 1 | D160: 2023-12-13 | E160: 1 | F160: 1 | G160: 1 | H160: 744244.43 | I160: 8863707.98 | J160: 109442.41 | K160: 0 | L160: 50515.63 | M160: 1411456.58 | N160: 25739.86 | O160: 388 | P160: 0 | Q160: 0 | R160: 0 | S160: 203483.84 | T160: 11408978.73 | V160: 0 | X160: 0 | Y160: 11408978.73 | Z160: 207963.1918 | AA160: 0 | AB160: 0 | AD160: 0 | AE160: 114953.75 | AF160: 434899 | AG160: 1067808 | AH160: 421788 | AI160: 0 | AJ160: 0 | AK160: 27777 | AL160: 2275188.942 | AO160: 0 | AP160: 0 | AQ160: 2275188.942 | AR160: 13684167.67 | AS160: 7110979 | AT160: 0 | AU160: 7110979 | AV160: 0 | AW160: 0 | AX160: 0 | AY160: 0 | BA160: 103376.24 | BB160: 6436691 | BC160: 14155270.56 | BD160: 7718579.559 | BE160: 7615203.319 | BF160: 0 | BG160: 0 | BI160: 713872 | BJ160: 9124826 | BK160: 147385 | BL160: 23621 | BM160: 61648 | BN160: 1561006 | BO160: 78699 | BP160: 372163 | BQ160: 0 | BR160: 0 | BS160: 0 | BT160: 301436 | BU160: 12384656 | BW160: 0 | BY160: 0 | BZ160: 12384656 | CB160: 211326 | CC160: 0 | CD160: 0 | CF160: 0 | CG160: 59588 | CH160: 482136 | CI160: 1178018 | CJ160: 448047 | CK160: 0 | CL160: 0 | CM160: 9672 | CN160: 2388787 | CQ160: 0 | CR160: 0 | CS160: 2388787 | CT160: 14773443 | CU160: 7355302 | CV160: 0 | CW160: 7355302 | CX160: 0 | CY160: 0 | CZ160: 0 | DA160: 0
A161: 0158 | B161: 1 | C161: 1 | D161: 2023-10-24 | E161: 1 | F161: 1 | G161: 1 | H161: 1017298 | I161: 16034359.71 | J161: 336128.65 | K161: 0 | L161: 335352.44 | M161: 2686258 | N161: 8462 | O161: 0 | P161: 0 | Q161: 0 | R161: 0 | S161: 1256743 | T161: 21674601.8 | V161: 100000 | X161: 100000 | Y161: 21574601.8 | Z161: 348351 | AA161: 0 | AB161: 0 | AD161: 55740 | AE161: 512281 | AF161: 1079315 | AG161: 2852607 | AH161: 614652 | AI161: 0 | AJ161: 0 | AK161: 997228.8998 | AL161: 6460174.9 | AO161: 49306.8 | AP161: 49306.8 | AQ161: 6410868.1 | AR161: 27985469.9 | AS161: 18465846 | AT161: 0 | AU161: 18465846 | AV161: 0 | AW161: 0 | AX161: 0 | AY161: 0 | BA161: 58280 | BB161: 17472772 | BC161: 27920660 | BD161: 10447888 | BE161: 10389608 | BF161: 0 | BG161: 100000 | BI161: 1063435 | BJ161: 16784854 | BK161: 316781 | BL161: 35000 | BM161: 310425 | BN161: 2228908 | BO161: 0 | BP161: 0 | BQ161: 0 | BR161: 0 | BS161: 0 | BT161: 2143734 | BU161: 22883137 | BW161: 110000 | BY161: 110000 | BZ161: 22773137 | CB161: 386289 | CC161: 0 | CD161: 0 | CF161: 57412 | CG161: 549896 | CH161: 1229593 | CI161: 3754050 | CJ161: 614652 | CK161: 0 | CL161: 0 | CM161: 999842 | CN161: 7591734 | CQ161: 32871.2 | CR161: 32871.2 | CS161: 7558862.8 | CT161: 30331999.8 | CU161: 20056952 | CV161: 0 | CW161: 20056952 | CX161: 0 | CY161: 0 | CZ161: 0 | DA161: 0
A162: 0159 | B162: 1 | C162: 1 | D162: 2023-09-29 | E162: 1 | F162: 1 | G162: 1 | H162: 892258.18 | I162: 28876542.25 | J162: 505097.29 | K162: 63984.88 | L162: 607748.45 | M162: 2792032.52 | N162: 105585.35 | O162: 0 | P162: 0 | Q162: 0 | R162: 0 | S162: 2604551.11 | T162: 36447800.03 | V162: 0 | X162: 0 | Y162: 36447800.03 | Z162: 578127 | AA162: 0 | AB162: 0 | AD162: 75074 | AE162: 1223786 | AF162: 1845183 | AG162: 4210812.09 | AH162: 1059889.01 | AI162: 0 | AJ162: 0 | AK162: 192136.9187 | AL162: 9185008.019 | AO162: 14502 | AP162: 14502 | AQ162: 9170506.019 | AR162: 45618306.05 | AS162: 31528951 | AT162: 0 | AU162: 31528951 | AV162: 0 | AW162: 0 | AX162: 0 | AY162: 0 | BA162: 0 | BB162: 29782664 | BC162: 44022343.91 | BD162: 14239679.91 | BE162: 14239679.91 | BF162: 0 | BG162: 0 | BI162: 825944.11 | BJ162: 30948002.84 | BK162: 519027.4 | BL162: 74780 | BM162: 358419.55 | BN162: 3080915.23 | BO162: 91000 | BP162: 0 | BQ162: 0 | BR162: 0 | BS162: 0 | BT162: 2138768.63 | BU162: 38036857.76 | BW162: 0 | BY162: 0 | BZ162: 38036857.76 | CB162: 574186 | CC162: 0 | CD162: 0 | CF162: 66069 | CG162: 1549046 | CH162: 1993000 | CI162: 4509115 | CJ162: 1094440 | CK162: 0 | CL162: 0 | CM162: 266306 | CN162: 10052162 | CQ162: 82857.2 | CR162: 82857.2 | CS162: 9969304.8 | CT162: 48006162.56 | CU162: 33192701 | CV162: 0 | CW162: 33192701 | CX162: 0 | CY162: 0 | CZ162: 0 | DA162: 0
A163: 0160 | B163: 1 | C163: 1 | D163: 2024-01-23 | E163: 1 | F163: 1 | G163: 1 | H163: 5300550.71 | I163: 149751810.3 | J163: 2552528.28 | K163: 0 | L163: 2345405.7 | M163: 8737122.34 | N163: 1659243.06 | O163: 21918373.48 | P163: 0 | Q163: 865197.48 | R163: 0 | S163: 6381513.19 | T163: 199511744.6 | V163: 0 | X163: 0 | Y163: 199511744.6 | Z163: 1715162.95 | AA163: 0 | AB163: 2404808.28 | AD163: 693829.69 | AE163: 5109689.97 | AF163: 9369801 | AG163: 4108402.15 | AH163: 8397452.15 | AI163: 0 | AJ163: 0 | AK163: 35304615.49 | AL163: 67103761.68 | AO163: 7682304.648 | AP163: 7682304.648 | AQ163: 59421457.03 | AR163: 258933201.6 | AS163: 257876445 | AT163: 0 | AU163: 257876445 | AV163: 0 | AW163: 0 | AX163: 0 | AY163: 0 | BA163: 233616.22 | BB163: 232665678 | BC163: 241290288.1 | BD163: 8624610.109 | BE163: 8390993.889 | BF163: 0 | BG163: 0 | BI163: 8450577 | BJ163: 177970728 | BK163: 1144000 | BL163: 0 | BM163: 819784 | BN163: 7086441 | BO163: 1600000 | BP163: 22908316 | BQ163: 0 | BR163: 534525 | BS163: 0 | BT163: 7860335 | BU163: 228374706 | BW163: 0 | BY163: 0 | BZ163: 228374706 | CB163: 2291353.77 | CC163: 0 | CD163: 2642187.68 | CF163: 693829.69 | CG163: 6969182.78 | CH163: 9369801 | CI163: 4108402.15 | CJ163: 8397452.15 | CK163: 0 | CL163: 0 | CM163: 39883909 | CN163: 74356118.22 | CQ163: 9116120 | CR163: 9116120 | CS163: 65239998.22 | CT163: 293614704.2 | CU163: 289236848 | CV163: 0 | CW163: 289236848 | CX163: 0 | CY163: 0 | CZ163: 0 | DA163: 0
A164: 0161 | B164: 1 | C164: 1 | D164: 2023-11-06 | E164: 1 | F164: 1 | G164: 1 | H164: 990153.77 | I164: 24469668.22 | J164: 678531.23 | K164: 84493.51 | L164: 496182.24 | M164: 2790702.25 | N164: 89500 | O164: 0 | P164: 0 | Q164: 92822.92 | R164: 0 | S164: 2468238.73 | T164: 32160292.87 | V164: 185000 | X164: 185000 | Y164: 31975292.87 | Z164: 383848 | AA164: 0 | AB164: 0 | AD164: 0 | AE164: 188763 | AF164: 1939784 | AG164: 6689476.53 | AH164: 553012.7 | AI164: 0 | AJ164: 0 | AK164: 993238.9359 | AL164: 10748123.17 | AO164: 105737.6047 | AP164: 105737.6047 | AQ164: 10642385.56 | AR164: 42617678.43 | AS164: 31427468 | AT164: 0 | AU164: 31427468 | AV164: 0 | AW164: 0 | AX164: 0 | AY164: 0 | BA164: 9697.71 | BB164: 30544988 | BC164: 40811969.35 | BD164: 10266981.35 | BE164: 10257283.64 | BF164: 0 | BG164: 185000 | BI164: 1495376 | BJ164: 25669544 | BK164: 611608 | BL164: 102492 | BM164: 608674 | BN164: 2704466 | BO164: 3000 | BP164: 0 | BQ164: 0 | BR164: 59489 | BS164: 0 | BT164: 2270032 | BU164: 33524681 | BW164: 0 | BY164: 0 | BZ164: 33524681 | CB164: 486043.43 | CC164: 0 | CD164: 0 | CF164: 0 | CG164: 76930.55 | CH164: 1997977.52 | CI164: 6890160.44 | CJ164: 569603 | CK164: 0 | CL164: 0 | CM164: 1056806 | CN164: 11077520.94 | CQ164: 63515.4 | CR164: 63515.4 | CS164: 11014005.54 | CT164: 44538686.54 | CU164: 32627792 | CV164: 0 | CW164: 32627792 | CX164: 0 | CY164: 0 | CZ164: 0 | DA164: 0
A165: 0162 | B165: 1 | C165: 1 | D165: 2023-11-22 | E165: 1 | F165: 1 | G165: 1 | H165: 969313 | I165: 14352261.11 | J165: 273666 | K165: 0 | L165: 350767 | M165: 1590842.36 | N165: 37611 | O165: 3041337 | P165: 0 | Q165: 0 | R165: 0 | S165: 304748 | T165: 20920545.47 | V165: 42103 | X165: 42103 | Y165: 20878442.47 | Z165: 236079 | AA165: 0 | AB165: 0 | AD165: 0 | AE165: 171304 | AF165: 0 | AG165: 0 | AH165: 0 | AI165: 0 | AJ165: 0 | AK165: 862152.5729 | AL165: 1269535.573 | AO165: 94885.40239 | AP165: 94885.40239 | AQ165: 1174650.171 | AR165: 22053092.64 | AS165: 20056630 | AT165: 0 | AU165: 20056630 | AV165: 0 | AW165: 0 | AX165: 0 | AY165: 0 | BA165: 0 | BB165: 18731996 | BC165: 23919189.33 | BD165: 5187193.332 | BE165: 5187193.332 | BF165: 0 | BG165: 42103 | BI165: 2944565 | BJ165: 13009833 | BK165: 278653 | BL165: 0 | BM165: 255851 | BN165: 1619250 | BO165: 18000 | BP165: 3081304 | BQ165: 0 | BR165: 0 | BS165: 0 | BT165: 501239 | BU165: 21708695 | BW165: 0 | BY165: 0 | BZ165: 21708695 | CB165: 0 | CC165: 0 | CD165: 0 | CF165: 0 | CG165: 0 | CH165: 0 | CI165: 0 | CJ165: 0 | CK165: 0 | CL165: 0 | CM165: 769196 | CN165: 769196 | CQ165: 40755 | CR165: 40755 | CS165: 728441 | CT165: 22437136 | CU165: 20730114 | CV165: 0 | CW165: 20730114 | CX165: 0 | CY165: 0 | CZ165: 0 | DA165: 0
A166: 0163 | B166: 1 | C166: 1 | D166: 2023-10-20 | E166: 1 | F166: 1 | G166: 1 | H166: 7045089 | I166: 165556427 | J166: 4782783 | K166: 1245322 | L166: 4248938 | M166: 9355522 | N166: 243383 | O166: 0 | P166: 0 | Q166: 0 | R166: 0 | S166: 7821654 | T166: 200299118 | V166: 97844 | X166: 97844 | Y166: 200201274 | Z166: 2472258 | AA166: 0 | AB166: 0 | AD166: 0 | AE166: 23216266 | AF166: 16722612 | AG166: 28038640 | AH166: 6208745 | AI166: 0 | AJ166: 0 | AK166: 29962233.97 | AL166: 106620755 | AO166: 4722561.462 | AP166: 4722561.462 | AQ166: 101898193.5 | AR166: 302099467.5 | AS166: 299740597 | AT166: 1958520.101 | AU166: 301699117.1 | AV166: 0 | AW166: 0 | AX166: 0 | AY166: 0 | BA166: 97844 | BB166: 269973692.2 | BC166: 268015172.1 | BD166: -1958520.101 | BE166: -2056364.101 | BF166: 97844 | BG166: 0 | BI166: 7762651 | BJ166: 187826997 | BK166: 5294345 | BL166: 867200 | BM166: 5639616 | BN166: 892433 | BO166: 158265 | BP166: 500000 | BQ166: 0 | BR166: 811320 | BS166: 0 | BT166: 9833818 | BU166: 219586645 | BW166: 0 | BY166: 0 | BZ166: 219586645 | CB166: 2504047 | CC166: 0 | CD166: 0 | CF166: 0 | CG166: 24249145 | CH166: 17555725 | CI166: 28742723 | CJ166: 6332920 | CK166: 0 | CL166: 0 | CM166: 33730258 | CN166: 113114818 | CQ166: 5999926.4 | CR166: 5999926.4 | CS166: 107114891.6 | CT166: 326701536.6 | CU166: 329943497 | CV166: 0 | CW166: 329943497 | CX166: -3241960.4 | CY166: -0.00982580481 | CZ166: 3241960.4 | DA166: 0
A167: 0164 | B167: 1 | C167: 1 | D167: 2023-09-29 | E167: 1 | F167: 1 | G167: 1 | H167: 1136846 | I167: 24121129 | J167: 420012 | K167: 0 | L167: 875455 | M167: 715388 | N167: 24120 | O167: 59687 | P167: 0 | Q167: 117004 | R167: 0 | S167: 959207 | T167: 28428848 | V167: 115770 | X167: 115770 | Y167: 28313078 | Z167: 377627 | AA167: 0 | AB167: 0 | AD167: 0 | AE167: 2952586 | AF167: 1236230 | AG167: 3567404 | AH167: 660921.6 | AI167: 0 | AJ167: 0 | AK167: 190022.1555 | AL167: 8984790.755 | AO167: 47116.648 | AP167: 47116.648 | AQ167: 8937674.107 | AR167: 37250752.11 | AS167: 25488528 | AT167: 0 | AU167: 25488528 | AV167: 0 | AW167: 0 | AX167: 0 | AY167: 0 | BA167: 6416 | BB167: 24211035 | BC167: 35878817.3 | BD167: 11667782.3 | BE167: 11661366.3 | BF167: 0 | BG167: 115770 | BI167: 910524 | BJ167: 24849172 | BK167: 490661 | BL167: 0 | BM167: 979120 | BN167: 914210 | BO167: 32000 | BP167: 40200 | BQ167: 0 | BR167: 110000 | BS167: 0 | BT167: 1451782 | BU167: 29777669 | BW167: 124223 | BY167: 124223 | BZ167: 29653446 | CB167: 434210 | CC167: 0 | CD167: 0 | CF167: 0 | CG167: 3218887 | CH167: 1309153 | CI167: 3857004 | CJ167: 805000 | CK167: 0 | CL167: 0 | CM167: 147055 | CN167: 9771309 | CQ167: 24953.2 | CR167: 24953.2 | CS167: 9746355.8 | CT167: 39399801.8 | CU167: 27452372 | CV167: 0 | CW167: 27452372 | CX167: 0 | CY167: 0 | CZ167: 0 | DA167: 0
A168: 0165 | B168: 1 | C168: 1 | D168: 2023-09-29 | E168: 1 | F168: 1 | G168: 1 | H168: 2220308.43 | I168: 59957026.42 | J168: 2113806.41 | K168: 195114.53 | L168: 876260.82 | M168: 5976161.28 | N168: 24826.92 | O168: 0 | P168: 0 | Q168: 0 | R168: 0 | S168: 4474588.51 | T168: 75838093.32 | V168: 252904.3723 | X168: 252904.3723 | Y168: 75585188.95 | Z168: 961127.84 | AA168: 0 | AB168: 0 | AD168: 176935.8 | AE168: 1787184.58 | AF168: 3773867.81 | AG168: 10331065.7 | AH168: 3622579.02 | AI168: 0 | AJ168: 0 | AK168: 9301900.745 | AL168: 29954661.5 | AO168: 41635.16013 | AP168: 41635.16013 | AQ168: 29913026.34 | AR168: 105498215.3 | AS168: 105452144 | AT168: 0 | AU168: 105452144 | AV168: 0 | AW168: 0 | AX168: 0 | AY168: 0 | BA168: 319122.74 | BB168: 99196109 | BC168: 99262327.37 | BD168: 66218.36773 | BE168: -252904.3723 | BF168: 252904.3723 | BG168: 0 | BI168: 2604965.04 | BJ168: 71044876.62 | BK168: 2137868.41 | BL168: 0 | BM168: 657554.67 | BN168: 3081432.99 | BO168: 0 | BP168: 0 | BQ168: 0 | BR168: 0 | BS168: 0 | BT168: 4054143.27 | BU168: 83580841 | BW168: 0 | BY168: 0 | BZ168: 83580841 | CB168: 971114.2 | CC168: 0 | CD168: 0 | CF168: 176935.8 | CG168: 4817254.48 | CH168: 3773867.81 | CI168: 11090439.27 | CJ168: 3891557 | CK168: 0 | CL168: 0 | CM168: 9219879 | CN168: 33941047.56 | CQ168: 0 | CR168: 0 | CS168: 33941047.56 | CT168: 117521888.6 | CU168: 117616659 | CV168: 0 | CW168: 117616659 | CX168: -94770.44 | CY168: -0.0008057569464 | CZ168: 94770.44 | DA168: 0
A169: 0166 | B169: 0 | C169: 1 | D169: 2024-01-22 | H169: 0 | I169: 0 | J169: 0 | K169: 0 | L169: 0 | M169: 0 | N169: 0 | O169: 0 | P169: 0 | Q169: 0 | R169: 0 | S169: 0 | T169: 0 | V169: 0 | X169: 0 | Y169: 0 | Z169: 0 | AA169: 0 | AB169: 0 | AD169: 0 | AE169: 0 | AF169: 0 | AG169: 0 | AH169: 0 | AI169: 0 | AJ169: 0 | AK169: 0 | AL169: 0 | AO169: 0 | AP169: 0 | AQ169: 0 | AR169: 0 | AS169: 0 | AT169: 0 | AU169: 0 | AV169: 0 | AW169: 0 | AX169: 0 | AY169: 0 | BA169: 0 | BB169: 0 | BC169: 0 | BD169: 0 | BE169: 0 | BF169: 0 | BG169: 0 | BI169: 0 | BJ169: 0 | BK169: 0 | BL169: 0 | BM169: 0 | BN169: 0 | BO169: 0 | BP169: 0 | BQ169: 0 | BR169: 0 | BS169: 0 | BT169: 0 | BU169: 0 | BW169: 0 | BY169: 0 | BZ169: 0 | CB169: 0 | CC169: 0 | CD169: 0 | CF169: 0 | CG169: 0 | CH169: 0 | CI169: 0 | CJ169: 0 | CK169: 0 | CL169: 0 | CM169: 0 | CN169: 0 | CQ169: 0 | CR169: 0 | CS169: 0 | CT169: 0 | CU169: 0 | CV169: 0 | CW169: 0 | CX169: 0 | CY169: 0 | CZ169: 0 | DA169: 0
A170: 0167 | B170: 1 | C170: 1 | D170: 2023-09-29 | E170: 1 | F170: 1 | G170: 1 | H170: 1361062.14 | I170: 41631574.26 | J170: 923419.7 | K170: 221666.04 | L170: 1243422.79 | M170: 4552292.22 | N170: 177599.31 | O170: 0 | P170: 0 | Q170: 135005.67 | R170: 0 | S170: 2083850.41 | T170: 52329892.54 | V170: 0 | X170: 0 | Y170: 52329892.54 | Z170: 210964 | AA170: 0 | AB170: 0 | AD170: 0 | AE170: 0 | AF170: 1881138 | AG170: 8170062 | AH170: 1431118.8 | AI170: 0 | AJ170: 0 | AK170: 1244098.303 | AL170: 12937381.1 | AO170: 102889.728 | AP170: 102889.728 | AQ170: 12834491.38 | AR170: 65164383.92 | AS170: 50647455 | AT170: 0 | AU170: 50647455 | AV170: 0 | AW170: 0 | AX170: 0 | AY170: 0 | BA170: 38587.26 | BB170: 48992878 | BC170: 62647055.26 | BD170: 13654177.26 | BE170: 13615590 | BF170: 0 | BG170: 0 | BI170: 1576406.29 | BJ170: 43369137.76 | BK170: 944747 | BL170: 173694 | BM170: 1321024.07 | BN170: 4382248.3 | BO170: 272500 | BP170: 0 | BQ170: 0 | BR170: 142365 | BS170: 0 | BT170: 2625547 | BU170: 54807669.42 | BW170: 0 | BY170: 0 | BZ170: 54807669.42 | CB170: 185383 | CC170: 0 | CD170: 0 | CF170: 0 | CG170: 0 | CH170: 2027434 | CI170: 8694125 | CJ170: 1687107.1 | CK170: 0 | CL170: 0 | CM170: 1211559 | CN170: 13805608.1 | CQ170: 0 | CR170: 0 | CS170: 13805608.1 | CT170: 68613277.52 | CU170: 52076187 | CV170: 0 | CW170: 52076187 | CX170: 0 | CY170: 0 | CZ170: 0 | DA170: 0
A171: 0168 | B171: 1 | C171: 1 | D171: 2023-10-26 | E171: 1 | F171: 1 | G171: 1 | H171: 2073301 | I171: 31781991 | J171: 415735 | K171: 77797 | L171: 905396 | M171: 4452847 | N171: 92733 | O171: 177814 | P171: 0 | Q171: 0 | R171: 0 | S171: 2840096 | T171: 42817710 | V171: 2000 | X171: 2000 | Y171: 42815710 | Z171: 367611 | AA171: 0 | AB171: 0 | AD171: 60482 | AE171: 573305 | AF171: 1181073 | AG171: 6026605 | AH171: 2036678 | AI171: 0 | AJ171: 0 | AK171: 1863234.914 | AL171: 12108988.91 | AO171: 339983.4 | AP171: 339983.4 | AQ171: 11769005.51 | AR171: 54584715.51 | AS171: 31697545 | AT171: 0 | AU171: 31697545 | AV171: 0 | AW171: 0 | AX171: 0 | AY171: 0 | BA171: 77473 | BB171: 30979769 | BC171: 52502169.58 | BD171: 21522400.58 | BE171: 21444927.58 | BF171: 0 | BG171: 2000 | BI171: 1404768 | BJ171: 33627100 | BK171: 542697 | BL171: 90000 | BM171: 928383 | BN171: 4460792 | BO171: 75000 | BP171: 455500 | BQ171: 0 | BR171: 0 | BS171: 0 | BT171: 2458274 | BU171: 44042514 | BW171: 2000 | BY171: 2000 | BZ171: 44040514 | CB171: 367596 | CC171: 0 | CD171: 0 | CF171: 62297 | CG171: 596889 | CH171: 1278272 | CI171: 6487261 | CJ171: 2199613 | CK171: 0 | CL171: 0 | CM171: 1320959 | CN171: 12312887 | CQ171: 226655.6 | CR171: 226655.6 | CS171: 12086231.4 | CT171: 56126745.4 | CU171: 33316926 | CV171: 0 | CW171: 33316926 | CX171: 0 | CY171: 0 | CZ171: 0 | DA171: 0
A172: 0169 | B172: 1 | C172: 1 | D172: 2023-11-16 | E172: 1 | F172: 1 | G172: 1 | H172: 172981 | I172: 4697854 | J172: 181519 | K172: 14141 | L172: 0 | M172: 523922 | N172: 3180 | O172: 0 | P172: 0 | Q172: 15876 | R172: 0 | S172: 312506 | T172: 5921979 | V172: 0 | X172: 0 | Y172: 5921979 | Z172: 110883 | AA172: 0 | AB172: 0 | AD172: 0 | AE172: 0 | AF172: 584790 | AG172: 589061 | AH172: 77919.6 | AI172: 0 | AJ172: 0 | AK172: 19259 | AL172: 1381912.6 | AO172: 0 | AP172: 0 | AQ172: 1381912.6 | AR172: 7303891.6 | AS172: 4816494 | AT172: 0 | AU172: 4816494 | AV172: 0 | AW172: 0 | AX172: 0 | AY172: 0 | BA172: 0 | BB172: 4481242 | BC172: 7408353 | BD172: 2927111 | BE172: 2927111 | BF172: 0 | BG172: 0 | BI172: 163552 | BJ172: 5020544 | BK172: 71711 | BL172: 0 | BM172: 1500 | BN172: 513019 | BO172: 9387 | BP172: 200 | BQ172: 0 | BR172: 15500 | BS172: 0 | BT172: 352280 | BU172: 6147693 | BW172: 0 | BY172: 0 | BZ172: 6147693 | CB172: 117239 | CC172: 0 | CD172: 0 | CF172: 0 | CG172: 0 | CH172: 695987 | CI172: 613031 | CJ172: 93633.4 | CK172: 0 | CL172: 0 | CM172: 9672 | CN172: 1529562.4 | CQ172: 0 | CR172: 0 | CS172: 1529562.4 | CT172: 7677255.4 | CU172: 5068217 | CV172: 0 | CW172: 5068217 | CX172: 0 | CY172: 0 | CZ172: 0 | DA172: 0
A173: 0170 | B173: 1 | C173: 1 | D173: 2023-09-18 | E173: 1 | F173: 1 | G173: 1 | H173: 2434315.34 | I173: 53434647.18 | J173: 963894.91 | K173: 0 | L173: 1084564.5 | M173: 2536022.75 | N173: 232649.74 | O173: 0 | P173: 0 | Q173: 0 | R173: 0 | S173: 1771054.17 | T173: 62457148.59 | V173: 0 | X173: 0 | Y173: 62457148.59 | Z173: 375748 | AA173: 0 | AB173: 0 | AD173: 0 | AE173: 3236200 | AF173: 2121765 | AG173: 8404204 | AH173: 2091793 | AI173: 0 | AJ173: 0 | AK173: 8212150.838 | AL173: 24441860.84 | AO173: 480382.7381 | AP173: 480382.7381 | AQ173: 23961478.1 | AR173: 86418626.69 | AS173: 77315387 | AT173: 0 | AU173: 77315387 | AV173: 0 | AW173: 0 | AX173: 0 | AY173: 0 | BA173: 0 | BB173: 69331528 | BC173: 86178295.58 | BD173: 16846767.58 | BE173: 16846767.58 | BF173: 0 | BG173: 0 | BI173: 3472712 | BJ173: 56634265 | BK173: 1164657 | BL173: 0 | BM173: 1214205 | BN173: 2681531 | BO173: 0 | BP173: 0 | BQ173: 0 | BR173: 0 | BS173: 0 | BT173: 1995695 | BU173: 67163065 | BW173: 0 | BY173: 0 | BZ173: 67163065 | CB173: 396208 | CC173: 0 | CD173: 0 | CF173: 0 | CG173: 3460980 | CH173: 2199259 | CI173: 8774231 | CJ173: 2196383 | CK173: 0 | CL173: 0 | CM173: 8611344 | CN173: 25638405 | CQ173: 489790.8 | CR173: 489790.8 | CS173: 25148614.2 | CT173: 92311679.2 | CU173: 87221685 | CV173: 0 | CW173: 87221685 | CX173: 0 | CY173: 0 | CZ173: 0 | DA173: 0
A174: 0171 | B174: 1 | C174: 0 | G174: 1 | H174: 0 | I174: 0 | J174: 0 | K174: 0 | L174: 0 | M174: 0 | N174: 0 | O174: 0 | P174: 0 | Q174: 0 | R174: 0 | S174: 0 | T174: 0 | V174: 0 | X174: 0 | Y174: 0 | Z174: 469233 | AA174: 0 | AB174: 0 | AD174: 0 | AE174: 376100 | AF174: 0 | AG174: 0 | AH174: 0 | AI174: 0 | AJ174: 0 | AK174: 0 | AL174: 845333 | AO174: 0 | AP174: 0 | AQ174: 845333 | AR174: 845333 | AS174: 52297584 | AT174: 0 | AU174: 52297584 | AV174: -51452251 | AW174: -0.9838360984 | AX174: 2614879.2 | AY174: -48837371.8 | BA174: 0 | BB174: 50481178 | BC174: 55271631.94 | BD174: 4790453.94 | BE174: 4790453.94 | BF174: 0 | BG174: 0 | BI174: 0 | BJ174: 0 | BK174: 0 | BL174: 0 | BM174: 0 | BN174: 0 | BO174: 0 | BP174: 0 | BQ174: 0 | BR174: 0 | BS174: 0 | BT174: 0 | BU174: 0 | BW174: 0 | BY174: 0 | BZ174: 0 | CB174: 0 | CC174: 0 | CD174: 0 | CF174: 0 | CG174: 0 | CH174: 0 | CI174: 0 | CJ174: 0 | CK174: 0 | CL174: 0 | CM174: 769524 | CN174: 769524 | CQ174: 122836.2 | CR174: 122836.2 | CS174: 646687.8 | CT174: 646687.8 | CU174: 54303362 | CV174: 2614879.2 | CW174: 56918241.2 | CX174: -56271553.4 | CY174: -1.036244375 | CZ174: 2715168.1 | DA174: -53556385.3
A175: 0172 | B175: 1 | C175: 1 | D175: 2023-10-20 | E175: 1 | F175: 1 | G175: 1 | H175: 1186211 | I175: 17100260 | J175: 471124 | K175: 113269 | L175: 944022 | M175: 808443 | N175: 223128 | O175: 7159 | P175: 0 | Q175: 0 | R175: 0 | S175: 510558 | T175: 21364174 | V175: 0 | X175: 0 | Y175: 21364174 | Z175: 227107.91 | AA175: 0 | AB175: 0 | AD175: 80231 | AE175: 7748177.72 | AF175: 996605 | AG175: 3722503 | AH175: 1336359 | AI175: 0 | AJ175: 0 | AK175: 1725940.377 | AL175: 15836924.01 | AO175: 124911.0163 | AP175: 124911.0163 | AQ175: 15712012.99 | AR175: 37076186.99 | AS175: 20516175 | AT175: 0 | AU175: 20516175 | AV175: 0 | AW175: 0 | AX175: 0 | AY175: 0 | BA175: 124446 | BB175: 19726133 | BC175: 31642559.48 | BD175: 11916426.48 | BE175: 11791980.48 | BF175: 0 | BG175: 0 | BI175: 905733 | BJ175: 18538666 | BK175: 479253 | BL175: 115000 | BM175: 796628 | BN175: 73551 | BO175: 0 | BP175: 10000 | BQ175: 0 | BR175: 0 | BS175: 0 | BT175: 1216190 | BU175: 22135021 | BW175: 0 | BY175: 0 | BZ175: 22135021 | CB175: 207511 | CC175: 0 | CD175: 0 | CF175: 86305 | CG175: 4303202 | CH175: 1018496 | CI175: 4162096 | CJ175: 1606801 | CK175: 0 | CL175: 0 | CM175: 1893677 | CN175: 13278088 | CQ175: 222567.4 | CR175: 222567.4 | CS175: 13055520.6 | CT175: 35190541.6 | CU175: 21382621 | CV175: 0 | CW175: 21382621 | CX175: 0 | CY175: 0 | CZ175: 0 | DA175: 0
A176: 0173 | B176: 1 | C176: 1 | D176: 2023-11-16 | E176: 1 | F176: 1 | G176: 1 | H176: 186552 | I176: 5579436 | J176: 154998 | K176: 0 | L176: 8696 | M176: 850932 | N176: 0 | O176: 0 | P176: 0 | Q176: 16828 | R176: 0 | S176: 296841 | T176: 7094283 | V176: 0 | X176: 0 | Y176: 7094283 | Z176: 152091 | AA176: 0 | AB176: 0 | AD176: 0 | AE176: 0 | AF176: 565310 | AG176: 1196190 | AH176: 82020.6 | AI176: 0 | AJ176: 0 | AK176: 7281.5 | AL176: 2002893.1 | AO176: -28.63371376 | AP176: -28.63371376 | AQ176: 2002921.734 | AR176: 9097204.734 | AS176: 4913934 | AT176: 0 | AU176: 4913934 | AV176: 0 | AW176: 0 | AX176: 0 | AY176: 0 | BA176: 0 | BB176: 4359828 | BC176: 8966434.663 | BD176: 4606606.663 | BE176: 4606606.663 | BF176: 0 | BG176: 0 | BI176: 210360 | BJ176: 5734511 | BK176: 166078 | BL176: 0 | BM176: 4800 | BN176: 873659 | BO176: 0 | BP176: 200 | BQ176: 0 | BR176: 17000 | BS176: 0 | BT176: 229931 | BU176: 7236539 | BW176: 0 | BY176: 0 | BZ176: 7236539 | CB176: 146330 | CC176: 0 | CD176: 0 | CF176: 0 | CG176: 0 | CH176: 553253 | CI176: 1136912 | CJ176: 109792.9 | CK176: 0 | CL176: 0 | CM176: 29188 | CN176: 1975475.9 | CQ176: 21906 | CR176: 21906 | CS176: 1953569.9 | CT176: 9190108.9 | CU176: 5126126 | CV176: 0 | CW176: 5126126 | CX176: 0 | CY176: 0 | CZ176: 0 | DA176: 0
A177: 0174 | B177: 1 | C177: 1 | D177: 2023-10-02 | E177: 1 | F177: 1 | G177: 1 | H177: 971134.48 | I177: 16076291.65 | J177: 228693.14 | K177: 114 | L177: 438767.44 | M177: 1813784.85 | N177: 24383.7 | O177: 0 | P177: 0 | Q177: 0 | R177: 0 | S177: 1292125.93 | T177: 20845295.19 | V177: 280000 | X177: 280000 | Y177: 20565295.19 | Z177: 485238 | AA177: 0 | AB177: 0 | AD177: 0 | AE177: 5382 | AF177: 852066 | AG177: 3500698 | AH177: 182932.2 | AI177: 0 | AJ177: 0 | AK177: 1486942.988 | AL177: 6513259.188 | AO177: 144434.0704 | AP177: 144434.0704 | AQ177: 6368825.118 | AR177: 26934120.31 | AS177: 16951711 | AT177: 0 | AU177: 16951711 | AV177: 0 | AW177: 0 | AX177: 0 | AY177: 0 | BA177: 0 | BB177: 16083653 | BC177: 26494489.85 | BD177: 10410836.85 | BE177: 10410836.85 | BF177: 0 | BG177: 280000 | BI177: 1001235.99 | BJ177: 16556920.6 | BK177: 231511 | BL177: 15000 | BM177: 372621 | BN177: 1843905.06 | BO177: 0 | BP177: 0 | BQ177: 0 | BR177: 0 | BS177: 0 | BT177: 1963578 | BU177: 21984771.65 | BW177: 387000 | BY177: 387000 | BZ177: 21597771.65 | CB177: 491193 | CC177: 0 | CD177: 0 | CF177: 0 | CG177: 5382 | CH177: 904312 | CI177: 4426248 | CJ177: 213307.5 | CK177: 0 | CL177: 0 | CM177: 1672422 | CN177: 7712864.5 | CQ177: 159666.2 | CR177: 159666.2 | CS177: 7553198.3 | CT177: 29150969.95 | CU177: 17768872 | CV177: 0 | CW177: 17768872 | CX177: 0 | CY177: 0 | CZ177: 0 | DA177: 0
A178: 0175 | B178: 1 | C178: 1 | D178: 2023-09-20 | E178: 1 | F178: 1 | G178: 1 | H178: 953198 | I178: 29835119.9 | J178: 584898 | K178: 15597 | L178: 947073 | M178: 4140810 | N178: 79170 | O178: 0 | P178: 0 | Q178: 68260 | R178: 0 | S178: 1252103 | T178: 37876228.9 | V178: 0 | X178: 0 | Y178: 37876228.9 | Z178: 357438 | AA178: 0 | AB178: 2709 | AD178: 51624 | AE178: 0 | AF178: 1312120 | AG178: 3345383 | AH178: 633476 | AI178: 0 | AJ178: 0 | AK178: 73438 | AL178: 5776188 | AO178: 52467.672 | AP178: 52467.672 | AQ178: 5723720.328 | AR178: 43599949.23 | AS178: 29095977 | AT178: 0 | AU178: 29095977 | AV178: 0 | AW178: 0 | AX178: 0 | AY178: 0 | BA178: 0 | BB178: 28161684 | BC178: 42301196.17 | BD178: 14139512.17 | BE178: 14139512.17 | BF178: 0 | BG178: 0 | BI178: 981058 | BJ178: 31434124 | BK178: 623636 | BL178: 20408 | BM178: 938694 | BN178: 5099553 | BO178: 95000 | BP178: 0 | BQ178: 0 | BR178: 70000 | BS178: 0 | BT178: 822435 | BU178: 40084908 | BW178: 0 | BY178: 0 | BZ178: 40084908 | CB178: 351644 | CC178: 0 | CD178: 3118 | CF178: 54205 | CG178: 206 | CH178: 1298019 | CI178: 3869166 | CJ178: 674502 | CK178: 0 | CL178: 0 | CM178: 10000 | CN178: 6260860 | CQ178: 26797.2 | CR178: 26797.2 | CS178: 6234062.8 | CT178: 46318970.8 | CU178: 30502096 | CV178: 0 | CW178: 30502096 | CX178: 0 | CY178: 0 | CZ178: 0 | DA178: 0
A179: 0176 | B179: 1 | C179: 1 | D179: 2023-12-12 | E179: 1 | F179: 1 | G179: 1 | H179: 2257749 | I179: 52044406 | J179: 1456739 | K179: 0 | L179: 1195643 | M179: 6384849 | N179: 0 | O179: 92581 | P179: 0 | Q179: 0 | R179: 0 | S179: 1574042 | T179: 65006009 | V179: 0 | X179: 0 | Y179: 65006009 | Z179: 0 | AA179: 0 | AB179: 0 | AD179: 0 | AE179: 0 | AF179: 1987712 | AG179: 14524767 | AH179: 3063644 | AI179: 0 | AJ179: 0 | AK179: 7400331.239 | AL179: 26976454.24 | AO179: 475827.5402 | AP179: 475827.5402 | AQ179: 26500626.7 | AR179: 91506635.7 | AS179: 64950374 | AT179: 0 | AU179: 64950374 | AV179: 0 | AW179: 0 | AX179: 0 | AY179: 0 | BA179: 0 | BB179: 61086493 | BC179: 86201584.7 | BD179: 25115091.7 | BE179: 25115091.7 | BF179: 0 | BG179: 0 | BI179: 2331139 | BJ179: 53754393 | BK179: 1448680 | BL179: 0 | BM179: 1084639 | BN179: 6260599 | BO179: 100000 | BP179: 150000 | BQ179: 0 | BR179: 0 | BS179: 0 | BT179: 2190000 | BU179: 67319450 | BW179: 0 | BY179: 0 | BZ179: 67319450 | CB179: 0 | CC179: 0 | CD179: 0 | CF179: 0 | CG179: 0 | CH179: 1987712 | CI179: 11461123 | CJ179: 3063644 | CK179: 0 | CL179: 0 | CM179: 7838495 | CN179: 24350974 | CQ179: 420142 | CR179: 420142 | CS179: 23930832 | CT179: 91250282 | CU179: 71888258 | CV179: 0 | CW179: 71888258 | CX179: 0 | CY179: 0 | CZ179: 0 | DA179: 0
A180: 0177 | B180: 1 | C180: 1 | D180: 2023-09-29 | E180: 1 | F180: 1 | G180: 1 | H180: 925870 | I180: 21662348.28 | J180: 548045 | K180: 278 | L180: 699066 | M180: 2958576 | N180: 32747 | O180: 0 | P180: 0 | Q180: 0 | R180: 0 | S180: 927544 | T180: 27754474.28 | V180: 0 | X180: 0 | Y180: 27754474.28 | Z180: 136454 | AA180: 0 | AB180: 7000 | AD180: 0 | AE180: 277120 | AF180: 1846542 | AG180: 4478427 | AH180: 391453.2 | AI180: 0 | AJ180: 0 | AK180: 498758.8685 | AL180: 7635755.069 | AO180: 28698.65368 | AP180: 28698.65368 | AQ180: 7607056.415 | AR180: 35361530.69 | AS180: 29130894 | AT180: 0 | AU180: 29130894 | AV180: 0 | AW180: 0 | AX180: 0 | AY180: 0 | BA180: 3736 | BB180: 27985641 | BC180: 35096750.46 | BD180: 7111109.462 | BE180: 7107373.462 | BF180: 0 | BG180: 0 | BI180: 1013715 | BJ180: 22074131 | BK180: 539599 | BL180: 0 | BM180: 769690 | BN180: 2941147 | BO180: 49500 | BP180: 0 | BQ180: 0 | BR180: 0 | BS180: 0 | BT180: 1471312 | BU180: 28859094 | BW180: 0 | BY180: 0 | BZ180: 28859094 | CB180: 141054 | CC180: 0 | CD180: 0 | CF180: 0 | CG180: 283163 | CH180: 1954780 | CI180: 5332281 | CJ180: 554215.2 | CK180: 0 | CL180: 0 | CM180: 552318 | CN180: 8817811.2 | CQ180: 74276 | CR180: 74276 | CS180: 8743535.2 | CT180: 37602629.2 | CU180: 30117199 | CV180: 0 | CW180: 30117199 | CX180: 0 | CY180: 0 | CZ180: 0 | DA180: 0
A181: 0178 | B181: 1 | C181: 1 | D181: 2023-10-24 | E181: 1 | F181: 1 | G181: 1 | H181: 1073312.41 | I181: 32300366.91 | J181: 7000 | K181: 0 | L181: 778336.46 | M181: 261944.36 | N181: 2000 | O181: 23861 | P181: 0 | Q181: 0 | R181: 0 | S181: 1604423.18 | T181: 36051244.32 | V181: 0 | X181: 0 | Y181: 36051244.32 | Z181: 554524 | AA181: 0 | AB181: 676009 | AD181: 576649 | AE181: 3251651 | AF181: 1537742 | AG181: 6808770 | AH181: 2141501 | AI181: 0 | AJ181: 0 | AK181: 3274883.404 | AL181: 18821729.4 | AO181: 202091.2892 | AP181: 202091.2892 | AQ181: 18619638.11 | AR181: 54670882.43 | AS181: 47377571 | AT181: 0 | AU181: 47377571 | AV181: 0 | AW181: 0 | AX181: 0 | AY181: 0 | BA181: 12511.42 | BB181: 44779595 | BC181: 49926991.34 | BD181: 5147396.342 | BE181: 5134884.922 | BF181: 0 | BG181: 0 | BI181: 1061770.76 | BJ181: 35247222.98 | BK181: 7175 | BL181: 0 | BM181: 694865.31 | BN181: 267937.15 | BO181: 0 | BP181: 23575 | BQ181: 0 | BR181: 0 | BS181: 0 | BT181: 127770.7 | BU181: 37430316.9 | BW181: 0 | BY181: 0 | BZ181: 37430316.9 | CB181: 521379 | CC181: 0 | CD181: 709298 | CF181: 533600 | CG181: 3289045 | CH181: 1614629 | CI181: 6245291 | CJ181: 2159291 | CK181: 0 | CL181: 0 | CM181: 3439458 | CN181: 18511991 | CQ181: 245728.8 | CR181: 245728.8 | CS181: 18266262.2 | CT181: 55696579.1 | CU181: 51330399 | CV181: 0 | CW181: 51330399 | CX181: 0 | CY181: 0 | CZ181: 0 | DA181: 0
A182: 0179 | B182: 0 | C182: 1 | D182: 2023-10-19 | H182: 0 | I182: 0 | J182: 0 | K182: 0 | L182: 0 | M182: 0 | N182: 0 | O182: 0 | P182: 0 | Q182: 0 | R182: 0 | S182: 0 | T182: 0 | V182: 0 | X182: 0 | Y182: 0 | Z182: 0 | AA182: 0 | AB182: 0 | AD182: 0 | AE182: 0 | AF182: 0 | AG182: 0 | AH182: 0 | AI182: 0 | AJ182: 0 | AK182: 0 | AL182: 0 | AO182: 0 | AP182: 0 | AQ182: 0 | AR182: 0 | AS182: 118346 | AT182: 5229.85 | AU182: 123575.85 | AV182: -123575.85 | AW182: -1.044191185 | AX182: 5917.3 | AY182: 0 | BA182: 0 | BB182: 110274.75 | BC182: 0 | BD182: -110274.75 | BE182: -110274.75 | BF182: 0 | BG182: 0 | BI182: 0 | BJ182: 0 | BK182: 0 | BL182: 0 | BM182: 0 | BN182: 0 | BO182: 0 | BP182: 0 | BQ182: 0 | BR182: 0 | BS182: 0 | BT182: 0 | BU182: 0 | BW182: 0 | BY182: 0 | BZ182: 0 | CB182: 0 | CC182: 0 | CD182: 0 | CF182: 0 | CG182: 0 | CH182: 0 | CI182: 0 | CJ182: 0 | CK182: 0 | CL182: 0 | CM182: 0 | CN182: 0 | CQ182: 0 | CR182: 0 | CS182: 0 | CT182: 0 | CU182: 164908 | CV182: 5917.3 | CW182: 170825.3 | CX182: -170825.3 | CY182: -1.035882431 | CZ182: 8245.4 | DA182: 0
A183: 0180 | B183: 0 | C183: 1 | D183: 2023-11-29 | H183: 0 | I183: 0 | J183: 0 | K183: 0 | L183: 0 | M183: 0 | N183: 0 | O183: 0 | P183: 0 | Q183: 0 | R183: 0 | S183: 0 | T183: 0 | V183: 0 | X183: 0 | Y183: 0 | Z183: 0 | AA183: 0 | AB183: 0 | AD183: 0 | AE183: 0 | AF183: 0 | AG183: 0 | AH183: 0 | AI183: 0 | AJ183: 0 | AK183: 0 | AL183: 0 | AO183: 0 | AP183: 0 | AQ183: 0 | AR183: 0 | AS183: 202094 | AT183: 7213.5 | AU183: 209307.5 | AV183: -209307.5 | AW183: -1.035693786 | AX183: 10104.7 | AY183: 0 | BA183: 0 | BB183: 151600 | BC183: 0 | BD183: -151600 | BE183: -151600 | BF183: 0 | BG183: 0 | BI183: 0 | BJ183: 0 | BK183: 0 | BL183: 0 | BM183: 0 | BN183: 0 | BO183: 0 | BP183: 0 | BQ183: 0 | BR183: 0 | BS183: 0 | BT183: 0 | BU183: 0 | BW183: 0 | BY183: 0 | BZ183: 0 | CB183: 0 | CC183: 0 | CD183: 0 | CF183: 0 | CG183: 0 | CH183: 0 | CI183: 0 | CJ183: 0 | CK183: 0 | CL183: 0 | CM183: 0 | CN183: 0 | CQ183: 0 | CR183: 0 | CS183: 0 | CT183: 0 | CU183: 172690 | CV183: 10104.7 | CW183: 182794.7 | CX183: -182794.7 | CY183: -1.058513521 | CZ183: 8634.5 | DA183: 0
A184: 0181 | B184: 1 | C184: 1 | D184: 2023-10-26 | E184: 1 | F184: 1 | G184: 1 | H184: 1807502.44 | I184: 59510274 | J184: 1825412 | K184: 430 | L184: 1493736 | M184: 7138441.13 | N184: 99658 | O184: 110936 | P184: 0 | Q184: 3366 | R184: 0 | S184: 10955128 | T184: 82944883.57 | V184: 1000000 | X184: 1000000 | Y184: 81944883.57 | Z184: 671943 | AA184: 0 | AB184: 0 | AD184: 407150 | AE184: 402390 | AF184: 3848796 | AG184: 5963376 | AH184: 7067387 | AI184: 0 | AJ184: 0 | AK184: 3427305.218 | AL184: 21788347.22 | AO184: 963599.3004 | AP184: 963599.3004 | AQ184: 20824747.92 | AR184: 102769631.5 | AS184: 99305682 | AT184: 0 | AU184: 99305682 | AV184: 0 | AW184: 0 | AX184: 0 | AY184: 0 | BA184: 0 | BB184: 89540204 | BC184: 94221810.64 | BD184: 4681606.645 | BE184: 4681606.645 | BF184: 0 | BG184: 1000000 | BI184: 2021535 | BJ184: 66077693 | BK184: 2381854 | BL184: 0 | BM184: 1489448 | BN184: 7949803 | BO184: 135000 | BP184: 226850 | BQ184: 0 | BR184: 2300 | BS184: 0 | BT184: 10297397 | BU184: 90581880 | BW184: 0 | BY184: 0 | BZ184: 90581880 | CB184: 763664 | CC184: 0 | CD184: 0 | CF184: 420069 | CG184: 432431 | CH184: 3939791 | CI184: 5734902 | CJ184: 6412128 | CK184: 0 | CL184: 0 | CM184: 2897354 | CN184: 20600339 | CQ184: 573058.4 | CR184: 573058.4 | CS184: 20027280.6 | CT184: 110609160.6 | CU184: 109298850 | CV184: 0 | CW184: 109298850 | CX184: 0 | CY184: 0 | CZ184: 0 | DA184: 0
A185: 0182 | B185: 1 | C185: 1 | D185: 2023-12-12 | E185: 1 | F185: 1 | G185: 1 | H185: 1022739.31 | I185: 31049754.84 | J185: 823473.22 | K185: 0 | L185: 679293.72 | M185: 3595303.47 | N185: 63144.13 | O185: 0 | P185: 0 | Q185: 0 | R185: 0 | S185: 1484433.65 | T185: 38718142.34 | V185: 0 | X185: 0 | Y185: 38718142.34 | Z185: 260739 | AA185: 0 | AB185: 0 | AD185: 0 | AE185: 38061 | AF185: 2710649 | AG185: 4872942 | AH185: 1904009 | AI185: 0 | AJ185: 1400484 | AK185: 1317322.444 | AL185: 12504206.44 | AO185: 183053.2937 | AP185: 183053.2937 | AQ185: 12321153.15 | AR185: 51039295.49 | AS185: 40901732 | AT185: 0 | AU185: 40901732 | AV185: 0 | AW185: 0 | AX185: 0 | AY185: 0 | BA185: 16654.11 | BB185: 37158860 | BC185: 43988944.88 | BD185: 6830084.876 | BE185: 6813430.766 | BF185: 0 | BG185: 0 | BI185: 1003615 | BJ185: 31158638 | BK185: 899595 | BL185: 0 | BM185: 932197 | BN185: 4035174 | BO185: 100000 | BP185: 0 | BQ185: 0 | BR185: 0 | BS185: 0 | BT185: 712483 | BU185: 38841702 | BW185: 0 | BY185: 0 | BZ185: 38841702 | CB185: 273775 | CC185: 0 | CD185: 0 | CF185: 0 | CG185: 54563 | CH185: 2931358 | CI185: 5189791 | CJ185: 2028302 | CK185: 0 | CL185: 1407056 | CM185: 1369203 | CN185: 13254048 | CQ185: 40767.6 | CR185: 40767.6 | CS185: 13213280.4 | CT185: 52054982.4 | CU185: 44333813 | CV185: 0 | CW185: 44333813 | CX185: 0 | CY185: 0 | CZ185: 0 | DA185: 0
A186: 0183 | B186: 0 | C186: 0 | H186: 0 | I186: 0 | J186: 0 | K186: 0 | L186: 0 | M186: 0 | N186: 0 | O186: 0 | P186: 0 | Q186: 0 | R186: 0 | S186: 0 | T186: 0 | V186: 0 | X186: 0 | Y186: 0 | Z186: 0 | AA186: 0 | AB186: 0 | AD186: 0 | AE186: 0 | AF186: 0 | AG186: 0 | AH186: 0 | AI186: 0 | AJ186: 0 | AK186: 0 | AL186: 0 | AO186: 0 | AP186: 0 | AQ186: 0 | AR186: 0 | AS186: 52142 | AT186: 0 | AU186: 52142 | AV186: -52142 | AW186: -1 | AX186: 2607.1 | AY186: 0 | BA186: 0 | BB186: 52771.9 | BC186: 60225 | BD186: 7453.1 | BE186: 7453.1 | BF186: 0 | BG186: 0 | BI186: 0 | BJ186: 0 | BK186: 0 | BL186: 0 | BM186: 0 | BN186: 0 | BO186: 0 | BP186: 0 | BQ186: 0 | BR186: 0 | BS186: 0 | BT186: 0 | BU186: 0 | BW186: 0 | BY186: 0 | BZ186: 0 | CB186: 0 | CC186: 0 | CD186: 0 | CF186: 0 | CG186: 0 | CH186: 0 | CI186: 0 | CJ186: 0 | CK186: 0 | CL186: 0 | CM186: 0 | CN186: 0 | CQ186: 0 | CR186: 0 | CS186: 0 | CT186: 0 | CU186: 54105 | CV186: 2607.1 | CW186: 56712.1 | CX186: -56712.1 | CY186: -1.048185935 | CZ186: 2705.25 | DA186: 0
A187: 0184 | B187: 1 | C187: 1 | D187: 2023-09-22 | E187: 1 | F187: 1 | G187: 1 | H187: 586330 | I187: 9450508 | J187: 187621 | K187: 97553 | L187: 110000 | M187: 997616 | N187: 35246 | O187: 1476926 | P187: 295361 | Q187: 0 | R187: 0 | S187: 220024 | T187: 13457185 | V187: 0 | X187: 0 | Y187: 13457185 | Z187: 100733 | AA187: 0 | AB187: 5000 | AD187: 198542 | AE187: 50000 | AF187: 489933 | AG187: 0 | AH187: 0 | AI187: 0 | AJ187: 0 | AK187: 48209 | AL187: 892417 | AO187: 1114.701999 | AP187: 1114.701999 | AQ187: 891302.298 | AR187: 14348487.3 | AS187: 8108478 | AT187: 0 | AU187: 8108478 | AV187: 0 | AW187: 0 | AX187: 0 | AY187: 0 | BA187: 10482 | BB187: 7400837 | BC187: 12762769.79 | BD187: 5361932.788 | BE187: 5351450.788 | BF187: 0 | BG187: 0 | BI187: 575501 | BJ187: 9908515 | BK187: 219083 | BL187: 102046 | BM187: 2200 | BN187: 1062754 | BO187: 57000 | BP187: 1565710 | BQ187: 307970 | BR187: 40291 | BS187: 0 | BT187: 328659 | BU187: 14169729 | BW187: 0 | BY187: 0 | BZ187: 14169729 | CB187: 88436 | CC187: 0 | CD187: 5000 | CF187: 202771 | CG187: 50000 | CH187: 555545 | CI187: 0 | CJ187: 0 | CK187: 0 | CL187: 0 | CM187: 19178 | CN187: 920930 | CQ187: 869.8 | CR187: 869.8 | CS187: 920060.2 | CT187: 15089789.2 | CU187: 8683564 | CV187: 0 | CW187: 8683564 | CX187: 0 | CY187: 0 | CZ187: 0 | DA187: 0
A188: 0185 | B188: 1 | C188: 1 | D188: 2023-10-03 | E188: 1 | F188: 1 | G188: 1 | H188: 1664427.88 | I188: 46719787.59 | J188: 1177770.02 | K188: 0 | L188: 991362.5 | M188: 3468427.59 | N188: 51698.09 | O188: 5740 | P188: 0 | Q188: 90586.62 | R188: 0 | S188: 3335415 | T188: 57505215.29 | V188: 0 | X188: 0 | Y188: 57505215.29 | Z188: 474985 | AA188: 0 | AB188: 12997 | AD188: 89498 | AE188: 643204 | AF188: 4809854 | AG188: 7997312 | AH188: 807781.8 | AI188: 0 | AJ188: 0 | AK188: 3746027.683 | AL188: 18581659.48 | AO188: 818598.0042 | AP188: 818598.0042 | AQ188: 17763061.48 | AR188: 75268276.77 | AS188: 66524190 | AT188: 0 | AU188: 66524190 | AV188: 0 | AW188: 0 | AX188: 0 | AY188: 0 | BA188: 0 | BB188: 58526188 | BC188: 68252483.11 | BD188: 9726295.114 | BE188: 9726295.114 | BF188: 0 | BG188: 0 | BI188: 2069163 | BJ188: 53458710 | BK188: 1212571 | BL188: 0 | BM188: 1064476 | BN188: 3601928 | BO188: 65000 | BP188: 0 | BQ188: 0 | BR188: 27500 | BS188: 0 | BT188: 4087860 | BU188: 65587208 | BW188: 0 | BY188: 0 | BZ188: 65587208 | CB188: 476132 | CC188: 0 | CD188: 20818 | CF188: 92636 | CG188: 677311 | CH188: 5048106 | CI188: 9002820 | CJ188: 1107095.5 | CK188: 0 | CL188: 0 | CM188: 4347025 | CN188: 20771943.5 | CQ188: 819191.6 | CR188: 819191.6 | CS188: 19952751.9 | CT188: 85539959.9 | CU188: 75437511 | CV188: 0 | CW188: 75437511 | CX188: 0 | CY188: 0 | CZ188: 0 | DA188: 0
A189: 0186 | B189: 1 | C189: 1 | D189: 2023-09-28 | E189: 1 | F189: 1 | G189: 1 | H189: 641968 | I189: 17663559 | J189: 285761 | K189: 0 | L189: 566245 | M189: 2450647 | N189: 42039 | O189: 0 | P189: 0 | Q189: 0 | R189: 0 | S189: 1240584 | T189: 22890803 | V189: 30000 | X189: 30000 | Y189: 22860803 | Z189: 128954 | AA189: 255000 | AB189: 3215 | AD189: 0 | AE189: 70972 | AF189: 1142243 | AG189: 3227806 | AH189: 993008 | AI189: 0 | AJ189: 0 | AK189: 621560.9329 | AL189: 6442758.933 | AO189: 28391.13864 | AP189: 28391.13864 | AQ189: 6414367.794 | AR189: 29275170.79 | AS189: 20915573 | AT189: 0 | AU189: 20915573 | AV189: 0 | AW189: 0 | AX189: 0 | AY189: 0 | BA189: 76778 | BB189: 19976867 | BC189: 27626692.28 | BD189: 7649825.284 | BE189: 7573047.284 | BF189: 0 | BG189: 30000 | BI189: 768570 | BJ189: 18142104 | BK189: 304285 | BL189: 0 | BM189: 564383 | BN189: 2009121 | BO189: 14028 | BP189: 0 | BQ189: 0 | BR189: 0 | BS189: 0 | BT189: 1663341 | BU189: 23465832 | BW189: 10000 | BY189: 10000 | BZ189: 23455832 | CB189: 129743 | CC189: 90000 | CD189: 4088 | CF189: 0 | CG189: 65796 | CH189: 1213626 | CI189: 3541137 | CJ189: 1067185 | CK189: 0 | CL189: 0 | CM189: 586373 | CN189: 6697948 | CQ189: 0 | CR189: 0 | CS189: 6697948 | CT189: 30153780 | CU189: 22434599 | CV189: 0 | CW189: 22434599 | CX189: 0 | CY189: 0 | CZ189: 0 | DA189: 0
A190: 0187 | B190: 1 | C190: 1 | D190: 2023-11-07 | E190: 1 | F190: 1 | G190: 1 | H190: 639510.25 | I190: 13581151.3 | J190: 178368.07 | K190: 0 | L190: 383149.84 | M190: 1631235.81 | N190: 0 | O190: 76637.61 | P190: 0 | Q190: 49919.65 | R190: 0 | S190: 1144439.59 | T190: 17684412.12 | V190: 0 | X190: 0 | Y190: 17684412.12 | Z190: 420693 | AA190: 1195 | AB190: 5824 | AD190: 0 | AE190: 149048 | AF190: 829779.89 | AG190: 2098231.41 | AH190: 474538.07 | AI190: 69835 | AJ190: 0 | AK190: 308755.8826 | AL190: 4357900.253 | AO190: 55491.36385 | AP190: 55491.36385 | AQ190: 4302408.889 | AR190: 21986821.01 | AS190: 14883765 | AT190: 0 | AU190: 14883765 | AV190: 0 | AW190: 0 | AX190: 0 | AY190: 0 | BA190: 8822 | BB190: 13958306 | BC190: 20655259.97 | BD190: 6696953.973 | BE190: 6688131.973 | BF190: 0 | BG190: 0 | BI190: 640608 | BJ190: 14279530.06 | BK190: 204511 | BL190: 6319 | BM190: 411675 | BN190: 1659529 | BO190: 0 | BP190: 76276 | BQ190: 0 | BR190: 59823 | BS190: 0 | BT190: 857249 | BU190: 18195520.06 | BW190: 0 | BY190: 0 | BZ190: 18195520.06 | CB190: 426805.78 | CC190: 1194 | CD190: 301.05 | CF190: 0 | CG190: 159963.1 | CH190: 829779.89 | CI190: 2114354.41 | CJ190: 474538.07 | CK190: 0 | CL190: 0 | CM190: 175224 | CN190: 4182160.3 | CQ190: 27717.8 | CR190: 27717.8 | CS190: 4154442.5 | CT190: 22349962.56 | CU190: 16039203 | CV190: 0 | CW190: 16039203 | CX190: 0 | CY190: 0 | CZ190: 0 | DA190: 0
A191: 0188 | B191: 0 | C191: 1 | D191: 2023-10-26 | H191: 0 | I191: 0 | J191: 0 | K191: 0 | L191: 0 | M191: 0 | N191: 0 | O191: 0 | P191: 0 | Q191: 0 | R191: 0 | S191: 0 | T191: 0 | V191: 0 | X191: 0 | Y191: 0 | Z191: 0 | AA191: 0 | AB191: 0 | AD191: 0 | AE191: 0 | AF191: 0 | AG191: 0 | AH191: 0 | AI191: 0 | AJ191: 0 | AK191: 153849 | AL191: 153849 | AO191: 0 | AP191: 0 | AQ191: 153849 | AR191: 153849 | AS191: 141279 | AT191: 0 | AU191: 141279 | AV191: 0 | AW191: 0 | AX191: 0 | AY191: 0 | BA191: 0 | BB191: 128114 | BC191: 183632 | BD191: 55518 | BE191: 55518 | BF191: 0 | BG191: 0 | BI191: 0 | BJ191: 0 | BK191: 0 | BL191: 0 | BM191: 0 | BN191: 0 | BO191: 0 | BP191: 0 | BQ191: 0 | BR191: 0 | BS191: 0 | BT191: 0 | BU191: 0 | BW191: 0 | BY191: 0 | BZ191: 0 | CB191: 0 | CC191: 0 | CD191: 0 | CF191: 0 | CG191: 0 | CH191: 0 | CI191: 0 | CJ191: 0 | CK191: 0 | CL191: 0 | CM191: 153849 | CN191: 153849 | CQ191: 0 | CR191: 0 | CS191: 153849 | CT191: 153849 | CU191: 120681 | CV191: 0 | CW191: 120681 | CX191: 0 | CY191: 0 | CZ191: 0 | DA191: 0
A192: 0189 | B192: 1 | C192: 1 | D192: 2023-09-28 | E192: 1 | F192: 1 | G192: 1 | H192: 2229686 | I192: 44002945.42 | J192: 791194 | K192: 174716 | L192: 1391811 | M192: 4209966 | N192: 74933 | O192: 0 | P192: 0 | Q192: 0 | R192: 0 | S192: 2958314 | T192: 55833565.42 | V192: 0 | X192: 0 | Y192: 55833565.42 | Z192: 244514 | AA192: 0 | AB192: 0 | AD192: 0 | AE192: 1628911 | AF192: 1314590 | AG192: 9388769 | AH192: 891003 | AI192: 0 | AJ192: 0 | AK192: 355454.3618 | AL192: 13823241.36 | AO192: 173072.696 | AP192: 173072.696 | AQ192: 13650168.67 | AR192: 69483734.09 | AS192: 51259127 | AT192: 0 | AU192: 51259127 | AV192: 0 | AW192: 0 | AX192: 0 | AY192: 0 | BA192: 0 | BB192: 48454883 | BC192: 66387422.93 | BD192: 17932539.93 | BE192: 17932539.93 | BF192: 0 | BG192: 0 | BI192: 1675550 | BJ192: 47512613 | BK192: 836900 | BL192: 204000 | BM192: 1116600 | BN192: 4372600 | BO192: 88800 | BP192: 0 | BQ192: 0 | BR192: 0 | BS192: 0 | BT192: 3335000 | BU192: 59142063 | BW192: 0 | BY192: 0 | BZ192: 59142063 | CB192: 249624 | CC192: 0 | CD192: 0 | CF192: 0 | CG192: 1724638 | CH192: 1340882 | CI192: 9628924 | CJ192: 1106056.7 | CK192: 0 | CL192: 0 | CM192: 393014 | CN192: 14443138.7 | CQ192: 190992.2 | CR192: 190992.2 | CS192: 14252146.5 | CT192: 73394209.5 | CU192: 53957476 | CV192: 0 | CW192: 53957476 | CX192: 0 | CY192: 0 | CZ192: 0 | DA192: 0
A193: 0190 | B193: 0 | C193: 1 | D193: 2023-12-18 | F193: 1 | H193: 0 | I193: 0 | J193: 0 | K193: 0 | L193: 0 | M193: 0 | N193: 0 | O193: 0 | P193: 0 | Q193: 0 | R193: 0 | S193: 0 | T193: 0 | V193: 0 | X193: 0 | Y193: 0 | Z193: 0 | AA193: 0 | AB193: 0 | AD193: 0 | AE193: 0 | AF193: 0 | AG193: 0 | AH193: 0 | AI193: 0 | AJ193: 0 | AK193: 197062.8108 | AL193: 197062.8108 | AO193: 0 | AP193: 0 | AQ193: 197062.8108 | AR193: 197062.8108 | AS193: 226092 | AT193: 7546.4 | AU193: 233638.4 | AV193: -36575.5892 | AW193: -0.1617730358 | AX193: 11304.6 | AY193: 0 | BA193: 0 | BB193: 150928 | BC193: 25041.78 | BD193: -125886.22 | BE193: -125886.22 | BF193: 0 | BG193: 0 | BI193: 0 | BJ193: 0 | BK193: 0 | BL193: 0 | BM193: 0 | BN193: 0 | BO193: 0 | BP193: 0 | BQ193: 0 | BR193: 0 | BS193: 0 | BT193: 0 | BU193: 0 | BW193: 0 | BY193: 0 | BZ193: 0 | CB193: 16222.73 | CC193: 23068 | CD193: 0 | CF193: 0 | CG193: 0 | CH193: 0 | CI193: 4983 | CJ193: 0 | CK193: 1050 | CL193: 0 | CM193: 253667 | CN193: 298990.73 | CQ193: 0 | CR193: 0 | CS193: 298990.73 | CT193: 298990.73 | CU193: 214805 | CV193: 11304.6 | CW193: 226109.6 | CX193: 0 | CY193: 0 | CZ193: 0 | DA193: 0
A194: 0191 | B194: 1 | C194: 0 | G194: 1 | H194: 0 | I194: 0 | J194: 0 | K194: 0 | L194: 0 | M194: 0 | N194: 0 | O194: 0 | P194: 0 | Q194: 0 | R194: 0 | S194: 0 | T194: 0 | V194: 0 | X194: 0 | Y194: 0 | Z194: 150896 | AA194: 0 | AB194: 0 | AD194: 0 | AE194: 92117 | AF194: 0 | AG194: 0 | AH194: 0 | AI194: 0 | AJ194: 0 | AK194: 0 | AL194: 243013 | AO194: 0 | AP194: 0 | AQ194: 243013 | AR194: 243013 | AS194: 13883580 | AT194: 0 | AU194: 13883580 | AV194: -13640567 | AW194: -0.9824963734 | AX194: 694179 | AY194: -12946388 | BA194: 0 | BB194: 13575013 | BC194: 14630590.11 | BD194: 1055577.114 | BE194: 1055577.114 | BF194: 0 | BG194: 0 | BI194: 0 | BJ194: 0 | BK194: 0 | BL194: 0 | BM194: 0 | BN194: 0 | BO194: 0 | BP194: 0 | BQ194: 0 | BR194: 0 | BS194: 0 | BT194: 0 | BU194: 0 | BW194: 0 | BY194: 0 | BZ194: 0 | CB194: 0 | CC194: 0 | CD194: 0 | CF194: 0 | CG194: 0 | CH194: 0 | CI194: 0 | CJ194: 0 | CK194: 0 | CL194: 0 | CM194: 909328 | CN194: 909328 | CQ194: 43291.2 | CR194: 43291.2 | CS194: 866036.8 | CT194: 866036.8 | CU194: 14062312 | CV194: 694179 | CW194: 14756491 | CX194: -13890454.2 | CY194: -0.9877788375 | CZ194: 703115.6 | DA194: -13187338.6
A195: 0192 | B195: 0 | C195: 1 | D195: 2023-09-26 | H195: 0 | I195: 0 | J195: 0 | K195: 0 | L195: 0 | M195: 0 | N195: 0 | O195: 0 | P195: 0 | Q195: 0 | R195: 0 | S195: 0 | T195: 0 | V195: 0 | X195: 0 | Y195: 0 | Z195: 0 | AA195: 0 | AB195: 0 | AD195: 0 | AE195: 0 | AF195: 0 | AG195: 0 | AH195: 0 | AI195: 0 | AJ195: 0 | AK195: 35929 | AL195: 35929 | AO195: 0 | AP195: 0 | AQ195: 35929 | AR195: 35929 | AS195: 0 | AT195: 0 | AU195: 0 | AV195: 0 | AW195: 0 | AX195: 0 | AY195: 0 | BA195: 0 | BB195: 0 | BC195: 15462 | BD195: 15462 | BE195: 15462 | BF195: 0 | BG195: 0 | BI195: 0 | BJ195: 0 | BK195: 0 | BL195: 0 | BM195: 0 | BN195: 0 | BO195: 0 | BP195: 0 | BQ195: 0 | BR195: 0 | BS195: 0 | BT195: 0 | BU195: 0 | BW195: 0 | BY195: 0 | BZ195: 0 | CB195: 0 | CC195: 0 | CD195: 0 | CF195: 0 | CG195: 0 | CH195: 0 | CI195: 0 | CJ195: 0 | CK195: 0 | CL195: 0 | CM195: 23000 | CN195: 23000 | CQ195: 0 | CR195: 0 | CS195: 23000 | CT195: 23000 | CU195: 16491 | CV195: 0 | CW195: 16491 | CX195: 0 | CY195: 0 | CZ195: 0 | DA195: 0
A196: 0193 | B196: 0 | C196: 1 | D196: 2024-01-25 | H196: 0 | I196: 0 | J196: 0 | K196: 0 | L196: 0 | M196: 0 | N196: 0 | O196: 0 | P196: 0 | Q196: 0 | R196: 0 | S196: 0 | T196: 0 | V196: 0 | X196: 0 | Y196: 0 | Z196: 0 | AA196: 0 | AB196: 0 | AD196: 0 | AE196: 0 | AF196: 0 | AG196: 0 | AH196: 0 | AI196: 0 | AJ196: 0 | AK196: 0 | AL196: 0 | AO196: 0 | AP196: 0 | AQ196: 0 | AR196: 0 | AS196: 0 | AT196: 0 | AU196: 0 | AV196: 0 | AW196: 0 | AX196: 0 | AY196: 0 | BA196: 0 | BB196: 0 | BC196: 0 | BD196: 0 | BE196: 0 | BF196: 0 | BG196: 0 | BI196: 0 | BJ196: 0 | BK196: 0 | BL196: 0 | BM196: 0 | BN196: 0 | BO196: 0 | BP196: 0 | BQ196: 0 | BR196: 0 | BS196: 0 | BT196: 0 | BU196: 0 | BW196: 0 | BY196: 0 | BZ196: 0 | CB196: 0 | CC196: 0 | CD196: 0 | CF196: 0 | CG196: 0 | CH196: 0 | CI196: 0 | CJ196: 0 | CK196: 0 | CL196: 0 | CM196: 0 | CN196: 0 | CQ196: 0 | CR196: 0 | CS196: 0 | CT196: 0 | CU196: 0 | CV196: 0 | CW196: 0 | CX196: 0 | CY196: 0 | CZ196: 0 | DA196: 0
A197: 0194 | B197: 0 | C197: 0 | H197: 0 | I197: 0 | J197: 0 | K197: 0 | L197: 0 | M197: 0 | N197: 0 | O197: 0 | P197: 0 | Q197: 0 | R197: 0 | S197: 0 | T197: 0 | V197: 0 | X197: 0 | Y197: 0 | Z197: 0 | AA197: 0 | AB197: 0 | AD197: 0 | AE197: 0 | AF197: 0 | AG197: 0 | AH197: 0 | AI197: 0 | AJ197: 0 | AK197: 0 | AL197: 0 | AO197: 0 | AP197: 0 | AQ197: 0 | AR197: 0 | AS197: 59472 | AT197: 3524.95 | AU197: 62996.95 | AV197: -62996.95 | AW197: -1.059270749 | AX197: 2973.6 | AY197: 0 | BA197: 0 | BB197: 74973.3 | BC197: 66382 | BD197: -8591.3 | BE197: -8591.3 | BF197: 0 | BG197: 0 | BI197: 0 | BJ197: 0 | BK197: 0 | BL197: 0 | BM197: 0 | BN197: 0 | BO197: 0 | BP197: 0 | BQ197: 0 | BR197: 0 | BS197: 0 | BT197: 0 | BU197: 0 | BW197: 0 | BY197: 0 | BZ197: 0 | CB197: 0 | CC197: 0 | CD197: 0 | CF197: 0 | CG197: 0 | CH197: 0 | CI197: 0 | CJ197: 0 | CK197: 0 | CL197: 0 | CM197: 6343 | CN197: 6343 | CQ197: 0 | CR197: 0 | CS197: 6343 | CT197: 6343 | CU197: 58241 | CV197: 2973.6 | CW197: 61214.6 | CX197: -54871.6 | CY197: -0.9421472846 | CZ197: 2912.05 | DA197: 0
A198: 0195 | B198: 0 | C198: 0 | H198: 0 | I198: 0 | J198: 0 | K198: 0 | L198: 0 | M198: 0 | N198: 0 | O198: 0 | P198: 0 | Q198: 0 | R198: 0 | S198: 0 | T198: 0 | V198: 0 | X198: 0 | Y198: 0 | Z198: 0 | AA198: 0 | AB198: 0 | AD198: 0 | AE198: 0 | AF198: 0 | AG198: 0 | AH198: 0 | AI198: 0 | AJ198: 0 | AK198: 0 | AL198: 0 | AO198: 0 | AP198: 0 | AQ198: 0 | AR198: 0 | AS198: 47889 | AT198: 0 | AU198: 47889 | AV198: -47889 | AW198: -1 | AX198: 2394.45 | AY198: 0 | BA198: 0 | BB198: 43813 | BC198: 130284.16 | BD198: 86471.16 | BE198: 86471.16 | BF198: 0 | BG198: 0 | BI198: 0 | BJ198: 0 | BK198: 0 | BL198: 0 | BM198: 0 | BN198: 0 | BO198: 0 | BP198: 0 | BQ198: 0 | BR198: 0 | BS198: 0 | BT198: 0 | BU198: 0 | BW198: 0 | BY198: 0 | BZ198: 0 | CB198: 0 | CC198: 0 | CD198: 0 | CF198: 0 | CG198: 0 | CH198: 0 | CI198: 0 | CJ198: 0 | CK198: 0 | CL198: 0 | CM198: 0 | CN198: 0 | CQ198: 0 | CR198: 0 | CS198: 0 | CT198: 0 | CU198: 78958 | CV198: 2394.45 | CW198: 81352.45 | CX198: -81352.45 | CY198: -1.030325616 | CZ198: 3947.9 | DA198: 0
A199: 0196 | B199: 1 | C199: 1 | D199: 2023-10-04 | E199: 1 | F199: 1 | G199: 1 | H199: 142767 | I199: 1116360 | J199: 83616 | K199: 0 | L199: 1847 | M199: 387808 | N199: 0 | O199: 0 | P199: 0 | Q199: 5942 | R199: 0 | S199: 2058323 | T199: 3796663 | V199: 3000 | X199: 3000 | Y199: 3793663 | Z199: 280380 | AA199: 0 | AB199: 0 | AD199: 0 | AE199: 119830 | AF199: 127154 | AG199: 223523 | AH199: 45805.2 | AI199: 0 | AJ199: 0 | AK199: 225583 | AL199: 1022275.2 | AO199: 109907.6875 | AP199: 109907.6875 | AQ199: 912367.5125 | AR199: 4706030.513 | AS199: 2902964 | AT199: 0 | AU199: 2902964 | AV199: 0 | AW199: 0 | AX199: 0 | AY199: 0 | BA199: 0 | BB199: 2878958 | BC199: 4428859.801 | BD199: 1549901.801 | BE199: 1549901.801 | BF199: 0 | BG199: 3000 | BI199: 133825 | BJ199: 1393805 | BK199: 83733 | BL199: 0 | BM199: 7234 | BN199: 311853 | BO199: 0 | BP199: 0 | BQ199: 0 | BR199: 7462 | BS199: 0 | BT199: 2134549 | BU199: 4072461 | BW199: 0 | BY199: 0 | BZ199: 4072461 | CB199: 274687 | CC199: 0 | CD199: 0 | CF199: 0 | CG199: 131338 | CH199: 129487 | CI199: 251221 | CJ199: 32525.5 | CK199: 0 | CL199: 0 | CM199: 201925 | CN199: 1021183.5 | CQ199: 63789.2 | CR199: 63789.2 | CS199: 957394.3 | CT199: 5029855.3 | CU199: 2998777 | CV199: 0 | CW199: 2998777 | CX199: 0 | CY199: 0 | CZ199: 0 | DA199: 0
A200: 0197 | B200: 1 | C200: 1 | D200: 2023-09-29 | E200: 1 | F200: 1 | G200: 1 | H200: 842865 | I200: 24554974.5 | J200: 357103 | K200: 2289 | L200: 1148558 | M200: 4130552 | N200: 86601 | O200: 399408 | P200: 0 | Q200: 117513 | R200: 0 | S200: 751497 | T200: 32391360.5 | V200: 0 | X200: 0 | Y200: 32391360.5 | Z200: 237492 | AA200: 0 | AB200: 0 | AD200: 0 | AE200: 0 | AF200: 1527987 | AG200: 6555720 | AH200: 1031284.2 | AI200: 0 | AJ200: 0 | AK200: 68726 | AL200: 9421209.2 | AO200: 22736.8 | AP200: 22736.8 | AQ200: 9398472.4 | AR200: 41789832.9 | AS200: 22613558 | AT200: 0 | AU200: 22613558 | AV200: 0 | AW200: 0 | AX200: 0 | AY200: 0 | BA200: 0 | BB200: 20233402 | BC200: 39798147 | BD200: 19564745 | BE200: 19564745 | BF200: 0 | BG200: 0 | BI200: 1826961 | BJ200: 27593492 | BK200: 390755 | BL200: 0 | BM200: 926424 | BN200: 4544262 | BO200: 15000 | BP200: 457593 | BQ200: 0 | BR200: 90000 | BS200: 0 | BT200: 650000 | BU200: 36494487 | BW200: 0 | BY200: 0 | BZ200: 36494487 | CB200: 244178 | CC200: 0 | CD200: 0 | CF200: 0 | CG200: 0 | CH200: 1621011 | CI200: 7181486 | CJ200: 1237904.5 | CK200: 0 | CL200: 0 | CM200: 22401 | CN200: 10306980.5 | CQ200: 14612 | CR200: 14612 | CS200: 10292368.5 | CT200: 46786855.5 | CU200: 25201462 | CV200: 0 | CW200: 25201462 | CX200: 0 | CY200: 0 | CZ200: 0 | DA200: 0
... 247 more rows

Sheet Report
D1: Massachusetts Department of Elementary and Secondary Education | H1: February 2024
D2: Office of School Finance
D3: Chapter 70 Net School Spending Compliance, FY23
A4: lea lookup------------> | B4: =VLOOKUP(D4, lea, 2, FALSE) -> 0001 | D4: Abington | E4: School Committee | F4: City/Town | H4: Total
A5: SC Lookup | B5: Muni Lookup
A6: 8 | B6: 26 | C6: 1 | D6: Administration (1000) | E6: =VLOOKUP($B$4, nsscalc,A6, FALSE) -> 791190.52 | F6: =VLOOKUP($B$4, nsscalc,B6, FALSE) -> 109468 | G6: * | H6: =SUM(E6:F6) -> 900658.52 | Q6: =H6-M6 -> 900658.52
A7: 9 | B7: 27 | C7: 2 | D7: Instruction (2000) | E7: 20005494.9 | F7: 56710 | G7: * | H7: =SUM(E7:F7) -> 20062204.9 | Q7: =H7-M7 -> 20062204.9
A8: 10 | B8: 28 | C8: 3 | D8: Attendance-Health (3100, 3200) | E8: 309091.11 | F8: 0 | G8: * | H8: 309091.11 | Q8: 309091.11
A9: 11 | B9: 29 | C9: 4 | D9: Food Services (3400) | E9: 0 | F9: 0 | H9: 0 | Q9: 0
A10: 12 | B10: 30 | C10: 5 | D10: Athletics/Student Activities/Security (3500, 3600) | E10: 563193.35 | F10: 0 | H10: 563193.35 | Q10: 563193.35
A11: 13 | B11: 31 | C11: 6 | D11: Maintenance (4000) | E11: 2375902.64 | F11: 60615 | G11: * | H11: 2436517.64 | Q11: 2436517.64
A12: 14 | B12: 32 | C12: 7 | D12: Employer Retirement Contributions (5100) | E12: 102423.55 | F12: 1099666 | H12: 1202089.55 | Q12: 1202089.55
A13: 15 | B13: 33 | C13: 8 | D13: Insurance (5200) | E13: 0 | F13: 4362955 | H13: 4362955 | Q13: 4362955
A14: 16 | B14: 34 | C14: 9 | D14: Retired Employee Insurance (5250) | E14: 0 | F14: =VLOOKUP($B$4, nsscalc,B14, FALSE) -> 901244 | H14: 901244 | Q14: 901244
A15: 17 | B15: 35 | C15: 10 | D15: Rentals (5300) | E15: 0 | F15: 0 | G15: * | H15: 0 | Q15: 0
A16: 18 | B16: 36 | C16: 11 | D16: Short Term Interest (5400) | E16: 0 | F16: 0 | H16: 0 | Q16: 0
A17: 19 | B17: 37 | C17: 12 | D17: Tuition (9000) | E17: 1662377.93 | F17: =VLOOKUP($B$4, nsscalc,B17, FALSE) -> 1048363.304 | H17: 2710741.234 | Q17: 2710741.234
A18: 20 | B18: 38 | C18: 13 | D18: Total School Spending (lines 1 through 12) | E18: 25809674 | F18: 7639021.304 | H18: 33448695.3 | Q18: 33448695.3
A19: 21 | B19: 39 | C19: 14 | D19: FY23 School Revenues | Q19: 0
A20: 22 | B20: 40 | D20: 14a) FY23 School Revenues * | E20: 0 | F20: 0 | H20: 0 | Q20: 0
A21: 23 | B21: 41 | D21: 14b) FY23 Charter Reimbursement | E21: 0 | F21: 285875.92 | H21: 285875.92 | Q21: 285875.92
A22: 24 | B22: 42 | D22: 14c) Subtotal, School Revenues (14a + 14b) | E22: 0 | F22: 285875.92 | H22: 285875.92 | Q22: 285875.92
Q23: 0
A24: 25 | B24: 43 | C24: 15 | D24: FY23 Net School Spending (13 - 14) | E24: =VLOOKUP($B$4, nsscalc,A24, FALSE) -> 25809674 | F24: =VLOOKUP($B$4, nsscalc,B24, FALSE) -> 7353145.384 | H24: 33162819.38 | Q24: 33162819.38
B25: 45 | C25: 16 | D25: FY23 Chapter 70 Required Net School Spending | H25: =VLOOKUP($B$4, nsscalc, B25, FALSE) -> 29563171 | Q25: 29563171
B26: 46 | C26: 17 | D26: Carryover from FY22 | H26: =VLOOKUP($B$4, nsscalc, B26, FALSE) -> 0 | Q26: 0
B27: 47 | C27: 18 | D27: Total FY23 Net School Spending Requirement (16 + 17) | H27: =VLOOKUP($B$4, nsscalc, B27, FALSE) -> 29563171 | Q27: 29563171
Q28: 0
B29: 48 | C29: 19 | D29: Shortfall in Net School Spending (15 - 18) | H29: =VLOOKUP($B$4, nsscalc, B29, FALSE) -> 0 | Q29: 0
B30: 49 | C30: 20 | D30: Carryover/Penalty Calculation, Percent Unexpended (19 / 16) | H30: =VLOOKUP($B$4, nsscalc, B30, FALSE) -> 0 | Q30: 0
B31: 50 | C31: 21 | D31: FY23 Carry-Over into FY24 (Line 19 or 5% of line 16 ) | H31: =VLOOKUP($B$4, nsscalc, B31, FALSE) -> 0 | Q31: 0
B32: 51 | C32: 22 | D32: Penalty (19 - 21) | H32: =VLOOKUP($B$4, nsscalc, B32, FALSE) -> 0
D33: * Budgeted amounts as reported on FY22 End of Year Pupil and Financial Report, Schedule 19
D35: Massachusetts Department of Elementary and Secondary Education
D36: Office of School Finance
D37: Chapter 70 Net School Spending Compliance, Budgeted FY24
D38: =D4 -> Abington | E38: School Committee | F38: City/Town | H38: Total
A39: 61 | B39: 80 | C39: 1 | D39: Administration (1000) | E39: =VLOOKUP($B$4, nsscalc,A39, FALSE) -> 1114757 | F39: =VLOOKUP($B$4, nsscalc,B39, FALSE) -> 116078 | H39: =SUM(E39:F39) -> 1230835
A40: 62 | B40: 81 | C40: 2 | D40: Instruction (2000) | E40: 19453998 | F40: =VLOOKUP($B$4, nsscalc,B40, FALSE) -> 58409 | H40: =SUM(E40:F40) -> 19512407
A41: 63 | B41: 82 | C41: 3 | D41: Attendance-Health (3100, 3200) | E41: 400287 | F41: 0 | H41: 400287
A42: 64 | B42: 83 | C42: 4 | D42: Food Services (3400) | E42: 0 | F42: 0 | H42: 0
A43: 65 | B43: 84 | C43: 5 | D43: Athletics/Student Activities/Security (3500, 3600) | E43: =VLOOKUP($B$4, nsscalc,A43, FALSE) -> 255613 | F43: 0 | H43: 255613
A44: 66 | B44: 85 | C44: 6 | D44: Maintenance (4000) | E44: =VLOOKUP($B$4, nsscalc,A44, FALSE) -> 2212849 | F44: 62431 | H44: 2275280
A45: 67 | B45: 86 | C45: 7 | D45: Employer Retirement Contributions (5100) | E45: 45000 | F45: 1204138 | H45: 1249138
A46: 68 | B46: 87 | C46: 8 | D46: Insurance (5200) | E46: 0 | F46: 4617982 | H46: 4617982
A47: 69 | B47: 88 | C47: 9 | D47: Retired Employee Insurance (5250) | E47: 0 | F47: =VLOOKUP($B$4, nsscalc,B47, FALSE) -> 946163 | H47: 946163
A48: 70 | B48: 89 | C48: 10 | D48: Rentals (5300) | E48: 0 | F48: 0 | H48: 0
A49: 71 | B49: 90 | C49: 11 | D49: Short Term Interest (5400) | E49: 0 | F49: 0 | H49: 0
A50: 72 | B50: 91 | C50: 12 | D50: Tuition (9000) | E50: 4187227 | F50: 1098098 | H50: 5285325
A51: 73 | B51: 92 | C51: 13 | D51: FY24 Budgeted School Spending (lines 1 through 12) | E51: 27669731 | F51: 8103299 | H51: 35773030
A52: 74 | B52: 93 | C52: 14 | D52: FY24 Budgeted School Revenues
A53: 75 | B53: 94 | D53: 14a) FY24 Budgeted School Revenues | E53: =VLOOKUP($B$4, nsscalc,A53, FALSE) -> 0 | F53: 0 | H53: 0
A54: 76 | B54: 95 | D54: 14b) FY24 Charter Reimb (local districts) | E54: =VLOOKUP($B$4, nsscalc,A54, FALSE) -> 0 | F54: 260654.6 | H54: 260654.6
A55: 77 | B55: 96 | D55: 14c) Subtotal, NSS Revenues (36a + 36b) | E55: =VLOOKUP($B$4, nsscalc,A55, FALSE) -> 0 | F55: 260654.6 | H55: 260654.6
A57: 78 | B57: 97 | C57: 15 | D57: FY24 Net School Spending (13 - 14) | E57: =VLOOKUP($B$4, nsscalc,A57, FALSE) -> 27669731 | F57: =VLOOKUP($B$4, nsscalc,B57, FALSE) -> 7842644.4 | H57: =SUM(E57:F57) -> 35512375.4
B59: 99 | C59: 16 | D59: FY24 Chapter 70 Required Net School Spending | H59: =VLOOKUP($B$4, nsscalc, B59, FALSE) -> 31287579
B60: 100 | C60: 17 | D60: Carryover from FY23 | H60: =VLOOKUP($B$4, nsscalc, B60, FALSE) -> 0
B61: 101 | C61: 18 | D61: Total FY24 Requirement (16 + 17) | H61: =VLOOKUP($B$4, nsscalc, B61, FALSE) -> 31287579
B63: 102 | C63: 19 | D63: Shortfall in Budgeted FY24 Net School Spending (15 - 18) | H63: =VLOOKUP($B$4, nsscalc, B63, FALSE) -> 0
B64: 103 | C64: 20 | D64: Carryover/Penalty Calculation, Percent Unexpended (19 / 16) | H64: =VLOOKUP($B$4, nsscalc, B64, FALSE) -> 0

Sheet funccodes (hidden)
A1: FuncCode | B1: FuncName | C1: FuncSubttl
A2: 1000 | B2: District Administration
A3: 1110 | B3: School Committee | C3: ADMN
A4: 1210 | B4: Superintendent | C4: ADMN
A5: 1220 | B5: Assistant Superintendents | C5: ADMN
A6: 1230 | B6: Other District-Wide Administration | C6: ADMN
A7: 1400 | B7: Administrative Depts (Finance, Personnel)
A8: 1410 | B8: Business and Finance | C8: ADMN
A9: 1420 | B9: Human Resources and Benefits | C9: ADMN
A10: 1430 | B10: Legal Service for School Committee | C10: ADMN
A11: 1435 | B11: Legal Settlements | C11: ADMN
A12: 1450 | B12: District-wide Information Mgmt & Tech | C12: ADMN
A13: 2000 | B13: Instruction
A14: 2100 | B14: Districtwide Academic Leadership
A15: 2110 | B15: Curriculum Directors (Supervisory) | C15: LDRS
A16: 2120 | B16: Department Heads (Non-Supervisory) | C16: LDRS
A17: 2200 | B17: School Building Leadership
A18: 2210 | B18: School Leadership | C18: LDRS
A19: 2220 | B19: Curriculum/Dept Leaders (School Level) | C19: LDRS
A20: 2250 | B20: Admin. Technology (School Level) | C20: LDRS
A21: 2300 | B21: Instruction - Teaching Services
A22: 2305 | B22: Teachers, Classroom | C22: TCHR
A23: 2310 | B23: Teachers, Specialists | C23: TCHR
A24: 2315 | B24: Instructional Coordinators (Non-Supervisory) | C24: LDRS
A25: 2320 | B25: Medical/ Therapeutic Services | C25: TSER
A26: 2325 | B26: Substitute Teachers | C26: TSER
A27: 2330 | B27: Paraprofessionals | C27: TSER
A28: 2340 | B28: Librarians/Media Center Directors | C28: TSER
A29: 2350 | B29: Professional Development
A30: 2351 | B30: Professional Development Leadership | C30: PDEV
A31: 2353 | B31: Instructional Staff-Professional Days | C31: PDEV
A32: 2355 | B32: Substitutes for Prof. Development | C32: PDEV
A33: 2357 | B33: Prof. Dev. Stipends, Providers, Expenses | C33: PDEV
A34: 2400 | B34: Instructional Materials and Equipment
A35: 2410 | B35: Textbooks, Related Software/Media/Matls | C35: MATL
A36: 2415 | B36: Other Instructional Matls (Libraries) | C36: MATL
A37: 2420 | B37: Instructional Equipment | C37: MATL
A38: 2430 | B38: General Classroom Supplies | C38: MATL
A39: 2440 | B39: Other Instructional Services | C39: MATL
A40: 2450 | B40: Instructional Technology
A41: 2451 | B41: Classroom Instructional Technology | C41: MATL
A42: 2453 | B42: Other Instructional Hardware (Libraries) | C42: MATL
A43: 2455 | B43: Instructional Software | C43: MATL
A44: 2700 | B44: Guidance, Counseling and Testing
A45: 2710 | B45: Guidance incl Adjustment Counselors | C45: GUID
A46: 2720 | B46: Testing and Assessment | C46: GUID
A47: 2800 | B47: Psychological Services | C47: GUID
A48: 3000 | B48: Other School Services
A49: 3100 | B49: Attendance and Parent Liaison Services | C49: SERV
A50: 3132 | B50: Attendance/Health (Sched 19, NSS)
A51: 3200 | B51: Medical/Health Services | C51: SERV
A52: 3300 | B52: Transportation Services | C52: SERV
A53: 3399 | B53: Public Transportation Assessment (NIC Expenditures)
A54: 3400 | B54: Food Services | C54: SERV
A55: 3510 | B55: Athletics | C55: SERV
A56: 3512 | B56: Athletics/Activities/Security (Sched 19, NSS)
A57: 3520 | B57: Other Student Activities | C57: SERV
A58: 3600 | B58: School Security | C58: SERV
A59: 4000 | B59: Operation and Plant Maintenance
A60: 4110 | B60: Custodial Services | C60: OPMN
A61: 4120 | B61: Heating of Buildings | C61: OPMN
A62: 4130 | B62: Utility Services | C62: OPMN
A63: 4200 | B63: Operation and Maintenance
A64: 4210 | B64: Maintenance of Grounds | C64: OPMN
A65: 4220 | B65: Maintenance of Buildings | C65: OPMN
A66: 4225 | B66: Building Security System | C66: OPMN
A67: 4230 | B67: Maintenance of Equipment | C67: OPMN
A68: 4300 | B68: Extraordinary Maintenance | C68: OPMN
A69: 4400 | B69: Networking and Telecommunications | C69: OPMN
A70: 4450 | B70: Technology Maintenance | C70: OPMN
A71: 5000 | B71: Fixed Charges
A72: 5100 | B72: Employer Retirement Contributions | C72: BENE
A73: 5150 | B73: Employee Separation Costs | C73: BENE
A74: 5200 | B74: Insurance for Active Employees | C74: BENE
A75: 5250 | B75: Insurance for Retired School Employees | C75: BENE
A76: 5260 | B76: Other Non-Employee Insurance | C76: BENE
A77: 5300 | B77: Rental Lease of Equipment | C77: BENE
A78: 5350 | B78: Rental Lease of Buildings | C78: BENE
A79: 5400 | B79: Short Term Interest RANs | C79: BENE
A80: 5450 | B80: Short Term Interest BANs | C80: DEBT
A81: 5500 | B81: Other Fixed Charges | C81: BENE
A82: 5550 | B82: School Crossing Guards | C82: BENE
A83: 5990 | B83: Indirect Cost Transfers | C83: INDR
A84: 6000 | B84: Community Services
A85: 6200 | B85: Civic Activities | C85: COMM
A86: 6300 | B86: Recreation Services | C86: COMM
A87: 6800 | B87: Health Services to Non-Public Schools | C87: COMM
A88: 6900 | B88: Transportation to Non-Public Schools | C88: COMM
A89: 6910 | B89: Non-public transportation in-district | C89: COMM
A90: 6920 | B90: Non-public transportation out-of-district | C90: COMM
A91: 7000 | B91: Fixed Assets
A92: 7100 | B92: Purchase of Land and Buildings (7100, 7200) | C92: CAPT
A93: 7200 | B93: Purchase of Land and Buildings (7100, 7200) | C93: CAPT
A94: 7300 | B94: Equipment (7300, 7400) | C94: CAPT
A95: 7350 | B95: Capital Technology | C95: CAPT
A96: 7400 | B96: Equipment (7300, 7400) | C96: CAPT
A97: 7500 | B97: Motor Vehicles (7500, 7600) | C97: CAPT
A98: 7600 | B98: Motor Vehicles (7500, 7600) | C98: CAPT
A99: 8000 | B99: Long Term Debt
A100: 8100 | B100: Debt Retirement/School Construction | C100: DEBT
A101: 8200 | B101: Debt Service/School Construction | C101: DEBT
A102: 8400 | B102: Debt Service/Educ and Other (8400, 8600) | C102: DEBT
A103: 8600 | B103: Debt Service/Educ and Other (8400, 8600) | C103: DEBT
A104: 9000 | B104: Payments to Other Districts
A105: 9100 | B105: Tuition to Mass. Schools | C105: TUIT
A106: 9110 | B106: Tuition for School Choice | C106: TUIT
A107: 9120 | B107: Tuition to Commonwealth Charter Schools | C107: TUIT
A108: 9125 | B108: Tuition to Horace Mann Charter Schools | C108: TUIT
A109: 9200 | B109: Tuition to Out-of-State Schools | C109: TUIT
A110: 9300 | B110: Tuition to Non-Public Schools | C110: TUIT
A111: 9400 | B111: Tuition to Collaboratives | C111: TUIT
A112: 9500 | B112: Regional School Assessment | C112: REGL
A113: 9600 | B113: Out-of-district Transportation | C113: ODTR
A114: 9810 | B114: NSS Required Net School Spending (EOY)
A115: 9820 | B115: NSS Carryover (EOY)
A116: ADMN | B116: Administration
A117: BENE | B117: Insurance, Retirement Programs and Other
A118: CAPT | B118: Fixed Assets (Buildings, Equipment)
A119: COMM | B119: Community Activities
A120: DEBT | B120: Debt and BANs
A121: GUID | B121: Guidance, Counseling and Testing
A122: IIII | B122: In-district Expenditure
A123: INDR | B123: Indirect Cost Transfers
A124: LDRS | B124: Instructional Leadership
A125: MATL | B125: Instructional Materials, Equipment and Technology
A126: ODTR | B126: Out-of-district Transportation
A127: OODD | B127: Out-of-district Expenditure
A128: OPMN | B128: Operations and Maintenance
A129: OTHR | B129: Total Other Costs
A130: PDEV | B130: Professional Development
A131: REGL | B131: Regional Assessments
A132: SERV | B132: Pupil Services
A133: SPGR | B133: SPED From Grants, Revolving
A134: TCHR | B134: Teachers
A135: TSER | B135: Other Teaching Services
A136: TTPP | B136: Expenditure (Admin, Instruction, Operations)
A137: TTTT | B137: Grand Total Expenditures
A138: TUIT | B138: Payments to Out-of-District Schools

Sheet lea (hidden)
A1: leaname | B1: lea | E1: Sorted by LEA
A2: Abington | B2: 0001 | E2: 0001 | F2: Abington
A3: Acton | B3: 0002 | E3: 0002 | F3: Acton
A4: Acton Boxborough | B4: 0600 | E4: 0003 | F4: Acushnet
A5: Acushnet | B5: 0003 | E5: 0004 | F5: Adams
A6: Adams | B6: 0004 | E6: 0005 | F6: Agawam
A7: Agawam | B7: 0005 | E7: 0006 | F7: Alford
A8: Alford | B8: 0006 | E8: 0007 | F8: Amesbury
A9: Amesbury | B9: 0007 | E9: 0008 | F9: Amherst
A10: Amherst | B10: 0008 | E10: 0009 | F10: Andover
A11: Amherst Pelham | B11: 0605 | E11: 0010 | F11: Arlington
A12: Andover | B12: 0009 | E12: 0011 | F12: Ashburnham
A13: Arlington | B13: 0010 | E13: 0012 | F13: Ashby
A14: Ashburnham | B14: 0011 | E14: 0013 | F14: Ashfield
A15: Ashburnham Westminster | B15: 0610 | E15: 0014 | F15: Ashland
A16: Ashby | B16: 0012 | E16: 0015 | F16: Athol
A17: Ashfield | B17: 0013 | E17: 0016 | F17: Attleboro
A18: Ashland | B18: 0014 | E18: 0017 | F18: Auburn
A19: Assabet Valley | B19: 0801 | E19: 0018 | F19: Avon
A20: Athol | B20: 0015 | E20: 0019 | F20: Ayer
A21: Athol Royalston | B21: 0615 | E21: 0020 | F21: Barnstable
A22: Attleboro | B22: 0016 | E22: 0021 | F22: Barre
A23: Auburn | B23: 0017 | E23: 0022 | F23: Becket
A24: Avon | B24: 0018 | E24: 0023 | F24: Bedford
A25: Ayer | B25: 0019 | E25: 0024 | F25: Belchertown
A26: Ayer Shirley | B26: 0616 | E26: 0025 | F26: Bellingham
A27: Barnstable | B27: 0020 | E27: 0026 | F27: Belmont
A28: Barre | B28: 0021 | E28: 0027 | F28: Berkley
A29: Becket | B29: 0022 | E29: 0028 | F29: Berlin
A30: Bedford | B30: 0023 | E30: 0029 | F30: Bernardston
A31: Belchertown | B31: 0024 | E31: 0030 | F31: Beverly
A32: Bellingham | B32: 0025 | E32: 0031 | F32: Billerica
A33: Belmont | B33: 0026 | E33: 0032 | F33: Blackstone
A34: Berkley | B34: 0027 | E34: 0033 | F34: Blandford
A35: Berkshire Hills | B35: 0618 | E35: 0034 | F35: Bolton
A36: Berlin | B36: 0028 | E36: 0035 | F36: Boston
A37: Berlin Boylston | B37: 0620 | E37: 0036 | F37: Bourne
A38: Bernardston | B38: 0029 | E38: 0037 | F38: Boxborough
A39: Beverly | B39: 0030 | E39: 0038 | F39: Boxford
A40: Billerica | B40: 0031 | E40: 0039 | F40: Boylston
A41: Blackstone | B41: 0032 | E41: 0040 | F41: Braintree
A42: Blackstone Millville | B42: 0622 | E42: 0041 | F42: Brewster
A43: Blackstone Valley | B43: 0805 | E43: 0042 | F43: Bridgewater
A44: Blandford | B44: 0033 | E44: 0043 | F44: Brimfield
A45: Blue Hills | B45: 0806 | E45: 0044 | F45: Brockton
A46: Bolton | B46: 0034 | E46: 0045 | F46: Brookfield
A47: Boston | B47: 0035 | E47: 0046 | F47: Brookline
A48: Bourne | B48: 0036 | E48: 0047 | F48: Buckland
A49: Boxborough | B49: 0037 | E49: 0048 | F49: Burlington
A50: Boxford | B50: 0038 | E50: 0049 | F50: Cambridge
A51: Boylston | B51: 0039 | E51: 0050 | F51: Canton
A52: Braintree | B52: 0040 | E52: 0051 | F52: Carlisle
A53: Brewster | B53: 0041 | E53: 0052 | F53: Carver
A54: Bridgewater | B54: 0042 | E54: 0053 | F54: Charlemont
A55: Bridgewater Raynham | B55: 0625 | E55: 0054 | F55: Charlton
A56: Brimfield | B56: 0043 | E56: 0055 | F56: Chatham
A57: Bristol County | B57: 0910 | E57: 0056 | F57: Chelmsford
A58: Bristol Plymouth | B58: 0810 | E58: 0057 | F58: Chelsea
A59: Brockton | B59: 0044 | E59: 0058 | F59: Cheshire
A60: Brookfield | B60: 0045 | E60: 0059 | F60: Chester
A61: Brookline | B61: 0046 | E61: 0060 | F61: Chesterfield
A62: Buckland | B62: 0047 | E62: 0061 | F62: Chicopee
A63: Burlington | B63: 0048 | E63: 0062 | F63: Chilmark
A64: Cambridge | B64: 0049 | E64: 0063 | F64: Clarksburg
A65: Canton | B65: 0050 | E65: 0064 | F65: Clinton
A66: Cape Cod | B66: 0815 | E66: 0065 | F66: Cohasset
A67: Carlisle | B67: 0051 | E67: 0066 | F67: Colrain
A68: Carver | B68: 0052 | E68: 0067 | F68: Concord
A69: Central Berkshire | B69: 0635 | E69: 0068 | F69: Conway
A70: Charlemont | B70: 0053 | E70: 0069 | F70: Cummington
A71: Charlton | B71: 0054 | E71: 0070 | F71: Dalton
A72: Chatham | B72: 0055 | E72: 0071 | F72: Danvers
A73: Chelmsford | B73: 0056 | E73: 0072 | F73: Dartmouth
A74: Chelsea | B74: 0057 | E74: 0073 | F74: Dedham
A75: Cheshire | B75: 0058 | E75: 0074 | F75: Deerfield
A76: Chester | B76: 0059 | E76: 0075 | F76: Dennis
A77: Chesterfield | B77: 0060 | E77: 0076 | F77: Dighton
A78: Chesterfield Goshen | B78: 0632 | E78: 0077 | F78: Douglas
A79: Chicopee | B79: 0061 | E79: 0078 | F79: Dover
A80: Chilmark | B80: 0062 | E80: 0079 | F80: Dracut
A81: Clarksburg | B81: 0063 | E81: 0080 | F81: Dudley
A82: Clinton | B82: 0064 | E82: 0081 | F82: Dunstable
A83: Cohasset | B83: 0065 | E83: 0082 | F83: Duxbury
A84: Colrain | B84: 0066 | E84: 0083 | F84: East Bridgewater
A85: Concord | B85: 0067 | E85: 0084 | F85: East Brookfield
A86: Concord Carlisle | B86: 0640 | E86: 0085 | F86: Eastham
A87: Conway | B87: 0068 | E87: 0086 | F87: Easthampton
A88: Cummington | B88: 0069 | E88: 0087 | F88: East Longmeadow
A89: Dalton | B89: 0070 | E89: 0088 | F89: Easton
A90: Danvers | B90: 0071 | E90: 0089 | F90: Edgartown
A91: Dartmouth | B91: 0072 | E91: 0090 | F91: Egremont
A92: Dedham | B92: 0073 | E92: 0091 | F92: Erving
A93: Deerfield | B93: 0074 | E93: 0092 | F93: Essex
A94: Dennis | B94: 0075 | E94: 0093 | F94: Everett
A95: Dennis Yarmouth | B95: 0645 | E95: 0094 | F95: Fairhaven
A96: Dighton | B96: 0076 | E96: 0095 | F96: Fall River
A97: Dighton Rehoboth | B97: 0650 | E97: 0096 | F97: Falmouth
A98: Douglas | B98: 0077 | E98: 0097 | F98: Fitchburg
A99: Dover | B99: 0078 | E99: 0098 | F99: Florida
A100: Dover Sherborn | B100: 0655 | E100: 0099 | F100: Foxborough
A101: Dracut | B101: 0079 | E101: 0100 | F101: Framingham
A102: Dudley | B102: 0080 | E102: 0101 | F102: Franklin
A103: Dudley Charlton | B103: 0658 | E103: 0102 | F103: Freetown
A104: Dunstable | B104: 0081 | E104: 0103 | F104: Gardner
A105: Duxbury | B105: 0082 | E105: 0104 | F105: Gay Head
A106: East Bridgewater | B106: 0083 | E106: 0105 | F106: Georgetown
A107: East Brookfield | B107: 0084 | E107: 0106 | F107: Gill
A108: East Longmeadow | B108: 0087 | E108: 0107 | F108: Gloucester
A109: Eastham | B109: 0085 | E109: 0108 | F109: Goshen
A110: Easthampton | B110: 0086 | E110: 0109 | F110: Gosnold
A111: Easton | B111: 0088 | E111: 0110 | F111: Grafton
A112: Edgartown | B112: 0089 | E112: 0111 | F112: Granby
A113: Egremont | B113: 0090 | E113: 0112 | F113: Granville
A114: Erving | B114: 0091 | E114: 0113 | F114: Great Barrington
A115: Essex | B115: 0092 | E115: 0114 | F115: Greenfield
A116: Essex North Shore | B116: 0817 | E116: 0115 | F116: Groton
A117: Everett | B117: 0093 | E117: 0116 | F117: Groveland
A118: Fairhaven | B118: 0094 | E118: 0117 | F118: Hadley
A119: Fall River | B119: 0095 | E119: 0118 | F119: Halifax
A120: Falmouth | B120: 0096 | E120: 0119 | F120: Hamilton
A121: Farmington River | B121: 0662 | E121: 0120 | F121: Hampden
A122: Fitchburg | B122: 0097 | E122: 0121 | F122: Hancock
A123: Florida | B123: 0098 | E123: 0122 | F123: Hanover
A124: Foxborough | B124: 0099 | E124: 0123 | F124: Hanson
A125: Framingham | B125: 0100 | E125: 0124 | F125: Hardwick
A126: Franklin | B126: 0101 | E126: 0125 | F126: Harvard
A127: Franklin County | B127: 0818 | E127: 0126 | F127: Harwich
A128: Freetown | B128: 0102 | E128: 0127 | F128: Hatfield
A129: Freetown Lakeville | B129: 0665 | E129: 0128 | F129: Haverhill
A130: Frontier | B130: 0670 | E130: 0129 | F130: Hawley
A131: Gardner | B131: 0103 | E131: 0130 | F131: Heath
A132: Gateway | B132: 0672 | E132: 0131 | F132: Hingham
A133: Gay Head | B133: 0104 | E133: 0132 | F133: Hinsdale
A134: Georgetown | B134: 0105 | E134: 0133 | F134: Holbrook
A135: Gill | B135: 0106 | E135: 0134 | F135: Holden
A136: Gill Montague | B136: 0674 | E136: 0135 | F136: Holland
A137: Gloucester | B137: 0107 | E137: 0136 | F137: Holliston
A138: Goshen | B138: 0108 | E138: 0137 | F138: Holyoke
A139: Gosnold | B139: 0109 | E139: 0138 | F139: Hopedale
A140: Grafton | B140: 0110 | E140: 0139 | F140: Hopkinton
A141: Granby | B141: 0111 | E141: 0140 | F141: Hubbardston
A142: Granville | B142: 0112 | E142: 0141 | F142: Hudson
A143: Great Barrington | B143: 0113 | E143: 0142 | F143: Hull
A144: Greater Fall River | B144: 0821 | E144: 0143 | F144: Huntington
A145: Greater Lawrence | B145: 0823 | E145: 0144 | F145: Ipswich
A146: Greater Lowell | B146: 0828 | E146: 0145 | F146: Kingston
A147: Greater New Bedford | B147: 0825 | E147: 0146 | F147: Lakeville
A148: Greenfield | B148: 0114 | E148: 0147 | F148: Lancaster
A149: Groton | B149: 0115 | E149: 0148 | F149: Lanesborough
A150: Groton Dunstable | B150: 0673 | E150: 0149 | F150: Lawrence
A151: Groveland | B151: 0116 | E151: 0150 | F151: Lee
A152: Hadley | B152: 0117 | E152: 0151 | F152: Leicester
A153: Halifax | B153: 0118 | E153: 0152 | F153: Lenox
A154: Hamilton | B154: 0119 | E154: 0153 | F154: Leominster
A155: Hamilton Wenham | B155: 0675 | E155: 0154 | F155: Leverett
A156: Hampden | B156: 0120 | E156: 0155 | F156: Lexington
A157: Hampden Wilbraham | B157: 0680 | E157: 0156 | F157: Leyden
A158: Hampshire | B158: 0683 | E158: 0157 | F158: Lincoln
A159: Hancock | B159: 0121 | E159: 0158 | F159: Littleton
A160: Hanover | B160: 0122 | E160: 0159 | F160: Longmeadow
A161: Hanson | B161: 0123 | E161: 0160 | F161: Lowell
A162: Hardwick | B162: 0124 | E162: 0161 | F162: Ludlow
A163: Harvard | B163: 0125 | E163: 0162 | F163: Lunenburg
A164: Harwich | B164: 0126 | E164: 0163 | F164: Lynn
A165: Hatfield | B165: 0127 | E165: 0164 | F165: Lynnfield
A166: Haverhill | B166: 0128 | E166: 0165 | F166: Malden
A167: Hawlemont | B167: 0685 | E167: 0166 | F167: Manchester
A168: Hawley | B168: 0129 | E168: 0167 | F168: Mansfield
A169: Heath | B169: 0130 | E169: 0168 | F169: Marblehead
A170: Hingham | B170: 0131 | E170: 0169 | F170: Marion
A171: Hinsdale | B171: 0132 | E171: 0170 | F171: Marlborough
A172: Holbrook | B172: 0133 | E172: 0171 | F172: Marshfield
A173: Holden | B173: 0134 | E173: 0172 | F173: Mashpee
A174: Holland | B174: 0135 | E174: 0173 | F174: Mattapoisett
A175: Holliston | B175: 0136 | E175: 0174 | F175: Maynard
A176: Holyoke | B176: 0137 | E176: 0175 | F176: Medfield
A177: Hoosac Valley | B177: 0603 | E177: 0176 | F177: Medford
A178: Hopedale | B178: 0138 | E178: 0177 | F178: Medway
A179: Hopkinton | B179: 0139 | E179: 0178 | F179: Melrose
A180: Hubbardston | B180: 0140 | E180: 0179 | F180: Mendon
A181: Hudson | B181: 0141 | E181: 0180 | F181: Merrimac
A182: Hull | B182: 0142 | E182: 0181 | F182: Methuen
A183: Huntington | B183: 0143 | E183: 0182 | F183: Middleborough
A184: Ipswich | B184: 0144 | E184: 0183 | F184: Middlefield
A185: King Philip | B185: 0690 | E185: 0184 | F185: Middleton
A186: Kingston | B186: 0145 | E186: 0185 | F186: Milford
A187: Lakeville | B187: 0146 | E187: 0186 | F187: Millbury
A188: Lancaster | B188: 0147 | E188: 0187 | F188: Millis
A189: Lanesborough | B189: 0148 | E189: 0188 | F189: Millville
A190: Lawrence | B190: 0149 | E190: 0189 | F190: Milton
A191: Lee | B191: 0150 | E191: 0190 | F191: Monroe
A192: Leicester | B192: 0151 | E192: 0191 | F192: Monson
A193: Lenox | B193: 0152 | E193: 0192 | F193: Montague
A194: Leominster | B194: 0153 | E194: 0193 | F194: Monterey
A195: Leverett | B195: 0154 | E195: 0194 | F195: Montgomery
A196: Lexington | B196: 0155 | E196: 0195 | F196: Mount Washington
A197: Leyden | B197: 0156 | E197: 0196 | F197: Nahant
A198: Lincoln | B198: 0157 | E198: 0197 | F198: Nantucket
A199: Lincoln Sudbury | B199: 0695 | E199: 0198 | F199: Natick
A200: Littleton | B200: 0158 | E200: 0199 | F200: Needham
... 239 more rows
